Workbook

Sheet Cenários COPOM
A1: Reuniões | B1: Cenário 1 | C1: CDI | D1: Cenário 2 | E1: CDI | F1: Cenário 3 | G1: CDI | H1: Cenário 4 | I1: CDI | J1: Cenário 5 | K1: CDI | O1: Data | P1: =+'Resumo estatístico Futuro DI'!B1 -> 2023-11-07
A2: Atual | C2: =+P2 -> 12.15 | E2: =+C2 -> 12.15 | G2: =+E2 -> 12.15 | I2: =+G2 -> 12.15 | K2: =+I2 -> 12.15 | O2: CDI Atual | P2: =+'Resumo estatístico Futuro DI'!B3*100 -> 12.15
A3: 2019-10-30 | B3: 0 | C3: =+C2+(B3/100) -> 12.15 | D3: 0 | E3: =+E2+(D3/100) -> 12.15 | F3: 0 | G3: =+G2+(F3/100) -> 12.15 | H3: 0 | I3: =+I2+(H3/100) -> 12.15 | J3: 0 | K3: =+K2+(J3/100) -> 12.15
A4: 2019-12-11 | B4: 0 | C4: =+C3+(B4/100) -> 12.15 | D4: 0 | E4: 12.15 | F4: 0 | G4: 12.15 | H4: 0 | I4: 12.15 | J4: 0 | K4: 12.15
A5: 2020-02-05 | B5: 0 | C5: 12.15 | D5: 0 | E5: 12.15 | F5: 0 | G5: 12.15 | H5: 0 | I5: 12.15 | J5: 0 | K5: 12.15
A6: 2020-03-18 | B6: 0 | C6: 12.15 | D6: 0 | E6: 12.15 | F6: 0 | G6: 12.15 | H6: 0 | I6: 12.15 | J6: 0 | K6: 12.15
A7: 2020-05-06 | B7: 0 | C7: 12.15 | D7: 0 | E7: 12.15 | F7: 0 | G7: 12.15 | H7: 0 | I7: 12.15 | J7: 0 | K7: 12.15
A8: 2020-06-17 | B8: 0 | C8: 12.15 | D8: 0 | E8: 12.15 | F8: 0 | G8: 12.15 | H8: 0 | I8: 12.15 | J8: 0 | K8: 12.15
A9: 2020-08-05 | B9: 0 | C9: 12.15 | D9: 0 | E9: 12.15 | F9: 0 | G9: 12.15 | H9: 0 | I9: 12.15 | J9: 0 | K9: 12.15
A10: 2020-09-16 | B10: 0 | C10: 12.15 | D10: 0 | E10: 12.15 | F10: 0 | G10: 12.15 | H10: 0 | I10: 12.15 | J10: 0 | K10: 12.15
A11: 2020-10-28 | B11: 0 | C11: 12.15 | D11: 0 | E11: 12.15 | F11: 0 | G11: 12.15 | H11: 0 | I11: 12.15 | J11: 0 | K11: 12.15
A12: 2020-12-09 | B12: 0 | C12: 12.15 | D12: 0 | E12: 12.15 | F12: 0 | G12: 12.15 | H12: 0 | I12: 12.15 | J12: 0 | K12: 12.15
A13: 2021-01-20 | B13: 0 | C13: 12.15 | D13: 0 | E13: 12.15 | F13: 0 | G13: 12.15 | H13: 0 | I13: 12.15 | J13: 0 | K13: 12.15
A14: 2021-03-17 | B14: 0 | C14: 12.15 | D14: 0 | E14: 12.15 | F14: 0 | G14: 12.15 | H14: 0 | I14: 12.15 | J14: 0 | K14: 12.15
A15: 2021-05-05 | B15: 0 | C15: 12.15 | D15: 0 | E15: 12.15 | F15: 0 | G15: 12.15 | H15: 0 | I15: 12.15 | J15: 0 | K15: 12.15
A16: 2021-06-16 | B16: 0 | C16: 12.15 | D16: 0 | E16: 12.15 | F16: 0 | G16: 12.15 | H16: 0 | I16: 12.15 | J16: 0 | K16: 12.15
A17: 2021-08-04 | B17: 0 | C17: 12.15 | D17: 0 | E17: 12.15 | F17: 0 | G17: 12.15 | H17: 0 | I17: 12.15 | J17: 0 | K17: 12.15
A18: 2021-09-22 | B18: 0 | C18: 12.15 | D18: 0 | E18: 12.15 | F18: 0 | G18: 12.15 | H18: 0 | I18: 12.15 | J18: 0 | K18: 12.15
A19: 2021-10-27 | B19: 0 | C19: 12.15 | D19: 0 | E19: 12.15 | F19: 0 | G19: 12.15 | H19: 0 | I19: 12.15 | J19: 0 | K19: 12.15
A20: 2021-12-08 | B20: 0 | C20: =+C19+(B20/100) -> 12.15 | D20: 0 | E20: =+E19+(D20/100) -> 12.15 | F20: 0 | G20: =+G19+(F20/100) -> 12.15 | H20: 0 | I20: =+I19+(H20/100) -> 12.15 | J20: 0 | K20: =+K19+(J20/100) -> 12.15
A21: 2022-02-02 | B21: 0 | C21: 12.15 | D21: 0 | E21: 12.15 | F21: 0 | G21: 12.15 | H21: 0 | I21: 12.15 | J21: 0 | K21: 12.15
A22: 2022-03-16 | B22: 0 | C22: 12.15 | D22: 0 | E22: 12.15 | F22: 0 | G22: 12.15 | H22: 0 | I22: 12.15 | J22: 0 | K22: 12.15
A23: 2022-05-04 | B23: 0 | C23: 12.15 | D23: 0 | E23: 12.15 | F23: 0 | G23: 12.15 | H23: 0 | I23: 12.15 | J23: 0 | K23: 12.15
A24: 2022-06-15 | B24: 0 | C24: 12.15 | D24: 0 | E24: 12.15 | F24: 0 | G24: 12.15 | H24: 0 | I24: 12.15 | J24: 0 | K24: 12.15
A25: 2022-08-03 | B25: 0 | C25: 12.15 | D25: 0 | E25: 12.15 | F25: 0 | G25: 12.15 | H25: 0 | I25: 12.15 | J25: 0 | K25: 12.15
A26: 2022-09-21 | B26: 0 | C26: =+C25+(B26/100) -> 12.15 | D26: 0 | E26: =+E25+(D26/100) -> 12.15 | F26: 0 | G26: =+G25+(F26/100) -> 12.15 | H26: 0 | I26: =+I25+(H26/100) -> 12.15 | J26: 0 | K26: =+K25+(J26/100) -> 12.15
A27: 2022-10-26 | B27: 0 | C27: 12.15 | D27: 0 | E27: 12.15 | F27: 0 | G27: 12.15 | H27: 0 | I27: 12.15 | J27: 0 | K27: 12.15
A28: 2022-12-07 | B28: 0 | C28: 12.15 | D28: 0 | E28: 12.15 | F28: 0 | G28: 12.15 | H28: 0 | I28: 12.15 | J28: 0 | K28: 12.15

Sheet Projeção DI Futuro
A1: DU | B1: Data | C1: CDI Atual | D1: Alteração | E1: CDI 2 | F1: =+'Cenários COPOM'!B1 -> Cenário 1 | G1: Taxa Ano | I1: DU | J1: Data | K1: CDI Atual | L1: Alteração | M1: CDI 2 | N1: =+'Cenários COPOM'!D1 -> Cenário 2 | O1: Taxa Ano | Q1: DU | R1: Data | S1: CDI Atual | T1: Alteração | U1: CDI 2 | V1: =+'Cenários COPOM'!F1 -> Cenário 3 | W1: Taxa Ano | Y1: DU | Z1: Data | AA1: CDI Atual | AB1: Alteração | AC1: CDI 2 | AD1: =+'Cenários COPOM'!H1 -> Cenário 4 | AE1: Taxa Ano | AG1: DU | AH1: Data | AI1: CDI Atual | AJ1: Alteração | AK1: CDI 2 | AL1: =+'Cenários COPOM'!J1 -> Cenário 5 | AM1: Taxa Ano
A2: 0 | B2: =+'Resumo estatístico Futuro DI'!B1 -> 2023-11-07 | C2: =+'Cenários COPOM'!C2 -> 12.15 | D2: =IF(ISERROR(VLOOKUP(B2,'Cenários COPOM'!$A$1:$K$100,2,FALSE)),0,VLOOKUP(B2,'Cenários COPOM'!$A$1:$K$100,2,FALSE)/100) -> 0 | E2: =+C2+D2 -> 12.15 | F2: 10000 | G2: =+C2 -> 12.15 | I2: 0 | J2: =+B2 -> 2023-11-07 | K2: =+C2 -> 12.15 | L2: =IF(ISERROR(VLOOKUP(J2,'Cenários COPOM'!$A$1:$K$100,4,FALSE)),0,VLOOKUP(J2,'Cenários COPOM'!$A$1:$K$100,4,FALSE)/100) -> 0 | M2: =+K2+L2 -> 12.15 | N2: =+F2 -> 10000 | O2: =+K2 -> 12.15 | Q2: 0 | R2: =+J2 -> 2023-11-07 | S2: =+C2 -> 12.15 | T2: =IF(ISERROR(VLOOKUP(R2,'Cenários COPOM'!$A$1:$K$100,6,FALSE)),0,VLOOKUP(R2,'Cenários COPOM'!$A$1:$K$100,6,FALSE)/100) -> 0 | U2: =+S2+T2 -> 12.15 | V2: =+N2 -> 10000 | W2: =+O2 -> 12.15 | Y2: 0 | Z2: =+R2 -> 2023-11-07 | AA2: =+C2 -> 12.15 | AB2: =IF(ISERROR(VLOOKUP(Z2,'Cenários COPOM'!$A$1:$K$100,8,FALSE)),0,VLOOKUP(Z2,'Cenários COPOM'!$A$1:$K$100,8,FALSE)/100) -> 0 | AC2: =+AA2+AB2 -> 12.15 | AD2: =+V2 -> 10000 | AE2: =+W2 -> 12.15 | AG2: 0 | AH2: =+Z2 -> 2023-11-07 | AI2: =+C2 -> 12.15 | AJ2: =IF(ISERROR(VLOOKUP(AH2,'Cenários COPOM'!$A$1:$K$100,10,FALSE)),0,VLOOKUP(AH2,'Cenários COPOM'!$A$1:$K$100,10,FALSE)/100) -> 0 | AK2: =+AI2+AJ2 -> 12.15 | AL2: =+AD2 -> 10000 | AM2: =+AI2 -> 12.15
A3: =+A2+1 -> 1 | B3: =WORKDAY(B2,1,feriados!$A$2:$A$1000) -> 2023-11-08 | C3: =+C2 -> 12.15 | D3: =IF(ISERROR(VLOOKUP(B3,'Cenários COPOM'!$A$1:$K$100,2,FALSE)),0,VLOOKUP(B3,'Cenários COPOM'!$A$1:$K$100,2,FALSE)/100) -> 0 | E3: =+E2+D3 -> 12.15 | F3: =+ROUND(((1+E2/100)^(1/252))*F2,2) -> 10004.55 | G3: =+((F3/$F$2)^(252/A3)-1)*100 -> 12.14628204 | I3: =+I2+1 -> 1 | J3: =WORKDAY(J2,1,feriados!$A$2:$A$1000) -> 2023-11-08 | K3: =+K2 -> 12.15 | L3: =IF(ISERROR(VLOOKUP(J3,'Cenários COPOM'!$A$1:$K$100,4,FALSE)),0,VLOOKUP(J3,'Cenários COPOM'!$A$1:$K$100,4,FALSE)/100) -> 0 | M3: =+M2+L3 -> 12.15 | N3: =+ROUND(((1+M2/100)^(1/252))*N2,2) -> 10004.55 | O3: =+((N3/$N$2)^(252/I3)-1)*100 -> 12.14628204 | Q3: =+Q2+1 -> 1 | R3: =WORKDAY(R2,1,feriados!$A$2:$A$1000) -> 2023-11-08 | S3: =+S2 -> 12.15 | T3: =IF(ISERROR(VLOOKUP(R3,'Cenários COPOM'!$A$1:$K$100,6,FALSE)),0,VLOOKUP(R3,'Cenários COPOM'!$A$1:$K$100,6,FALSE)/100) -> 0 | U3: =+U2+T3 -> 12.15 | V3: =+ROUND(((1+U2/100)^(1/252))*V2,2) -> 10004.55 | W3: =+((V3/$V$2)^(252/Q3)-1)*100 -> 12.14628204 | Y3: =+Y2+1 -> 1 | Z3: =WORKDAY(Z2,1,feriados!$A$2:$A$1000) -> 2023-11-08 | AA3: =+AA2 -> 12.15 | AB3: =IF(ISERROR(VLOOKUP(Z3,'Cenários COPOM'!$A$1:$K$100,8,FALSE)),0,VLOOKUP(Z3,'Cenários COPOM'!$A$1:$K$100,8,FALSE)/100) -> 0 | AC3: =+AC2+AB3 -> 12.15 | AD3: =+ROUND(((1+AC2/100)^(1/252))*AD2,2) -> 10004.55 | AE3: =+((AD3/$AD$2)^(252/Y3)-1)*100 -> 12.14628204 | AG3: =+AG2+1 -> 1 | AH3: =WORKDAY(AH2,1,feriados!$A$2:$A$1000) -> 2023-11-08 | AI3: =+AI2 -> 12.15 | AJ3: =IF(ISERROR(VLOOKUP(AH3,'Cenários COPOM'!$A$1:$K$100,10,FALSE)),0,VLOOKUP(AH3,'Cenários COPOM'!$A$1:$K$100,10,FALSE)/100) -> 0 | AK3: =+AK2+AJ3 -> 12.15 | AL3: =+ROUND(((1+AK2/100)^(1/252))*AL2,2) -> 10004.55 | AM3: =+((AL3/$F$2)^(252/AG3)-1)*100 -> 12.14628204
A4: =+A3+1 -> 2 | B4: =WORKDAY(B3,1,feriados!$A$2:$A$1000) -> 2023-11-09 | C4: =+C3 -> 12.15 | D4: =IF(ISERROR(VLOOKUP(B4,'Cenários COPOM'!$A$1:$K$100,2,FALSE)),0,VLOOKUP(B4,'Cenários COPOM'!$A$1:$K$100,2,FALSE)/100) -> 0 | E4: =+E3+D4 -> 12.15 | F4: =+ROUND(((1+E3/100)^(1/252))*F3,2) -> 10009.1 | G4: =+((F4/$F$2)^(252/A4)-1)*100 -> 12.14335939 | I4: =+I3+1 -> 2 | J4: =WORKDAY(J3,1,feriados!$A$2:$A$1000) -> 2023-11-09 | K4: =+K3 -> 12.15 | L4: =IF(ISERROR(VLOOKUP(J4,'Cenários COPOM'!$A$1:$K$100,4,FALSE)),0,VLOOKUP(J4,'Cenários COPOM'!$A$1:$K$100,4,FALSE)/100) -> 0 | M4: =+M3+L4 -> 12.15 | N4: =+ROUND(((1+M3/100)^(1/252))*N3,2) -> 10009.1 | O4: =+((N4/$N$2)^(252/I4)-1)*100 -> 12.14335939 | Q4: =+Q3+1 -> 2 | R4: =WORKDAY(R3,1,feriados!$A$2:$A$1000) -> 2023-11-09 | S4: =+S3 -> 12.15 | T4: =IF(ISERROR(VLOOKUP(R4,'Cenários COPOM'!$A$1:$K$100,6,FALSE)),0,VLOOKUP(R4,'Cenários COPOM'!$A$1:$K$100,6,FALSE)/100) -> 0 | U4: =+U3+T4 -> 12.15 | V4: =+ROUND(((1+U3/100)^(1/252))*V3,2) -> 10009.1 | W4: =+((V4/$V$2)^(252/Q4)-1)*100 -> 12.14335939 | Y4: =+Y3+1 -> 2 | Z4: =WORKDAY(Z3,1,feriados!$A$2:$A$1000) -> 2023-11-09 | AA4: =+AA3 -> 12.15 | AB4: =IF(ISERROR(VLOOKUP(Z4,'Cenários COPOM'!$A$1:$K$100,8,FALSE)),0,VLOOKUP(Z4,'Cenários COPOM'!$A$1:$K$100,8,FALSE)/100) -> 0 | AC4: =+AC3+AB4 -> 12.15 | AD4: =+ROUND(((1+AC3/100)^(1/252))*AD3,2) -> 10009.1 | AE4: =+((AD4/$AD$2)^(252/Y4)-1)*100 -> 12.14335939 | AG4: =+AG3+1 -> 2 | AH4: =WORKDAY(AH3,1,feriados!$A$2:$A$1000) -> 2023-11-09 | AI4: =+AI3 -> 12.15 | AJ4: =IF(ISERROR(VLOOKUP(AH4,'Cenários COPOM'!$A$1:$K$100,10,FALSE)),0,VLOOKUP(AH4,'Cenários COPOM'!$A$1:$K$100,10,FALSE)/100) -> 0 | AK4: =+AK3+AJ4 -> 12.15 | AL4: =+ROUND(((1+AK3/100)^(1/252))*AL3,2) -> 10009.1 | AM4: =+((AL4/$F$2)^(252/AG4)-1)*100 -> 12.14335939
A5: 3 | B5: =WORKDAY(B4,1,feriados!$A$2:$A$1000) -> 2023-11-10 | C5: 12.15 | D5: =IF(ISERROR(VLOOKUP(B5,'Cenários COPOM'!$A$1:$K$100,2,FALSE)),0,VLOOKUP(B5,'Cenários COPOM'!$A$1:$K$100,2,FALSE)/100) -> 0 | E5: 12.15 | F5: 10013.66 | G5: 12.14984592 | I5: 3 | J5: =WORKDAY(J4,1,feriados!$A$2:$A$1000) -> 2023-11-10 | K5: 12.15 | L5: =IF(ISERROR(VLOOKUP(J5,'Cenários COPOM'!$A$1:$K$100,4,FALSE)),0,VLOOKUP(J5,'Cenários COPOM'!$A$1:$K$100,4,FALSE)/100) -> 0 | M5: 12.15 | N5: 10013.66 | O5: 12.14984592 | Q5: 3 | R5: =WORKDAY(R4,1,feriados!$A$2:$A$1000) -> 2023-11-10 | S5: 12.15 | T5: =IF(ISERROR(VLOOKUP(R5,'Cenários COPOM'!$A$1:$K$100,6,FALSE)),0,VLOOKUP(R5,'Cenários COPOM'!$A$1:$K$100,6,FALSE)/100) -> 0 | U5: 12.15 | V5: 10013.66 | W5: 12.14984592 | Y5: 3 | Z5: =WORKDAY(Z4,1,feriados!$A$2:$A$1000) -> 2023-11-10 | AA5: 12.15 | AB5: =IF(ISERROR(VLOOKUP(Z5,'Cenários COPOM'!$A$1:$K$100,8,FALSE)),0,VLOOKUP(Z5,'Cenários COPOM'!$A$1:$K$100,8,FALSE)/100) -> 0 | AC5: 12.15 | AD5: 10013.66 | AE5: 12.14984592 | AG5: 3 | AH5: =WORKDAY(AH4,1,feriados!$A$2:$A$1000) -> 2023-11-10 | AI5: 12.15 | AJ5: =IF(ISERROR(VLOOKUP(AH5,'Cenários COPOM'!$A$1:$K$100,10,FALSE)),0,VLOOKUP(AH5,'Cenários COPOM'!$A$1:$K$100,10,FALSE)/100) -> 0 | AK5: 12.15 | AL5: 10013.66 | AM5: 12.14984592
A6: 4 | B6: =WORKDAY(B5,1,feriados!$A$2:$A$1000) -> 2023-11-13 | C6: 12.15 | D6: =IF(ISERROR(VLOOKUP(B6,'Cenários COPOM'!$A$1:$K$100,2,FALSE)),0,VLOOKUP(B6,'Cenários COPOM'!$A$1:$K$100,2,FALSE)/100) -> 0 | E6: 12.15 | F6: 10018.22 | G6: 12.15162415 | I6: 4 | J6: =WORKDAY(J5,1,feriados!$A$2:$A$1000) -> 2023-11-13 | K6: 12.15 | L6: =IF(ISERROR(VLOOKUP(J6,'Cenários COPOM'!$A$1:$K$100,4,FALSE)),0,VLOOKUP(J6,'Cenários COPOM'!$A$1:$K$100,4,FALSE)/100) -> 0 | M6: 12.15 | N6: 10018.22 | O6: 12.15162415 | Q6: 4 | R6: =WORKDAY(R5,1,feriados!$A$2:$A$1000) -> 2023-11-13 | S6: 12.15 | T6: =IF(ISERROR(VLOOKUP(R6,'Cenários COPOM'!$A$1:$K$100,6,FALSE)),0,VLOOKUP(R6,'Cenários COPOM'!$A$1:$K$100,6,FALSE)/100) -> 0 | U6: 12.15 | V6: 10018.22 | W6: 12.15162415 | Y6: 4 | Z6: =WORKDAY(Z5,1,feriados!$A$2:$A$1000) -> 2023-11-13 | AA6: 12.15 | AB6: =IF(ISERROR(VLOOKUP(Z6,'Cenários COPOM'!$A$1:$K$100,8,FALSE)),0,VLOOKUP(Z6,'Cenários COPOM'!$A$1:$K$100,8,FALSE)/100) -> 0 | AC6: 12.15 | AD6: 10018.22 | AE6: 12.15162415 | AG6: 4 | AH6: =WORKDAY(AH5,1,feriados!$A$2:$A$1000) -> 2023-11-13 | AI6: 12.15 | AJ6: =IF(ISERROR(VLOOKUP(AH6,'Cenários COPOM'!$A$1:$K$100,10,FALSE)),0,VLOOKUP(AH6,'Cenários COPOM'!$A$1:$K$100,10,FALSE)/100) -> 0 | AK6: 12.15 | AL6: 10018.22 | AM6: 12.15162415
A7: 5 | B7: =WORKDAY(B6,1,feriados!$A$2:$A$1000) -> 2023-11-14 | C7: 12.15 | D7: =IF(ISERROR(VLOOKUP(B7,'Cenários COPOM'!$A$1:$K$100,2,FALSE)),0,VLOOKUP(B7,'Cenários COPOM'!$A$1:$K$100,2,FALSE)/100) -> 0 | E7: 12.15 | F7: 10022.78 | G7: 12.15152002 | I7: 5 | J7: =WORKDAY(J6,1,feriados!$A$2:$A$1000) -> 2023-11-14 | K7: 12.15 | L7: =IF(ISERROR(VLOOKUP(J7,'Cenários COPOM'!$A$1:$K$100,4,FALSE)),0,VLOOKUP(J7,'Cenários COPOM'!$A$1:$K$100,4,FALSE)/100) -> 0 | M7: 12.15 | N7: 10022.78 | O7: 12.15152002 | Q7: 5 | R7: =WORKDAY(R6,1,feriados!$A$2:$A$1000) -> 2023-11-14 | S7: 12.15 | T7: =IF(ISERROR(VLOOKUP(R7,'Cenários COPOM'!$A$1:$K$100,6,FALSE)),0,VLOOKUP(R7,'Cenários COPOM'!$A$1:$K$100,6,FALSE)/100) -> 0 | U7: 12.15 | V7: 10022.78 | W7: 12.15152002 | Y7: 5 | Z7: =WORKDAY(Z6,1,feriados!$A$2:$A$1000) -> 2023-11-14 | AA7: 12.15 | AB7: =IF(ISERROR(VLOOKUP(Z7,'Cenários COPOM'!$A$1:$K$100,8,FALSE)),0,VLOOKUP(Z7,'Cenários COPOM'!$A$1:$K$100,8,FALSE)/100) -> 0 | AC7: 12.15 | AD7: 10022.78 | AE7: 12.15152002 | AG7: 5 | AH7: =WORKDAY(AH6,1,feriados!$A$2:$A$1000) -> 2023-11-14 | AI7: 12.15 | AJ7: =IF(ISERROR(VLOOKUP(AH7,'Cenários COPOM'!$A$1:$K$100,10,FALSE)),0,VLOOKUP(AH7,'Cenários COPOM'!$A$1:$K$100,10,FALSE)/100) -> 0 | AK7: 12.15 | AL7: 10022.78 | AM7: 12.15152002
A8: 6 | B8: =WORKDAY(B7,1,feriados!$A$2:$A$1000) -> 2023-11-16 | C8: 12.15 | D8: =IF(ISERROR(VLOOKUP(B8,'Cenários COPOM'!$A$1:$K$100,2,FALSE)),0,VLOOKUP(B8,'Cenários COPOM'!$A$1:$K$100,2,FALSE)/100) -> 0 | E8: 12.15 | F8: 10027.34 | G8: 12.15047559 | I8: 6 | J8: =WORKDAY(J7,1,feriados!$A$2:$A$1000) -> 2023-11-16 | K8: 12.15 | L8: =IF(ISERROR(VLOOKUP(J8,'Cenários COPOM'!$A$1:$K$100,4,FALSE)),0,VLOOKUP(J8,'Cenários COPOM'!$A$1:$K$100,4,FALSE)/100) -> 0 | M8: 12.15 | N8: 10027.34 | O8: 12.15047559 | Q8: 6 | R8: =WORKDAY(R7,1,feriados!$A$2:$A$1000) -> 2023-11-16 | S8: 12.15 | T8: =IF(ISERROR(VLOOKUP(R8,'Cenários COPOM'!$A$1:$K$100,6,FALSE)),0,VLOOKUP(R8,'Cenários COPOM'!$A$1:$K$100,6,FALSE)/100) -> 0 | U8: 12.15 | V8: 10027.34 | W8: 12.15047559 | Y8: 6 | Z8: =WORKDAY(Z7,1,feriados!$A$2:$A$1000) -> 2023-11-16 | AA8: 12.15 | AB8: =IF(ISERROR(VLOOKUP(Z8,'Cenários COPOM'!$A$1:$K$100,8,FALSE)),0,VLOOKUP(Z8,'Cenários COPOM'!$A$1:$K$100,8,FALSE)/100) -> 0 | AC8: 12.15 | AD8: 10027.34 | AE8: 12.15047559 | AG8: 6 | AH8: =WORKDAY(AH7,1,feriados!$A$2:$A$1000) -> 2023-11-16 | AI8: 12.15 | AJ8: =IF(ISERROR(VLOOKUP(AH8,'Cenários COPOM'!$A$1:$K$100,10,FALSE)),0,VLOOKUP(AH8,'Cenários COPOM'!$A$1:$K$100,10,FALSE)/100) -> 0 | AK8: 12.15 | AL8: 10027.34 | AM8: 12.15047559
A9: 7 | B9: =WORKDAY(B8,1,feriados!$A$2:$A$1000) -> 2023-11-17 | C9: 12.15 | D9: =IF(ISERROR(VLOOKUP(B9,'Cenários COPOM'!$A$1:$K$100,2,FALSE)),0,VLOOKUP(B9,'Cenários COPOM'!$A$1:$K$100,2,FALSE)/100) -> 0 | E9: 12.15 | F9: 10031.9 | G9: 12.14889464 | I9: 7 | J9: =WORKDAY(J8,1,feriados!$A$2:$A$1000) -> 2023-11-17 | K9: 12.15 | L9: =IF(ISERROR(VLOOKUP(J9,'Cenários COPOM'!$A$1:$K$100,4,FALSE)),0,VLOOKUP(J9,'Cenários COPOM'!$A$1:$K$100,4,FALSE)/100) -> 0 | M9: 12.15 | N9: 10031.9 | O9: 12.14889464 | Q9: 7 | R9: =WORKDAY(R8,1,feriados!$A$2:$A$1000) -> 2023-11-17 | S9: 12.15 | T9: =IF(ISERROR(VLOOKUP(R9,'Cenários COPOM'!$A$1:$K$100,6,FALSE)),0,VLOOKUP(R9,'Cenários COPOM'!$A$1:$K$100,6,FALSE)/100) -> 0 | U9: 12.15 | V9: 10031.9 | W9: 12.14889464 | Y9: 7 | Z9: =WORKDAY(Z8,1,feriados!$A$2:$A$1000) -> 2023-11-17 | AA9: 12.15 | AB9: =IF(ISERROR(VLOOKUP(Z9,'Cenários COPOM'!$A$1:$K$100,8,FALSE)),0,VLOOKUP(Z9,'Cenários COPOM'!$A$1:$K$100,8,FALSE)/100) -> 0 | AC9: 12.15 | AD9: 10031.9 | AE9: 12.14889464 | AG9: 7 | AH9: =WORKDAY(AH8,1,feriados!$A$2:$A$1000) -> 2023-11-17 | AI9: 12.15 | AJ9: =IF(ISERROR(VLOOKUP(AH9,'Cenários COPOM'!$A$1:$K$100,10,FALSE)),0,VLOOKUP(AH9,'Cenários COPOM'!$A$1:$K$100,10,FALSE)/100) -> 0 | AK9: 12.15 | AL9: 10031.9 | AM9: 12.14889464
A10: 8 | B10: =WORKDAY(B9,1,feriados!$A$2:$A$1000) -> 2023-11-20 | C10: 12.15 | D10: =IF(ISERROR(VLOOKUP(B10,'Cenários COPOM'!$A$1:$K$100,2,FALSE)),0,VLOOKUP(B10,'Cenários COPOM'!$A$1:$K$100,2,FALSE)/100) -> 0 | E10: 12.15 | F10: 10036.47 | G10: 12.15049889 | I10: 8 | J10: =WORKDAY(J9,1,feriados!$A$2:$A$1000) -> 2023-11-20 | K10: 12.15 | L10: =IF(ISERROR(VLOOKUP(J10,'Cenários COPOM'!$A$1:$K$100,4,FALSE)),0,VLOOKUP(J10,'Cenários COPOM'!$A$1:$K$100,4,FALSE)/100) -> 0 | M10: 12.15 | N10: 10036.47 | O10: 12.15049889 | Q10: 8 | R10: =WORKDAY(R9,1,feriados!$A$2:$A$1000) -> 2023-11-20 | S10: 12.15 | T10: =IF(ISERROR(VLOOKUP(R10,'Cenários COPOM'!$A$1:$K$100,6,FALSE)),0,VLOOKUP(R10,'Cenários COPOM'!$A$1:$K$100,6,FALSE)/100) -> 0 | U10: 12.15 | V10: 10036.47 | W10: 12.15049889 | Y10: 8 | Z10: =WORKDAY(Z9,1,feriados!$A$2:$A$1000) -> 2023-11-20 | AA10: 12.15 | AB10: =IF(ISERROR(VLOOKUP(Z10,'Cenários COPOM'!$A$1:$K$100,8,FALSE)),0,VLOOKUP(Z10,'Cenários COPOM'!$A$1:$K$100,8,FALSE)/100) -> 0 | AC10: 12.15 | AD10: 10036.47 | AE10: 12.15049889 | AG10: 8 | AH10: =WORKDAY(AH9,1,feriados!$A$2:$A$1000) -> 2023-11-20 | AI10: 12.15 | AJ10: =IF(ISERROR(VLOOKUP(AH10,'Cenários COPOM'!$A$1:$K$100,10,FALSE)),0,VLOOKUP(AH10,'Cenários COPOM'!$A$1:$K$100,10,FALSE)/100) -> 0 | AK10: 12.15 | AL10: 10036.47 | AM10: 12.15049889
A11: 9 | B11: =WORKDAY(B10,1,feriados!$A$2:$A$1000) -> 2023-11-21 | C11: 12.15 | D11: =IF(ISERROR(VLOOKUP(B11,'Cenários COPOM'!$A$1:$K$100,2,FALSE)),0,VLOOKUP(B11,'Cenários COPOM'!$A$1:$K$100,2,FALSE)/100) -> 0 | E11: 12.15 | F11: 10041.04 | G11: 12.15109557 | I11: 9 | J11: =WORKDAY(J10,1,feriados!$A$2:$A$1000) -> 2023-11-21 | K11: 12.15 | L11: =IF(ISERROR(VLOOKUP(J11,'Cenários COPOM'!$A$1:$K$100,4,FALSE)),0,VLOOKUP(J11,'Cenários COPOM'!$A$1:$K$100,4,FALSE)/100) -> 0 | M11: 12.15 | N11: 10041.04 | O11: 12.15109557 | Q11: 9 | R11: =WORKDAY(R10,1,feriados!$A$2:$A$1000) -> 2023-11-21 | S11: 12.15 | T11: =IF(ISERROR(VLOOKUP(R11,'Cenários COPOM'!$A$1:$K$100,6,FALSE)),0,VLOOKUP(R11,'Cenários COPOM'!$A$1:$K$100,6,FALSE)/100) -> 0 | U11: 12.15 | V11: 10041.04 | W11: 12.15109557 | Y11: 9 | Z11: =WORKDAY(Z10,1,feriados!$A$2:$A$1000) -> 2023-11-21 | AA11: 12.15 | AB11: =IF(ISERROR(VLOOKUP(Z11,'Cenários COPOM'!$A$1:$K$100,8,FALSE)),0,VLOOKUP(Z11,'Cenários COPOM'!$A$1:$K$100,8,FALSE)/100) -> 0 | AC11: 12.15 | AD11: 10041.04 | AE11: 12.15109557 | AG11: 9 | AH11: =WORKDAY(AH10,1,feriados!$A$2:$A$1000) -> 2023-11-21 | AI11: 12.15 | AJ11: =IF(ISERROR(VLOOKUP(AH11,'Cenários COPOM'!$A$1:$K$100,10,FALSE)),0,VLOOKUP(AH11,'Cenários COPOM'!$A$1:$K$100,10,FALSE)/100) -> 0 | AK11: 12.15 | AL11: 10041.04 | AM11: 12.15109557
A12: 10 | B12: =WORKDAY(B11,1,feriados!$A$2:$A$1000) -> 2023-11-22 | C12: 12.15 | D12: =IF(ISERROR(VLOOKUP(B12,'Cenários COPOM'!$A$1:$K$100,2,FALSE)),0,VLOOKUP(B12,'Cenários COPOM'!$A$1:$K$100,2,FALSE)/100) -> 0 | E12: 12.15 | F12: 10045.61 | G12: 12.15098749 | I12: 10 | J12: =WORKDAY(J11,1,feriados!$A$2:$A$1000) -> 2023-11-22 | K12: 12.15 | L12: =IF(ISERROR(VLOOKUP(J12,'Cenários COPOM'!$A$1:$K$100,4,FALSE)),0,VLOOKUP(J12,'Cenários COPOM'!$A$1:$K$100,4,FALSE)/100) -> 0 | M12: 12.15 | N12: 10045.61 | O12: 12.15098749 | Q12: 10 | R12: =WORKDAY(R11,1,feriados!$A$2:$A$1000) -> 2023-11-22 | S12: 12.15 | T12: =IF(ISERROR(VLOOKUP(R12,'Cenários COPOM'!$A$1:$K$100,6,FALSE)),0,VLOOKUP(R12,'Cenários COPOM'!$A$1:$K$100,6,FALSE)/100) -> 0 | U12: 12.15 | V12: 10045.61 | W12: 12.15098749 | Y12: 10 | Z12: =WORKDAY(Z11,1,feriados!$A$2:$A$1000) -> 2023-11-22 | AA12: 12.15 | AB12: =IF(ISERROR(VLOOKUP(Z12,'Cenários COPOM'!$A$1:$K$100,8,FALSE)),0,VLOOKUP(Z12,'Cenários COPOM'!$A$1:$K$100,8,FALSE)/100) -> 0 | AC12: 12.15 | AD12: 10045.61 | AE12: 12.15098749 | AG12: 10 | AH12: =WORKDAY(AH11,1,feriados!$A$2:$A$1000) -> 2023-11-22 | AI12: 12.15 | AJ12: =IF(ISERROR(VLOOKUP(AH12,'Cenários COPOM'!$A$1:$K$100,10,FALSE)),0,VLOOKUP(AH12,'Cenários COPOM'!$A$1:$K$100,10,FALSE)/100) -> 0 | AK12: 12.15 | AL12: 10045.61 | AM12: 12.15098749
A13: 11 | B13: =WORKDAY(B12,1,feriados!$A$2:$A$1000) -> 2023-11-23 | C13: 12.15 | D13: =IF(ISERROR(VLOOKUP(B13,'Cenários COPOM'!$A$1:$K$100,2,FALSE)),0,VLOOKUP(B13,'Cenários COPOM'!$A$1:$K$100,2,FALSE)/100) -> 0 | E13: 12.15 | F13: 10050.18 | G13: 12.15036733 | I13: 11 | J13: =WORKDAY(J12,1,feriados!$A$2:$A$1000) -> 2023-11-23 | K13: 12.15 | L13: =IF(ISERROR(VLOOKUP(J13,'Cenários COPOM'!$A$1:$K$100,4,FALSE)),0,VLOOKUP(J13,'Cenários COPOM'!$A$1:$K$100,4,FALSE)/100) -> 0 | M13: 12.15 | N13: 10050.18 | O13: 12.15036733 | Q13: 11 | R13: =WORKDAY(R12,1,feriados!$A$2:$A$1000) -> 2023-11-23 | S13: 12.15 | T13: =IF(ISERROR(VLOOKUP(R13,'Cenários COPOM'!$A$1:$K$100,6,FALSE)),0,VLOOKUP(R13,'Cenários COPOM'!$A$1:$K$100,6,FALSE)/100) -> 0 | U13: 12.15 | V13: 10050.18 | W13: 12.15036733 | Y13: 11 | Z13: =WORKDAY(Z12,1,feriados!$A$2:$A$1000) -> 2023-11-23 | AA13: 12.15 | AB13: =IF(ISERROR(VLOOKUP(Z13,'Cenários COPOM'!$A$1:$K$100,8,FALSE)),0,VLOOKUP(Z13,'Cenários COPOM'!$A$1:$K$100,8,FALSE)/100) -> 0 | AC13: 12.15 | AD13: 10050.18 | AE13: 12.15036733 | AG13: 11 | AH13: =WORKDAY(AH12,1,feriados!$A$2:$A$1000) -> 2023-11-23 | AI13: 12.15 | AJ13: =IF(ISERROR(VLOOKUP(AH13,'Cenários COPOM'!$A$1:$K$100,10,FALSE)),0,VLOOKUP(AH13,'Cenários COPOM'!$A$1:$K$100,10,FALSE)/100) -> 0 | AK13: 12.15 | AL13: 10050.18 | AM13: 12.15036733
A14: 12 | B14: =WORKDAY(B13,1,feriados!$A$2:$A$1000) -> 2023-11-24 | C14: 12.15 | D14: =IF(ISERROR(VLOOKUP(B14,'Cenários COPOM'!$A$1:$K$100,2,FALSE)),0,VLOOKUP(B14,'Cenários COPOM'!$A$1:$K$100,2,FALSE)/100) -> 0 | E14: 12.15 | F14: 10054.75 | G14: 12.14936356 | I14: 12 | J14: =WORKDAY(J13,1,feriados!$A$2:$A$1000) -> 2023-11-24 | K14: 12.15 | L14: =IF(ISERROR(VLOOKUP(J14,'Cenários COPOM'!$A$1:$K$100,4,FALSE)),0,VLOOKUP(J14,'Cenários COPOM'!$A$1:$K$100,4,FALSE)/100) -> 0 | M14: 12.15 | N14: 10054.75 | O14: 12.14936356 | Q14: 12 | R14: =WORKDAY(R13,1,feriados!$A$2:$A$1000) -> 2023-11-24 | S14: 12.15 | T14: =IF(ISERROR(VLOOKUP(R14,'Cenários COPOM'!$A$1:$K$100,6,FALSE)),0,VLOOKUP(R14,'Cenários COPOM'!$A$1:$K$100,6,FALSE)/100) -> 0 | U14: 12.15 | V14: 10054.75 | W14: 12.14936356 | Y14: 12 | Z14: =WORKDAY(Z13,1,feriados!$A$2:$A$1000) -> 2023-11-24 | AA14: 12.15 | AB14: =IF(ISERROR(VLOOKUP(Z14,'Cenários COPOM'!$A$1:$K$100,8,FALSE)),0,VLOOKUP(Z14,'Cenários COPOM'!$A$1:$K$100,8,FALSE)/100) -> 0 | AC14: 12.15 | AD14: 10054.75 | AE14: 12.14936356 | AG14: 12 | AH14: =WORKDAY(AH13,1,feriados!$A$2:$A$1000) -> 2023-11-24 | AI14: 12.15 | AJ14: =IF(ISERROR(VLOOKUP(AH14,'Cenários COPOM'!$A$1:$K$100,10,FALSE)),0,VLOOKUP(AH14,'Cenários COPOM'!$A$1:$K$100,10,FALSE)/100) -> 0 | AK14: 12.15 | AL14: 10054.75 | AM14: 12.14936356
A15: 13 | B15: =WORKDAY(B14,1,feriados!$A$2:$A$1000) -> 2023-11-27 | C15: 12.15 | D15: =IF(ISERROR(VLOOKUP(B15,'Cenários COPOM'!$A$1:$K$100,2,FALSE)),0,VLOOKUP(B15,'Cenários COPOM'!$A$1:$K$100,2,FALSE)/100) -> 0 | E15: 12.15 | F15: 10059.33 | G15: 12.15022628 | I15: 13 | J15: =WORKDAY(J14,1,feriados!$A$2:$A$1000) -> 2023-11-27 | K15: 12.15 | L15: =IF(ISERROR(VLOOKUP(J15,'Cenários COPOM'!$A$1:$K$100,4,FALSE)),0,VLOOKUP(J15,'Cenários COPOM'!$A$1:$K$100,4,FALSE)/100) -> 0 | M15: 12.15 | N15: 10059.33 | O15: 12.15022628 | Q15: 13 | R15: =WORKDAY(R14,1,feriados!$A$2:$A$1000) -> 2023-11-27 | S15: 12.15 | T15: =IF(ISERROR(VLOOKUP(R15,'Cenários COPOM'!$A$1:$K$100,6,FALSE)),0,VLOOKUP(R15,'Cenários COPOM'!$A$1:$K$100,6,FALSE)/100) -> 0 | U15: 12.15 | V15: 10059.33 | W15: 12.15022628 | Y15: 13 | Z15: =WORKDAY(Z14,1,feriados!$A$2:$A$1000) -> 2023-11-27 | AA15: 12.15 | AB15: =IF(ISERROR(VLOOKUP(Z15,'Cenários COPOM'!$A$1:$K$100,8,FALSE)),0,VLOOKUP(Z15,'Cenários COPOM'!$A$1:$K$100,8,FALSE)/100) -> 0 | AC15: 12.15 | AD15: 10059.33 | AE15: 12.15022628 | AG15: 13 | AH15: =WORKDAY(AH14,1,feriados!$A$2:$A$1000) -> 2023-11-27 | AI15: 12.15 | AJ15: =IF(ISERROR(VLOOKUP(AH15,'Cenários COPOM'!$A$1:$K$100,10,FALSE)),0,VLOOKUP(AH15,'Cenários COPOM'!$A$1:$K$100,10,FALSE)/100) -> 0 | AK15: 12.15 | AL15: 10059.33 | AM15: 12.15022628
A16: 14 | B16: =WORKDAY(B15,1,feriados!$A$2:$A$1000) -> 2023-11-28 | C16: 12.15 | D16: =IF(ISERROR(VLOOKUP(B16,'Cenários COPOM'!$A$1:$K$100,2,FALSE)),0,VLOOKUP(B16,'Cenários COPOM'!$A$1:$K$100,2,FALSE)/100) -> 0 | E16: 12.15 | F16: 10063.91 | G16: 12.15054728 | I16: 14 | J16: =WORKDAY(J15,1,feriados!$A$2:$A$1000) -> 2023-11-28 | K16: 12.15 | L16: =IF(ISERROR(VLOOKUP(J16,'Cenários COPOM'!$A$1:$K$100,4,FALSE)),0,VLOOKUP(J16,'Cenários COPOM'!$A$1:$K$100,4,FALSE)/100) -> 0 | M16: 12.15 | N16: 10063.91 | O16: 12.15054728 | Q16: 14 | R16: =WORKDAY(R15,1,feriados!$A$2:$A$1000) -> 2023-11-28 | S16: 12.15 | T16: =IF(ISERROR(VLOOKUP(R16,'Cenários COPOM'!$A$1:$K$100,6,FALSE)),0,VLOOKUP(R16,'Cenários COPOM'!$A$1:$K$100,6,FALSE)/100) -> 0 | U16: 12.15 | V16: 10063.91 | W16: 12.15054728 | Y16: 14 | Z16: =WORKDAY(Z15,1,feriados!$A$2:$A$1000) -> 2023-11-28 | AA16: 12.15 | AB16: =IF(ISERROR(VLOOKUP(Z16,'Cenários COPOM'!$A$1:$K$100,8,FALSE)),0,VLOOKUP(Z16,'Cenários COPOM'!$A$1:$K$100,8,FALSE)/100) -> 0 | AC16: 12.15 | AD16: 10063.91 | AE16: 12.15054728 | AG16: 14 | AH16: =WORKDAY(AH15,1,feriados!$A$2:$A$1000) -> 2023-11-28 | AI16: 12.15 | AJ16: =IF(ISERROR(VLOOKUP(AH16,'Cenários COPOM'!$A$1:$K$100,10,FALSE)),0,VLOOKUP(AH16,'Cenários COPOM'!$A$1:$K$100,10,FALSE)/100) -> 0 | AK16: 12.15 | AL16: 10063.91 | AM16: 12.15054728
A17: 15 | B17: =WORKDAY(B16,1,feriados!$A$2:$A$1000) -> 2023-11-29 | C17: 12.15 | D17: =IF(ISERROR(VLOOKUP(B17,'Cenários COPOM'!$A$1:$K$100,2,FALSE)),0,VLOOKUP(B17,'Cenários COPOM'!$A$1:$K$100,2,FALSE)/100) -> 0 | E17: 12.15 | F17: 10068.49 | G17: 12.15043526 | I17: 15 | J17: =WORKDAY(J16,1,feriados!$A$2:$A$1000) -> 2023-11-29 | K17: 12.15 | L17: =IF(ISERROR(VLOOKUP(J17,'Cenários COPOM'!$A$1:$K$100,4,FALSE)),0,VLOOKUP(J17,'Cenários COPOM'!$A$1:$K$100,4,FALSE)/100) -> 0 | M17: 12.15 | N17: 10068.49 | O17: 12.15043526 | Q17: 15 | R17: =WORKDAY(R16,1,feriados!$A$2:$A$1000) -> 2023-11-29 | S17: 12.15 | T17: =IF(ISERROR(VLOOKUP(R17,'Cenários COPOM'!$A$1:$K$100,6,FALSE)),0,VLOOKUP(R17,'Cenários COPOM'!$A$1:$K$100,6,FALSE)/100) -> 0 | U17: 12.15 | V17: 10068.49 | W17: 12.15043526 | Y17: 15 | Z17: =WORKDAY(Z16,1,feriados!$A$2:$A$1000) -> 2023-11-29 | AA17: 12.15 | AB17: =IF(ISERROR(VLOOKUP(Z17,'Cenários COPOM'!$A$1:$K$100,8,FALSE)),0,VLOOKUP(Z17,'Cenários COPOM'!$A$1:$K$100,8,FALSE)/100) -> 0 | AC17: 12.15 | AD17: 10068.49 | AE17: 12.15043526 | AG17: 15 | AH17: =WORKDAY(AH16,1,feriados!$A$2:$A$1000) -> 2023-11-29 | AI17: 12.15 | AJ17: =IF(ISERROR(VLOOKUP(AH17,'Cenários COPOM'!$A$1:$K$100,10,FALSE)),0,VLOOKUP(AH17,'Cenários COPOM'!$A$1:$K$100,10,FALSE)/100) -> 0 | AK17: 12.15 | AL17: 10068.49 | AM17: 12.15043526
A18: 16 | B18: =WORKDAY(B17,1,feriados!$A$2:$A$1000) -> 2023-11-30 | C18: 12.15 | D18: =IF(ISERROR(VLOOKUP(B18,'Cenários COPOM'!$A$1:$K$100,2,FALSE)),0,VLOOKUP(B18,'Cenários COPOM'!$A$1:$K$100,2,FALSE)/100) -> 0 | E18: 12.15 | F18: 10073.07 | G18: 12.14997175 | I18: 16 | J18: =WORKDAY(J17,1,feriados!$A$2:$A$1000) -> 2023-11-30 | K18: 12.15 | L18: =IF(ISERROR(VLOOKUP(J18,'Cenários COPOM'!$A$1:$K$100,4,FALSE)),0,VLOOKUP(J18,'Cenários COPOM'!$A$1:$K$100,4,FALSE)/100) -> 0 | M18: 12.15 | N18: 10073.07 | O18: 12.14997175 | Q18: 16 | R18: =WORKDAY(R17,1,feriados!$A$2:$A$1000) -> 2023-11-30 | S18: 12.15 | T18: =IF(ISERROR(VLOOKUP(R18,'Cenários COPOM'!$A$1:$K$100,6,FALSE)),0,VLOOKUP(R18,'Cenários COPOM'!$A$1:$K$100,6,FALSE)/100) -> 0 | U18: 12.15 | V18: 10073.07 | W18: 12.14997175 | Y18: 16 | Z18: =WORKDAY(Z17,1,feriados!$A$2:$A$1000) -> 2023-11-30 | AA18: 12.15 | AB18: =IF(ISERROR(VLOOKUP(Z18,'Cenários COPOM'!$A$1:$K$100,8,FALSE)),0,VLOOKUP(Z18,'Cenários COPOM'!$A$1:$K$100,8,FALSE)/100) -> 0 | AC18: 12.15 | AD18: 10073.07 | AE18: 12.14997175 | AG18: 16 | AH18: =WORKDAY(AH17,1,feriados!$A$2:$A$1000) -> 2023-11-30 | AI18: 12.15 | AJ18: =IF(ISERROR(VLOOKUP(AH18,'Cenários COPOM'!$A$1:$K$100,10,FALSE)),0,VLOOKUP(AH18,'Cenários COPOM'!$A$1:$K$100,10,FALSE)/100) -> 0 | AK18: 12.15 | AL18: 10073.07 | AM18: 12.14997175
A19: 17 | B19: =WORKDAY(B18,1,feriados!$A$2:$A$1000) -> 2023-12-01 | C19: 12.15 | D19: =IF(ISERROR(VLOOKUP(B19,'Cenários COPOM'!$A$1:$K$100,2,FALSE)),0,VLOOKUP(B19,'Cenários COPOM'!$A$1:$K$100,2,FALSE)/100) -> 0 | E19: 12.15 | F19: 10077.65 | G19: 12.14921909 | I19: 17 | J19: =WORKDAY(J18,1,feriados!$A$2:$A$1000) -> 2023-12-01 | K19: 12.15 | L19: =IF(ISERROR(VLOOKUP(J19,'Cenários COPOM'!$A$1:$K$100,4,FALSE)),0,VLOOKUP(J19,'Cenários COPOM'!$A$1:$K$100,4,FALSE)/100) -> 0 | M19: 12.15 | N19: 10077.65 | O19: 12.14921909 | Q19: 17 | R19: =WORKDAY(R18,1,feriados!$A$2:$A$1000) -> 2023-12-01 | S19: 12.15 | T19: =IF(ISERROR(VLOOKUP(R19,'Cenários COPOM'!$A$1:$K$100,6,FALSE)),0,VLOOKUP(R19,'Cenários COPOM'!$A$1:$K$100,6,FALSE)/100) -> 0 | U19: 12.15 | V19: 10077.65 | W19: 12.14921909 | Y19: 17 | Z19: =WORKDAY(Z18,1,feriados!$A$2:$A$1000) -> 2023-12-01 | AA19: 12.15 | AB19: =IF(ISERROR(VLOOKUP(Z19,'Cenários COPOM'!$A$1:$K$100,8,FALSE)),0,VLOOKUP(Z19,'Cenários COPOM'!$A$1:$K$100,8,FALSE)/100) -> 0 | AC19: 12.15 | AD19: 10077.65 | AE19: 12.14921909 | AG19: 17 | AH19: =WORKDAY(AH18,1,feriados!$A$2:$A$1000) -> 2023-12-01 | AI19: 12.15 | AJ19: =IF(ISERROR(VLOOKUP(AH19,'Cenários COPOM'!$A$1:$K$100,10,FALSE)),0,VLOOKUP(AH19,'Cenários COPOM'!$A$1:$K$100,10,FALSE)/100) -> 0 | AK19: 12.15 | AL19: 10077.65 | AM19: 12.14921909
A20: 18 | B20: =WORKDAY(B19,1,feriados!$A$2:$A$1000) -> 2023-12-04 | C20: 12.15 | D20: =IF(ISERROR(VLOOKUP(B20,'Cenários COPOM'!$A$1:$K$100,2,FALSE)),0,VLOOKUP(B20,'Cenários COPOM'!$A$1:$K$100,2,FALSE)/100) -> 0 | E20: 12.15 | F20: 10082.24 | G20: 12.14978306 | I20: 18 | J20: =WORKDAY(J19,1,feriados!$A$2:$A$1000) -> 2023-12-04 | K20: 12.15 | L20: =IF(ISERROR(VLOOKUP(J20,'Cenários COPOM'!$A$1:$K$100,4,FALSE)),0,VLOOKUP(J20,'Cenários COPOM'!$A$1:$K$100,4,FALSE)/100) -> 0 | M20: 12.15 | N20: 10082.24 | O20: 12.14978306 | Q20: 18 | R20: =WORKDAY(R19,1,feriados!$A$2:$A$1000) -> 2023-12-04 | S20: 12.15 | T20: =IF(ISERROR(VLOOKUP(R20,'Cenários COPOM'!$A$1:$K$100,6,FALSE)),0,VLOOKUP(R20,'Cenários COPOM'!$A$1:$K$100,6,FALSE)/100) -> 0 | U20: 12.15 | V20: 10082.24 | W20: 12.14978306 | Y20: 18 | Z20: =WORKDAY(Z19,1,feriados!$A$2:$A$1000) -> 2023-12-04 | AA20: 12.15 | AB20: =IF(ISERROR(VLOOKUP(Z20,'Cenários COPOM'!$A$1:$K$100,8,FALSE)),0,VLOOKUP(Z20,'Cenários COPOM'!$A$1:$K$100,8,FALSE)/100) -> 0 | AC20: 12.15 | AD20: 10082.24 | AE20: 12.14978306 | AG20: 18 | AH20: =WORKDAY(AH19,1,feriados!$A$2:$A$1000) -> 2023-12-04 | AI20: 12.15 | AJ20: =IF(ISERROR(VLOOKUP(AH20,'Cenários COPOM'!$A$1:$K$100,10,FALSE)),0,VLOOKUP(AH20,'Cenários COPOM'!$A$1:$K$100,10,FALSE)/100) -> 0 | AK20: 12.15 | AL20: 10082.24 | AM20: 12.14978306
A21: 19 | B21: =WORKDAY(B20,1,feriados!$A$2:$A$1000) -> 2023-12-05 | C21: 12.15 | D21: =IF(ISERROR(VLOOKUP(B21,'Cenários COPOM'!$A$1:$K$100,2,FALSE)),0,VLOOKUP(B21,'Cenários COPOM'!$A$1:$K$100,2,FALSE)/100) -> 0 | E21: 12.15 | F21: 10086.83 | G21: 12.14997937 | I21: 19 | J21: =WORKDAY(J20,1,feriados!$A$2:$A$1000) -> 2023-12-05 | K21: 12.15 | L21: =IF(ISERROR(VLOOKUP(J21,'Cenários COPOM'!$A$1:$K$100,4,FALSE)),0,VLOOKUP(J21,'Cenários COPOM'!$A$1:$K$100,4,FALSE)/100) -> 0 | M21: 12.15 | N21: 10086.83 | O21: 12.14997937 | Q21: 19 | R21: =WORKDAY(R20,1,feriados!$A$2:$A$1000) -> 2023-12-05 | S21: 12.15 | T21: =IF(ISERROR(VLOOKUP(R21,'Cenários COPOM'!$A$1:$K$100,6,FALSE)),0,VLOOKUP(R21,'Cenários COPOM'!$A$1:$K$100,6,FALSE)/100) -> 0 | U21: 12.15 | V21: 10086.83 | W21: 12.14997937 | Y21: 19 | Z21: =WORKDAY(Z20,1,feriados!$A$2:$A$1000) -> 2023-12-05 | AA21: 12.15 | AB21: =IF(ISERROR(VLOOKUP(Z21,'Cenários COPOM'!$A$1:$K$100,8,FALSE)),0,VLOOKUP(Z21,'Cenários COPOM'!$A$1:$K$100,8,FALSE)/100) -> 0 | AC21: 12.15 | AD21: 10086.83 | AE21: 12.14997937 | AG21: 19 | AH21: =WORKDAY(AH20,1,feriados!$A$2:$A$1000) -> 2023-12-05 | AI21: 12.15 | AJ21: =IF(ISERROR(VLOOKUP(AH21,'Cenários COPOM'!$A$1:$K$100,10,FALSE)),0,VLOOKUP(AH21,'Cenários COPOM'!$A$1:$K$100,10,FALSE)/100) -> 0 | AK21: 12.15 | AL21: 10086.83 | AM21: 12.14997937
A22: 20 | B22: =WORKDAY(B21,1,feriados!$A$2:$A$1000) -> 2023-12-06 | C22: 12.15 | D22: =IF(ISERROR(VLOOKUP(B22,'Cenários COPOM'!$A$1:$K$100,2,FALSE)),0,VLOOKUP(B22,'Cenários COPOM'!$A$1:$K$100,2,FALSE)/100) -> 0 | E22: 12.15 | F22: 10091.42 | G22: 12.14986344 | I22: 20 | J22: =WORKDAY(J21,1,feriados!$A$2:$A$1000) -> 2023-12-06 | K22: 12.15 | L22: =IF(ISERROR(VLOOKUP(J22,'Cenários COPOM'!$A$1:$K$100,4,FALSE)),0,VLOOKUP(J22,'Cenários COPOM'!$A$1:$K$100,4,FALSE)/100) -> 0 | M22: 12.15 | N22: 10091.42 | O22: 12.14986344 | Q22: 20 | R22: =WORKDAY(R21,1,feriados!$A$2:$A$1000) -> 2023-12-06 | S22: 12.15 | T22: =IF(ISERROR(VLOOKUP(R22,'Cenários COPOM'!$A$1:$K$100,6,FALSE)),0,VLOOKUP(R22,'Cenários COPOM'!$A$1:$K$100,6,FALSE)/100) -> 0 | U22: 12.15 | V22: 10091.42 | W22: 12.14986344 | Y22: 20 | Z22: =WORKDAY(Z21,1,feriados!$A$2:$A$1000) -> 2023-12-06 | AA22: 12.15 | AB22: =IF(ISERROR(VLOOKUP(Z22,'Cenários COPOM'!$A$1:$K$100,8,FALSE)),0,VLOOKUP(Z22,'Cenários COPOM'!$A$1:$K$100,8,FALSE)/100) -> 0 | AC22: 12.15 | AD22: 10091.42 | AE22: 12.14986344 | AG22: 20 | AH22: =WORKDAY(AH21,1,feriados!$A$2:$A$1000) -> 2023-12-06 | AI22: 12.15 | AJ22: =IF(ISERROR(VLOOKUP(AH22,'Cenários COPOM'!$A$1:$K$100,10,FALSE)),0,VLOOKUP(AH22,'Cenários COPOM'!$A$1:$K$100,10,FALSE)/100) -> 0 | AK22: 12.15 | AL22: 10091.42 | AM22: 12.14986344
A23: 21 | B23: =WORKDAY(B22,1,feriados!$A$2:$A$1000) -> 2023-12-07 | C23: 12.15 | D23: =IF(ISERROR(VLOOKUP(B23,'Cenários COPOM'!$A$1:$K$100,2,FALSE)),0,VLOOKUP(B23,'Cenários COPOM'!$A$1:$K$100,2,FALSE)/100) -> 0 | E23: 12.15 | F23: 10096.01 | G23: 12.14948014 | I23: 21 | J23: =WORKDAY(J22,1,feriados!$A$2:$A$1000) -> 2023-12-07 | K23: 12.15 | L23: =IF(ISERROR(VLOOKUP(J23,'Cenários COPOM'!$A$1:$K$100,4,FALSE)),0,VLOOKUP(J23,'Cenários COPOM'!$A$1:$K$100,4,FALSE)/100) -> 0 | M23: 12.15 | N23: 10096.01 | O23: 12.14948014 | Q23: 21 | R23: =WORKDAY(R22,1,feriados!$A$2:$A$1000) -> 2023-12-07 | S23: 12.15 | T23: =IF(ISERROR(VLOOKUP(R23,'Cenários COPOM'!$A$1:$K$100,6,FALSE)),0,VLOOKUP(R23,'Cenários COPOM'!$A$1:$K$100,6,FALSE)/100) -> 0 | U23: 12.15 | V23: 10096.01 | W23: 12.14948014 | Y23: 21 | Z23: =WORKDAY(Z22,1,feriados!$A$2:$A$1000) -> 2023-12-07 | AA23: 12.15 | AB23: =IF(ISERROR(VLOOKUP(Z23,'Cenários COPOM'!$A$1:$K$100,8,FALSE)),0,VLOOKUP(Z23,'Cenários COPOM'!$A$1:$K$100,8,FALSE)/100) -> 0 | AC23: 12.15 | AD23: 10096.01 | AE23: 12.14948014 | AG23: 21 | AH23: =WORKDAY(AH22,1,feriados!$A$2:$A$1000) -> 2023-12-07 | AI23: 12.15 | AJ23: =IF(ISERROR(VLOOKUP(AH23,'Cenários COPOM'!$A$1:$K$100,10,FALSE)),0,VLOOKUP(AH23,'Cenários COPOM'!$A$1:$K$100,10,FALSE)/100) -> 0 | AK23: 12.15 | AL23: 10096.01 | AM23: 12.14948014
A24: 22 | B24: =WORKDAY(B23,1,feriados!$A$2:$A$1000) -> 2023-12-08 | C24: 12.15 | D24: =IF(ISERROR(VLOOKUP(B24,'Cenários COPOM'!$A$1:$K$100,2,FALSE)),0,VLOOKUP(B24,'Cenários COPOM'!$A$1:$K$100,2,FALSE)/100) -> 0 | E24: 12.15 | F24: 10100.61 | G24: 12.15013798 | I24: 22 | J24: =WORKDAY(J23,1,feriados!$A$2:$A$1000) -> 2023-12-08 | K24: 12.15 | L24: =IF(ISERROR(VLOOKUP(J24,'Cenários COPOM'!$A$1:$K$100,4,FALSE)),0,VLOOKUP(J24,'Cenários COPOM'!$A$1:$K$100,4,FALSE)/100) -> 0 | M24: 12.15 | N24: 10100.61 | O24: 12.15013798 | Q24: 22 | R24: =WORKDAY(R23,1,feriados!$A$2:$A$1000) -> 2023-12-08 | S24: 12.15 | T24: =IF(ISERROR(VLOOKUP(R24,'Cenários COPOM'!$A$1:$K$100,6,FALSE)),0,VLOOKUP(R24,'Cenários COPOM'!$A$1:$K$100,6,FALSE)/100) -> 0 | U24: 12.15 | V24: 10100.61 | W24: 12.15013798 | Y24: 22 | Z24: =WORKDAY(Z23,1,feriados!$A$2:$A$1000) -> 2023-12-08 | AA24: 12.15 | AB24: =IF(ISERROR(VLOOKUP(Z24,'Cenários COPOM'!$A$1:$K$100,8,FALSE)),0,VLOOKUP(Z24,'Cenários COPOM'!$A$1:$K$100,8,FALSE)/100) -> 0 | AC24: 12.15 | AD24: 10100.61 | AE24: 12.15013798 | AG24: 22 | AH24: =WORKDAY(AH23,1,feriados!$A$2:$A$1000) -> 2023-12-08 | AI24: 12.15 | AJ24: =IF(ISERROR(VLOOKUP(AH24,'Cenários COPOM'!$A$1:$K$100,10,FALSE)),0,VLOOKUP(AH24,'Cenários COPOM'!$A$1:$K$100,10,FALSE)/100) -> 0 | AK24: 12.15 | AL24: 10100.61 | AM24: 12.15013798
A25: 23 | B25: =WORKDAY(B24,1,feriados!$A$2:$A$1000) -> 2023-12-11 | C25: 12.15 | D25: =IF(ISERROR(VLOOKUP(B25,'Cenários COPOM'!$A$1:$K$100,2,FALSE)),0,VLOOKUP(B25,'Cenários COPOM'!$A$1:$K$100,2,FALSE)/100) -> 0 | E25: 12.15 | F25: 10105.21 | G25: 12.15048378 | I25: 23 | J25: =WORKDAY(J24,1,feriados!$A$2:$A$1000) -> 2023-12-11 | K25: 12.15 | L25: =IF(ISERROR(VLOOKUP(J25,'Cenários COPOM'!$A$1:$K$100,4,FALSE)),0,VLOOKUP(J25,'Cenários COPOM'!$A$1:$K$100,4,FALSE)/100) -> 0 | M25: 12.15 | N25: 10105.21 | O25: 12.15048378 | Q25: 23 | R25: =WORKDAY(R24,1,feriados!$A$2:$A$1000) -> 2023-12-11 | S25: 12.15 | T25: =IF(ISERROR(VLOOKUP(R25,'Cenários COPOM'!$A$1:$K$100,6,FALSE)),0,VLOOKUP(R25,'Cenários COPOM'!$A$1:$K$100,6,FALSE)/100) -> 0 | U25: 12.15 | V25: 10105.21 | W25: 12.15048378 | Y25: 23 | Z25: =WORKDAY(Z24,1,feriados!$A$2:$A$1000) -> 2023-12-11 | AA25: 12.15 | AB25: =IF(ISERROR(VLOOKUP(Z25,'Cenários COPOM'!$A$1:$K$100,8,FALSE)),0,VLOOKUP(Z25,'Cenários COPOM'!$A$1:$K$100,8,FALSE)/100) -> 0 | AC25: 12.15 | AD25: 10105.21 | AE25: 12.15048378 | AG25: 23 | AH25: =WORKDAY(AH24,1,feriados!$A$2:$A$1000) -> 2023-12-11 | AI25: 12.15 | AJ25: =IF(ISERROR(VLOOKUP(AH25,'Cenários COPOM'!$A$1:$K$100,10,FALSE)),0,VLOOKUP(AH25,'Cenários COPOM'!$A$1:$K$100,10,FALSE)/100) -> 0 | AK25: 12.15 | AL25: 10105.21 | AM25: 12.15048378
A26: 24 | B26: =WORKDAY(B25,1,feriados!$A$2:$A$1000) -> 2023-12-12 | C26: 12.15 | D26: =IF(ISERROR(VLOOKUP(B26,'Cenários COPOM'!$A$1:$K$100,2,FALSE)),0,VLOOKUP(B26,'Cenários COPOM'!$A$1:$K$100,2,FALSE)/100) -> 0 | E26: 12.15 | F26: 10109.81 | G26: 12.15055674 | I26: 24 | J26: =WORKDAY(J25,1,feriados!$A$2:$A$1000) -> 2023-12-12 | K26: 12.15 | L26: =IF(ISERROR(VLOOKUP(J26,'Cenários COPOM'!$A$1:$K$100,4,FALSE)),0,VLOOKUP(J26,'Cenários COPOM'!$A$1:$K$100,4,FALSE)/100) -> 0 | M26: 12.15 | N26: 10109.81 | O26: 12.15055674 | Q26: 24 | R26: =WORKDAY(R25,1,feriados!$A$2:$A$1000) -> 2023-12-12 | S26: 12.15 | T26: =IF(ISERROR(VLOOKUP(R26,'Cenários COPOM'!$A$1:$K$100,6,FALSE)),0,VLOOKUP(R26,'Cenários COPOM'!$A$1:$K$100,6,FALSE)/100) -> 0 | U26: 12.15 | V26: 10109.81 | W26: 12.15055674 | Y26: 24 | Z26: =WORKDAY(Z25,1,feriados!$A$2:$A$1000) -> 2023-12-12 | AA26: 12.15 | AB26: =IF(ISERROR(VLOOKUP(Z26,'Cenários COPOM'!$A$1:$K$100,8,FALSE)),0,VLOOKUP(Z26,'Cenários COPOM'!$A$1:$K$100,8,FALSE)/100) -> 0 | AC26: 12.15 | AD26: 10109.81 | AE26: 12.15055674 | AG26: 24 | AH26: =WORKDAY(AH25,1,feriados!$A$2:$A$1000) -> 2023-12-12 | AI26: 12.15 | AJ26: =IF(ISERROR(VLOOKUP(AH26,'Cenários COPOM'!$A$1:$K$100,10,FALSE)),0,VLOOKUP(AH26,'Cenários COPOM'!$A$1:$K$100,10,FALSE)/100) -> 0 | AK26: 12.15 | AL26: 10109.81 | AM26: 12.15055674
A27: 25 | B27: =WORKDAY(B26,1,feriados!$A$2:$A$1000) -> 2023-12-13 | C27: 12.15 | D27: =IF(ISERROR(VLOOKUP(B27,'Cenários COPOM'!$A$1:$K$100,2,FALSE)),0,VLOOKUP(B27,'Cenários COPOM'!$A$1:$K$100,2,FALSE)/100) -> 0 | E27: 12.15 | F27: 10114.41 | G27: 12.15038982 | I27: 25 | J27: =WORKDAY(J26,1,feriados!$A$2:$A$1000) -> 2023-12-13 | K27: 12.15 | L27: =IF(ISERROR(VLOOKUP(J27,'Cenários COPOM'!$A$1:$K$100,4,FALSE)),0,VLOOKUP(J27,'Cenários COPOM'!$A$1:$K$100,4,FALSE)/100) -> 0 | M27: 12.15 | N27: 10114.41 | O27: 12.15038982 | Q27: 25 | R27: =WORKDAY(R26,1,feriados!$A$2:$A$1000) -> 2023-12-13 | S27: 12.15 | T27: =IF(ISERROR(VLOOKUP(R27,'Cenários COPOM'!$A$1:$K$100,6,FALSE)),0,VLOOKUP(R27,'Cenários COPOM'!$A$1:$K$100,6,FALSE)/100) -> 0 | U27: 12.15 | V27: 10114.41 | W27: 12.15038982 | Y27: 25 | Z27: =WORKDAY(Z26,1,feriados!$A$2:$A$1000) -> 2023-12-13 | AA27: 12.15 | AB27: =IF(ISERROR(VLOOKUP(Z27,'Cenários COPOM'!$A$1:$K$100,8,FALSE)),0,VLOOKUP(Z27,'Cenários COPOM'!$A$1:$K$100,8,FALSE)/100) -> 0 | AC27: 12.15 | AD27: 10114.41 | AE27: 12.15038982 | AG27: 25 | AH27: =WORKDAY(AH26,1,feriados!$A$2:$A$1000) -> 2023-12-13 | AI27: 12.15 | AJ27: =IF(ISERROR(VLOOKUP(AH27,'Cenários COPOM'!$A$1:$K$100,10,FALSE)),0,VLOOKUP(AH27,'Cenários COPOM'!$A$1:$K$100,10,FALSE)/100) -> 0 | AK27: 12.15 | AL27: 10114.41 | AM27: 12.15038982
A28: 26 | B28: =WORKDAY(B27,1,feriados!$A$2:$A$1000) -> 2023-12-14 | C28: 12.15 | D28: =IF(ISERROR(VLOOKUP(B28,'Cenários COPOM'!$A$1:$K$100,2,FALSE)),0,VLOOKUP(B28,'Cenários COPOM'!$A$1:$K$100,2,FALSE)/100) -> 0 | E28: 12.15 | F28: 10119.01 | G28: 12.15001091 | I28: 26 | J28: =WORKDAY(J27,1,feriados!$A$2:$A$1000) -> 2023-12-14 | K28: 12.15 | L28: =IF(ISERROR(VLOOKUP(J28,'Cenários COPOM'!$A$1:$K$100,4,FALSE)),0,VLOOKUP(J28,'Cenários COPOM'!$A$1:$K$100,4,FALSE)/100) -> 0 | M28: 12.15 | N28: 10119.01 | O28: 12.15001091 | Q28: 26 | R28: =WORKDAY(R27,1,feriados!$A$2:$A$1000) -> 2023-12-14 | S28: 12.15 | T28: =IF(ISERROR(VLOOKUP(R28,'Cenários COPOM'!$A$1:$K$100,6,FALSE)),0,VLOOKUP(R28,'Cenários COPOM'!$A$1:$K$100,6,FALSE)/100) -> 0 | U28: 12.15 | V28: 10119.01 | W28: 12.15001091 | Y28: 26 | Z28: =WORKDAY(Z27,1,feriados!$A$2:$A$1000) -> 2023-12-14 | AA28: 12.15 | AB28: =IF(ISERROR(VLOOKUP(Z28,'Cenários COPOM'!$A$1:$K$100,8,FALSE)),0,VLOOKUP(Z28,'Cenários COPOM'!$A$1:$K$100,8,FALSE)/100) -> 0 | AC28: 12.15 | AD28: 10119.01 | AE28: 12.15001091 | AG28: 26 | AH28: =WORKDAY(AH27,1,feriados!$A$2:$A$1000) -> 2023-12-14 | AI28: 12.15 | AJ28: =IF(ISERROR(VLOOKUP(AH28,'Cenários COPOM'!$A$1:$K$100,10,FALSE)),0,VLOOKUP(AH28,'Cenários COPOM'!$A$1:$K$100,10,FALSE)/100) -> 0 | AK28: 12.15 | AL28: 10119.01 | AM28: 12.15001091
A29: 27 | B29: =WORKDAY(B28,1,feriados!$A$2:$A$1000) -> 2023-12-15 | C29: 12.15 | D29: =IF(ISERROR(VLOOKUP(B29,'Cenários COPOM'!$A$1:$K$100,2,FALSE)),0,VLOOKUP(B29,'Cenários COPOM'!$A$1:$K$100,2,FALSE)/100) -> 0 | E29: 12.15 | F29: 10123.62 | G29: 12.15047771 | I29: 27 | J29: =WORKDAY(J28,1,feriados!$A$2:$A$1000) -> 2023-12-15 | K29: 12.15 | L29: =IF(ISERROR(VLOOKUP(J29,'Cenários COPOM'!$A$1:$K$100,4,FALSE)),0,VLOOKUP(J29,'Cenários COPOM'!$A$1:$K$100,4,FALSE)/100) -> 0 | M29: 12.15 | N29: 10123.62 | O29: 12.15047771 | Q29: 27 | R29: =WORKDAY(R28,1,feriados!$A$2:$A$1000) -> 2023-12-15 | S29: 12.15 | T29: =IF(ISERROR(VLOOKUP(R29,'Cenários COPOM'!$A$1:$K$100,6,FALSE)),0,VLOOKUP(R29,'Cenários COPOM'!$A$1:$K$100,6,FALSE)/100) -> 0 | U29: 12.15 | V29: 10123.62 | W29: 12.15047771 | Y29: 27 | Z29: =WORKDAY(Z28,1,feriados!$A$2:$A$1000) -> 2023-12-15 | AA29: 12.15 | AB29: =IF(ISERROR(VLOOKUP(Z29,'Cenários COPOM'!$A$1:$K$100,8,FALSE)),0,VLOOKUP(Z29,'Cenários COPOM'!$A$1:$K$100,8,FALSE)/100) -> 0 | AC29: 12.15 | AD29: 10123.62 | AE29: 12.15047771 | AG29: 27 | AH29: =WORKDAY(AH28,1,feriados!$A$2:$A$1000) -> 2023-12-15 | AI29: 12.15 | AJ29: =IF(ISERROR(VLOOKUP(AH29,'Cenários COPOM'!$A$1:$K$100,10,FALSE)),0,VLOOKUP(AH29,'Cenários COPOM'!$A$1:$K$100,10,FALSE)/100) -> 0 | AK29: 12.15 | AL29: 10123.62 | AM29: 12.15047771
A30: 28 | B30: =WORKDAY(B29,1,feriados!$A$2:$A$1000) -> 2023-12-18 | C30: 12.15 | D30: =IF(ISERROR(VLOOKUP(B30,'Cenários COPOM'!$A$1:$K$100,2,FALSE)),0,VLOOKUP(B30,'Cenários COPOM'!$A$1:$K$100,2,FALSE)/100) -> 0 | E30: 12.15 | F30: 10128.23 | G30: 12.15070187 | I30: 28 | J30: =WORKDAY(J29,1,feriados!$A$2:$A$1000) -> 2023-12-18 | K30: 12.15 | L30: =IF(ISERROR(VLOOKUP(J30,'Cenários COPOM'!$A$1:$K$100,4,FALSE)),0,VLOOKUP(J30,'Cenários COPOM'!$A$1:$K$100,4,FALSE)/100) -> 0 | M30: 12.15 | N30: 10128.23 | O30: 12.15070187 | Q30: 28 | R30: =WORKDAY(R29,1,feriados!$A$2:$A$1000) -> 2023-12-18 | S30: 12.15 | T30: =IF(ISERROR(VLOOKUP(R30,'Cenários COPOM'!$A$1:$K$100,6,FALSE)),0,VLOOKUP(R30,'Cenários COPOM'!$A$1:$K$100,6,FALSE)/100) -> 0 | U30: 12.15 | V30: 10128.23 | W30: 12.15070187 | Y30: 28 | Z30: =WORKDAY(Z29,1,feriados!$A$2:$A$1000) -> 2023-12-18 | AA30: 12.15 | AB30: =IF(ISERROR(VLOOKUP(Z30,'Cenários COPOM'!$A$1:$K$100,8,FALSE)),0,VLOOKUP(Z30,'Cenários COPOM'!$A$1:$K$100,8,FALSE)/100) -> 0 | AC30: 12.15 | AD30: 10128.23 | AE30: 12.15070187 | AG30: 28 | AH30: =WORKDAY(AH29,1,feriados!$A$2:$A$1000) -> 2023-12-18 | AI30: 12.15 | AJ30: =IF(ISERROR(VLOOKUP(AH30,'Cenários COPOM'!$A$1:$K$100,10,FALSE)),0,VLOOKUP(AH30,'Cenários COPOM'!$A$1:$K$100,10,FALSE)/100) -> 0 | AK30: 12.15 | AL30: 10128.23 | AM30: 12.15070187
A31: 29 | B31: =WORKDAY(B30,1,feriados!$A$2:$A$1000) -> 2023-12-19 | C31: 12.15 | D31: =IF(ISERROR(VLOOKUP(B31,'Cenários COPOM'!$A$1:$K$100,2,FALSE)),0,VLOOKUP(B31,'Cenários COPOM'!$A$1:$K$100,2,FALSE)/100) -> 0 | E31: 12.15 | F31: 10132.84 | G31: 12.15070866 | I31: 29 | J31: =WORKDAY(J30,1,feriados!$A$2:$A$1000) -> 2023-12-19 | K31: 12.15 | L31: =IF(ISERROR(VLOOKUP(J31,'Cenários COPOM'!$A$1:$K$100,4,FALSE)),0,VLOOKUP(J31,'Cenários COPOM'!$A$1:$K$100,4,FALSE)/100) -> 0 | M31: 12.15 | N31: 10132.84 | O31: 12.15070866 | Q31: 29 | R31: =WORKDAY(R30,1,feriados!$A$2:$A$1000) -> 2023-12-19 | S31: 12.15 | T31: =IF(ISERROR(VLOOKUP(R31,'Cenários COPOM'!$A$1:$K$100,6,FALSE)),0,VLOOKUP(R31,'Cenários COPOM'!$A$1:$K$100,6,FALSE)/100) -> 0 | U31: 12.15 | V31: 10132.84 | W31: 12.15070866 | Y31: 29 | Z31: =WORKDAY(Z30,1,feriados!$A$2:$A$1000) -> 2023-12-19 | AA31: 12.15 | AB31: =IF(ISERROR(VLOOKUP(Z31,'Cenários COPOM'!$A$1:$K$100,8,FALSE)),0,VLOOKUP(Z31,'Cenários COPOM'!$A$1:$K$100,8,FALSE)/100) -> 0 | AC31: 12.15 | AD31: 10132.84 | AE31: 12.15070866 | AG31: 29 | AH31: =WORKDAY(AH30,1,feriados!$A$2:$A$1000) -> 2023-12-19 | AI31: 12.15 | AJ31: =IF(ISERROR(VLOOKUP(AH31,'Cenários COPOM'!$A$1:$K$100,10,FALSE)),0,VLOOKUP(AH31,'Cenários COPOM'!$A$1:$K$100,10,FALSE)/100) -> 0 | AK31: 12.15 | AL31: 10132.84 | AM31: 12.15070866
A32: 30 | B32: =WORKDAY(B31,1,feriados!$A$2:$A$1000) -> 2023-12-20 | C32: 12.15 | D32: =IF(ISERROR(VLOOKUP(B32,'Cenários COPOM'!$A$1:$K$100,2,FALSE)),0,VLOOKUP(B32,'Cenários COPOM'!$A$1:$K$100,2,FALSE)/100) -> 0 | E32: 12.15 | F32: 10137.45 | G32: 12.15052001 | I32: 30 | J32: =WORKDAY(J31,1,feriados!$A$2:$A$1000) -> 2023-12-20 | K32: 12.15 | L32: =IF(ISERROR(VLOOKUP(J32,'Cenários COPOM'!$A$1:$K$100,4,FALSE)),0,VLOOKUP(J32,'Cenários COPOM'!$A$1:$K$100,4,FALSE)/100) -> 0 | M32: 12.15 | N32: 10137.45 | O32: 12.15052001 | Q32: 30 | R32: =WORKDAY(R31,1,feriados!$A$2:$A$1000) -> 2023-12-20 | S32: 12.15 | T32: =IF(ISERROR(VLOOKUP(R32,'Cenários COPOM'!$A$1:$K$100,6,FALSE)),0,VLOOKUP(R32,'Cenários COPOM'!$A$1:$K$100,6,FALSE)/100) -> 0 | U32: 12.15 | V32: 10137.45 | W32: 12.15052001 | Y32: 30 | Z32: =WORKDAY(Z31,1,feriados!$A$2:$A$1000) -> 2023-12-20 | AA32: 12.15 | AB32: =IF(ISERROR(VLOOKUP(Z32,'Cenários COPOM'!$A$1:$K$100,8,FALSE)),0,VLOOKUP(Z32,'Cenários COPOM'!$A$1:$K$100,8,FALSE)/100) -> 0 | AC32: 12.15 | AD32: 10137.45 | AE32: 12.15052001 | AG32: 30 | AH32: =WORKDAY(AH31,1,feriados!$A$2:$A$1000) -> 2023-12-20 | AI32: 12.15 | AJ32: =IF(ISERROR(VLOOKUP(AH32,'Cenários COPOM'!$A$1:$K$100,10,FALSE)),0,VLOOKUP(AH32,'Cenários COPOM'!$A$1:$K$100,10,FALSE)/100) -> 0 | AK32: 12.15 | AL32: 10137.45 | AM32: 12.15052001
A33: 31 | B33: =WORKDAY(B32,1,feriados!$A$2:$A$1000) -> 2023-12-21 | C33: 12.15 | D33: =IF(ISERROR(VLOOKUP(B33,'Cenários COPOM'!$A$1:$K$100,2,FALSE)),0,VLOOKUP(B33,'Cenários COPOM'!$A$1:$K$100,2,FALSE)/100) -> 0 | E33: 12.15 | F33: 10142.06 | G33: 12.150155 | I33: 31 | J33: =WORKDAY(J32,1,feriados!$A$2:$A$1000) -> 2023-12-21 | K33: 12.15 | L33: =IF(ISERROR(VLOOKUP(J33,'Cenários COPOM'!$A$1:$K$100,4,FALSE)),0,VLOOKUP(J33,'Cenários COPOM'!$A$1:$K$100,4,FALSE)/100) -> 0 | M33: 12.15 | N33: 10142.06 | O33: 12.150155 | Q33: 31 | R33: =WORKDAY(R32,1,feriados!$A$2:$A$1000) -> 2023-12-21 | S33: 12.15 | T33: =IF(ISERROR(VLOOKUP(R33,'Cenários COPOM'!$A$1:$K$100,6,FALSE)),0,VLOOKUP(R33,'Cenários COPOM'!$A$1:$K$100,6,FALSE)/100) -> 0 | U33: 12.15 | V33: 10142.06 | W33: 12.150155 | Y33: 31 | Z33: =WORKDAY(Z32,1,feriados!$A$2:$A$1000) -> 2023-12-21 | AA33: 12.15 | AB33: =IF(ISERROR(VLOOKUP(Z33,'Cenários COPOM'!$A$1:$K$100,8,FALSE)),0,VLOOKUP(Z33,'Cenários COPOM'!$A$1:$K$100,8,FALSE)/100) -> 0 | AC33: 12.15 | AD33: 10142.06 | AE33: 12.150155 | AG33: 31 | AH33: =WORKDAY(AH32,1,feriados!$A$2:$A$1000) -> 2023-12-21 | AI33: 12.15 | AJ33: =IF(ISERROR(VLOOKUP(AH33,'Cenários COPOM'!$A$1:$K$100,10,FALSE)),0,VLOOKUP(AH33,'Cenários COPOM'!$A$1:$K$100,10,FALSE)/100) -> 0 | AK33: 12.15 | AL33: 10142.06 | AM33: 12.150155
A34: 32 | B34: =WORKDAY(B33,1,feriados!$A$2:$A$1000) -> 2023-12-22 | C34: 12.15 | D34: =IF(ISERROR(VLOOKUP(B34,'Cenários COPOM'!$A$1:$K$100,2,FALSE)),0,VLOOKUP(B34,'Cenários COPOM'!$A$1:$K$100,2,FALSE)/100) -> 0 | E34: 12.15 | F34: 10146.68 | G34: 12.15050075 | I34: 32 | J34: =WORKDAY(J33,1,feriados!$A$2:$A$1000) -> 2023-12-22 | K34: 12.15 | L34: =IF(ISERROR(VLOOKUP(J34,'Cenários COPOM'!$A$1:$K$100,4,FALSE)),0,VLOOKUP(J34,'Cenários COPOM'!$A$1:$K$100,4,FALSE)/100) -> 0 | M34: 12.15 | N34: 10146.68 | O34: 12.15050075 | Q34: 32 | R34: =WORKDAY(R33,1,feriados!$A$2:$A$1000) -> 2023-12-22 | S34: 12.15 | T34: =IF(ISERROR(VLOOKUP(R34,'Cenários COPOM'!$A$1:$K$100,6,FALSE)),0,VLOOKUP(R34,'Cenários COPOM'!$A$1:$K$100,6,FALSE)/100) -> 0 | U34: 12.15 | V34: 10146.68 | W34: 12.15050075 | Y34: 32 | Z34: =WORKDAY(Z33,1,feriados!$A$2:$A$1000) -> 2023-12-22 | AA34: 12.15 | AB34: =IF(ISERROR(VLOOKUP(Z34,'Cenários COPOM'!$A$1:$K$100,8,FALSE)),0,VLOOKUP(Z34,'Cenários COPOM'!$A$1:$K$100,8,FALSE)/100) -> 0 | AC34: 12.15 | AD34: 10146.68 | AE34: 12.15050075 | AG34: 32 | AH34: =WORKDAY(AH33,1,feriados!$A$2:$A$1000) -> 2023-12-22 | AI34: 12.15 | AJ34: =IF(ISERROR(VLOOKUP(AH34,'Cenários COPOM'!$A$1:$K$100,10,FALSE)),0,VLOOKUP(AH34,'Cenários COPOM'!$A$1:$K$100,10,FALSE)/100) -> 0 | AK34: 12.15 | AL34: 10146.68 | AM34: 12.15050075
A35: 33 | B35: =WORKDAY(B34,1,feriados!$A$2:$A$1000) -> 2023-12-26 | C35: 12.15 | D35: =IF(ISERROR(VLOOKUP(B35,'Cenários COPOM'!$A$1:$K$100,2,FALSE)),0,VLOOKUP(B35,'Cenários COPOM'!$A$1:$K$100,2,FALSE)/100) -> 0 | E35: 12.15 | F35: 10151.3 | G35: 12.15064799 | I35: 33 | J35: =WORKDAY(J34,1,feriados!$A$2:$A$1000) -> 2023-12-26 | K35: 12.15 | L35: =IF(ISERROR(VLOOKUP(J35,'Cenários COPOM'!$A$1:$K$100,4,FALSE)),0,VLOOKUP(J35,'Cenários COPOM'!$A$1:$K$100,4,FALSE)/100) -> 0 | M35: 12.15 | N35: 10151.3 | O35: 12.15064799 | Q35: 33 | R35: =WORKDAY(R34,1,feriados!$A$2:$A$1000) -> 2023-12-26 | S35: 12.15 | T35: =IF(ISERROR(VLOOKUP(R35,'Cenários COPOM'!$A$1:$K$100,6,FALSE)),0,VLOOKUP(R35,'Cenários COPOM'!$A$1:$K$100,6,FALSE)/100) -> 0 | U35: 12.15 | V35: 10151.3 | W35: 12.15064799 | Y35: 33 | Z35: =WORKDAY(Z34,1,feriados!$A$2:$A$1000) -> 2023-12-26 | AA35: 12.15 | AB35: =IF(ISERROR(VLOOKUP(Z35,'Cenários COPOM'!$A$1:$K$100,8,FALSE)),0,VLOOKUP(Z35,'Cenários COPOM'!$A$1:$K$100,8,FALSE)/100) -> 0 | AC35: 12.15 | AD35: 10151.3 | AE35: 12.15064799 | AG35: 33 | AH35: =WORKDAY(AH34,1,feriados!$A$2:$A$1000) -> 2023-12-26 | AI35: 12.15 | AJ35: =IF(ISERROR(VLOOKUP(AH35,'Cenários COPOM'!$A$1:$K$100,10,FALSE)),0,VLOOKUP(AH35,'Cenários COPOM'!$A$1:$K$100,10,FALSE)/100) -> 0 | AK35: 12.15 | AL35: 10151.3 | AM35: 12.15064799
A36: 34 | B36: =WORKDAY(B35,1,feriados!$A$2:$A$1000) -> 2023-12-27 | C36: 12.15 | D36: =IF(ISERROR(VLOOKUP(B36,'Cenários COPOM'!$A$1:$K$100,2,FALSE)),0,VLOOKUP(B36,'Cenários COPOM'!$A$1:$K$100,2,FALSE)/100) -> 0 | E36: 12.15 | F36: 10155.92 | G36: 12.1506144 | I36: 34 | J36: =WORKDAY(J35,1,feriados!$A$2:$A$1000) -> 2023-12-27 | K36: 12.15 | L36: =IF(ISERROR(VLOOKUP(J36,'Cenários COPOM'!$A$1:$K$100,4,FALSE)),0,VLOOKUP(J36,'Cenários COPOM'!$A$1:$K$100,4,FALSE)/100) -> 0 | M36: 12.15 | N36: 10155.92 | O36: 12.1506144 | Q36: 34 | R36: =WORKDAY(R35,1,feriados!$A$2:$A$1000) -> 2023-12-27 | S36: 12.15 | T36: =IF(ISERROR(VLOOKUP(R36,'Cenários COPOM'!$A$1:$K$100,6,FALSE)),0,VLOOKUP(R36,'Cenários COPOM'!$A$1:$K$100,6,FALSE)/100) -> 0 | U36: 12.15 | V36: 10155.92 | W36: 12.1506144 | Y36: 34 | Z36: =WORKDAY(Z35,1,feriados!$A$2:$A$1000) -> 2023-12-27 | AA36: 12.15 | AB36: =IF(ISERROR(VLOOKUP(Z36,'Cenários COPOM'!$A$1:$K$100,8,FALSE)),0,VLOOKUP(Z36,'Cenários COPOM'!$A$1:$K$100,8,FALSE)/100) -> 0 | AC36: 12.15 | AD36: 10155.92 | AE36: 12.1506144 | AG36: 34 | AH36: =WORKDAY(AH35,1,feriados!$A$2:$A$1000) -> 2023-12-27 | AI36: 12.15 | AJ36: =IF(ISERROR(VLOOKUP(AH36,'Cenários COPOM'!$A$1:$K$100,10,FALSE)),0,VLOOKUP(AH36,'Cenários COPOM'!$A$1:$K$100,10,FALSE)/100) -> 0 | AK36: 12.15 | AL36: 10155.92 | AM36: 12.1506144
A37: 35 | B37: =WORKDAY(B36,1,feriados!$A$2:$A$1000) -> 2023-12-28 | C37: 12.15 | D37: =IF(ISERROR(VLOOKUP(B37,'Cenários COPOM'!$A$1:$K$100,2,FALSE)),0,VLOOKUP(B37,'Cenários COPOM'!$A$1:$K$100,2,FALSE)/100) -> 0 | E37: 12.15 | F37: 10160.54 | G37: 12.15041562 | I37: 35 | J37: =WORKDAY(J36,1,feriados!$A$2:$A$1000) -> 2023-12-28 | K37: 12.15 | L37: =IF(ISERROR(VLOOKUP(J37,'Cenários COPOM'!$A$1:$K$100,4,FALSE)),0,VLOOKUP(J37,'Cenários COPOM'!$A$1:$K$100,4,FALSE)/100) -> 0 | M37: 12.15 | N37: 10160.54 | O37: 12.15041562 | Q37: 35 | R37: =WORKDAY(R36,1,feriados!$A$2:$A$1000) -> 2023-12-28 | S37: 12.15 | T37: =IF(ISERROR(VLOOKUP(R37,'Cenários COPOM'!$A$1:$K$100,6,FALSE)),0,VLOOKUP(R37,'Cenários COPOM'!$A$1:$K$100,6,FALSE)/100) -> 0 | U37: 12.15 | V37: 10160.54 | W37: 12.15041562 | Y37: 35 | Z37: =WORKDAY(Z36,1,feriados!$A$2:$A$1000) -> 2023-12-28 | AA37: 12.15 | AB37: =IF(ISERROR(VLOOKUP(Z37,'Cenários COPOM'!$A$1:$K$100,8,FALSE)),0,VLOOKUP(Z37,'Cenários COPOM'!$A$1:$K$100,8,FALSE)/100) -> 0 | AC37: 12.15 | AD37: 10160.54 | AE37: 12.15041562 | AG37: 35 | AH37: =WORKDAY(AH36,1,feriados!$A$2:$A$1000) -> 2023-12-28 | AI37: 12.15 | AJ37: =IF(ISERROR(VLOOKUP(AH37,'Cenários COPOM'!$A$1:$K$100,10,FALSE)),0,VLOOKUP(AH37,'Cenários COPOM'!$A$1:$K$100,10,FALSE)/100) -> 0 | AK37: 12.15 | AL37: 10160.54 | AM37: 12.15041562
A38: 36 | B38: =WORKDAY(B37,1,feriados!$A$2:$A$1000) -> 2023-12-29 | C38: 12.15 | D38: =IF(ISERROR(VLOOKUP(B38,'Cenários COPOM'!$A$1:$K$100,2,FALSE)),0,VLOOKUP(B38,'Cenários COPOM'!$A$1:$K$100,2,FALSE)/100) -> 0 | E38: 12.15 | F38: 10165.16 | G38: 12.15006558 | I38: 36 | J38: =WORKDAY(J37,1,feriados!$A$2:$A$1000) -> 2023-12-29 | K38: 12.15 | L38: =IF(ISERROR(VLOOKUP(J38,'Cenários COPOM'!$A$1:$K$100,4,FALSE)),0,VLOOKUP(J38,'Cenários COPOM'!$A$1:$K$100,4,FALSE)/100) -> 0 | M38: 12.15 | N38: 10165.16 | O38: 12.15006558 | Q38: 36 | R38: =WORKDAY(R37,1,feriados!$A$2:$A$1000) -> 2023-12-29 | S38: 12.15 | T38: =IF(ISERROR(VLOOKUP(R38,'Cenários COPOM'!$A$1:$K$100,6,FALSE)),0,VLOOKUP(R38,'Cenários COPOM'!$A$1:$K$100,6,FALSE)/100) -> 0 | U38: 12.15 | V38: 10165.16 | W38: 12.15006558 | Y38: 36 | Z38: =WORKDAY(Z37,1,feriados!$A$2:$A$1000) -> 2023-12-29 | AA38: 12.15 | AB38: =IF(ISERROR(VLOOKUP(Z38,'Cenários COPOM'!$A$1:$K$100,8,FALSE)),0,VLOOKUP(Z38,'Cenários COPOM'!$A$1:$K$100,8,FALSE)/100) -> 0 | AC38: 12.15 | AD38: 10165.16 | AE38: 12.15006558 | AG38: 36 | AH38: =WORKDAY(AH37,1,feriados!$A$2:$A$1000) -> 2023-12-29 | AI38: 12.15 | AJ38: =IF(ISERROR(VLOOKUP(AH38,'Cenários COPOM'!$A$1:$K$100,10,FALSE)),0,VLOOKUP(AH38,'Cenários COPOM'!$A$1:$K$100,10,FALSE)/100) -> 0 | AK38: 12.15 | AL38: 10165.16 | AM38: 12.15006558
A39: 37 | B39: =WORKDAY(B38,1,feriados!$A$2:$A$1000) -> 2024-01-02 | C39: 12.15 | D39: =IF(ISERROR(VLOOKUP(B39,'Cenários COPOM'!$A$1:$K$100,2,FALSE)),0,VLOOKUP(B39,'Cenários COPOM'!$A$1:$K$100,2,FALSE)/100) -> 0 | E39: 12.15 | F39: 10169.79 | G39: 12.15032776 | I39: 37 | J39: =WORKDAY(J38,1,feriados!$A$2:$A$1000) -> 2024-01-02 | K39: 12.15 | L39: =IF(ISERROR(VLOOKUP(J39,'Cenários COPOM'!$A$1:$K$100,4,FALSE)),0,VLOOKUP(J39,'Cenários COPOM'!$A$1:$K$100,4,FALSE)/100) -> 0 | M39: 12.15 | N39: 10169.79 | O39: 12.15032776 | Q39: 37 | R39: =WORKDAY(R38,1,feriados!$A$2:$A$1000) -> 2024-01-02 | S39: 12.15 | T39: =IF(ISERROR(VLOOKUP(R39,'Cenários COPOM'!$A$1:$K$100,6,FALSE)),0,VLOOKUP(R39,'Cenários COPOM'!$A$1:$K$100,6,FALSE)/100) -> 0 | U39: 12.15 | V39: 10169.79 | W39: 12.15032776 | Y39: 37 | Z39: =WORKDAY(Z38,1,feriados!$A$2:$A$1000) -> 2024-01-02 | AA39: 12.15 | AB39: =IF(ISERROR(VLOOKUP(Z39,'Cenários COPOM'!$A$1:$K$100,8,FALSE)),0,VLOOKUP(Z39,'Cenários COPOM'!$A$1:$K$100,8,FALSE)/100) -> 0 | AC39: 12.15 | AD39: 10169.79 | AE39: 12.15032776 | AG39: 37 | AH39: =WORKDAY(AH38,1,feriados!$A$2:$A$1000) -> 2024-01-02 | AI39: 12.15 | AJ39: =IF(ISERROR(VLOOKUP(AH39,'Cenários COPOM'!$A$1:$K$100,10,FALSE)),0,VLOOKUP(AH39,'Cenários COPOM'!$A$1:$K$100,10,FALSE)/100) -> 0 | AK39: 12.15 | AL39: 10169.79 | AM39: 12.15032776
A40: 38 | B40: =WORKDAY(B39,1,feriados!$A$2:$A$1000) -> 2024-01-03 | C40: 12.15 | D40: =IF(ISERROR(VLOOKUP(B40,'Cenários COPOM'!$A$1:$K$100,2,FALSE)),0,VLOOKUP(B40,'Cenários COPOM'!$A$1:$K$100,2,FALSE)/100) -> 0 | E40: 12.15 | F40: 10174.42 | G40: 12.15042199 | I40: 38 | J40: =WORKDAY(J39,1,feriados!$A$2:$A$1000) -> 2024-01-03 | K40: 12.15 | L40: =IF(ISERROR(VLOOKUP(J40,'Cenários COPOM'!$A$1:$K$100,4,FALSE)),0,VLOOKUP(J40,'Cenários COPOM'!$A$1:$K$100,4,FALSE)/100) -> 0 | M40: 12.15 | N40: 10174.42 | O40: 12.15042199 | Q40: 38 | R40: =WORKDAY(R39,1,feriados!$A$2:$A$1000) -> 2024-01-03 | S40: 12.15 | T40: =IF(ISERROR(VLOOKUP(R40,'Cenários COPOM'!$A$1:$K$100,6,FALSE)),0,VLOOKUP(R40,'Cenários COPOM'!$A$1:$K$100,6,FALSE)/100) -> 0 | U40: 12.15 | V40: 10174.42 | W40: 12.15042199 | Y40: 38 | Z40: =WORKDAY(Z39,1,feriados!$A$2:$A$1000) -> 2024-01-03 | AA40: 12.15 | AB40: =IF(ISERROR(VLOOKUP(Z40,'Cenários COPOM'!$A$1:$K$100,8,FALSE)),0,VLOOKUP(Z40,'Cenários COPOM'!$A$1:$K$100,8,FALSE)/100) -> 0 | AC40: 12.15 | AD40: 10174.42 | AE40: 12.15042199 | AG40: 38 | AH40: =WORKDAY(AH39,1,feriados!$A$2:$A$1000) -> 2024-01-03 | AI40: 12.15 | AJ40: =IF(ISERROR(VLOOKUP(AH40,'Cenários COPOM'!$A$1:$K$100,10,FALSE)),0,VLOOKUP(AH40,'Cenários COPOM'!$A$1:$K$100,10,FALSE)/100) -> 0 | AK40: 12.15 | AL40: 10174.42 | AM40: 12.15042199
A41: 39 | B41: =WORKDAY(B40,1,feriados!$A$2:$A$1000) -> 2024-01-04 | C41: 12.15 | D41: =IF(ISERROR(VLOOKUP(B41,'Cenários COPOM'!$A$1:$K$100,2,FALSE)),0,VLOOKUP(B41,'Cenários COPOM'!$A$1:$K$100,2,FALSE)/100) -> 0 | E41: 12.15 | F41: 10179.05 | G41: 12.15036132 | I41: 39 | J41: =WORKDAY(J40,1,feriados!$A$2:$A$1000) -> 2024-01-04 | K41: 12.15 | L41: =IF(ISERROR(VLOOKUP(J41,'Cenários COPOM'!$A$1:$K$100,4,FALSE)),0,VLOOKUP(J41,'Cenários COPOM'!$A$1:$K$100,4,FALSE)/100) -> 0 | M41: 12.15 | N41: 10179.05 | O41: 12.15036132 | Q41: 39 | R41: =WORKDAY(R40,1,feriados!$A$2:$A$1000) -> 2024-01-04 | S41: 12.15 | T41: =IF(ISERROR(VLOOKUP(R41,'Cenários COPOM'!$A$1:$K$100,6,FALSE)),0,VLOOKUP(R41,'Cenários COPOM'!$A$1:$K$100,6,FALSE)/100) -> 0 | U41: 12.15 | V41: 10179.05 | W41: 12.15036132 | Y41: 39 | Z41: =WORKDAY(Z40,1,feriados!$A$2:$A$1000) -> 2024-01-04 | AA41: 12.15 | AB41: =IF(ISERROR(VLOOKUP(Z41,'Cenários COPOM'!$A$1:$K$100,8,FALSE)),0,VLOOKUP(Z41,'Cenários COPOM'!$A$1:$K$100,8,FALSE)/100) -> 0 | AC41: 12.15 | AD41: 10179.05 | AE41: 12.15036132 | AG41: 39 | AH41: =WORKDAY(AH40,1,feriados!$A$2:$A$1000) -> 2024-01-04 | AI41: 12.15 | AJ41: =IF(ISERROR(VLOOKUP(AH41,'Cenários COPOM'!$A$1:$K$100,10,FALSE)),0,VLOOKUP(AH41,'Cenários COPOM'!$A$1:$K$100,10,FALSE)/100) -> 0 | AK41: 12.15 | AL41: 10179.05 | AM41: 12.15036132
A42: 40 | B42: =WORKDAY(B41,1,feriados!$A$2:$A$1000) -> 2024-01-05 | C42: 12.15 | D42: =IF(ISERROR(VLOOKUP(B42,'Cenários COPOM'!$A$1:$K$100,2,FALSE)),0,VLOOKUP(B42,'Cenários COPOM'!$A$1:$K$100,2,FALSE)/100) -> 0 | E42: 12.15 | F42: 10183.68 | G42: 12.1501575 | I42: 40 | J42: =WORKDAY(J41,1,feriados!$A$2:$A$1000) -> 2024-01-05 | K42: 12.15 | L42: =IF(ISERROR(VLOOKUP(J42,'Cenários COPOM'!$A$1:$K$100,4,FALSE)),0,VLOOKUP(J42,'Cenários COPOM'!$A$1:$K$100,4,FALSE)/100) -> 0 | M42: 12.15 | N42: 10183.68 | O42: 12.1501575 | Q42: 40 | R42: =WORKDAY(R41,1,feriados!$A$2:$A$1000) -> 2024-01-05 | S42: 12.15 | T42: =IF(ISERROR(VLOOKUP(R42,'Cenários COPOM'!$A$1:$K$100,6,FALSE)),0,VLOOKUP(R42,'Cenários COPOM'!$A$1:$K$100,6,FALSE)/100) -> 0 | U42: 12.15 | V42: 10183.68 | W42: 12.1501575 | Y42: 40 | Z42: =WORKDAY(Z41,1,feriados!$A$2:$A$1000) -> 2024-01-05 | AA42: 12.15 | AB42: =IF(ISERROR(VLOOKUP(Z42,'Cenários COPOM'!$A$1:$K$100,8,FALSE)),0,VLOOKUP(Z42,'Cenários COPOM'!$A$1:$K$100,8,FALSE)/100) -> 0 | AC42: 12.15 | AD42: 10183.68 | AE42: 12.1501575 | AG42: 40 | AH42: =WORKDAY(AH41,1,feriados!$A$2:$A$1000) -> 2024-01-05 | AI42: 12.15 | AJ42: =IF(ISERROR(VLOOKUP(AH42,'Cenários COPOM'!$A$1:$K$100,10,FALSE)),0,VLOOKUP(AH42,'Cenários COPOM'!$A$1:$K$100,10,FALSE)/100) -> 0 | AK42: 12.15 | AL42: 10183.68 | AM42: 12.1501575
A43: 41 | B43: =WORKDAY(B42,1,feriados!$A$2:$A$1000) -> 2024-01-08 | C43: 12.15 | D43: =IF(ISERROR(VLOOKUP(B43,'Cenários COPOM'!$A$1:$K$100,2,FALSE)),0,VLOOKUP(B43,'Cenários COPOM'!$A$1:$K$100,2,FALSE)/100) -> 0 | E43: 12.15 | F43: 10188.31 | G43: 12.14982114 | I43: 41 | J43: =WORKDAY(J42,1,feriados!$A$2:$A$1000) -> 2024-01-08 | K43: 12.15 | L43: =IF(ISERROR(VLOOKUP(J43,'Cenários COPOM'!$A$1:$K$100,4,FALSE)),0,VLOOKUP(J43,'Cenários COPOM'!$A$1:$K$100,4,FALSE)/100) -> 0 | M43: 12.15 | N43: 10188.31 | O43: 12.14982114 | Q43: 41 | R43: =WORKDAY(R42,1,feriados!$A$2:$A$1000) -> 2024-01-08 | S43: 12.15 | T43: =IF(ISERROR(VLOOKUP(R43,'Cenários COPOM'!$A$1:$K$100,6,FALSE)),0,VLOOKUP(R43,'Cenários COPOM'!$A$1:$K$100,6,FALSE)/100) -> 0 | U43: 12.15 | V43: 10188.31 | W43: 12.14982114 | Y43: 41 | Z43: =WORKDAY(Z42,1,feriados!$A$2:$A$1000) -> 2024-01-08 | AA43: 12.15 | AB43: =IF(ISERROR(VLOOKUP(Z43,'Cenários COPOM'!$A$1:$K$100,8,FALSE)),0,VLOOKUP(Z43,'Cenários COPOM'!$A$1:$K$100,8,FALSE)/100) -> 0 | AC43: 12.15 | AD43: 10188.31 | AE43: 12.14982114 | AG43: 41 | AH43: =WORKDAY(AH42,1,feriados!$A$2:$A$1000) -> 2024-01-08 | AI43: 12.15 | AJ43: =IF(ISERROR(VLOOKUP(AH43,'Cenários COPOM'!$A$1:$K$100,10,FALSE)),0,VLOOKUP(AH43,'Cenários COPOM'!$A$1:$K$100,10,FALSE)/100) -> 0 | AK43: 12.15 | AL43: 10188.31 | AM43: 12.14982114
A44: 42 | B44: =WORKDAY(B43,1,feriados!$A$2:$A$1000) -> 2024-01-09 | C44: 12.15 | D44: =IF(ISERROR(VLOOKUP(B44,'Cenários COPOM'!$A$1:$K$100,2,FALSE)),0,VLOOKUP(B44,'Cenários COPOM'!$A$1:$K$100,2,FALSE)/100) -> 0 | E44: 12.15 | F44: 10192.95 | G44: 12.150022 | I44: 42 | J44: =WORKDAY(J43,1,feriados!$A$2:$A$1000) -> 2024-01-09 | K44: 12.15 | L44: =IF(ISERROR(VLOOKUP(J44,'Cenários COPOM'!$A$1:$K$100,4,FALSE)),0,VLOOKUP(J44,'Cenários COPOM'!$A$1:$K$100,4,FALSE)/100) -> 0 | M44: 12.15 | N44: 10192.95 | O44: 12.150022 | Q44: 42 | R44: =WORKDAY(R43,1,feriados!$A$2:$A$1000) -> 2024-01-09 | S44: 12.15 | T44: =IF(ISERROR(VLOOKUP(R44,'Cenários COPOM'!$A$1:$K$100,6,FALSE)),0,VLOOKUP(R44,'Cenários COPOM'!$A$1:$K$100,6,FALSE)/100) -> 0 | U44: 12.15 | V44: 10192.95 | W44: 12.150022 | Y44: 42 | Z44: =WORKDAY(Z43,1,feriados!$A$2:$A$1000) -> 2024-01-09 | AA44: 12.15 | AB44: =IF(ISERROR(VLOOKUP(Z44,'Cenários COPOM'!$A$1:$K$100,8,FALSE)),0,VLOOKUP(Z44,'Cenários COPOM'!$A$1:$K$100,8,FALSE)/100) -> 0 | AC44: 12.15 | AD44: 10192.95 | AE44: 12.150022 | AG44: 42 | AH44: =WORKDAY(AH43,1,feriados!$A$2:$A$1000) -> 2024-01-09 | AI44: 12.15 | AJ44: =IF(ISERROR(VLOOKUP(AH44,'Cenários COPOM'!$A$1:$K$100,10,FALSE)),0,VLOOKUP(AH44,'Cenários COPOM'!$A$1:$K$100,10,FALSE)/100) -> 0 | AK44: 12.15 | AL44: 10192.95 | AM44: 12.150022
A45: 43 | B45: =WORKDAY(B44,1,feriados!$A$2:$A$1000) -> 2024-01-10 | C45: 12.15 | D45: =IF(ISERROR(VLOOKUP(B45,'Cenários COPOM'!$A$1:$K$100,2,FALSE)),0,VLOOKUP(B45,'Cenários COPOM'!$A$1:$K$100,2,FALSE)/100) -> 0 | E45: 12.15 | F45: 10197.59 | G45: 12.15007731 | I45: 43 | J45: =WORKDAY(J44,1,feriados!$A$2:$A$1000) -> 2024-01-10 | K45: 12.15 | L45: =IF(ISERROR(VLOOKUP(J45,'Cenários COPOM'!$A$1:$K$100,4,FALSE)),0,VLOOKUP(J45,'Cenários COPOM'!$A$1:$K$100,4,FALSE)/100) -> 0 | M45: 12.15 | N45: 10197.59 | O45: 12.15007731 | Q45: 43 | R45: =WORKDAY(R44,1,feriados!$A$2:$A$1000) -> 2024-01-10 | S45: 12.15 | T45: =IF(ISERROR(VLOOKUP(R45,'Cenários COPOM'!$A$1:$K$100,6,FALSE)),0,VLOOKUP(R45,'Cenários COPOM'!$A$1:$K$100,6,FALSE)/100) -> 0 | U45: 12.15 | V45: 10197.59 | W45: 12.15007731 | Y45: 43 | Z45: =WORKDAY(Z44,1,feriados!$A$2:$A$1000) -> 2024-01-10 | AA45: 12.15 | AB45: =IF(ISERROR(VLOOKUP(Z45,'Cenários COPOM'!$A$1:$K$100,8,FALSE)),0,VLOOKUP(Z45,'Cenários COPOM'!$A$1:$K$100,8,FALSE)/100) -> 0 | AC45: 12.15 | AD45: 10197.59 | AE45: 12.15007731 | AG45: 43 | AH45: =WORKDAY(AH44,1,feriados!$A$2:$A$1000) -> 2024-01-10 | AI45: 12.15 | AJ45: =IF(ISERROR(VLOOKUP(AH45,'Cenários COPOM'!$A$1:$K$100,10,FALSE)),0,VLOOKUP(AH45,'Cenários COPOM'!$A$1:$K$100,10,FALSE)/100) -> 0 | AK45: 12.15 | AL45: 10197.59 | AM45: 12.15007731
A46: 44 | B46: =WORKDAY(B45,1,feriados!$A$2:$A$1000) -> 2024-01-11 | C46: 12.15 | D46: =IF(ISERROR(VLOOKUP(B46,'Cenários COPOM'!$A$1:$K$100,2,FALSE)),0,VLOOKUP(B46,'Cenários COPOM'!$A$1:$K$100,2,FALSE)/100) -> 0 | E46: 12.15 | F46: 10202.23 | G46: 12.14999713 | I46: 44 | J46: =WORKDAY(J45,1,feriados!$A$2:$A$1000) -> 2024-01-11 | K46: 12.15 | L46: =IF(ISERROR(VLOOKUP(J46,'Cenários COPOM'!$A$1:$K$100,4,FALSE)),0,VLOOKUP(J46,'Cenários COPOM'!$A$1:$K$100,4,FALSE)/100) -> 0 | M46: 12.15 | N46: 10202.23 | O46: 12.14999713 | Q46: 44 | R46: =WORKDAY(R45,1,feriados!$A$2:$A$1000) -> 2024-01-11 | S46: 12.15 | T46: =IF(ISERROR(VLOOKUP(R46,'Cenários COPOM'!$A$1:$K$100,6,FALSE)),0,VLOOKUP(R46,'Cenários COPOM'!$A$1:$K$100,6,FALSE)/100) -> 0 | U46: 12.15 | V46: 10202.23 | W46: 12.14999713 | Y46: 44 | Z46: =WORKDAY(Z45,1,feriados!$A$2:$A$1000) -> 2024-01-11 | AA46: 12.15 | AB46: =IF(ISERROR(VLOOKUP(Z46,'Cenários COPOM'!$A$1:$K$100,8,FALSE)),0,VLOOKUP(Z46,'Cenários COPOM'!$A$1:$K$100,8,FALSE)/100) -> 0 | AC46: 12.15 | AD46: 10202.23 | AE46: 12.14999713 | AG46: 44 | AH46: =WORKDAY(AH45,1,feriados!$A$2:$A$1000) -> 2024-01-11 | AI46: 12.15 | AJ46: =IF(ISERROR(VLOOKUP(AH46,'Cenários COPOM'!$A$1:$K$100,10,FALSE)),0,VLOOKUP(AH46,'Cenários COPOM'!$A$1:$K$100,10,FALSE)/100) -> 0 | AK46: 12.15 | AL46: 10202.23 | AM46: 12.14999713
A47: 45 | B47: =WORKDAY(B46,1,feriados!$A$2:$A$1000) -> 2024-01-12 | C47: 12.15 | D47: =IF(ISERROR(VLOOKUP(B47,'Cenários COPOM'!$A$1:$K$100,2,FALSE)),0,VLOOKUP(B47,'Cenários COPOM'!$A$1:$K$100,2,FALSE)/100) -> 0 | E47: 12.15 | F47: 10206.87 | G47: 12.14979061 | I47: 45 | J47: =WORKDAY(J46,1,feriados!$A$2:$A$1000) -> 2024-01-12 | K47: 12.15 | L47: =IF(ISERROR(VLOOKUP(J47,'Cenários COPOM'!$A$1:$K$100,4,FALSE)),0,VLOOKUP(J47,'Cenários COPOM'!$A$1:$K$100,4,FALSE)/100) -> 0 | M47: 12.15 | N47: 10206.87 | O47: 12.14979061 | Q47: 45 | R47: =WORKDAY(R46,1,feriados!$A$2:$A$1000) -> 2024-01-12 | S47: 12.15 | T47: =IF(ISERROR(VLOOKUP(R47,'Cenários COPOM'!$A$1:$K$100,6,FALSE)),0,VLOOKUP(R47,'Cenários COPOM'!$A$1:$K$100,6,FALSE)/100) -> 0 | U47: 12.15 | V47: 10206.87 | W47: 12.14979061 | Y47: 45 | Z47: =WORKDAY(Z46,1,feriados!$A$2:$A$1000) -> 2024-01-12 | AA47: 12.15 | AB47: =IF(ISERROR(VLOOKUP(Z47,'Cenários COPOM'!$A$1:$K$100,8,FALSE)),0,VLOOKUP(Z47,'Cenários COPOM'!$A$1:$K$100,8,FALSE)/100) -> 0 | AC47: 12.15 | AD47: 10206.87 | AE47: 12.14979061 | AG47: 45 | AH47: =WORKDAY(AH46,1,feriados!$A$2:$A$1000) -> 2024-01-12 | AI47: 12.15 | AJ47: =IF(ISERROR(VLOOKUP(AH47,'Cenários COPOM'!$A$1:$K$100,10,FALSE)),0,VLOOKUP(AH47,'Cenários COPOM'!$A$1:$K$100,10,FALSE)/100) -> 0 | AK47: 12.15 | AL47: 10206.87 | AM47: 12.14979061
A48: 46 | B48: =WORKDAY(B47,1,feriados!$A$2:$A$1000) -> 2024-01-15 | C48: 12.15 | D48: =IF(ISERROR(VLOOKUP(B48,'Cenários COPOM'!$A$1:$K$100,2,FALSE)),0,VLOOKUP(B48,'Cenários COPOM'!$A$1:$K$100,2,FALSE)/100) -> 0 | E48: 12.15 | F48: 10211.52 | G48: 12.15006776 | I48: 46 | J48: =WORKDAY(J47,1,feriados!$A$2:$A$1000) -> 2024-01-15 | K48: 12.15 | L48: =IF(ISERROR(VLOOKUP(J48,'Cenários COPOM'!$A$1:$K$100,4,FALSE)),0,VLOOKUP(J48,'Cenários COPOM'!$A$1:$K$100,4,FALSE)/100) -> 0 | M48: 12.15 | N48: 10211.52 | O48: 12.15006776 | Q48: 46 | R48: =WORKDAY(R47,1,feriados!$A$2:$A$1000) -> 2024-01-15 | S48: 12.15 | T48: =IF(ISERROR(VLOOKUP(R48,'Cenários COPOM'!$A$1:$K$100,6,FALSE)),0,VLOOKUP(R48,'Cenários COPOM'!$A$1:$K$100,6,FALSE)/100) -> 0 | U48: 12.15 | V48: 10211.52 | W48: 12.15006776 | Y48: 46 | Z48: =WORKDAY(Z47,1,feriados!$A$2:$A$1000) -> 2024-01-15 | AA48: 12.15 | AB48: =IF(ISERROR(VLOOKUP(Z48,'Cenários COPOM'!$A$1:$K$100,8,FALSE)),0,VLOOKUP(Z48,'Cenários COPOM'!$A$1:$K$100,8,FALSE)/100) -> 0 | AC48: 12.15 | AD48: 10211.52 | AE48: 12.15006776 | AG48: 46 | AH48: =WORKDAY(AH47,1,feriados!$A$2:$A$1000) -> 2024-01-15 | AI48: 12.15 | AJ48: =IF(ISERROR(VLOOKUP(AH48,'Cenários COPOM'!$A$1:$K$100,10,FALSE)),0,VLOOKUP(AH48,'Cenários COPOM'!$A$1:$K$100,10,FALSE)/100) -> 0 | AK48: 12.15 | AL48: 10211.52 | AM48: 12.15006776
A49: 47 | B49: =WORKDAY(B48,1,feriados!$A$2:$A$1000) -> 2024-01-16 | C49: 12.15 | D49: =IF(ISERROR(VLOOKUP(B49,'Cenários COPOM'!$A$1:$K$100,2,FALSE)),0,VLOOKUP(B49,'Cenários COPOM'!$A$1:$K$100,2,FALSE)/100) -> 0 | E49: 12.15 | F49: 10216.17 | G49: 12.15020843 | I49: 47 | J49: =WORKDAY(J48,1,feriados!$A$2:$A$1000) -> 2024-01-16 | K49: 12.15 | L49: =IF(ISERROR(VLOOKUP(J49,'Cenários COPOM'!$A$1:$K$100,4,FALSE)),0,VLOOKUP(J49,'Cenários COPOM'!$A$1:$K$100,4,FALSE)/100) -> 0 | M49: 12.15 | N49: 10216.17 | O49: 12.15020843 | Q49: 47 | R49: =WORKDAY(R48,1,feriados!$A$2:$A$1000) -> 2024-01-16 | S49: 12.15 | T49: =IF(ISERROR(VLOOKUP(R49,'Cenários COPOM'!$A$1:$K$100,6,FALSE)),0,VLOOKUP(R49,'Cenários COPOM'!$A$1:$K$100,6,FALSE)/100) -> 0 | U49: 12.15 | V49: 10216.17 | W49: 12.15020843 | Y49: 47 | Z49: =WORKDAY(Z48,1,feriados!$A$2:$A$1000) -> 2024-01-16 | AA49: 12.15 | AB49: =IF(ISERROR(VLOOKUP(Z49,'Cenários COPOM'!$A$1:$K$100,8,FALSE)),0,VLOOKUP(Z49,'Cenários COPOM'!$A$1:$K$100,8,FALSE)/100) -> 0 | AC49: 12.15 | AD49: 10216.17 | AE49: 12.15020843 | AG49: 47 | AH49: =WORKDAY(AH48,1,feriados!$A$2:$A$1000) -> 2024-01-16 | AI49: 12.15 | AJ49: =IF(ISERROR(VLOOKUP(AH49,'Cenários COPOM'!$A$1:$K$100,10,FALSE)),0,VLOOKUP(AH49,'Cenários COPOM'!$A$1:$K$100,10,FALSE)/100) -> 0 | AK49: 12.15 | AL49: 10216.17 | AM49: 12.15020843
A50: 48 | B50: =WORKDAY(B49,1,feriados!$A$2:$A$1000) -> 2024-01-17 | C50: 12.15 | D50: =IF(ISERROR(VLOOKUP(B50,'Cenários COPOM'!$A$1:$K$100,2,FALSE)),0,VLOOKUP(B50,'Cenários COPOM'!$A$1:$K$100,2,FALSE)/100) -> 0 | E50: 12.15 | F50: 10220.82 | G50: 12.15022126 | I50: 48 | J50: =WORKDAY(J49,1,feriados!$A$2:$A$1000) -> 2024-01-17 | K50: 12.15 | L50: =IF(ISERROR(VLOOKUP(J50,'Cenários COPOM'!$A$1:$K$100,4,FALSE)),0,VLOOKUP(J50,'Cenários COPOM'!$A$1:$K$100,4,FALSE)/100) -> 0 | M50: 12.15 | N50: 10220.82 | O50: 12.15022126 | Q50: 48 | R50: =WORKDAY(R49,1,feriados!$A$2:$A$1000) -> 2024-01-17 | S50: 12.15 | T50: =IF(ISERROR(VLOOKUP(R50,'Cenários COPOM'!$A$1:$K$100,6,FALSE)),0,VLOOKUP(R50,'Cenários COPOM'!$A$1:$K$100,6,FALSE)/100) -> 0 | U50: 12.15 | V50: 10220.82 | W50: 12.15022126 | Y50: 48 | Z50: =WORKDAY(Z49,1,feriados!$A$2:$A$1000) -> 2024-01-17 | AA50: 12.15 | AB50: =IF(ISERROR(VLOOKUP(Z50,'Cenários COPOM'!$A$1:$K$100,8,FALSE)),0,VLOOKUP(Z50,'Cenários COPOM'!$A$1:$K$100,8,FALSE)/100) -> 0 | AC50: 12.15 | AD50: 10220.82 | AE50: 12.15022126 | AG50: 48 | AH50: =WORKDAY(AH49,1,feriados!$A$2:$A$1000) -> 2024-01-17 | AI50: 12.15 | AJ50: =IF(ISERROR(VLOOKUP(AH50,'Cenários COPOM'!$A$1:$K$100,10,FALSE)),0,VLOOKUP(AH50,'Cenários COPOM'!$A$1:$K$100,10,FALSE)/100) -> 0 | AK50: 12.15 | AL50: 10220.82 | AM50: 12.15022126
A51: 49 | B51: =WORKDAY(B50,1,feriados!$A$2:$A$1000) -> 2024-01-18 | C51: 12.15 | D51: =IF(ISERROR(VLOOKUP(B51,'Cenários COPOM'!$A$1:$K$100,2,FALSE)),0,VLOOKUP(B51,'Cenários COPOM'!$A$1:$K$100,2,FALSE)/100) -> 0 | E51: 12.15 | F51: 10225.47 | G51: 12.15011418 | I51: 49 | J51: =WORKDAY(J50,1,feriados!$A$2:$A$1000) -> 2024-01-18 | K51: 12.15 | L51: =IF(ISERROR(VLOOKUP(J51,'Cenários COPOM'!$A$1:$K$100,4,FALSE)),0,VLOOKUP(J51,'Cenários COPOM'!$A$1:$K$100,4,FALSE)/100) -> 0 | M51: 12.15 | N51: 10225.47 | O51: 12.15011418 | Q51: 49 | R51: =WORKDAY(R50,1,feriados!$A$2:$A$1000) -> 2024-01-18 | S51: 12.15 | T51: =IF(ISERROR(VLOOKUP(R51,'Cenários COPOM'!$A$1:$K$100,6,FALSE)),0,VLOOKUP(R51,'Cenários COPOM'!$A$1:$K$100,6,FALSE)/100) -> 0 | U51: 12.15 | V51: 10225.47 | W51: 12.15011418 | Y51: 49 | Z51: =WORKDAY(Z50,1,feriados!$A$2:$A$1000) -> 2024-01-18 | AA51: 12.15 | AB51: =IF(ISERROR(VLOOKUP(Z51,'Cenários COPOM'!$A$1:$K$100,8,FALSE)),0,VLOOKUP(Z51,'Cenários COPOM'!$A$1:$K$100,8,FALSE)/100) -> 0 | AC51: 12.15 | AD51: 10225.47 | AE51: 12.15011418 | AG51: 49 | AH51: =WORKDAY(AH50,1,feriados!$A$2:$A$1000) -> 2024-01-18 | AI51: 12.15 | AJ51: =IF(ISERROR(VLOOKUP(AH51,'Cenários COPOM'!$A$1:$K$100,10,FALSE)),0,VLOOKUP(AH51,'Cenários COPOM'!$A$1:$K$100,10,FALSE)/100) -> 0 | AK51: 12.15 | AL51: 10225.47 | AM51: 12.15011418
A52: 50 | B52: =WORKDAY(B51,1,feriados!$A$2:$A$1000) -> 2024-01-19 | C52: 12.15 | D52: =IF(ISERROR(VLOOKUP(B52,'Cenários COPOM'!$A$1:$K$100,2,FALSE)),0,VLOOKUP(B52,'Cenários COPOM'!$A$1:$K$100,2,FALSE)/100) -> 0 | E52: 12.15 | F52: 10230.12 | G52: 12.14989449 | I52: 50 | J52: =WORKDAY(J51,1,feriados!$A$2:$A$1000) -> 2024-01-19 | K52: 12.15 | L52: =IF(ISERROR(VLOOKUP(J52,'Cenários COPOM'!$A$1:$K$100,4,FALSE)),0,VLOOKUP(J52,'Cenários COPOM'!$A$1:$K$100,4,FALSE)/100) -> 0 | M52: 12.15 | N52: 10230.12 | O52: 12.14989449 | Q52: 50 | R52: =WORKDAY(R51,1,feriados!$A$2:$A$1000) -> 2024-01-19 | S52: 12.15 | T52: =IF(ISERROR(VLOOKUP(R52,'Cenários COPOM'!$A$1:$K$100,6,FALSE)),0,VLOOKUP(R52,'Cenários COPOM'!$A$1:$K$100,6,FALSE)/100) -> 0 | U52: 12.15 | V52: 10230.12 | W52: 12.14989449 | Y52: 50 | Z52: =WORKDAY(Z51,1,feriados!$A$2:$A$1000) -> 2024-01-19 | AA52: 12.15 | AB52: =IF(ISERROR(VLOOKUP(Z52,'Cenários COPOM'!$A$1:$K$100,8,FALSE)),0,VLOOKUP(Z52,'Cenários COPOM'!$A$1:$K$100,8,FALSE)/100) -> 0 | AC52: 12.15 | AD52: 10230.12 | AE52: 12.14989449 | AG52: 50 | AH52: =WORKDAY(AH51,1,feriados!$A$2:$A$1000) -> 2024-01-19 | AI52: 12.15 | AJ52: =IF(ISERROR(VLOOKUP(AH52,'Cenários COPOM'!$A$1:$K$100,10,FALSE)),0,VLOOKUP(AH52,'Cenários COPOM'!$A$1:$K$100,10,FALSE)/100) -> 0 | AK52: 12.15 | AL52: 10230.12 | AM52: 12.14989449
A53: 51 | B53: =WORKDAY(B52,1,feriados!$A$2:$A$1000) -> 2024-01-22 | C53: 12.15 | D53: =IF(ISERROR(VLOOKUP(B53,'Cenários COPOM'!$A$1:$K$100,2,FALSE)),0,VLOOKUP(B53,'Cenários COPOM'!$A$1:$K$100,2,FALSE)/100) -> 0 | E53: 12.15 | F53: 10234.78 | G53: 12.15011037 | I53: 51 | J53: =WORKDAY(J52,1,feriados!$A$2:$A$1000) -> 2024-01-22 | K53: 12.15 | L53: =IF(ISERROR(VLOOKUP(J53,'Cenários COPOM'!$A$1:$K$100,4,FALSE)),0,VLOOKUP(J53,'Cenários COPOM'!$A$1:$K$100,4,FALSE)/100) -> 0 | M53: 12.15 | N53: 10234.78 | O53: 12.15011037 | Q53: 51 | R53: =WORKDAY(R52,1,feriados!$A$2:$A$1000) -> 2024-01-22 | S53: 12.15 | T53: =IF(ISERROR(VLOOKUP(R53,'Cenários COPOM'!$A$1:$K$100,6,FALSE)),0,VLOOKUP(R53,'Cenários COPOM'!$A$1:$K$100,6,FALSE)/100) -> 0 | U53: 12.15 | V53: 10234.78 | W53: 12.15011037 | Y53: 51 | Z53: =WORKDAY(Z52,1,feriados!$A$2:$A$1000) -> 2024-01-22 | AA53: 12.15 | AB53: =IF(ISERROR(VLOOKUP(Z53,'Cenários COPOM'!$A$1:$K$100,8,FALSE)),0,VLOOKUP(Z53,'Cenários COPOM'!$A$1:$K$100,8,FALSE)/100) -> 0 | AC53: 12.15 | AD53: 10234.78 | AE53: 12.15011037 | AG53: 51 | AH53: =WORKDAY(AH52,1,feriados!$A$2:$A$1000) -> 2024-01-22 | AI53: 12.15 | AJ53: =IF(ISERROR(VLOOKUP(AH53,'Cenários COPOM'!$A$1:$K$100,10,FALSE)),0,VLOOKUP(AH53,'Cenários COPOM'!$A$1:$K$100,10,FALSE)/100) -> 0 | AK53: 12.15 | AL53: 10234.78 | AM53: 12.15011037
A54: 52 | B54: =WORKDAY(B53,1,feriados!$A$2:$A$1000) -> 2024-01-23 | C54: 12.15 | D54: =IF(ISERROR(VLOOKUP(B54,'Cenários COPOM'!$A$1:$K$100,2,FALSE)),0,VLOOKUP(B54,'Cenários COPOM'!$A$1:$K$100,2,FALSE)/100) -> 0 | E54: 12.15 | F54: 10239.44 | G54: 12.15020528 | I54: 52 | J54: =WORKDAY(J53,1,feriados!$A$2:$A$1000) -> 2024-01-23 | K54: 12.15 | L54: =IF(ISERROR(VLOOKUP(J54,'Cenários COPOM'!$A$1:$K$100,4,FALSE)),0,VLOOKUP(J54,'Cenários COPOM'!$A$1:$K$100,4,FALSE)/100) -> 0 | M54: 12.15 | N54: 10239.44 | O54: 12.15020528 | Q54: 52 | R54: =WORKDAY(R53,1,feriados!$A$2:$A$1000) -> 2024-01-23 | S54: 12.15 | T54: =IF(ISERROR(VLOOKUP(R54,'Cenários COPOM'!$A$1:$K$100,6,FALSE)),0,VLOOKUP(R54,'Cenários COPOM'!$A$1:$K$100,6,FALSE)/100) -> 0 | U54: 12.15 | V54: 10239.44 | W54: 12.15020528 | Y54: 52 | Z54: =WORKDAY(Z53,1,feriados!$A$2:$A$1000) -> 2024-01-23 | AA54: 12.15 | AB54: =IF(ISERROR(VLOOKUP(Z54,'Cenários COPOM'!$A$1:$K$100,8,FALSE)),0,VLOOKUP(Z54,'Cenários COPOM'!$A$1:$K$100,8,FALSE)/100) -> 0 | AC54: 12.15 | AD54: 10239.44 | AE54: 12.15020528 | AG54: 52 | AH54: =WORKDAY(AH53,1,feriados!$A$2:$A$1000) -> 2024-01-23 | AI54: 12.15 | AJ54: =IF(ISERROR(VLOOKUP(AH54,'Cenários COPOM'!$A$1:$K$100,10,FALSE)),0,VLOOKUP(AH54,'Cenários COPOM'!$A$1:$K$100,10,FALSE)/100) -> 0 | AK54: 12.15 | AL54: 10239.44 | AM54: 12.15020528
A55: 53 | B55: =WORKDAY(B54,1,feriados!$A$2:$A$1000) -> 2024-01-24 | C55: 12.15 | D55: =IF(ISERROR(VLOOKUP(B55,'Cenários COPOM'!$A$1:$K$100,2,FALSE)),0,VLOOKUP(B55,'Cenários COPOM'!$A$1:$K$100,2,FALSE)/100) -> 0 | E55: 12.15 | F55: 10244.1 | G55: 12.15018616 | I55: 53 | J55: =WORKDAY(J54,1,feriados!$A$2:$A$1000) -> 2024-01-24 | K55: 12.15 | L55: =IF(ISERROR(VLOOKUP(J55,'Cenários COPOM'!$A$1:$K$100,4,FALSE)),0,VLOOKUP(J55,'Cenários COPOM'!$A$1:$K$100,4,FALSE)/100) -> 0 | M55: 12.15 | N55: 10244.1 | O55: 12.15018616 | Q55: 53 | R55: =WORKDAY(R54,1,feriados!$A$2:$A$1000) -> 2024-01-24 | S55: 12.15 | T55: =IF(ISERROR(VLOOKUP(R55,'Cenários COPOM'!$A$1:$K$100,6,FALSE)),0,VLOOKUP(R55,'Cenários COPOM'!$A$1:$K$100,6,FALSE)/100) -> 0 | U55: 12.15 | V55: 10244.1 | W55: 12.15018616 | Y55: 53 | Z55: =WORKDAY(Z54,1,feriados!$A$2:$A$1000) -> 2024-01-24 | AA55: 12.15 | AB55: =IF(ISERROR(VLOOKUP(Z55,'Cenários COPOM'!$A$1:$K$100,8,FALSE)),0,VLOOKUP(Z55,'Cenários COPOM'!$A$1:$K$100,8,FALSE)/100) -> 0 | AC55: 12.15 | AD55: 10244.1 | AE55: 12.15018616 | AG55: 53 | AH55: =WORKDAY(AH54,1,feriados!$A$2:$A$1000) -> 2024-01-24 | AI55: 12.15 | AJ55: =IF(ISERROR(VLOOKUP(AH55,'Cenários COPOM'!$A$1:$K$100,10,FALSE)),0,VLOOKUP(AH55,'Cenários COPOM'!$A$1:$K$100,10,FALSE)/100) -> 0 | AK55: 12.15 | AL55: 10244.1 | AM55: 12.15018616
A56: 54 | B56: =WORKDAY(B55,1,feriados!$A$2:$A$1000) -> 2024-01-25 | C56: 12.15 | D56: =IF(ISERROR(VLOOKUP(B56,'Cenários COPOM'!$A$1:$K$100,2,FALSE)),0,VLOOKUP(B56,'Cenários COPOM'!$A$1:$K$100,2,FALSE)/100) -> 0 | E56: 12.15 | F56: 10248.76 | G56: 12.15005945 | I56: 54 | J56: =WORKDAY(J55,1,feriados!$A$2:$A$1000) -> 2024-01-25 | K56: 12.15 | L56: =IF(ISERROR(VLOOKUP(J56,'Cenários COPOM'!$A$1:$K$100,4,FALSE)),0,VLOOKUP(J56,'Cenários COPOM'!$A$1:$K$100,4,FALSE)/100) -> 0 | M56: 12.15 | N56: 10248.76 | O56: 12.15005945 | Q56: 54 | R56: =WORKDAY(R55,1,feriados!$A$2:$A$1000) -> 2024-01-25 | S56: 12.15 | T56: =IF(ISERROR(VLOOKUP(R56,'Cenários COPOM'!$A$1:$K$100,6,FALSE)),0,VLOOKUP(R56,'Cenários COPOM'!$A$1:$K$100,6,FALSE)/100) -> 0 | U56: 12.15 | V56: 10248.76 | W56: 12.15005945 | Y56: 54 | Z56: =WORKDAY(Z55,1,feriados!$A$2:$A$1000) -> 2024-01-25 | AA56: 12.15 | AB56: =IF(ISERROR(VLOOKUP(Z56,'Cenários COPOM'!$A$1:$K$100,8,FALSE)),0,VLOOKUP(Z56,'Cenários COPOM'!$A$1:$K$100,8,FALSE)/100) -> 0 | AC56: 12.15 | AD56: 10248.76 | AE56: 12.15005945 | AG56: 54 | AH56: =WORKDAY(AH55,1,feriados!$A$2:$A$1000) -> 2024-01-25 | AI56: 12.15 | AJ56: =IF(ISERROR(VLOOKUP(AH56,'Cenários COPOM'!$A$1:$K$100,10,FALSE)),0,VLOOKUP(AH56,'Cenários COPOM'!$A$1:$K$100,10,FALSE)/100) -> 0 | AK56: 12.15 | AL56: 10248.76 | AM56: 12.15005945
A57: 55 | B57: =WORKDAY(B56,1,feriados!$A$2:$A$1000) -> 2024-01-26 | C57: 12.15 | D57: =IF(ISERROR(VLOOKUP(B57,'Cenários COPOM'!$A$1:$K$100,2,FALSE)),0,VLOOKUP(B57,'Cenários COPOM'!$A$1:$K$100,2,FALSE)/100) -> 0 | E57: 12.15 | F57: 10253.42 | G57: 12.14983111 | I57: 55 | J57: =WORKDAY(J56,1,feriados!$A$2:$A$1000) -> 2024-01-26 | K57: 12.15 | L57: =IF(ISERROR(VLOOKUP(J57,'Cenários COPOM'!$A$1:$K$100,4,FALSE)),0,VLOOKUP(J57,'Cenários COPOM'!$A$1:$K$100,4,FALSE)/100) -> 0 | M57: 12.15 | N57: 10253.42 | O57: 12.14983111 | Q57: 55 | R57: =WORKDAY(R56,1,feriados!$A$2:$A$1000) -> 2024-01-26 | S57: 12.15 | T57: =IF(ISERROR(VLOOKUP(R57,'Cenários COPOM'!$A$1:$K$100,6,FALSE)),0,VLOOKUP(R57,'Cenários COPOM'!$A$1:$K$100,6,FALSE)/100) -> 0 | U57: 12.15 | V57: 10253.42 | W57: 12.14983111 | Y57: 55 | Z57: =WORKDAY(Z56,1,feriados!$A$2:$A$1000) -> 2024-01-26 | AA57: 12.15 | AB57: =IF(ISERROR(VLOOKUP(Z57,'Cenários COPOM'!$A$1:$K$100,8,FALSE)),0,VLOOKUP(Z57,'Cenários COPOM'!$A$1:$K$100,8,FALSE)/100) -> 0 | AC57: 12.15 | AD57: 10253.42 | AE57: 12.14983111 | AG57: 55 | AH57: =WORKDAY(AH56,1,feriados!$A$2:$A$1000) -> 2024-01-26 | AI57: 12.15 | AJ57: =IF(ISERROR(VLOOKUP(AH57,'Cenários COPOM'!$A$1:$K$100,10,FALSE)),0,VLOOKUP(AH57,'Cenários COPOM'!$A$1:$K$100,10,FALSE)/100) -> 0 | AK57: 12.15 | AL57: 10253.42 | AM57: 12.14983111
A58: 56 | B58: =WORKDAY(B57,1,feriados!$A$2:$A$1000) -> 2024-01-29 | C58: 12.15 | D58: =IF(ISERROR(VLOOKUP(B58,'Cenários COPOM'!$A$1:$K$100,2,FALSE)),0,VLOOKUP(B58,'Cenários COPOM'!$A$1:$K$100,2,FALSE)/100) -> 0 | E58: 12.15 | F58: 10258.09 | G58: 12.14999867 | I58: 56 | J58: =WORKDAY(J57,1,feriados!$A$2:$A$1000) -> 2024-01-29 | K58: 12.15 | L58: =IF(ISERROR(VLOOKUP(J58,'Cenários COPOM'!$A$1:$K$100,4,FALSE)),0,VLOOKUP(J58,'Cenários COPOM'!$A$1:$K$100,4,FALSE)/100) -> 0 | M58: 12.15 | N58: 10258.09 | O58: 12.14999867 | Q58: 56 | R58: =WORKDAY(R57,1,feriados!$A$2:$A$1000) -> 2024-01-29 | S58: 12.15 | T58: =IF(ISERROR(VLOOKUP(R58,'Cenários COPOM'!$A$1:$K$100,6,FALSE)),0,VLOOKUP(R58,'Cenários COPOM'!$A$1:$K$100,6,FALSE)/100) -> 0 | U58: 12.15 | V58: 10258.09 | W58: 12.14999867 | Y58: 56 | Z58: =WORKDAY(Z57,1,feriados!$A$2:$A$1000) -> 2024-01-29 | AA58: 12.15 | AB58: =IF(ISERROR(VLOOKUP(Z58,'Cenários COPOM'!$A$1:$K$100,8,FALSE)),0,VLOOKUP(Z58,'Cenários COPOM'!$A$1:$K$100,8,FALSE)/100) -> 0 | AC58: 12.15 | AD58: 10258.09 | AE58: 12.14999867 | AG58: 56 | AH58: =WORKDAY(AH57,1,feriados!$A$2:$A$1000) -> 2024-01-29 | AI58: 12.15 | AJ58: =IF(ISERROR(VLOOKUP(AH58,'Cenários COPOM'!$A$1:$K$100,10,FALSE)),0,VLOOKUP(AH58,'Cenários COPOM'!$A$1:$K$100,10,FALSE)/100) -> 0 | AK58: 12.15 | AL58: 10258.09 | AM58: 12.14999867
A59: 57 | B59: =WORKDAY(B58,1,feriados!$A$2:$A$1000) -> 2024-01-30 | C59: 12.15 | D59: =IF(ISERROR(VLOOKUP(B59,'Cenários COPOM'!$A$1:$K$100,2,FALSE)),0,VLOOKUP(B59,'Cenários COPOM'!$A$1:$K$100,2,FALSE)/100) -> 0 | E59: 12.15 | F59: 10262.76 | G59: 12.15005758 | I59: 57 | J59: =WORKDAY(J58,1,feriados!$A$2:$A$1000) -> 2024-01-30 | K59: 12.15 | L59: =IF(ISERROR(VLOOKUP(J59,'Cenários COPOM'!$A$1:$K$100,4,FALSE)),0,VLOOKUP(J59,'Cenários COPOM'!$A$1:$K$100,4,FALSE)/100) -> 0 | M59: 12.15 | N59: 10262.76 | O59: 12.15005758 | Q59: 57 | R59: =WORKDAY(R58,1,feriados!$A$2:$A$1000) -> 2024-01-30 | S59: 12.15 | T59: =IF(ISERROR(VLOOKUP(R59,'Cenários COPOM'!$A$1:$K$100,6,FALSE)),0,VLOOKUP(R59,'Cenários COPOM'!$A$1:$K$100,6,FALSE)/100) -> 0 | U59: 12.15 | V59: 10262.76 | W59: 12.15005758 | Y59: 57 | Z59: =WORKDAY(Z58,1,feriados!$A$2:$A$1000) -> 2024-01-30 | AA59: 12.15 | AB59: =IF(ISERROR(VLOOKUP(Z59,'Cenários COPOM'!$A$1:$K$100,8,FALSE)),0,VLOOKUP(Z59,'Cenários COPOM'!$A$1:$K$100,8,FALSE)/100) -> 0 | AC59: 12.15 | AD59: 10262.76 | AE59: 12.15005758 | AG59: 57 | AH59: =WORKDAY(AH58,1,feriados!$A$2:$A$1000) -> 2024-01-30 | AI59: 12.15 | AJ59: =IF(ISERROR(VLOOKUP(AH59,'Cenários COPOM'!$A$1:$K$100,10,FALSE)),0,VLOOKUP(AH59,'Cenários COPOM'!$A$1:$K$100,10,FALSE)/100) -> 0 | AK59: 12.15 | AL59: 10262.76 | AM59: 12.15005758
A60: 58 | B60: =WORKDAY(B59,1,feriados!$A$2:$A$1000) -> 2024-01-31 | C60: 12.15 | D60: =IF(ISERROR(VLOOKUP(B60,'Cenários COPOM'!$A$1:$K$100,2,FALSE)),0,VLOOKUP(B60,'Cenários COPOM'!$A$1:$K$100,2,FALSE)/100) -> 0 | E60: 12.15 | F60: 10267.43 | G60: 12.15001356 | I60: 58 | J60: =WORKDAY(J59,1,feriados!$A$2:$A$1000) -> 2024-01-31 | K60: 12.15 | L60: =IF(ISERROR(VLOOKUP(J60,'Cenários COPOM'!$A$1:$K$100,4,FALSE)),0,VLOOKUP(J60,'Cenários COPOM'!$A$1:$K$100,4,FALSE)/100) -> 0 | M60: 12.15 | N60: 10267.43 | O60: 12.15001356 | Q60: 58 | R60: =WORKDAY(R59,1,feriados!$A$2:$A$1000) -> 2024-01-31 | S60: 12.15 | T60: =IF(ISERROR(VLOOKUP(R60,'Cenários COPOM'!$A$1:$K$100,6,FALSE)),0,VLOOKUP(R60,'Cenários COPOM'!$A$1:$K$100,6,FALSE)/100) -> 0 | U60: 12.15 | V60: 10267.43 | W60: 12.15001356 | Y60: 58 | Z60: =WORKDAY(Z59,1,feriados!$A$2:$A$1000) -> 2024-01-31 | AA60: 12.15 | AB60: =IF(ISERROR(VLOOKUP(Z60,'Cenários COPOM'!$A$1:$K$100,8,FALSE)),0,VLOOKUP(Z60,'Cenários COPOM'!$A$1:$K$100,8,FALSE)/100) -> 0 | AC60: 12.15 | AD60: 10267.43 | AE60: 12.15001356 | AG60: 58 | AH60: =WORKDAY(AH59,1,feriados!$A$2:$A$1000) -> 2024-01-31 | AI60: 12.15 | AJ60: =IF(ISERROR(VLOOKUP(AH60,'Cenários COPOM'!$A$1:$K$100,10,FALSE)),0,VLOOKUP(AH60,'Cenários COPOM'!$A$1:$K$100,10,FALSE)/100) -> 0 | AK60: 12.15 | AL60: 10267.43 | AM60: 12.15001356
A61: 59 | B61: =WORKDAY(B60,1,feriados!$A$2:$A$1000) -> 2024-02-01 | C61: 12.15 | D61: =IF(ISERROR(VLOOKUP(B61,'Cenários COPOM'!$A$1:$K$100,2,FALSE)),0,VLOOKUP(B61,'Cenários COPOM'!$A$1:$K$100,2,FALSE)/100) -> 0 | E61: 12.15 | F61: 10272.1 | G61: 12.14987194 | I61: 59 | J61: =WORKDAY(J60,1,feriados!$A$2:$A$1000) -> 2024-02-01 | K61: 12.15 | L61: =IF(ISERROR(VLOOKUP(J61,'Cenários COPOM'!$A$1:$K$100,4,FALSE)),0,VLOOKUP(J61,'Cenários COPOM'!$A$1:$K$100,4,FALSE)/100) -> 0 | M61: 12.15 | N61: 10272.1 | O61: 12.14987194 | Q61: 59 | R61: =WORKDAY(R60,1,feriados!$A$2:$A$1000) -> 2024-02-01 | S61: 12.15 | T61: =IF(ISERROR(VLOOKUP(R61,'Cenários COPOM'!$A$1:$K$100,6,FALSE)),0,VLOOKUP(R61,'Cenários COPOM'!$A$1:$K$100,6,FALSE)/100) -> 0 | U61: 12.15 | V61: 10272.1 | W61: 12.14987194 | Y61: 59 | Z61: =WORKDAY(Z60,1,feriados!$A$2:$A$1000) -> 2024-02-01 | AA61: 12.15 | AB61: =IF(ISERROR(VLOOKUP(Z61,'Cenários COPOM'!$A$1:$K$100,8,FALSE)),0,VLOOKUP(Z61,'Cenários COPOM'!$A$1:$K$100,8,FALSE)/100) -> 0 | AC61: 12.15 | AD61: 10272.1 | AE61: 12.14987194 | AG61: 59 | AH61: =WORKDAY(AH60,1,feriados!$A$2:$A$1000) -> 2024-02-01 | AI61: 12.15 | AJ61: =IF(ISERROR(VLOOKUP(AH61,'Cenários COPOM'!$A$1:$K$100,10,FALSE)),0,VLOOKUP(AH61,'Cenários COPOM'!$A$1:$K$100,10,FALSE)/100) -> 0 | AK61: 12.15 | AL61: 10272.1 | AM61: 12.14987194
A62: 60 | B62: =WORKDAY(B61,1,feriados!$A$2:$A$1000) -> 2024-02-02 | C62: 12.15 | D62: =IF(ISERROR(VLOOKUP(B62,'Cenários COPOM'!$A$1:$K$100,2,FALSE)),0,VLOOKUP(B62,'Cenários COPOM'!$A$1:$K$100,2,FALSE)/100) -> 0 | E62: 12.15 | F62: 10276.78 | G62: 12.15009603 | I62: 60 | J62: =WORKDAY(J61,1,feriados!$A$2:$A$1000) -> 2024-02-02 | K62: 12.15 | L62: =IF(ISERROR(VLOOKUP(J62,'Cenários COPOM'!$A$1:$K$100,4,FALSE)),0,VLOOKUP(J62,'Cenários COPOM'!$A$1:$K$100,4,FALSE)/100) -> 0 | M62: 12.15 | N62: 10276.78 | O62: 12.15009603 | Q62: 60 | R62: =WORKDAY(R61,1,feriados!$A$2:$A$1000) -> 2024-02-02 | S62: 12.15 | T62: =IF(ISERROR(VLOOKUP(R62,'Cenários COPOM'!$A$1:$K$100,6,FALSE)),0,VLOOKUP(R62,'Cenários COPOM'!$A$1:$K$100,6,FALSE)/100) -> 0 | U62: 12.15 | V62: 10276.78 | W62: 12.15009603 | Y62: 60 | Z62: =WORKDAY(Z61,1,feriados!$A$2:$A$1000) -> 2024-02-02 | AA62: 12.15 | AB62: =IF(ISERROR(VLOOKUP(Z62,'Cenários COPOM'!$A$1:$K$100,8,FALSE)),0,VLOOKUP(Z62,'Cenários COPOM'!$A$1:$K$100,8,FALSE)/100) -> 0 | AC62: 12.15 | AD62: 10276.78 | AE62: 12.15009603 | AG62: 60 | AH62: =WORKDAY(AH61,1,feriados!$A$2:$A$1000) -> 2024-02-02 | AI62: 12.15 | AJ62: =IF(ISERROR(VLOOKUP(AH62,'Cenários COPOM'!$A$1:$K$100,10,FALSE)),0,VLOOKUP(AH62,'Cenários COPOM'!$A$1:$K$100,10,FALSE)/100) -> 0 | AK62: 12.15 | AL62: 10276.78 | AM62: 12.15009603
A63: 61 | B63: =WORKDAY(B62,1,feriados!$A$2:$A$1000) -> 2024-02-05 | C63: 12.15 | D63: =IF(ISERROR(VLOOKUP(B63,'Cenários COPOM'!$A$1:$K$100,2,FALSE)),0,VLOOKUP(B63,'Cenários COPOM'!$A$1:$K$100,2,FALSE)/100) -> 0 | E63: 12.15 | F63: 10281.46 | G63: 12.15021669 | I63: 61 | J63: =WORKDAY(J62,1,feriados!$A$2:$A$1000) -> 2024-02-05 | K63: 12.15 | L63: =IF(ISERROR(VLOOKUP(J63,'Cenários COPOM'!$A$1:$K$100,4,FALSE)),0,VLOOKUP(J63,'Cenários COPOM'!$A$1:$K$100,4,FALSE)/100) -> 0 | M63: 12.15 | N63: 10281.46 | O63: 12.15021669 | Q63: 61 | R63: =WORKDAY(R62,1,feriados!$A$2:$A$1000) -> 2024-02-05 | S63: 12.15 | T63: =IF(ISERROR(VLOOKUP(R63,'Cenários COPOM'!$A$1:$K$100,6,FALSE)),0,VLOOKUP(R63,'Cenários COPOM'!$A$1:$K$100,6,FALSE)/100) -> 0 | U63: 12.15 | V63: 10281.46 | W63: 12.15021669 | Y63: 61 | Z63: =WORKDAY(Z62,1,feriados!$A$2:$A$1000) -> 2024-02-05 | AA63: 12.15 | AB63: =IF(ISERROR(VLOOKUP(Z63,'Cenários COPOM'!$A$1:$K$100,8,FALSE)),0,VLOOKUP(Z63,'Cenários COPOM'!$A$1:$K$100,8,FALSE)/100) -> 0 | AC63: 12.15 | AD63: 10281.46 | AE63: 12.15021669 | AG63: 61 | AH63: =WORKDAY(AH62,1,feriados!$A$2:$A$1000) -> 2024-02-05 | AI63: 12.15 | AJ63: =IF(ISERROR(VLOOKUP(AH63,'Cenários COPOM'!$A$1:$K$100,10,FALSE)),0,VLOOKUP(AH63,'Cenários COPOM'!$A$1:$K$100,10,FALSE)/100) -> 0 | AK63: 12.15 | AL63: 10281.46 | AM63: 12.15021669
A64: 62 | B64: =WORKDAY(B63,1,feriados!$A$2:$A$1000) -> 2024-02-06 | C64: 12.15 | D64: =IF(ISERROR(VLOOKUP(B64,'Cenários COPOM'!$A$1:$K$100,2,FALSE)),0,VLOOKUP(B64,'Cenários COPOM'!$A$1:$K$100,2,FALSE)/100) -> 0 | E64: 12.15 | F64: 10286.14 | G64: 12.15023901 | I64: 62 | J64: =WORKDAY(J63,1,feriados!$A$2:$A$1000) -> 2024-02-06 | K64: 12.15 | L64: =IF(ISERROR(VLOOKUP(J64,'Cenários COPOM'!$A$1:$K$100,4,FALSE)),0,VLOOKUP(J64,'Cenários COPOM'!$A$1:$K$100,4,FALSE)/100) -> 0 | M64: 12.15 | N64: 10286.14 | O64: 12.15023901 | Q64: 62 | R64: =WORKDAY(R63,1,feriados!$A$2:$A$1000) -> 2024-02-06 | S64: 12.15 | T64: =IF(ISERROR(VLOOKUP(R64,'Cenários COPOM'!$A$1:$K$100,6,FALSE)),0,VLOOKUP(R64,'Cenários COPOM'!$A$1:$K$100,6,FALSE)/100) -> 0 | U64: 12.15 | V64: 10286.14 | W64: 12.15023901 | Y64: 62 | Z64: =WORKDAY(Z63,1,feriados!$A$2:$A$1000) -> 2024-02-06 | AA64: 12.15 | AB64: =IF(ISERROR(VLOOKUP(Z64,'Cenários COPOM'!$A$1:$K$100,8,FALSE)),0,VLOOKUP(Z64,'Cenários COPOM'!$A$1:$K$100,8,FALSE)/100) -> 0 | AC64: 12.15 | AD64: 10286.14 | AE64: 12.15023901 | AG64: 62 | AH64: =WORKDAY(AH63,1,feriados!$A$2:$A$1000) -> 2024-02-06 | AI64: 12.15 | AJ64: =IF(ISERROR(VLOOKUP(AH64,'Cenários COPOM'!$A$1:$K$100,10,FALSE)),0,VLOOKUP(AH64,'Cenários COPOM'!$A$1:$K$100,10,FALSE)/100) -> 0 | AK64: 12.15 | AL64: 10286.14 | AM64: 12.15023901
A65: 63 | B65: =WORKDAY(B64,1,feriados!$A$2:$A$1000) -> 2024-02-07 | C65: 12.15 | D65: =IF(ISERROR(VLOOKUP(B65,'Cenários COPOM'!$A$1:$K$100,2,FALSE)),0,VLOOKUP(B65,'Cenários COPOM'!$A$1:$K$100,2,FALSE)/100) -> 0 | E65: 12.15 | F65: 10290.82 | G65: 12.15016775 | I65: 63 | J65: =WORKDAY(J64,1,feriados!$A$2:$A$1000) -> 2024-02-07 | K65: 12.15 | L65: =IF(ISERROR(VLOOKUP(J65,'Cenários COPOM'!$A$1:$K$100,4,FALSE)),0,VLOOKUP(J65,'Cenários COPOM'!$A$1:$K$100,4,FALSE)/100) -> 0 | M65: 12.15 | N65: 10290.82 | O65: 12.15016775 | Q65: 63 | R65: =WORKDAY(R64,1,feriados!$A$2:$A$1000) -> 2024-02-07 | S65: 12.15 | T65: =IF(ISERROR(VLOOKUP(R65,'Cenários COPOM'!$A$1:$K$100,6,FALSE)),0,VLOOKUP(R65,'Cenários COPOM'!$A$1:$K$100,6,FALSE)/100) -> 0 | U65: 12.15 | V65: 10290.82 | W65: 12.15016775 | Y65: 63 | Z65: =WORKDAY(Z64,1,feriados!$A$2:$A$1000) -> 2024-02-07 | AA65: 12.15 | AB65: =IF(ISERROR(VLOOKUP(Z65,'Cenários COPOM'!$A$1:$K$100,8,FALSE)),0,VLOOKUP(Z65,'Cenários COPOM'!$A$1:$K$100,8,FALSE)/100) -> 0 | AC65: 12.15 | AD65: 10290.82 | AE65: 12.15016775 | AG65: 63 | AH65: =WORKDAY(AH64,1,feriados!$A$2:$A$1000) -> 2024-02-07 | AI65: 12.15 | AJ65: =IF(ISERROR(VLOOKUP(AH65,'Cenários COPOM'!$A$1:$K$100,10,FALSE)),0,VLOOKUP(AH65,'Cenários COPOM'!$A$1:$K$100,10,FALSE)/100) -> 0 | AK65: 12.15 | AL65: 10290.82 | AM65: 12.15016775
A66: 64 | B66: =WORKDAY(B65,1,feriados!$A$2:$A$1000) -> 2024-02-08 | C66: 12.15 | D66: =IF(ISERROR(VLOOKUP(B66,'Cenários COPOM'!$A$1:$K$100,2,FALSE)),0,VLOOKUP(B66,'Cenários COPOM'!$A$1:$K$100,2,FALSE)/100) -> 0 | E66: 12.15 | F66: 10295.5 | G66: 12.1500074 | I66: 64 | J66: =WORKDAY(J65,1,feriados!$A$2:$A$1000) -> 2024-02-08 | K66: 12.15 | L66: =IF(ISERROR(VLOOKUP(J66,'Cenários COPOM'!$A$1:$K$100,4,FALSE)),0,VLOOKUP(J66,'Cenários COPOM'!$A$1:$K$100,4,FALSE)/100) -> 0 | M66: 12.15 | N66: 10295.5 | O66: 12.1500074 | Q66: 64 | R66: =WORKDAY(R65,1,feriados!$A$2:$A$1000) -> 2024-02-08 | S66: 12.15 | T66: =IF(ISERROR(VLOOKUP(R66,'Cenários COPOM'!$A$1:$K$100,6,FALSE)),0,VLOOKUP(R66,'Cenários COPOM'!$A$1:$K$100,6,FALSE)/100) -> 0 | U66: 12.15 | V66: 10295.5 | W66: 12.1500074 | Y66: 64 | Z66: =WORKDAY(Z65,1,feriados!$A$2:$A$1000) -> 2024-02-08 | AA66: 12.15 | AB66: =IF(ISERROR(VLOOKUP(Z66,'Cenários COPOM'!$A$1:$K$100,8,FALSE)),0,VLOOKUP(Z66,'Cenários COPOM'!$A$1:$K$100,8,FALSE)/100) -> 0 | AC66: 12.15 | AD66: 10295.5 | AE66: 12.1500074 | AG66: 64 | AH66: =WORKDAY(AH65,1,feriados!$A$2:$A$1000) -> 2024-02-08 | AI66: 12.15 | AJ66: =IF(ISERROR(VLOOKUP(AH66,'Cenários COPOM'!$A$1:$K$100,10,FALSE)),0,VLOOKUP(AH66,'Cenários COPOM'!$A$1:$K$100,10,FALSE)/100) -> 0 | AK66: 12.15 | AL66: 10295.5 | AM66: 12.1500074
A67: 65 | B67: =WORKDAY(B66,1,feriados!$A$2:$A$1000) -> 2024-02-09 | C67: 12.15 | D67: =IF(ISERROR(VLOOKUP(B67,'Cenários COPOM'!$A$1:$K$100,2,FALSE)),0,VLOOKUP(B67,'Cenários COPOM'!$A$1:$K$100,2,FALSE)/100) -> 0 | E67: 12.15 | F67: 10300.19 | G67: 12.15018426 | I67: 65 | J67: =WORKDAY(J66,1,feriados!$A$2:$A$1000) -> 2024-02-09 | K67: 12.15 | L67: =IF(ISERROR(VLOOKUP(J67,'Cenários COPOM'!$A$1:$K$100,4,FALSE)),0,VLOOKUP(J67,'Cenários COPOM'!$A$1:$K$100,4,FALSE)/100) -> 0 | M67: 12.15 | N67: 10300.19 | O67: 12.15018426 | Q67: 65 | R67: =WORKDAY(R66,1,feriados!$A$2:$A$1000) -> 2024-02-09 | S67: 12.15 | T67: =IF(ISERROR(VLOOKUP(R67,'Cenários COPOM'!$A$1:$K$100,6,FALSE)),0,VLOOKUP(R67,'Cenários COPOM'!$A$1:$K$100,6,FALSE)/100) -> 0 | U67: 12.15 | V67: 10300.19 | W67: 12.15018426 | Y67: 65 | Z67: =WORKDAY(Z66,1,feriados!$A$2:$A$1000) -> 2024-02-09 | AA67: 12.15 | AB67: =IF(ISERROR(VLOOKUP(Z67,'Cenários COPOM'!$A$1:$K$100,8,FALSE)),0,VLOOKUP(Z67,'Cenários COPOM'!$A$1:$K$100,8,FALSE)/100) -> 0 | AC67: 12.15 | AD67: 10300.19 | AE67: 12.15018426 | AG67: 65 | AH67: =WORKDAY(AH66,1,feriados!$A$2:$A$1000) -> 2024-02-09 | AI67: 12.15 | AJ67: =IF(ISERROR(VLOOKUP(AH67,'Cenários COPOM'!$A$1:$K$100,10,FALSE)),0,VLOOKUP(AH67,'Cenários COPOM'!$A$1:$K$100,10,FALSE)/100) -> 0 | AK67: 12.15 | AL67: 10300.19 | AM67: 12.15018426
A68: =+A67+1 -> 66 | B68: =WORKDAY(B67,1,feriados!$A$2:$A$1000) -> 2024-02-14 | C68: =+C67 -> 12.15 | D68: =IF(ISERROR(VLOOKUP(B68,'Cenários COPOM'!$A$1:$K$100,2,FALSE)),0,VLOOKUP(B68,'Cenários COPOM'!$A$1:$K$100,2,FALSE)/100) -> 0 | E68: =+E67+D68 -> 12.15 | F68: =+ROUND(((1+E67/100)^(1/252))*F67,2) -> 10304.88 | G68: =+((F68/$F$2)^(252/A68)-1)*100 -> 12.15026698 | I68: =+I67+1 -> 66 | J68: =WORKDAY(J67,1,feriados!$A$2:$A$1000) -> 2024-02-14 | K68: =+K67 -> 12.15 | L68: =IF(ISERROR(VLOOKUP(J68,'Cenários COPOM'!$A$1:$K$100,4,FALSE)),0,VLOOKUP(J68,'Cenários COPOM'!$A$1:$K$100,4,FALSE)/100) -> 0 | M68: =+M67+L68 -> 12.15 | N68: =+ROUND(((1+M67/100)^(1/252))*N67,2) -> 10304.88 | O68: =+((N68/$N$2)^(252/I68)-1)*100 -> 12.15026698 | Q68: =+Q67+1 -> 66 | R68: =WORKDAY(R67,1,feriados!$A$2:$A$1000) -> 2024-02-14 | S68: =+S67 -> 12.15 | T68: =IF(ISERROR(VLOOKUP(R68,'Cenários COPOM'!$A$1:$K$100,6,FALSE)),0,VLOOKUP(R68,'Cenários COPOM'!$A$1:$K$100,6,FALSE)/100) -> 0 | U68: =+U67+T68 -> 12.15 | V68: =+ROUND(((1+U67/100)^(1/252))*V67,2) -> 10304.88 | W68: =+((V68/$V$2)^(252/Q68)-1)*100 -> 12.15026698 | Y68: =+Y67+1 -> 66 | Z68: =WORKDAY(Z67,1,feriados!$A$2:$A$1000) -> 2024-02-14 | AA68: =+AA67 -> 12.15 | AB68: =IF(ISERROR(VLOOKUP(Z68,'Cenários COPOM'!$A$1:$K$100,8,FALSE)),0,VLOOKUP(Z68,'Cenários COPOM'!$A$1:$K$100,8,FALSE)/100) -> 0 | AC68: =+AC67+AB68 -> 12.15 | AD68: =+ROUND(((1+AC67/100)^(1/252))*AD67,2) -> 10304.88 | AE68: =+((AD68/$AD$2)^(252/Y68)-1)*100 -> 12.15026698 | AG68: =+AG67+1 -> 66 | AH68: =WORKDAY(AH67,1,feriados!$A$2:$A$1000) -> 2024-02-14 | AI68: =+AI67 -> 12.15 | AJ68: =IF(ISERROR(VLOOKUP(AH68,'Cenários COPOM'!$A$1:$K$100,10,FALSE)),0,VLOOKUP(AH68,'Cenários COPOM'!$A$1:$K$100,10,FALSE)/100) -> 0 | AK68: =+AK67+AJ68 -> 12.15 | AL68: =+ROUND(((1+AK67/100)^(1/252))*AL67,2) -> 10304.88 | AM68: =+((AL68/$F$2)^(252/AG68)-1)*100 -> 12.15026698
A69: 67 | B69: =WORKDAY(B68,1,feriados!$A$2:$A$1000) -> 2024-02-15 | C69: 12.15 | D69: =IF(ISERROR(VLOOKUP(B69,'Cenários COPOM'!$A$1:$K$100,2,FALSE)),0,VLOOKUP(B69,'Cenários COPOM'!$A$1:$K$100,2,FALSE)/100) -> 0 | E69: 12.15 | F69: 10309.57 | G69: 12.15025986 | I69: 67 | J69: =WORKDAY(J68,1,feriados!$A$2:$A$1000) -> 2024-02-15 | K69: 12.15 | L69: =IF(ISERROR(VLOOKUP(J69,'Cenários COPOM'!$A$1:$K$100,4,FALSE)),0,VLOOKUP(J69,'Cenários COPOM'!$A$1:$K$100,4,FALSE)/100) -> 0 | M69: 12.15 | N69: 10309.57 | O69: 12.15025986 | Q69: 67 | R69: =WORKDAY(R68,1,feriados!$A$2:$A$1000) -> 2024-02-15 | S69: 12.15 | T69: =IF(ISERROR(VLOOKUP(R69,'Cenários COPOM'!$A$1:$K$100,6,FALSE)),0,VLOOKUP(R69,'Cenários COPOM'!$A$1:$K$100,6,FALSE)/100) -> 0 | U69: 12.15 | V69: 10309.57 | W69: 12.15025986 | Y69: 67 | Z69: =WORKDAY(Z68,1,feriados!$A$2:$A$1000) -> 2024-02-15 | AA69: 12.15 | AB69: =IF(ISERROR(VLOOKUP(Z69,'Cenários COPOM'!$A$1:$K$100,8,FALSE)),0,VLOOKUP(Z69,'Cenários COPOM'!$A$1:$K$100,8,FALSE)/100) -> 0 | AC69: 12.15 | AD69: 10309.57 | AE69: 12.15025986 | AG69: 67 | AH69: =WORKDAY(AH68,1,feriados!$A$2:$A$1000) -> 2024-02-15 | AI69: 12.15 | AJ69: =IF(ISERROR(VLOOKUP(AH69,'Cenários COPOM'!$A$1:$K$100,10,FALSE)),0,VLOOKUP(AH69,'Cenários COPOM'!$A$1:$K$100,10,FALSE)/100) -> 0 | AK69: 12.15 | AL69: 10309.57 | AM69: 12.15025986
A70: 68 | B70: =WORKDAY(B69,1,feriados!$A$2:$A$1000) -> 2024-02-16 | C70: 12.15 | D70: =IF(ISERROR(VLOOKUP(B70,'Cenários COPOM'!$A$1:$K$100,2,FALSE)),0,VLOOKUP(B70,'Cenários COPOM'!$A$1:$K$100,2,FALSE)/100) -> 0 | E70: 12.15 | F70: 10314.26 | G70: 12.15016693 | I70: 68 | J70: =WORKDAY(J69,1,feriados!$A$2:$A$1000) -> 2024-02-16 | K70: 12.15 | L70: =IF(ISERROR(VLOOKUP(J70,'Cenários COPOM'!$A$1:$K$100,4,FALSE)),0,VLOOKUP(J70,'Cenários COPOM'!$A$1:$K$100,4,FALSE)/100) -> 0 | M70: 12.15 | N70: 10314.26 | O70: 12.15016693 | Q70: 68 | R70: =WORKDAY(R69,1,feriados!$A$2:$A$1000) -> 2024-02-16 | S70: 12.15 | T70: =IF(ISERROR(VLOOKUP(R70,'Cenários COPOM'!$A$1:$K$100,6,FALSE)),0,VLOOKUP(R70,'Cenários COPOM'!$A$1:$K$100,6,FALSE)/100) -> 0 | U70: 12.15 | V70: 10314.26 | W70: 12.15016693 | Y70: 68 | Z70: =WORKDAY(Z69,1,feriados!$A$2:$A$1000) -> 2024-02-16 | AA70: 12.15 | AB70: =IF(ISERROR(VLOOKUP(Z70,'Cenários COPOM'!$A$1:$K$100,8,FALSE)),0,VLOOKUP(Z70,'Cenários COPOM'!$A$1:$K$100,8,FALSE)/100) -> 0 | AC70: 12.15 | AD70: 10314.26 | AE70: 12.15016693 | AG70: 68 | AH70: =WORKDAY(AH69,1,feriados!$A$2:$A$1000) -> 2024-02-16 | AI70: 12.15 | AJ70: =IF(ISERROR(VLOOKUP(AH70,'Cenários COPOM'!$A$1:$K$100,10,FALSE)),0,VLOOKUP(AH70,'Cenários COPOM'!$A$1:$K$100,10,FALSE)/100) -> 0 | AK70: 12.15 | AL70: 10314.26 | AM70: 12.15016693
A71: 69 | B71: =WORKDAY(B70,1,feriados!$A$2:$A$1000) -> 2024-02-19 | C71: 12.15 | D71: =IF(ISERROR(VLOOKUP(B71,'Cenários COPOM'!$A$1:$K$100,2,FALSE)),0,VLOOKUP(B71,'Cenários COPOM'!$A$1:$K$100,2,FALSE)/100) -> 0 | E71: 12.15 | F71: 10318.95 | G71: 12.14999201 | I71: 69 | J71: =WORKDAY(J70,1,feriados!$A$2:$A$1000) -> 2024-02-19 | K71: 12.15 | L71: =IF(ISERROR(VLOOKUP(J71,'Cenários COPOM'!$A$1:$K$100,4,FALSE)),0,VLOOKUP(J71,'Cenários COPOM'!$A$1:$K$100,4,FALSE)/100) -> 0 | M71: 12.15 | N71: 10318.95 | O71: 12.14999201 | Q71: 69 | R71: =WORKDAY(R70,1,feriados!$A$2:$A$1000) -> 2024-02-19 | S71: 12.15 | T71: =IF(ISERROR(VLOOKUP(R71,'Cenários COPOM'!$A$1:$K$100,6,FALSE)),0,VLOOKUP(R71,'Cenários COPOM'!$A$1:$K$100,6,FALSE)/100) -> 0 | U71: 12.15 | V71: 10318.95 | W71: 12.14999201 | Y71: 69 | Z71: =WORKDAY(Z70,1,feriados!$A$2:$A$1000) -> 2024-02-19 | AA71: 12.15 | AB71: =IF(ISERROR(VLOOKUP(Z71,'Cenários COPOM'!$A$1:$K$100,8,FALSE)),0,VLOOKUP(Z71,'Cenários COPOM'!$A$1:$K$100,8,FALSE)/100) -> 0 | AC71: 12.15 | AD71: 10318.95 | AE71: 12.14999201 | AG71: 69 | AH71: =WORKDAY(AH70,1,feriados!$A$2:$A$1000) -> 2024-02-19 | AI71: 12.15 | AJ71: =IF(ISERROR(VLOOKUP(AH71,'Cenários COPOM'!$A$1:$K$100,10,FALSE)),0,VLOOKUP(AH71,'Cenários COPOM'!$A$1:$K$100,10,FALSE)/100) -> 0 | AK71: 12.15 | AL71: 10318.95 | AM71: 12.14999201
A72: 70 | B72: =WORKDAY(B71,1,feriados!$A$2:$A$1000) -> 2024-02-20 | C72: 12.15 | D72: =IF(ISERROR(VLOOKUP(B72,'Cenários COPOM'!$A$1:$K$100,2,FALSE)),0,VLOOKUP(B72,'Cenários COPOM'!$A$1:$K$100,2,FALSE)/100) -> 0 | E72: 12.15 | F72: 10323.65 | G72: 12.15012977 | I72: 70 | J72: =WORKDAY(J71,1,feriados!$A$2:$A$1000) -> 2024-02-20 | K72: 12.15 | L72: =IF(ISERROR(VLOOKUP(J72,'Cenários COPOM'!$A$1:$K$100,4,FALSE)),0,VLOOKUP(J72,'Cenários COPOM'!$A$1:$K$100,4,FALSE)/100) -> 0 | M72: 12.15 | N72: 10323.65 | O72: 12.15012977 | Q72: 70 | R72: =WORKDAY(R71,1,feriados!$A$2:$A$1000) -> 2024-02-20 | S72: 12.15 | T72: =IF(ISERROR(VLOOKUP(R72,'Cenários COPOM'!$A$1:$K$100,6,FALSE)),0,VLOOKUP(R72,'Cenários COPOM'!$A$1:$K$100,6,FALSE)/100) -> 0 | U72: 12.15 | V72: 10323.65 | W72: 12.15012977 | Y72: 70 | Z72: =WORKDAY(Z71,1,feriados!$A$2:$A$1000) -> 2024-02-20 | AA72: 12.15 | AB72: =IF(ISERROR(VLOOKUP(Z72,'Cenários COPOM'!$A$1:$K$100,8,FALSE)),0,VLOOKUP(Z72,'Cenários COPOM'!$A$1:$K$100,8,FALSE)/100) -> 0 | AC72: 12.15 | AD72: 10323.65 | AE72: 12.15012977 | AG72: 70 | AH72: =WORKDAY(AH71,1,feriados!$A$2:$A$1000) -> 2024-02-20 | AI72: 12.15 | AJ72: =IF(ISERROR(VLOOKUP(AH72,'Cenários COPOM'!$A$1:$K$100,10,FALSE)),0,VLOOKUP(AH72,'Cenários COPOM'!$A$1:$K$100,10,FALSE)/100) -> 0 | AK72: 12.15 | AL72: 10323.65 | AM72: 12.15012977
A73: 71 | B73: =WORKDAY(B72,1,feriados!$A$2:$A$1000) -> 2024-02-21 | C73: 12.15 | D73: =IF(ISERROR(VLOOKUP(B73,'Cenários COPOM'!$A$1:$K$100,2,FALSE)),0,VLOOKUP(B73,'Cenários COPOM'!$A$1:$K$100,2,FALSE)/100) -> 0 | E73: 12.15 | F73: 10328.35 | G73: 12.15018115 | I73: 71 | J73: =WORKDAY(J72,1,feriados!$A$2:$A$1000) -> 2024-02-21 | K73: 12.15 | L73: =IF(ISERROR(VLOOKUP(J73,'Cenários COPOM'!$A$1:$K$100,4,FALSE)),0,VLOOKUP(J73,'Cenários COPOM'!$A$1:$K$100,4,FALSE)/100) -> 0 | M73: 12.15 | N73: 10328.35 | O73: 12.15018115 | Q73: 71 | R73: =WORKDAY(R72,1,feriados!$A$2:$A$1000) -> 2024-02-21 | S73: 12.15 | T73: =IF(ISERROR(VLOOKUP(R73,'Cenários COPOM'!$A$1:$K$100,6,FALSE)),0,VLOOKUP(R73,'Cenários COPOM'!$A$1:$K$100,6,FALSE)/100) -> 0 | U73: 12.15 | V73: 10328.35 | W73: 12.15018115 | Y73: 71 | Z73: =WORKDAY(Z72,1,feriados!$A$2:$A$1000) -> 2024-02-21 | AA73: 12.15 | AB73: =IF(ISERROR(VLOOKUP(Z73,'Cenários COPOM'!$A$1:$K$100,8,FALSE)),0,VLOOKUP(Z73,'Cenários COPOM'!$A$1:$K$100,8,FALSE)/100) -> 0 | AC73: 12.15 | AD73: 10328.35 | AE73: 12.15018115 | AG73: 71 | AH73: =WORKDAY(AH72,1,feriados!$A$2:$A$1000) -> 2024-02-21 | AI73: 12.15 | AJ73: =IF(ISERROR(VLOOKUP(AH73,'Cenários COPOM'!$A$1:$K$100,10,FALSE)),0,VLOOKUP(AH73,'Cenários COPOM'!$A$1:$K$100,10,FALSE)/100) -> 0 | AK73: 12.15 | AL73: 10328.35 | AM73: 12.15018115
A74: 72 | B74: =WORKDAY(B73,1,feriados!$A$2:$A$1000) -> 2024-02-22 | C74: 12.15 | D74: =IF(ISERROR(VLOOKUP(B74,'Cenários COPOM'!$A$1:$K$100,2,FALSE)),0,VLOOKUP(B74,'Cenários COPOM'!$A$1:$K$100,2,FALSE)/100) -> 0 | E74: 12.15 | F74: 10333.05 | G74: 12.15014982 | I74: 72 | J74: =WORKDAY(J73,1,feriados!$A$2:$A$1000) -> 2024-02-22 | K74: 12.15 | L74: =IF(ISERROR(VLOOKUP(J74,'Cenários COPOM'!$A$1:$K$100,4,FALSE)),0,VLOOKUP(J74,'Cenários COPOM'!$A$1:$K$100,4,FALSE)/100) -> 0 | M74: 12.15 | N74: 10333.05 | O74: 12.15014982 | Q74: 72 | R74: =WORKDAY(R73,1,feriados!$A$2:$A$1000) -> 2024-02-22 | S74: 12.15 | T74: =IF(ISERROR(VLOOKUP(R74,'Cenários COPOM'!$A$1:$K$100,6,FALSE)),0,VLOOKUP(R74,'Cenários COPOM'!$A$1:$K$100,6,FALSE)/100) -> 0 | U74: 12.15 | V74: 10333.05 | W74: 12.15014982 | Y74: 72 | Z74: =WORKDAY(Z73,1,feriados!$A$2:$A$1000) -> 2024-02-22 | AA74: 12.15 | AB74: =IF(ISERROR(VLOOKUP(Z74,'Cenários COPOM'!$A$1:$K$100,8,FALSE)),0,VLOOKUP(Z74,'Cenários COPOM'!$A$1:$K$100,8,FALSE)/100) -> 0 | AC74: 12.15 | AD74: 10333.05 | AE74: 12.15014982 | AG74: 72 | AH74: =WORKDAY(AH73,1,feriados!$A$2:$A$1000) -> 2024-02-22 | AI74: 12.15 | AJ74: =IF(ISERROR(VLOOKUP(AH74,'Cenários COPOM'!$A$1:$K$100,10,FALSE)),0,VLOOKUP(AH74,'Cenários COPOM'!$A$1:$K$100,10,FALSE)/100) -> 0 | AK74: 12.15 | AL74: 10333.05 | AM74: 12.15014982
A75: 73 | B75: =WORKDAY(B74,1,feriados!$A$2:$A$1000) -> 2024-02-23 | C75: 12.15 | D75: =IF(ISERROR(VLOOKUP(B75,'Cenários COPOM'!$A$1:$K$100,2,FALSE)),0,VLOOKUP(B75,'Cenários COPOM'!$A$1:$K$100,2,FALSE)/100) -> 0 | E75: 12.15 | F75: 10337.75 | G75: 12.15003924 | I75: 73 | J75: =WORKDAY(J74,1,feriados!$A$2:$A$1000) -> 2024-02-23 | K75: 12.15 | L75: =IF(ISERROR(VLOOKUP(J75,'Cenários COPOM'!$A$1:$K$100,4,FALSE)),0,VLOOKUP(J75,'Cenários COPOM'!$A$1:$K$100,4,FALSE)/100) -> 0 | M75: 12.15 | N75: 10337.75 | O75: 12.15003924 | Q75: 73 | R75: =WORKDAY(R74,1,feriados!$A$2:$A$1000) -> 2024-02-23 | S75: 12.15 | T75: =IF(ISERROR(VLOOKUP(R75,'Cenários COPOM'!$A$1:$K$100,6,FALSE)),0,VLOOKUP(R75,'Cenários COPOM'!$A$1:$K$100,6,FALSE)/100) -> 0 | U75: 12.15 | V75: 10337.75 | W75: 12.15003924 | Y75: 73 | Z75: =WORKDAY(Z74,1,feriados!$A$2:$A$1000) -> 2024-02-23 | AA75: 12.15 | AB75: =IF(ISERROR(VLOOKUP(Z75,'Cenários COPOM'!$A$1:$K$100,8,FALSE)),0,VLOOKUP(Z75,'Cenários COPOM'!$A$1:$K$100,8,FALSE)/100) -> 0 | AC75: 12.15 | AD75: 10337.75 | AE75: 12.15003924 | AG75: 73 | AH75: =WORKDAY(AH74,1,feriados!$A$2:$A$1000) -> 2024-02-23 | AI75: 12.15 | AJ75: =IF(ISERROR(VLOOKUP(AH75,'Cenários COPOM'!$A$1:$K$100,10,FALSE)),0,VLOOKUP(AH75,'Cenários COPOM'!$A$1:$K$100,10,FALSE)/100) -> 0 | AK75: 12.15 | AL75: 10337.75 | AM75: 12.15003924
A76: 74 | B76: =WORKDAY(B75,1,feriados!$A$2:$A$1000) -> 2024-02-26 | C76: 12.15 | D76: =IF(ISERROR(VLOOKUP(B76,'Cenários COPOM'!$A$1:$K$100,2,FALSE)),0,VLOOKUP(B76,'Cenários COPOM'!$A$1:$K$100,2,FALSE)/100) -> 0 | E76: 12.15 | F76: 10342.46 | G76: 12.15022199 | I76: 74 | J76: =WORKDAY(J75,1,feriados!$A$2:$A$1000) -> 2024-02-26 | K76: 12.15 | L76: =IF(ISERROR(VLOOKUP(J76,'Cenários COPOM'!$A$1:$K$100,4,FALSE)),0,VLOOKUP(J76,'Cenários COPOM'!$A$1:$K$100,4,FALSE)/100) -> 0 | M76: 12.15 | N76: 10342.46 | O76: 12.15022199 | Q76: 74 | R76: =WORKDAY(R75,1,feriados!$A$2:$A$1000) -> 2024-02-26 | S76: 12.15 | T76: =IF(ISERROR(VLOOKUP(R76,'Cenários COPOM'!$A$1:$K$100,6,FALSE)),0,VLOOKUP(R76,'Cenários COPOM'!$A$1:$K$100,6,FALSE)/100) -> 0 | U76: 12.15 | V76: 10342.46 | W76: 12.15022199 | Y76: 74 | Z76: =WORKDAY(Z75,1,feriados!$A$2:$A$1000) -> 2024-02-26 | AA76: 12.15 | AB76: =IF(ISERROR(VLOOKUP(Z76,'Cenários COPOM'!$A$1:$K$100,8,FALSE)),0,VLOOKUP(Z76,'Cenários COPOM'!$A$1:$K$100,8,FALSE)/100) -> 0 | AC76: 12.15 | AD76: 10342.46 | AE76: 12.15022199 | AG76: 74 | AH76: =WORKDAY(AH75,1,feriados!$A$2:$A$1000) -> 2024-02-26 | AI76: 12.15 | AJ76: =IF(ISERROR(VLOOKUP(AH76,'Cenários COPOM'!$A$1:$K$100,10,FALSE)),0,VLOOKUP(AH76,'Cenários COPOM'!$A$1:$K$100,10,FALSE)/100) -> 0 | AK76: 12.15 | AL76: 10342.46 | AM76: 12.15022199
A77: 75 | B77: =WORKDAY(B76,1,feriados!$A$2:$A$1000) -> 2024-02-27 | C77: 12.15 | D77: =IF(ISERROR(VLOOKUP(B77,'Cenários COPOM'!$A$1:$K$100,2,FALSE)),0,VLOOKUP(B77,'Cenários COPOM'!$A$1:$K$100,2,FALSE)/100) -> 0 | E77: 12.15 | F77: 10347.17 | G77: 12.15032171 | I77: 75 | J77: =WORKDAY(J76,1,feriados!$A$2:$A$1000) -> 2024-02-27 | K77: 12.15 | L77: =IF(ISERROR(VLOOKUP(J77,'Cenários COPOM'!$A$1:$K$100,4,FALSE)),0,VLOOKUP(J77,'Cenários COPOM'!$A$1:$K$100,4,FALSE)/100) -> 0 | M77: 12.15 | N77: 10347.17 | O77: 12.15032171 | Q77: 75 | R77: =WORKDAY(R76,1,feriados!$A$2:$A$1000) -> 2024-02-27 | S77: 12.15 | T77: =IF(ISERROR(VLOOKUP(R77,'Cenários COPOM'!$A$1:$K$100,6,FALSE)),0,VLOOKUP(R77,'Cenários COPOM'!$A$1:$K$100,6,FALSE)/100) -> 0 | U77: 12.15 | V77: 10347.17 | W77: 12.15032171 | Y77: 75 | Z77: =WORKDAY(Z76,1,feriados!$A$2:$A$1000) -> 2024-02-27 | AA77: 12.15 | AB77: =IF(ISERROR(VLOOKUP(Z77,'Cenários COPOM'!$A$1:$K$100,8,FALSE)),0,VLOOKUP(Z77,'Cenários COPOM'!$A$1:$K$100,8,FALSE)/100) -> 0 | AC77: 12.15 | AD77: 10347.17 | AE77: 12.15032171 | AG77: 75 | AH77: =WORKDAY(AH76,1,feriados!$A$2:$A$1000) -> 2024-02-27 | AI77: 12.15 | AJ77: =IF(ISERROR(VLOOKUP(AH77,'Cenários COPOM'!$A$1:$K$100,10,FALSE)),0,VLOOKUP(AH77,'Cenários COPOM'!$A$1:$K$100,10,FALSE)/100) -> 0 | AK77: 12.15 | AL77: 10347.17 | AM77: 12.15032171
A78: 76 | B78: =WORKDAY(B77,1,feriados!$A$2:$A$1000) -> 2024-02-28 | C78: 12.15 | D78: =IF(ISERROR(VLOOKUP(B78,'Cenários COPOM'!$A$1:$K$100,2,FALSE)),0,VLOOKUP(B78,'Cenários COPOM'!$A$1:$K$100,2,FALSE)/100) -> 0 | E78: 12.15 | F78: 10351.88 | G78: 12.15034175 | I78: 76 | J78: =WORKDAY(J77,1,feriados!$A$2:$A$1000) -> 2024-02-28 | K78: 12.15 | L78: =IF(ISERROR(VLOOKUP(J78,'Cenários COPOM'!$A$1:$K$100,4,FALSE)),0,VLOOKUP(J78,'Cenários COPOM'!$A$1:$K$100,4,FALSE)/100) -> 0 | M78: 12.15 | N78: 10351.88 | O78: 12.15034175 | Q78: 76 | R78: =WORKDAY(R77,1,feriados!$A$2:$A$1000) -> 2024-02-28 | S78: 12.15 | T78: =IF(ISERROR(VLOOKUP(R78,'Cenários COPOM'!$A$1:$K$100,6,FALSE)),0,VLOOKUP(R78,'Cenários COPOM'!$A$1:$K$100,6,FALSE)/100) -> 0 | U78: 12.15 | V78: 10351.88 | W78: 12.15034175 | Y78: 76 | Z78: =WORKDAY(Z77,1,feriados!$A$2:$A$1000) -> 2024-02-28 | AA78: 12.15 | AB78: =IF(ISERROR(VLOOKUP(Z78,'Cenários COPOM'!$A$1:$K$100,8,FALSE)),0,VLOOKUP(Z78,'Cenários COPOM'!$A$1:$K$100,8,FALSE)/100) -> 0 | AC78: 12.15 | AD78: 10351.88 | AE78: 12.15034175 | AG78: 76 | AH78: =WORKDAY(AH77,1,feriados!$A$2:$A$1000) -> 2024-02-28 | AI78: 12.15 | AJ78: =IF(ISERROR(VLOOKUP(AH78,'Cenários COPOM'!$A$1:$K$100,10,FALSE)),0,VLOOKUP(AH78,'Cenários COPOM'!$A$1:$K$100,10,FALSE)/100) -> 0 | AK78: 12.15 | AL78: 10351.88 | AM78: 12.15034175
A79: 77 | B79: =WORKDAY(B78,1,feriados!$A$2:$A$1000) -> 2024-02-29 | C79: 12.15 | D79: =IF(ISERROR(VLOOKUP(B79,'Cenários COPOM'!$A$1:$K$100,2,FALSE)),0,VLOOKUP(B79,'Cenários COPOM'!$A$1:$K$100,2,FALSE)/100) -> 0 | E79: 12.15 | F79: 10356.59 | G79: 12.15028529 | I79: 77 | J79: =WORKDAY(J78,1,feriados!$A$2:$A$1000) -> 2024-02-29 | K79: 12.15 | L79: =IF(ISERROR(VLOOKUP(J79,'Cenários COPOM'!$A$1:$K$100,4,FALSE)),0,VLOOKUP(J79,'Cenários COPOM'!$A$1:$K$100,4,FALSE)/100) -> 0 | M79: 12.15 | N79: 10356.59 | O79: 12.15028529 | Q79: 77 | R79: =WORKDAY(R78,1,feriados!$A$2:$A$1000) -> 2024-02-29 | S79: 12.15 | T79: =IF(ISERROR(VLOOKUP(R79,'Cenários COPOM'!$A$1:$K$100,6,FALSE)),0,VLOOKUP(R79,'Cenários COPOM'!$A$1:$K$100,6,FALSE)/100) -> 0 | U79: 12.15 | V79: 10356.59 | W79: 12.15028529 | Y79: 77 | Z79: =WORKDAY(Z78,1,feriados!$A$2:$A$1000) -> 2024-02-29 | AA79: 12.15 | AB79: =IF(ISERROR(VLOOKUP(Z79,'Cenários COPOM'!$A$1:$K$100,8,FALSE)),0,VLOOKUP(Z79,'Cenários COPOM'!$A$1:$K$100,8,FALSE)/100) -> 0 | AC79: 12.15 | AD79: 10356.59 | AE79: 12.15028529 | AG79: 77 | AH79: =WORKDAY(AH78,1,feriados!$A$2:$A$1000) -> 2024-02-29 | AI79: 12.15 | AJ79: =IF(ISERROR(VLOOKUP(AH79,'Cenários COPOM'!$A$1:$K$100,10,FALSE)),0,VLOOKUP(AH79,'Cenários COPOM'!$A$1:$K$100,10,FALSE)/100) -> 0 | AK79: 12.15 | AL79: 10356.59 | AM79: 12.15028529
A80: 78 | B80: =WORKDAY(B79,1,feriados!$A$2:$A$1000) -> 2024-03-01 | C80: 12.15 | D80: =IF(ISERROR(VLOOKUP(B80,'Cenários COPOM'!$A$1:$K$100,2,FALSE)),0,VLOOKUP(B80,'Cenários COPOM'!$A$1:$K$100,2,FALSE)/100) -> 0 | E80: 12.15 | F80: 10361.3 | G80: 12.15015534 | I80: 78 | J80: =WORKDAY(J79,1,feriados!$A$2:$A$1000) -> 2024-03-01 | K80: 12.15 | L80: =IF(ISERROR(VLOOKUP(J80,'Cenários COPOM'!$A$1:$K$100,4,FALSE)),0,VLOOKUP(J80,'Cenários COPOM'!$A$1:$K$100,4,FALSE)/100) -> 0 | M80: 12.15 | N80: 10361.3 | O80: 12.15015534 | Q80: 78 | R80: =WORKDAY(R79,1,feriados!$A$2:$A$1000) -> 2024-03-01 | S80: 12.15 | T80: =IF(ISERROR(VLOOKUP(R80,'Cenários COPOM'!$A$1:$K$100,6,FALSE)),0,VLOOKUP(R80,'Cenários COPOM'!$A$1:$K$100,6,FALSE)/100) -> 0 | U80: 12.15 | V80: 10361.3 | W80: 12.15015534 | Y80: 78 | Z80: =WORKDAY(Z79,1,feriados!$A$2:$A$1000) -> 2024-03-01 | AA80: 12.15 | AB80: =IF(ISERROR(VLOOKUP(Z80,'Cenários COPOM'!$A$1:$K$100,8,FALSE)),0,VLOOKUP(Z80,'Cenários COPOM'!$A$1:$K$100,8,FALSE)/100) -> 0 | AC80: 12.15 | AD80: 10361.3 | AE80: 12.15015534 | AG80: 78 | AH80: =WORKDAY(AH79,1,feriados!$A$2:$A$1000) -> 2024-03-01 | AI80: 12.15 | AJ80: =IF(ISERROR(VLOOKUP(AH80,'Cenários COPOM'!$A$1:$K$100,10,FALSE)),0,VLOOKUP(AH80,'Cenários COPOM'!$A$1:$K$100,10,FALSE)/100) -> 0 | AK80: 12.15 | AL80: 10361.3 | AM80: 12.15015534
A81: 79 | B81: =WORKDAY(B80,1,feriados!$A$2:$A$1000) -> 2024-03-04 | C81: 12.15 | D81: =IF(ISERROR(VLOOKUP(B81,'Cenários COPOM'!$A$1:$K$100,2,FALSE)),0,VLOOKUP(B81,'Cenários COPOM'!$A$1:$K$100,2,FALSE)/100) -> 0 | E81: 12.15 | F81: 10366.02 | G81: 12.15029986 | I81: 79 | J81: =WORKDAY(J80,1,feriados!$A$2:$A$1000) -> 2024-03-04 | K81: 12.15 | L81: =IF(ISERROR(VLOOKUP(J81,'Cenários COPOM'!$A$1:$K$100,4,FALSE)),0,VLOOKUP(J81,'Cenários COPOM'!$A$1:$K$100,4,FALSE)/100) -> 0 | M81: 12.15 | N81: 10366.02 | O81: 12.15029986 | Q81: 79 | R81: =WORKDAY(R80,1,feriados!$A$2:$A$1000) -> 2024-03-04 | S81: 12.15 | T81: =IF(ISERROR(VLOOKUP(R81,'Cenários COPOM'!$A$1:$K$100,6,FALSE)),0,VLOOKUP(R81,'Cenários COPOM'!$A$1:$K$100,6,FALSE)/100) -> 0 | U81: 12.15 | V81: 10366.02 | W81: 12.15029986 | Y81: 79 | Z81: =WORKDAY(Z80,1,feriados!$A$2:$A$1000) -> 2024-03-04 | AA81: 12.15 | AB81: =IF(ISERROR(VLOOKUP(Z81,'Cenários COPOM'!$A$1:$K$100,8,FALSE)),0,VLOOKUP(Z81,'Cenários COPOM'!$A$1:$K$100,8,FALSE)/100) -> 0 | AC81: 12.15 | AD81: 10366.02 | AE81: 12.15029986 | AG81: 79 | AH81: =WORKDAY(AH80,1,feriados!$A$2:$A$1000) -> 2024-03-04 | AI81: 12.15 | AJ81: =IF(ISERROR(VLOOKUP(AH81,'Cenários COPOM'!$A$1:$K$100,10,FALSE)),0,VLOOKUP(AH81,'Cenários COPOM'!$A$1:$K$100,10,FALSE)/100) -> 0 | AK81: 12.15 | AL81: 10366.02 | AM81: 12.15029986
A82: 80 | B82: =WORKDAY(B81,1,feriados!$A$2:$A$1000) -> 2024-03-05 | C82: 12.15 | D82: =IF(ISERROR(VLOOKUP(B82,'Cenários COPOM'!$A$1:$K$100,2,FALSE)),0,VLOOKUP(B82,'Cenários COPOM'!$A$1:$K$100,2,FALSE)/100) -> 0 | E82: 12.15 | F82: 10370.74 | G82: 12.15036753 | I82: 80 | J82: =WORKDAY(J81,1,feriados!$A$2:$A$1000) -> 2024-03-05 | K82: 12.15 | L82: =IF(ISERROR(VLOOKUP(J82,'Cenários COPOM'!$A$1:$K$100,4,FALSE)),0,VLOOKUP(J82,'Cenários COPOM'!$A$1:$K$100,4,FALSE)/100) -> 0 | M82: 12.15 | N82: 10370.74 | O82: 12.15036753 | Q82: 80 | R82: =WORKDAY(R81,1,feriados!$A$2:$A$1000) -> 2024-03-05 | S82: 12.15 | T82: =IF(ISERROR(VLOOKUP(R82,'Cenários COPOM'!$A$1:$K$100,6,FALSE)),0,VLOOKUP(R82,'Cenários COPOM'!$A$1:$K$100,6,FALSE)/100) -> 0 | U82: 12.15 | V82: 10370.74 | W82: 12.15036753 | Y82: 80 | Z82: =WORKDAY(Z81,1,feriados!$A$2:$A$1000) -> 2024-03-05 | AA82: 12.15 | AB82: =IF(ISERROR(VLOOKUP(Z82,'Cenários COPOM'!$A$1:$K$100,8,FALSE)),0,VLOOKUP(Z82,'Cenários COPOM'!$A$1:$K$100,8,FALSE)/100) -> 0 | AC82: 12.15 | AD82: 10370.74 | AE82: 12.15036753 | AG82: 80 | AH82: =WORKDAY(AH81,1,feriados!$A$2:$A$1000) -> 2024-03-05 | AI82: 12.15 | AJ82: =IF(ISERROR(VLOOKUP(AH82,'Cenários COPOM'!$A$1:$K$100,10,FALSE)),0,VLOOKUP(AH82,'Cenários COPOM'!$A$1:$K$100,10,FALSE)/100) -> 0 | AK82: 12.15 | AL82: 10370.74 | AM82: 12.15036753
A83: 81 | B83: =WORKDAY(B82,1,feriados!$A$2:$A$1000) -> 2024-03-06 | C83: 12.15 | D83: =IF(ISERROR(VLOOKUP(B83,'Cenários COPOM'!$A$1:$K$100,2,FALSE)),0,VLOOKUP(B83,'Cenários COPOM'!$A$1:$K$100,2,FALSE)/100) -> 0 | E83: 12.15 | F83: 10375.46 | G83: 12.15036126 | I83: 81 | J83: =WORKDAY(J82,1,feriados!$A$2:$A$1000) -> 2024-03-06 | K83: 12.15 | L83: =IF(ISERROR(VLOOKUP(J83,'Cenários COPOM'!$A$1:$K$100,4,FALSE)),0,VLOOKUP(J83,'Cenários COPOM'!$A$1:$K$100,4,FALSE)/100) -> 0 | M83: 12.15 | N83: 10375.46 | O83: 12.15036126 | Q83: 81 | R83: =WORKDAY(R82,1,feriados!$A$2:$A$1000) -> 2024-03-06 | S83: 12.15 | T83: =IF(ISERROR(VLOOKUP(R83,'Cenários COPOM'!$A$1:$K$100,6,FALSE)),0,VLOOKUP(R83,'Cenários COPOM'!$A$1:$K$100,6,FALSE)/100) -> 0 | U83: 12.15 | V83: 10375.46 | W83: 12.15036126 | Y83: 81 | Z83: =WORKDAY(Z82,1,feriados!$A$2:$A$1000) -> 2024-03-06 | AA83: 12.15 | AB83: =IF(ISERROR(VLOOKUP(Z83,'Cenários COPOM'!$A$1:$K$100,8,FALSE)),0,VLOOKUP(Z83,'Cenários COPOM'!$A$1:$K$100,8,FALSE)/100) -> 0 | AC83: 12.15 | AD83: 10375.46 | AE83: 12.15036126 | AG83: 81 | AH83: =WORKDAY(AH82,1,feriados!$A$2:$A$1000) -> 2024-03-06 | AI83: 12.15 | AJ83: =IF(ISERROR(VLOOKUP(AH83,'Cenários COPOM'!$A$1:$K$100,10,FALSE)),0,VLOOKUP(AH83,'Cenários COPOM'!$A$1:$K$100,10,FALSE)/100) -> 0 | AK83: 12.15 | AL83: 10375.46 | AM83: 12.15036126
A84: 82 | B84: =WORKDAY(B83,1,feriados!$A$2:$A$1000) -> 2024-03-07 | C84: 12.15 | D84: =IF(ISERROR(VLOOKUP(B84,'Cenários COPOM'!$A$1:$K$100,2,FALSE)),0,VLOOKUP(B84,'Cenários COPOM'!$A$1:$K$100,2,FALSE)/100) -> 0 | E84: 12.15 | F84: 10380.18 | G84: 12.15028381 | I84: 82 | J84: =WORKDAY(J83,1,feriados!$A$2:$A$1000) -> 2024-03-07 | K84: 12.15 | L84: =IF(ISERROR(VLOOKUP(J84,'Cenários COPOM'!$A$1:$K$100,4,FALSE)),0,VLOOKUP(J84,'Cenários COPOM'!$A$1:$K$100,4,FALSE)/100) -> 0 | M84: 12.15 | N84: 10380.18 | O84: 12.15028381 | Q84: 82 | R84: =WORKDAY(R83,1,feriados!$A$2:$A$1000) -> 2024-03-07 | S84: 12.15 | T84: =IF(ISERROR(VLOOKUP(R84,'Cenários COPOM'!$A$1:$K$100,6,FALSE)),0,VLOOKUP(R84,'Cenários COPOM'!$A$1:$K$100,6,FALSE)/100) -> 0 | U84: 12.15 | V84: 10380.18 | W84: 12.15028381 | Y84: 82 | Z84: =WORKDAY(Z83,1,feriados!$A$2:$A$1000) -> 2024-03-07 | AA84: 12.15 | AB84: =IF(ISERROR(VLOOKUP(Z84,'Cenários COPOM'!$A$1:$K$100,8,FALSE)),0,VLOOKUP(Z84,'Cenários COPOM'!$A$1:$K$100,8,FALSE)/100) -> 0 | AC84: 12.15 | AD84: 10380.18 | AE84: 12.15028381 | AG84: 82 | AH84: =WORKDAY(AH83,1,feriados!$A$2:$A$1000) -> 2024-03-07 | AI84: 12.15 | AJ84: =IF(ISERROR(VLOOKUP(AH84,'Cenários COPOM'!$A$1:$K$100,10,FALSE)),0,VLOOKUP(AH84,'Cenários COPOM'!$A$1:$K$100,10,FALSE)/100) -> 0 | AK84: 12.15 | AL84: 10380.18 | AM84: 12.15028381
A85: 83 | B85: =WORKDAY(B84,1,feriados!$A$2:$A$1000) -> 2024-03-08 | C85: 12.15 | D85: =IF(ISERROR(VLOOKUP(B85,'Cenários COPOM'!$A$1:$K$100,2,FALSE)),0,VLOOKUP(B85,'Cenários COPOM'!$A$1:$K$100,2,FALSE)/100) -> 0 | E85: 12.15 | F85: 10384.9 | G85: 12.15013782 | I85: 83 | J85: =WORKDAY(J84,1,feriados!$A$2:$A$1000) -> 2024-03-08 | K85: 12.15 | L85: =IF(ISERROR(VLOOKUP(J85,'Cenários COPOM'!$A$1:$K$100,4,FALSE)),0,VLOOKUP(J85,'Cenários COPOM'!$A$1:$K$100,4,FALSE)/100) -> 0 | M85: 12.15 | N85: 10384.9 | O85: 12.15013782 | Q85: 83 | R85: =WORKDAY(R84,1,feriados!$A$2:$A$1000) -> 2024-03-08 | S85: 12.15 | T85: =IF(ISERROR(VLOOKUP(R85,'Cenários COPOM'!$A$1:$K$100,6,FALSE)),0,VLOOKUP(R85,'Cenários COPOM'!$A$1:$K$100,6,FALSE)/100) -> 0 | U85: 12.15 | V85: 10384.9 | W85: 12.15013782 | Y85: 83 | Z85: =WORKDAY(Z84,1,feriados!$A$2:$A$1000) -> 2024-03-08 | AA85: 12.15 | AB85: =IF(ISERROR(VLOOKUP(Z85,'Cenários COPOM'!$A$1:$K$100,8,FALSE)),0,VLOOKUP(Z85,'Cenários COPOM'!$A$1:$K$100,8,FALSE)/100) -> 0 | AC85: 12.15 | AD85: 10384.9 | AE85: 12.15013782 | AG85: 83 | AH85: =WORKDAY(AH84,1,feriados!$A$2:$A$1000) -> 2024-03-08 | AI85: 12.15 | AJ85: =IF(ISERROR(VLOOKUP(AH85,'Cenários COPOM'!$A$1:$K$100,10,FALSE)),0,VLOOKUP(AH85,'Cenários COPOM'!$A$1:$K$100,10,FALSE)/100) -> 0 | AK85: 12.15 | AL85: 10384.9 | AM85: 12.15013782
A86: 84 | B86: =WORKDAY(B85,1,feriados!$A$2:$A$1000) -> 2024-03-11 | C86: 12.15 | D86: =IF(ISERROR(VLOOKUP(B86,'Cenários COPOM'!$A$1:$K$100,2,FALSE)),0,VLOOKUP(B86,'Cenários COPOM'!$A$1:$K$100,2,FALSE)/100) -> 0 | E86: 12.15 | F86: 10389.63 | G86: 12.15024964 | I86: 84 | J86: =WORKDAY(J85,1,feriados!$A$2:$A$1000) -> 2024-03-11 | K86: 12.15 | L86: =IF(ISERROR(VLOOKUP(J86,'Cenários COPOM'!$A$1:$K$100,4,FALSE)),0,VLOOKUP(J86,'Cenários COPOM'!$A$1:$K$100,4,FALSE)/100) -> 0 | M86: 12.15 | N86: 10389.63 | O86: 12.15024964 | Q86: 84 | R86: =WORKDAY(R85,1,feriados!$A$2:$A$1000) -> 2024-03-11 | S86: 12.15 | T86: =IF(ISERROR(VLOOKUP(R86,'Cenários COPOM'!$A$1:$K$100,6,FALSE)),0,VLOOKUP(R86,'Cenários COPOM'!$A$1:$K$100,6,FALSE)/100) -> 0 | U86: 12.15 | V86: 10389.63 | W86: 12.15024964 | Y86: 84 | Z86: =WORKDAY(Z85,1,feriados!$A$2:$A$1000) -> 2024-03-11 | AA86: 12.15 | AB86: =IF(ISERROR(VLOOKUP(Z86,'Cenários COPOM'!$A$1:$K$100,8,FALSE)),0,VLOOKUP(Z86,'Cenários COPOM'!$A$1:$K$100,8,FALSE)/100) -> 0 | AC86: 12.15 | AD86: 10389.63 | AE86: 12.15024964 | AG86: 84 | AH86: =WORKDAY(AH85,1,feriados!$A$2:$A$1000) -> 2024-03-11 | AI86: 12.15 | AJ86: =IF(ISERROR(VLOOKUP(AH86,'Cenários COPOM'!$A$1:$K$100,10,FALSE)),0,VLOOKUP(AH86,'Cenários COPOM'!$A$1:$K$100,10,FALSE)/100) -> 0 | AK86: 12.15 | AL86: 10389.63 | AM86: 12.15024964
A87: 85 | B87: =WORKDAY(B86,1,feriados!$A$2:$A$1000) -> 2024-03-12 | C87: 12.15 | D87: =IF(ISERROR(VLOOKUP(B87,'Cenários COPOM'!$A$1:$K$100,2,FALSE)),0,VLOOKUP(B87,'Cenários COPOM'!$A$1:$K$100,2,FALSE)/100) -> 0 | E87: 12.15 | F87: 10394.36 | G87: 12.15028992 | I87: 85 | J87: =WORKDAY(J86,1,feriados!$A$2:$A$1000) -> 2024-03-12 | K87: 12.15 | L87: =IF(ISERROR(VLOOKUP(J87,'Cenários COPOM'!$A$1:$K$100,4,FALSE)),0,VLOOKUP(J87,'Cenários COPOM'!$A$1:$K$100,4,FALSE)/100) -> 0 | M87: 12.15 | N87: 10394.36 | O87: 12.15028992 | Q87: 85 | R87: =WORKDAY(R86,1,feriados!$A$2:$A$1000) -> 2024-03-12 | S87: 12.15 | T87: =IF(ISERROR(VLOOKUP(R87,'Cenários COPOM'!$A$1:$K$100,6,FALSE)),0,VLOOKUP(R87,'Cenários COPOM'!$A$1:$K$100,6,FALSE)/100) -> 0 | U87: 12.15 | V87: 10394.36 | W87: 12.15028992 | Y87: 85 | Z87: =WORKDAY(Z86,1,feriados!$A$2:$A$1000) -> 2024-03-12 | AA87: 12.15 | AB87: =IF(ISERROR(VLOOKUP(Z87,'Cenários COPOM'!$A$1:$K$100,8,FALSE)),0,VLOOKUP(Z87,'Cenários COPOM'!$A$1:$K$100,8,FALSE)/100) -> 0 | AC87: 12.15 | AD87: 10394.36 | AE87: 12.15028992 | AG87: 85 | AH87: =WORKDAY(AH86,1,feriados!$A$2:$A$1000) -> 2024-03-12 | AI87: 12.15 | AJ87: =IF(ISERROR(VLOOKUP(AH87,'Cenários COPOM'!$A$1:$K$100,10,FALSE)),0,VLOOKUP(AH87,'Cenários COPOM'!$A$1:$K$100,10,FALSE)/100) -> 0 | AK87: 12.15 | AL87: 10394.36 | AM87: 12.15028992
A88: 86 | B88: =WORKDAY(B87,1,feriados!$A$2:$A$1000) -> 2024-03-13 | C88: 12.15 | D88: =IF(ISERROR(VLOOKUP(B88,'Cenários COPOM'!$A$1:$K$100,2,FALSE)),0,VLOOKUP(B88,'Cenários COPOM'!$A$1:$K$100,2,FALSE)/100) -> 0 | E88: 12.15 | F88: 10399.09 | G88: 12.15026121 | I88: 86 | J88: =WORKDAY(J87,1,feriados!$A$2:$A$1000) -> 2024-03-13 | K88: 12.15 | L88: =IF(ISERROR(VLOOKUP(J88,'Cenários COPOM'!$A$1:$K$100,4,FALSE)),0,VLOOKUP(J88,'Cenários COPOM'!$A$1:$K$100,4,FALSE)/100) -> 0 | M88: 12.15 | N88: 10399.09 | O88: 12.15026121 | Q88: 86 | R88: =WORKDAY(R87,1,feriados!$A$2:$A$1000) -> 2024-03-13 | S88: 12.15 | T88: =IF(ISERROR(VLOOKUP(R88,'Cenários COPOM'!$A$1:$K$100,6,FALSE)),0,VLOOKUP(R88,'Cenários COPOM'!$A$1:$K$100,6,FALSE)/100) -> 0 | U88: 12.15 | V88: 10399.09 | W88: 12.15026121 | Y88: 86 | Z88: =WORKDAY(Z87,1,feriados!$A$2:$A$1000) -> 2024-03-13 | AA88: 12.15 | AB88: =IF(ISERROR(VLOOKUP(Z88,'Cenários COPOM'!$A$1:$K$100,8,FALSE)),0,VLOOKUP(Z88,'Cenários COPOM'!$A$1:$K$100,8,FALSE)/100) -> 0 | AC88: 12.15 | AD88: 10399.09 | AE88: 12.15026121 | AG88: 86 | AH88: =WORKDAY(AH87,1,feriados!$A$2:$A$1000) -> 2024-03-13 | AI88: 12.15 | AJ88: =IF(ISERROR(VLOOKUP(AH88,'Cenários COPOM'!$A$1:$K$100,10,FALSE)),0,VLOOKUP(AH88,'Cenários COPOM'!$A$1:$K$100,10,FALSE)/100) -> 0 | AK88: 12.15 | AL88: 10399.09 | AM88: 12.15026121
A89: 87 | B89: =WORKDAY(B88,1,feriados!$A$2:$A$1000) -> 2024-03-14 | C89: 12.15 | D89: =IF(ISERROR(VLOOKUP(B89,'Cenários COPOM'!$A$1:$K$100,2,FALSE)),0,VLOOKUP(B89,'Cenários COPOM'!$A$1:$K$100,2,FALSE)/100) -> 0 | E89: 12.15 | F89: 10403.82 | G89: 12.15016595 | I89: 87 | J89: =WORKDAY(J88,1,feriados!$A$2:$A$1000) -> 2024-03-14 | K89: 12.15 | L89: =IF(ISERROR(VLOOKUP(J89,'Cenários COPOM'!$A$1:$K$100,4,FALSE)),0,VLOOKUP(J89,'Cenários COPOM'!$A$1:$K$100,4,FALSE)/100) -> 0 | M89: 12.15 | N89: 10403.82 | O89: 12.15016595 | Q89: 87 | R89: =WORKDAY(R88,1,feriados!$A$2:$A$1000) -> 2024-03-14 | S89: 12.15 | T89: =IF(ISERROR(VLOOKUP(R89,'Cenários COPOM'!$A$1:$K$100,6,FALSE)),0,VLOOKUP(R89,'Cenários COPOM'!$A$1:$K$100,6,FALSE)/100) -> 0 | U89: 12.15 | V89: 10403.82 | W89: 12.15016595 | Y89: 87 | Z89: =WORKDAY(Z88,1,feriados!$A$2:$A$1000) -> 2024-03-14 | AA89: 12.15 | AB89: =IF(ISERROR(VLOOKUP(Z89,'Cenários COPOM'!$A$1:$K$100,8,FALSE)),0,VLOOKUP(Z89,'Cenários COPOM'!$A$1:$K$100,8,FALSE)/100) -> 0 | AC89: 12.15 | AD89: 10403.82 | AE89: 12.15016595 | AG89: 87 | AH89: =WORKDAY(AH88,1,feriados!$A$2:$A$1000) -> 2024-03-14 | AI89: 12.15 | AJ89: =IF(ISERROR(VLOOKUP(AH89,'Cenários COPOM'!$A$1:$K$100,10,FALSE)),0,VLOOKUP(AH89,'Cenários COPOM'!$A$1:$K$100,10,FALSE)/100) -> 0 | AK89: 12.15 | AL89: 10403.82 | AM89: 12.15016595
A90: 88 | B90: =WORKDAY(B89,1,feriados!$A$2:$A$1000) -> 2024-03-15 | C90: 12.15 | D90: =IF(ISERROR(VLOOKUP(B90,'Cenários COPOM'!$A$1:$K$100,2,FALSE)),0,VLOOKUP(B90,'Cenários COPOM'!$A$1:$K$100,2,FALSE)/100) -> 0 | E90: 12.15 | F90: 10408.56 | G90: 12.15031503 | I90: 88 | J90: =WORKDAY(J89,1,feriados!$A$2:$A$1000) -> 2024-03-15 | K90: 12.15 | L90: =IF(ISERROR(VLOOKUP(J90,'Cenários COPOM'!$A$1:$K$100,4,FALSE)),0,VLOOKUP(J90,'Cenários COPOM'!$A$1:$K$100,4,FALSE)/100) -> 0 | M90: 12.15 | N90: 10408.56 | O90: 12.15031503 | Q90: 88 | R90: =WORKDAY(R89,1,feriados!$A$2:$A$1000) -> 2024-03-15 | S90: 12.15 | T90: =IF(ISERROR(VLOOKUP(R90,'Cenários COPOM'!$A$1:$K$100,6,FALSE)),0,VLOOKUP(R90,'Cenários COPOM'!$A$1:$K$100,6,FALSE)/100) -> 0 | U90: 12.15 | V90: 10408.56 | W90: 12.15031503 | Y90: 88 | Z90: =WORKDAY(Z89,1,feriados!$A$2:$A$1000) -> 2024-03-15 | AA90: 12.15 | AB90: =IF(ISERROR(VLOOKUP(Z90,'Cenários COPOM'!$A$1:$K$100,8,FALSE)),0,VLOOKUP(Z90,'Cenários COPOM'!$A$1:$K$100,8,FALSE)/100) -> 0 | AC90: 12.15 | AD90: 10408.56 | AE90: 12.15031503 | AG90: 88 | AH90: =WORKDAY(AH89,1,feriados!$A$2:$A$1000) -> 2024-03-15 | AI90: 12.15 | AJ90: =IF(ISERROR(VLOOKUP(AH90,'Cenários COPOM'!$A$1:$K$100,10,FALSE)),0,VLOOKUP(AH90,'Cenários COPOM'!$A$1:$K$100,10,FALSE)/100) -> 0 | AK90: 12.15 | AL90: 10408.56 | AM90: 12.15031503
A91: 89 | B91: =WORKDAY(B90,1,feriados!$A$2:$A$1000) -> 2024-03-18 | C91: 12.15 | D91: =IF(ISERROR(VLOOKUP(B91,'Cenários COPOM'!$A$1:$K$100,2,FALSE)),0,VLOOKUP(B91,'Cenários COPOM'!$A$1:$K$100,2,FALSE)/100) -> 0 | E91: 12.15 | F91: 10413.3 | G91: 12.1503949 | I91: 89 | J91: =WORKDAY(J90,1,feriados!$A$2:$A$1000) -> 2024-03-18 | K91: 12.15 | L91: =IF(ISERROR(VLOOKUP(J91,'Cenários COPOM'!$A$1:$K$100,4,FALSE)),0,VLOOKUP(J91,'Cenários COPOM'!$A$1:$K$100,4,FALSE)/100) -> 0 | M91: 12.15 | N91: 10413.3 | O91: 12.1503949 | Q91: 89 | R91: =WORKDAY(R90,1,feriados!$A$2:$A$1000) -> 2024-03-18 | S91: 12.15 | T91: =IF(ISERROR(VLOOKUP(R91,'Cenários COPOM'!$A$1:$K$100,6,FALSE)),0,VLOOKUP(R91,'Cenários COPOM'!$A$1:$K$100,6,FALSE)/100) -> 0 | U91: 12.15 | V91: 10413.3 | W91: 12.1503949 | Y91: 89 | Z91: =WORKDAY(Z90,1,feriados!$A$2:$A$1000) -> 2024-03-18 | AA91: 12.15 | AB91: =IF(ISERROR(VLOOKUP(Z91,'Cenários COPOM'!$A$1:$K$100,8,FALSE)),0,VLOOKUP(Z91,'Cenários COPOM'!$A$1:$K$100,8,FALSE)/100) -> 0 | AC91: 12.15 | AD91: 10413.3 | AE91: 12.1503949 | AG91: 89 | AH91: =WORKDAY(AH90,1,feriados!$A$2:$A$1000) -> 2024-03-18 | AI91: 12.15 | AJ91: =IF(ISERROR(VLOOKUP(AH91,'Cenários COPOM'!$A$1:$K$100,10,FALSE)),0,VLOOKUP(AH91,'Cenários COPOM'!$A$1:$K$100,10,FALSE)/100) -> 0 | AK91: 12.15 | AL91: 10413.3 | AM91: 12.1503949
A92: 90 | B92: =WORKDAY(B91,1,feriados!$A$2:$A$1000) -> 2024-03-19 | C92: 12.15 | D92: =IF(ISERROR(VLOOKUP(B92,'Cenários COPOM'!$A$1:$K$100,2,FALSE)),0,VLOOKUP(B92,'Cenários COPOM'!$A$1:$K$100,2,FALSE)/100) -> 0 | E92: 12.15 | F92: 10418.04 | G92: 12.15040793 | I92: 90 | J92: =WORKDAY(J91,1,feriados!$A$2:$A$1000) -> 2024-03-19 | K92: 12.15 | L92: =IF(ISERROR(VLOOKUP(J92,'Cenários COPOM'!$A$1:$K$100,4,FALSE)),0,VLOOKUP(J92,'Cenários COPOM'!$A$1:$K$100,4,FALSE)/100) -> 0 | M92: 12.15 | N92: 10418.04 | O92: 12.15040793 | Q92: 90 | R92: =WORKDAY(R91,1,feriados!$A$2:$A$1000) -> 2024-03-19 | S92: 12.15 | T92: =IF(ISERROR(VLOOKUP(R92,'Cenários COPOM'!$A$1:$K$100,6,FALSE)),0,VLOOKUP(R92,'Cenários COPOM'!$A$1:$K$100,6,FALSE)/100) -> 0 | U92: 12.15 | V92: 10418.04 | W92: 12.15040793 | Y92: 90 | Z92: =WORKDAY(Z91,1,feriados!$A$2:$A$1000) -> 2024-03-19 | AA92: 12.15 | AB92: =IF(ISERROR(VLOOKUP(Z92,'Cenários COPOM'!$A$1:$K$100,8,FALSE)),0,VLOOKUP(Z92,'Cenários COPOM'!$A$1:$K$100,8,FALSE)/100) -> 0 | AC92: 12.15 | AD92: 10418.04 | AE92: 12.15040793 | AG92: 90 | AH92: =WORKDAY(AH91,1,feriados!$A$2:$A$1000) -> 2024-03-19 | AI92: 12.15 | AJ92: =IF(ISERROR(VLOOKUP(AH92,'Cenários COPOM'!$A$1:$K$100,10,FALSE)),0,VLOOKUP(AH92,'Cenários COPOM'!$A$1:$K$100,10,FALSE)/100) -> 0 | AK92: 12.15 | AL92: 10418.04 | AM92: 12.15040793
A93: 91 | B93: =WORKDAY(B92,1,feriados!$A$2:$A$1000) -> 2024-03-20 | C93: 12.15 | D93: =IF(ISERROR(VLOOKUP(B93,'Cenários COPOM'!$A$1:$K$100,2,FALSE)),0,VLOOKUP(B93,'Cenários COPOM'!$A$1:$K$100,2,FALSE)/100) -> 0 | E93: 12.15 | F93: 10422.78 | G93: 12.15035639 | I93: 91 | J93: =WORKDAY(J92,1,feriados!$A$2:$A$1000) -> 2024-03-20 | K93: 12.15 | L93: =IF(ISERROR(VLOOKUP(J93,'Cenários COPOM'!$A$1:$K$100,4,FALSE)),0,VLOOKUP(J93,'Cenários COPOM'!$A$1:$K$100,4,FALSE)/100) -> 0 | M93: 12.15 | N93: 10422.78 | O93: 12.15035639 | Q93: 91 | R93: =WORKDAY(R92,1,feriados!$A$2:$A$1000) -> 2024-03-20 | S93: 12.15 | T93: =IF(ISERROR(VLOOKUP(R93,'Cenários COPOM'!$A$1:$K$100,6,FALSE)),0,VLOOKUP(R93,'Cenários COPOM'!$A$1:$K$100,6,FALSE)/100) -> 0 | U93: 12.15 | V93: 10422.78 | W93: 12.15035639 | Y93: 91 | Z93: =WORKDAY(Z92,1,feriados!$A$2:$A$1000) -> 2024-03-20 | AA93: 12.15 | AB93: =IF(ISERROR(VLOOKUP(Z93,'Cenários COPOM'!$A$1:$K$100,8,FALSE)),0,VLOOKUP(Z93,'Cenários COPOM'!$A$1:$K$100,8,FALSE)/100) -> 0 | AC93: 12.15 | AD93: 10422.78 | AE93: 12.15035639 | AG93: 91 | AH93: =WORKDAY(AH92,1,feriados!$A$2:$A$1000) -> 2024-03-20 | AI93: 12.15 | AJ93: =IF(ISERROR(VLOOKUP(AH93,'Cenários COPOM'!$A$1:$K$100,10,FALSE)),0,VLOOKUP(AH93,'Cenários COPOM'!$A$1:$K$100,10,FALSE)/100) -> 0 | AK93: 12.15 | AL93: 10422.78 | AM93: 12.15035639
A94: 92 | B94: =WORKDAY(B93,1,feriados!$A$2:$A$1000) -> 2024-03-21 | C94: 12.15 | D94: =IF(ISERROR(VLOOKUP(B94,'Cenários COPOM'!$A$1:$K$100,2,FALSE)),0,VLOOKUP(B94,'Cenários COPOM'!$A$1:$K$100,2,FALSE)/100) -> 0 | E94: 12.15 | F94: 10427.52 | G94: 12.15024243 | I94: 92 | J94: =WORKDAY(J93,1,feriados!$A$2:$A$1000) -> 2024-03-21 | K94: 12.15 | L94: =IF(ISERROR(VLOOKUP(J94,'Cenários COPOM'!$A$1:$K$100,4,FALSE)),0,VLOOKUP(J94,'Cenários COPOM'!$A$1:$K$100,4,FALSE)/100) -> 0 | M94: 12.15 | N94: 10427.52 | O94: 12.15024243 | Q94: 92 | R94: =WORKDAY(R93,1,feriados!$A$2:$A$1000) -> 2024-03-21 | S94: 12.15 | T94: =IF(ISERROR(VLOOKUP(R94,'Cenários COPOM'!$A$1:$K$100,6,FALSE)),0,VLOOKUP(R94,'Cenários COPOM'!$A$1:$K$100,6,FALSE)/100) -> 0 | U94: 12.15 | V94: 10427.52 | W94: 12.15024243 | Y94: 92 | Z94: =WORKDAY(Z93,1,feriados!$A$2:$A$1000) -> 2024-03-21 | AA94: 12.15 | AB94: =IF(ISERROR(VLOOKUP(Z94,'Cenários COPOM'!$A$1:$K$100,8,FALSE)),0,VLOOKUP(Z94,'Cenários COPOM'!$A$1:$K$100,8,FALSE)/100) -> 0 | AC94: 12.15 | AD94: 10427.52 | AE94: 12.15024243 | AG94: 92 | AH94: =WORKDAY(AH93,1,feriados!$A$2:$A$1000) -> 2024-03-21 | AI94: 12.15 | AJ94: =IF(ISERROR(VLOOKUP(AH94,'Cenários COPOM'!$A$1:$K$100,10,FALSE)),0,VLOOKUP(AH94,'Cenários COPOM'!$A$1:$K$100,10,FALSE)/100) -> 0 | AK94: 12.15 | AL94: 10427.52 | AM94: 12.15024243
A95: 93 | B95: =WORKDAY(B94,1,feriados!$A$2:$A$1000) -> 2024-03-22 | C95: 12.15 | D95: =IF(ISERROR(VLOOKUP(B95,'Cenários COPOM'!$A$1:$K$100,2,FALSE)),0,VLOOKUP(B95,'Cenários COPOM'!$A$1:$K$100,2,FALSE)/100) -> 0 | E95: 12.15 | F95: 10432.27 | G95: 12.15035943 | I95: 93 | J95: =WORKDAY(J94,1,feriados!$A$2:$A$1000) -> 2024-03-22 | K95: 12.15 | L95: =IF(ISERROR(VLOOKUP(J95,'Cenários COPOM'!$A$1:$K$100,4,FALSE)),0,VLOOKUP(J95,'Cenários COPOM'!$A$1:$K$100,4,FALSE)/100) -> 0 | M95: 12.15 | N95: 10432.27 | O95: 12.15035943 | Q95: 93 | R95: =WORKDAY(R94,1,feriados!$A$2:$A$1000) -> 2024-03-22 | S95: 12.15 | T95: =IF(ISERROR(VLOOKUP(R95,'Cenários COPOM'!$A$1:$K$100,6,FALSE)),0,VLOOKUP(R95,'Cenários COPOM'!$A$1:$K$100,6,FALSE)/100) -> 0 | U95: 12.15 | V95: 10432.27 | W95: 12.15035943 | Y95: 93 | Z95: =WORKDAY(Z94,1,feriados!$A$2:$A$1000) -> 2024-03-22 | AA95: 12.15 | AB95: =IF(ISERROR(VLOOKUP(Z95,'Cenários COPOM'!$A$1:$K$100,8,FALSE)),0,VLOOKUP(Z95,'Cenários COPOM'!$A$1:$K$100,8,FALSE)/100) -> 0 | AC95: 12.15 | AD95: 10432.27 | AE95: 12.15035943 | AG95: 93 | AH95: =WORKDAY(AH94,1,feriados!$A$2:$A$1000) -> 2024-03-22 | AI95: 12.15 | AJ95: =IF(ISERROR(VLOOKUP(AH95,'Cenários COPOM'!$A$1:$K$100,10,FALSE)),0,VLOOKUP(AH95,'Cenários COPOM'!$A$1:$K$100,10,FALSE)/100) -> 0 | AK95: 12.15 | AL95: 10432.27 | AM95: 12.15035943
A96: 94 | B96: =WORKDAY(B95,1,feriados!$A$2:$A$1000) -> 2024-03-25 | C96: 12.15 | D96: =IF(ISERROR(VLOOKUP(B96,'Cenários COPOM'!$A$1:$K$100,2,FALSE)),0,VLOOKUP(B96,'Cenários COPOM'!$A$1:$K$100,2,FALSE)/100) -> 0 | E96: 12.15 | F96: 10437.02 | G96: 12.15041161 | I96: 94 | J96: =WORKDAY(J95,1,feriados!$A$2:$A$1000) -> 2024-03-25 | K96: 12.15 | L96: =IF(ISERROR(VLOOKUP(J96,'Cenários COPOM'!$A$1:$K$100,4,FALSE)),0,VLOOKUP(J96,'Cenários COPOM'!$A$1:$K$100,4,FALSE)/100) -> 0 | M96: 12.15 | N96: 10437.02 | O96: 12.15041161 | Q96: 94 | R96: =WORKDAY(R95,1,feriados!$A$2:$A$1000) -> 2024-03-25 | S96: 12.15 | T96: =IF(ISERROR(VLOOKUP(R96,'Cenários COPOM'!$A$1:$K$100,6,FALSE)),0,VLOOKUP(R96,'Cenários COPOM'!$A$1:$K$100,6,FALSE)/100) -> 0 | U96: 12.15 | V96: 10437.02 | W96: 12.15041161 | Y96: 94 | Z96: =WORKDAY(Z95,1,feriados!$A$2:$A$1000) -> 2024-03-25 | AA96: 12.15 | AB96: =IF(ISERROR(VLOOKUP(Z96,'Cenários COPOM'!$A$1:$K$100,8,FALSE)),0,VLOOKUP(Z96,'Cenários COPOM'!$A$1:$K$100,8,FALSE)/100) -> 0 | AC96: 12.15 | AD96: 10437.02 | AE96: 12.15041161 | AG96: 94 | AH96: =WORKDAY(AH95,1,feriados!$A$2:$A$1000) -> 2024-03-25 | AI96: 12.15 | AJ96: =IF(ISERROR(VLOOKUP(AH96,'Cenários COPOM'!$A$1:$K$100,10,FALSE)),0,VLOOKUP(AH96,'Cenários COPOM'!$A$1:$K$100,10,FALSE)/100) -> 0 | AK96: 12.15 | AL96: 10437.02 | AM96: 12.15041161
A97: 95 | B97: =WORKDAY(B96,1,feriados!$A$2:$A$1000) -> 2024-03-26 | C97: 12.15 | D97: =IF(ISERROR(VLOOKUP(B97,'Cenários COPOM'!$A$1:$K$100,2,FALSE)),0,VLOOKUP(B97,'Cenários COPOM'!$A$1:$K$100,2,FALSE)/100) -> 0 | E97: 12.15 | F97: 10441.77 | G97: 12.15040107 | I97: 95 | J97: =WORKDAY(J96,1,feriados!$A$2:$A$1000) -> 2024-03-26 | K97: 12.15 | L97: =IF(ISERROR(VLOOKUP(J97,'Cenários COPOM'!$A$1:$K$100,4,FALSE)),0,VLOOKUP(J97,'Cenários COPOM'!$A$1:$K$100,4,FALSE)/100) -> 0 | M97: 12.15 | N97: 10441.77 | O97: 12.15040107 | Q97: 95 | R97: =WORKDAY(R96,1,feriados!$A$2:$A$1000) -> 2024-03-26 | S97: 12.15 | T97: =IF(ISERROR(VLOOKUP(R97,'Cenários COPOM'!$A$1:$K$100,6,FALSE)),0,VLOOKUP(R97,'Cenários COPOM'!$A$1:$K$100,6,FALSE)/100) -> 0 | U97: 12.15 | V97: 10441.77 | W97: 12.15040107 | Y97: 95 | Z97: =WORKDAY(Z96,1,feriados!$A$2:$A$1000) -> 2024-03-26 | AA97: 12.15 | AB97: =IF(ISERROR(VLOOKUP(Z97,'Cenários COPOM'!$A$1:$K$100,8,FALSE)),0,VLOOKUP(Z97,'Cenários COPOM'!$A$1:$K$100,8,FALSE)/100) -> 0 | AC97: 12.15 | AD97: 10441.77 | AE97: 12.15040107 | AG97: 95 | AH97: =WORKDAY(AH96,1,feriados!$A$2:$A$1000) -> 2024-03-26 | AI97: 12.15 | AJ97: =IF(ISERROR(VLOOKUP(AH97,'Cenários COPOM'!$A$1:$K$100,10,FALSE)),0,VLOOKUP(AH97,'Cenários COPOM'!$A$1:$K$100,10,FALSE)/100) -> 0 | AK97: 12.15 | AL97: 10441.77 | AM97: 12.15040107
A98: 96 | B98: =WORKDAY(B97,1,feriados!$A$2:$A$1000) -> 2024-03-27 | C98: 12.15 | D98: =IF(ISERROR(VLOOKUP(B98,'Cenários COPOM'!$A$1:$K$100,2,FALSE)),0,VLOOKUP(B98,'Cenários COPOM'!$A$1:$K$100,2,FALSE)/100) -> 0 | E98: 12.15 | F98: 10446.52 | G98: 12.15032983 | I98: 96 | J98: =WORKDAY(J97,1,feriados!$A$2:$A$1000) -> 2024-03-27 | K98: 12.15 | L98: =IF(ISERROR(VLOOKUP(J98,'Cenários COPOM'!$A$1:$K$100,4,FALSE)),0,VLOOKUP(J98,'Cenários COPOM'!$A$1:$K$100,4,FALSE)/100) -> 0 | M98: 12.15 | N98: 10446.52 | O98: 12.15032983 | Q98: 96 | R98: =WORKDAY(R97,1,feriados!$A$2:$A$1000) -> 2024-03-27 | S98: 12.15 | T98: =IF(ISERROR(VLOOKUP(R98,'Cenários COPOM'!$A$1:$K$100,6,FALSE)),0,VLOOKUP(R98,'Cenários COPOM'!$A$1:$K$100,6,FALSE)/100) -> 0 | U98: 12.15 | V98: 10446.52 | W98: 12.15032983 | Y98: 96 | Z98: =WORKDAY(Z97,1,feriados!$A$2:$A$1000) -> 2024-03-27 | AA98: 12.15 | AB98: =IF(ISERROR(VLOOKUP(Z98,'Cenários COPOM'!$A$1:$K$100,8,FALSE)),0,VLOOKUP(Z98,'Cenários COPOM'!$A$1:$K$100,8,FALSE)/100) -> 0 | AC98: 12.15 | AD98: 10446.52 | AE98: 12.15032983 | AG98: 96 | AH98: =WORKDAY(AH97,1,feriados!$A$2:$A$1000) -> 2024-03-27 | AI98: 12.15 | AJ98: =IF(ISERROR(VLOOKUP(AH98,'Cenários COPOM'!$A$1:$K$100,10,FALSE)),0,VLOOKUP(AH98,'Cenários COPOM'!$A$1:$K$100,10,FALSE)/100) -> 0 | AK98: 12.15 | AL98: 10446.52 | AM98: 12.15032983
A99: 97 | B99: =WORKDAY(B98,1,feriados!$A$2:$A$1000) -> 2024-03-28 | C99: 12.15 | D99: =IF(ISERROR(VLOOKUP(B99,'Cenários COPOM'!$A$1:$K$100,2,FALSE)),0,VLOOKUP(B99,'Cenários COPOM'!$A$1:$K$100,2,FALSE)/100) -> 0 | E99: 12.15 | F99: 10451.27 | G99: 12.15019982 | I99: 97 | J99: =WORKDAY(J98,1,feriados!$A$2:$A$1000) -> 2024-03-28 | K99: 12.15 | L99: =IF(ISERROR(VLOOKUP(J99,'Cenários COPOM'!$A$1:$K$100,4,FALSE)),0,VLOOKUP(J99,'Cenários COPOM'!$A$1:$K$100,4,FALSE)/100) -> 0 | M99: 12.15 | N99: 10451.27 | O99: 12.15019982 | Q99: 97 | R99: =WORKDAY(R98,1,feriados!$A$2:$A$1000) -> 2024-03-28 | S99: 12.15 | T99: =IF(ISERROR(VLOOKUP(R99,'Cenários COPOM'!$A$1:$K$100,6,FALSE)),0,VLOOKUP(R99,'Cenários COPOM'!$A$1:$K$100,6,FALSE)/100) -> 0 | U99: 12.15 | V99: 10451.27 | W99: 12.15019982 | Y99: 97 | Z99: =WORKDAY(Z98,1,feriados!$A$2:$A$1000) -> 2024-03-28 | AA99: 12.15 | AB99: =IF(ISERROR(VLOOKUP(Z99,'Cenários COPOM'!$A$1:$K$100,8,FALSE)),0,VLOOKUP(Z99,'Cenários COPOM'!$A$1:$K$100,8,FALSE)/100) -> 0 | AC99: 12.15 | AD99: 10451.27 | AE99: 12.15019982 | AG99: 97 | AH99: =WORKDAY(AH98,1,feriados!$A$2:$A$1000) -> 2024-03-28 | AI99: 12.15 | AJ99: =IF(ISERROR(VLOOKUP(AH99,'Cenários COPOM'!$A$1:$K$100,10,FALSE)),0,VLOOKUP(AH99,'Cenários COPOM'!$A$1:$K$100,10,FALSE)/100) -> 0 | AK99: 12.15 | AL99: 10451.27 | AM99: 12.15019982
A100: 98 | B100: =WORKDAY(B99,1,feriados!$A$2:$A$1000) -> 2024-04-01 | C100: 12.15 | D100: =IF(ISERROR(VLOOKUP(B100,'Cenários COPOM'!$A$1:$K$100,2,FALSE)),0,VLOOKUP(B100,'Cenários COPOM'!$A$1:$K$100,2,FALSE)/100) -> 0 | E100: 12.15 | F100: 10456.03 | G100: 12.15028871 | I100: 98 | J100: =WORKDAY(J99,1,feriados!$A$2:$A$1000) -> 2024-04-01 | K100: 12.15 | L100: =IF(ISERROR(VLOOKUP(J100,'Cenários COPOM'!$A$1:$K$100,4,FALSE)),0,VLOOKUP(J100,'Cenários COPOM'!$A$1:$K$100,4,FALSE)/100) -> 0 | M100: 12.15 | N100: 10456.03 | O100: 12.15028871 | Q100: 98 | R100: =WORKDAY(R99,1,feriados!$A$2:$A$1000) -> 2024-04-01 | S100: 12.15 | T100: =IF(ISERROR(VLOOKUP(R100,'Cenários COPOM'!$A$1:$K$100,6,FALSE)),0,VLOOKUP(R100,'Cenários COPOM'!$A$1:$K$100,6,FALSE)/100) -> 0 | U100: 12.15 | V100: 10456.03 | W100: 12.15028871 | Y100: 98 | Z100: =WORKDAY(Z99,1,feriados!$A$2:$A$1000) -> 2024-04-01 | AA100: 12.15 | AB100: =IF(ISERROR(VLOOKUP(Z100,'Cenários COPOM'!$A$1:$K$100,8,FALSE)),0,VLOOKUP(Z100,'Cenários COPOM'!$A$1:$K$100,8,FALSE)/100) -> 0 | AC100: 12.15 | AD100: 10456.03 | AE100: 12.15028871 | AG100: 98 | AH100: =WORKDAY(AH99,1,feriados!$A$2:$A$1000) -> 2024-04-01 | AI100: 12.15 | AJ100: =IF(ISERROR(VLOOKUP(AH100,'Cenários COPOM'!$A$1:$K$100,10,FALSE)),0,VLOOKUP(AH100,'Cenários COPOM'!$A$1:$K$100,10,FALSE)/100) -> 0 | AK100: 12.15 | AL100: 10456.03 | AM100: 12.15028871
A101: 99 | B101: =WORKDAY(B100,1,feriados!$A$2:$A$1000) -> 2024-04-02 | C101: 12.15 | D101: =IF(ISERROR(VLOOKUP(B101,'Cenários COPOM'!$A$1:$K$100,2,FALSE)),0,VLOOKUP(B101,'Cenários COPOM'!$A$1:$K$100,2,FALSE)/100) -> 0 | E101: 12.15 | F101: 10460.79 | G101: 12.15031663 | I101: 99 | J101: =WORKDAY(J100,1,feriados!$A$2:$A$1000) -> 2024-04-02 | K101: 12.15 | L101: =IF(ISERROR(VLOOKUP(J101,'Cenários COPOM'!$A$1:$K$100,4,FALSE)),0,VLOOKUP(J101,'Cenários COPOM'!$A$1:$K$100,4,FALSE)/100) -> 0 | M101: 12.15 | N101: 10460.79 | O101: 12.15031663 | Q101: 99 | R101: =WORKDAY(R100,1,feriados!$A$2:$A$1000) -> 2024-04-02 | S101: 12.15 | T101: =IF(ISERROR(VLOOKUP(R101,'Cenários COPOM'!$A$1:$K$100,6,FALSE)),0,VLOOKUP(R101,'Cenários COPOM'!$A$1:$K$100,6,FALSE)/100) -> 0 | U101: 12.15 | V101: 10460.79 | W101: 12.15031663 | Y101: 99 | Z101: =WORKDAY(Z100,1,feriados!$A$2:$A$1000) -> 2024-04-02 | AA101: 12.15 | AB101: =IF(ISERROR(VLOOKUP(Z101,'Cenários COPOM'!$A$1:$K$100,8,FALSE)),0,VLOOKUP(Z101,'Cenários COPOM'!$A$1:$K$100,8,FALSE)/100) -> 0 | AC101: 12.15 | AD101: 10460.79 | AE101: 12.15031663 | AG101: 99 | AH101: =WORKDAY(AH100,1,feriados!$A$2:$A$1000) -> 2024-04-02 | AI101: 12.15 | AJ101: =IF(ISERROR(VLOOKUP(AH101,'Cenários COPOM'!$A$1:$K$100,10,FALSE)),0,VLOOKUP(AH101,'Cenários COPOM'!$A$1:$K$100,10,FALSE)/100) -> 0 | AK101: 12.15 | AL101: 10460.79 | AM101: 12.15031663
A102: 100 | B102: =WORKDAY(B101,1,feriados!$A$2:$A$1000) -> 2024-04-03 | C102: 12.15 | D102: =IF(ISERROR(VLOOKUP(B102,'Cenários COPOM'!$A$1:$K$100,2,FALSE)),0,VLOOKUP(B102,'Cenários COPOM'!$A$1:$K$100,2,FALSE)/100) -> 0 | E102: 12.15 | F102: 10465.55 | G102: 12.15028548 | I102: 100 | J102: =WORKDAY(J101,1,feriados!$A$2:$A$1000) -> 2024-04-03 | K102: 12.15 | L102: =IF(ISERROR(VLOOKUP(J102,'Cenários COPOM'!$A$1:$K$100,4,FALSE)),0,VLOOKUP(J102,'Cenários COPOM'!$A$1:$K$100,4,FALSE)/100) -> 0 | M102: 12.15 | N102: 10465.55 | O102: 12.15028548 | Q102: 100 | R102: =WORKDAY(R101,1,feriados!$A$2:$A$1000) -> 2024-04-03 | S102: 12.15 | T102: =IF(ISERROR(VLOOKUP(R102,'Cenários COPOM'!$A$1:$K$100,6,FALSE)),0,VLOOKUP(R102,'Cenários COPOM'!$A$1:$K$100,6,FALSE)/100) -> 0 | U102: 12.15 | V102: 10465.55 | W102: 12.15028548 | Y102: 100 | Z102: =WORKDAY(Z101,1,feriados!$A$2:$A$1000) -> 2024-04-03 | AA102: 12.15 | AB102: =IF(ISERROR(VLOOKUP(Z102,'Cenários COPOM'!$A$1:$K$100,8,FALSE)),0,VLOOKUP(Z102,'Cenários COPOM'!$A$1:$K$100,8,FALSE)/100) -> 0 | AC102: 12.15 | AD102: 10465.55 | AE102: 12.15028548 | AG102: 100 | AH102: =WORKDAY(AH101,1,feriados!$A$2:$A$1000) -> 2024-04-03 | AI102: 12.15 | AJ102: =IF(ISERROR(VLOOKUP(AH102,'Cenários COPOM'!$A$1:$K$100,10,FALSE)),0,VLOOKUP(AH102,'Cenários COPOM'!$A$1:$K$100,10,FALSE)/100) -> 0 | AK102: 12.15 | AL102: 10465.55 | AM102: 12.15028548
A103: 101 | B103: =WORKDAY(B102,1,feriados!$A$2:$A$1000) -> 2024-04-04 | C103: 12.15 | D103: =IF(ISERROR(VLOOKUP(B103,'Cenários COPOM'!$A$1:$K$100,2,FALSE)),0,VLOOKUP(B103,'Cenários COPOM'!$A$1:$K$100,2,FALSE)/100) -> 0 | E103: 12.15 | F103: 10470.31 | G103: 12.15019706 | I103: 101 | J103: =WORKDAY(J102,1,feriados!$A$2:$A$1000) -> 2024-04-04 | K103: 12.15 | L103: =IF(ISERROR(VLOOKUP(J103,'Cenários COPOM'!$A$1:$K$100,4,FALSE)),0,VLOOKUP(J103,'Cenários COPOM'!$A$1:$K$100,4,FALSE)/100) -> 0 | M103: 12.15 | N103: 10470.31 | O103: 12.15019706 | Q103: 101 | R103: =WORKDAY(R102,1,feriados!$A$2:$A$1000) -> 2024-04-04 | S103: 12.15 | T103: =IF(ISERROR(VLOOKUP(R103,'Cenários COPOM'!$A$1:$K$100,6,FALSE)),0,VLOOKUP(R103,'Cenários COPOM'!$A$1:$K$100,6,FALSE)/100) -> 0 | U103: 12.15 | V103: 10470.31 | W103: 12.15019706 | Y103: 101 | Z103: =WORKDAY(Z102,1,feriados!$A$2:$A$1000) -> 2024-04-04 | AA103: 12.15 | AB103: =IF(ISERROR(VLOOKUP(Z103,'Cenários COPOM'!$A$1:$K$100,8,FALSE)),0,VLOOKUP(Z103,'Cenários COPOM'!$A$1:$K$100,8,FALSE)/100) -> 0 | AC103: 12.15 | AD103: 10470.31 | AE103: 12.15019706 | AG103: 101 | AH103: =WORKDAY(AH102,1,feriados!$A$2:$A$1000) -> 2024-04-04 | AI103: 12.15 | AJ103: =IF(ISERROR(VLOOKUP(AH103,'Cenários COPOM'!$A$1:$K$100,10,FALSE)),0,VLOOKUP(AH103,'Cenários COPOM'!$A$1:$K$100,10,FALSE)/100) -> 0 | AK103: 12.15 | AL103: 10470.31 | AM103: 12.15019706
A104: 102 | B104: =WORKDAY(B103,1,feriados!$A$2:$A$1000) -> 2024-04-05 | C104: 12.15 | D104: =IF(ISERROR(VLOOKUP(B104,'Cenários COPOM'!$A$1:$K$100,2,FALSE)),0,VLOOKUP(B104,'Cenários COPOM'!$A$1:$K$100,2,FALSE)/100) -> 0 | E104: 12.15 | F104: 10475.08 | G104: 12.15031762 | I104: 102 | J104: =WORKDAY(J103,1,feriados!$A$2:$A$1000) -> 2024-04-05 | K104: 12.15 | L104: =IF(ISERROR(VLOOKUP(J104,'Cenários COPOM'!$A$1:$K$100,4,FALSE)),0,VLOOKUP(J104,'Cenários COPOM'!$A$1:$K$100,4,FALSE)/100) -> 0 | M104: 12.15 | N104: 10475.08 | O104: 12.15031762 | Q104: 102 | R104: =WORKDAY(R103,1,feriados!$A$2:$A$1000) -> 2024-04-05 | S104: 12.15 | T104: =IF(ISERROR(VLOOKUP(R104,'Cenários COPOM'!$A$1:$K$100,6,FALSE)),0,VLOOKUP(R104,'Cenários COPOM'!$A$1:$K$100,6,FALSE)/100) -> 0 | U104: 12.15 | V104: 10475.08 | W104: 12.15031762 | Y104: 102 | Z104: =WORKDAY(Z103,1,feriados!$A$2:$A$1000) -> 2024-04-05 | AA104: 12.15 | AB104: =IF(ISERROR(VLOOKUP(Z104,'Cenários COPOM'!$A$1:$K$100,8,FALSE)),0,VLOOKUP(Z104,'Cenários COPOM'!$A$1:$K$100,8,FALSE)/100) -> 0 | AC104: 12.15 | AD104: 10475.08 | AE104: 12.15031762 | AG104: 102 | AH104: =WORKDAY(AH103,1,feriados!$A$2:$A$1000) -> 2024-04-05 | AI104: 12.15 | AJ104: =IF(ISERROR(VLOOKUP(AH104,'Cenários COPOM'!$A$1:$K$100,10,FALSE)),0,VLOOKUP(AH104,'Cenários COPOM'!$A$1:$K$100,10,FALSE)/100) -> 0 | AK104: 12.15 | AL104: 10475.08 | AM104: 12.15031762
A105: 103 | B105: =WORKDAY(B104,1,feriados!$A$2:$A$1000) -> 2024-04-08 | C105: 12.15 | D105: =IF(ISERROR(VLOOKUP(B105,'Cenários COPOM'!$A$1:$K$100,2,FALSE)),0,VLOOKUP(B105,'Cenários COPOM'!$A$1:$K$100,2,FALSE)/100) -> 0 | E105: 12.15 | F105: 10479.85 | G105: 12.15037895 | I105: 103 | J105: =WORKDAY(J104,1,feriados!$A$2:$A$1000) -> 2024-04-08 | K105: 12.15 | L105: =IF(ISERROR(VLOOKUP(J105,'Cenários COPOM'!$A$1:$K$100,4,FALSE)),0,VLOOKUP(J105,'Cenários COPOM'!$A$1:$K$100,4,FALSE)/100) -> 0 | M105: 12.15 | N105: 10479.85 | O105: 12.15037895 | Q105: 103 | R105: =WORKDAY(R104,1,feriados!$A$2:$A$1000) -> 2024-04-08 | S105: 12.15 | T105: =IF(ISERROR(VLOOKUP(R105,'Cenários COPOM'!$A$1:$K$100,6,FALSE)),0,VLOOKUP(R105,'Cenários COPOM'!$A$1:$K$100,6,FALSE)/100) -> 0 | U105: 12.15 | V105: 10479.85 | W105: 12.15037895 | Y105: 103 | Z105: =WORKDAY(Z104,1,feriados!$A$2:$A$1000) -> 2024-04-08 | AA105: 12.15 | AB105: =IF(ISERROR(VLOOKUP(Z105,'Cenários COPOM'!$A$1:$K$100,8,FALSE)),0,VLOOKUP(Z105,'Cenários COPOM'!$A$1:$K$100,8,FALSE)/100) -> 0 | AC105: 12.15 | AD105: 10479.85 | AE105: 12.15037895 | AG105: 103 | AH105: =WORKDAY(AH104,1,feriados!$A$2:$A$1000) -> 2024-04-08 | AI105: 12.15 | AJ105: =IF(ISERROR(VLOOKUP(AH105,'Cenários COPOM'!$A$1:$K$100,10,FALSE)),0,VLOOKUP(AH105,'Cenários COPOM'!$A$1:$K$100,10,FALSE)/100) -> 0 | AK105: 12.15 | AL105: 10479.85 | AM105: 12.15037895
A106: 104 | B106: =WORKDAY(B105,1,feriados!$A$2:$A$1000) -> 2024-04-09 | C106: 12.15 | D106: =IF(ISERROR(VLOOKUP(B106,'Cenários COPOM'!$A$1:$K$100,2,FALSE)),0,VLOOKUP(B106,'Cenários COPOM'!$A$1:$K$100,2,FALSE)/100) -> 0 | E106: 12.15 | F106: 10484.62 | G106: 12.15038279 | I106: 104 | J106: =WORKDAY(J105,1,feriados!$A$2:$A$1000) -> 2024-04-09 | K106: 12.15 | L106: =IF(ISERROR(VLOOKUP(J106,'Cenários COPOM'!$A$1:$K$100,4,FALSE)),0,VLOOKUP(J106,'Cenários COPOM'!$A$1:$K$100,4,FALSE)/100) -> 0 | M106: 12.15 | N106: 10484.62 | O106: 12.15038279 | Q106: 104 | R106: =WORKDAY(R105,1,feriados!$A$2:$A$1000) -> 2024-04-09 | S106: 12.15 | T106: =IF(ISERROR(VLOOKUP(R106,'Cenários COPOM'!$A$1:$K$100,6,FALSE)),0,VLOOKUP(R106,'Cenários COPOM'!$A$1:$K$100,6,FALSE)/100) -> 0 | U106: 12.15 | V106: 10484.62 | W106: 12.15038279 | Y106: 104 | Z106: =WORKDAY(Z105,1,feriados!$A$2:$A$1000) -> 2024-04-09 | AA106: 12.15 | AB106: =IF(ISERROR(VLOOKUP(Z106,'Cenários COPOM'!$A$1:$K$100,8,FALSE)),0,VLOOKUP(Z106,'Cenários COPOM'!$A$1:$K$100,8,FALSE)/100) -> 0 | AC106: 12.15 | AD106: 10484.62 | AE106: 12.15038279 | AG106: 104 | AH106: =WORKDAY(AH105,1,feriados!$A$2:$A$1000) -> 2024-04-09 | AI106: 12.15 | AJ106: =IF(ISERROR(VLOOKUP(AH106,'Cenários COPOM'!$A$1:$K$100,10,FALSE)),0,VLOOKUP(AH106,'Cenários COPOM'!$A$1:$K$100,10,FALSE)/100) -> 0 | AK106: 12.15 | AL106: 10484.62 | AM106: 12.15038279
A107: 105 | B107: =WORKDAY(B106,1,feriados!$A$2:$A$1000) -> 2024-04-10 | C107: 12.15 | D107: =IF(ISERROR(VLOOKUP(B107,'Cenários COPOM'!$A$1:$K$100,2,FALSE)),0,VLOOKUP(B107,'Cenários COPOM'!$A$1:$K$100,2,FALSE)/100) -> 0 | E107: 12.15 | F107: 10489.39 | G107: 12.15033085 | I107: 105 | J107: =WORKDAY(J106,1,feriados!$A$2:$A$1000) -> 2024-04-10 | K107: 12.15 | L107: =IF(ISERROR(VLOOKUP(J107,'Cenários COPOM'!$A$1:$K$100,4,FALSE)),0,VLOOKUP(J107,'Cenários COPOM'!$A$1:$K$100,4,FALSE)/100) -> 0 | M107: 12.15 | N107: 10489.39 | O107: 12.15033085 | Q107: 105 | R107: =WORKDAY(R106,1,feriados!$A$2:$A$1000) -> 2024-04-10 | S107: 12.15 | T107: =IF(ISERROR(VLOOKUP(R107,'Cenários COPOM'!$A$1:$K$100,6,FALSE)),0,VLOOKUP(R107,'Cenários COPOM'!$A$1:$K$100,6,FALSE)/100) -> 0 | U107: 12.15 | V107: 10489.39 | W107: 12.15033085 | Y107: 105 | Z107: =WORKDAY(Z106,1,feriados!$A$2:$A$1000) -> 2024-04-10 | AA107: 12.15 | AB107: =IF(ISERROR(VLOOKUP(Z107,'Cenários COPOM'!$A$1:$K$100,8,FALSE)),0,VLOOKUP(Z107,'Cenários COPOM'!$A$1:$K$100,8,FALSE)/100) -> 0 | AC107: 12.15 | AD107: 10489.39 | AE107: 12.15033085 | AG107: 105 | AH107: =WORKDAY(AH106,1,feriados!$A$2:$A$1000) -> 2024-04-10 | AI107: 12.15 | AJ107: =IF(ISERROR(VLOOKUP(AH107,'Cenários COPOM'!$A$1:$K$100,10,FALSE)),0,VLOOKUP(AH107,'Cenários COPOM'!$A$1:$K$100,10,FALSE)/100) -> 0 | AK107: 12.15 | AL107: 10489.39 | AM107: 12.15033085
A108: 106 | B108: =WORKDAY(B107,1,feriados!$A$2:$A$1000) -> 2024-04-11 | C108: 12.15 | D108: =IF(ISERROR(VLOOKUP(B108,'Cenários COPOM'!$A$1:$K$100,2,FALSE)),0,VLOOKUP(B108,'Cenários COPOM'!$A$1:$K$100,2,FALSE)/100) -> 0 | E108: 12.15 | F108: 10494.16 | G108: 12.15022476 | I108: 106 | J108: =WORKDAY(J107,1,feriados!$A$2:$A$1000) -> 2024-04-11 | K108: 12.15 | L108: =IF(ISERROR(VLOOKUP(J108,'Cenários COPOM'!$A$1:$K$100,4,FALSE)),0,VLOOKUP(J108,'Cenários COPOM'!$A$1:$K$100,4,FALSE)/100) -> 0 | M108: 12.15 | N108: 10494.16 | O108: 12.15022476 | Q108: 106 | R108: =WORKDAY(R107,1,feriados!$A$2:$A$1000) -> 2024-04-11 | S108: 12.15 | T108: =IF(ISERROR(VLOOKUP(R108,'Cenários COPOM'!$A$1:$K$100,6,FALSE)),0,VLOOKUP(R108,'Cenários COPOM'!$A$1:$K$100,6,FALSE)/100) -> 0 | U108: 12.15 | V108: 10494.16 | W108: 12.15022476 | Y108: 106 | Z108: =WORKDAY(Z107,1,feriados!$A$2:$A$1000) -> 2024-04-11 | AA108: 12.15 | AB108: =IF(ISERROR(VLOOKUP(Z108,'Cenários COPOM'!$A$1:$K$100,8,FALSE)),0,VLOOKUP(Z108,'Cenários COPOM'!$A$1:$K$100,8,FALSE)/100) -> 0 | AC108: 12.15 | AD108: 10494.16 | AE108: 12.15022476 | AG108: 106 | AH108: =WORKDAY(AH107,1,feriados!$A$2:$A$1000) -> 2024-04-11 | AI108: 12.15 | AJ108: =IF(ISERROR(VLOOKUP(AH108,'Cenários COPOM'!$A$1:$K$100,10,FALSE)),0,VLOOKUP(AH108,'Cenários COPOM'!$A$1:$K$100,10,FALSE)/100) -> 0 | AK108: 12.15 | AL108: 10494.16 | AM108: 12.15022476
A109: 107 | B109: =WORKDAY(B108,1,feriados!$A$2:$A$1000) -> 2024-04-12 | C109: 12.15 | D109: =IF(ISERROR(VLOOKUP(B109,'Cenários COPOM'!$A$1:$K$100,2,FALSE)),0,VLOOKUP(B109,'Cenários COPOM'!$A$1:$K$100,2,FALSE)/100) -> 0 | E109: 12.15 | F109: 10498.94 | G109: 12.15031765 | I109: 107 | J109: =WORKDAY(J108,1,feriados!$A$2:$A$1000) -> 2024-04-12 | K109: 12.15 | L109: =IF(ISERROR(VLOOKUP(J109,'Cenários COPOM'!$A$1:$K$100,4,FALSE)),0,VLOOKUP(J109,'Cenários COPOM'!$A$1:$K$100,4,FALSE)/100) -> 0 | M109: 12.15 | N109: 10498.94 | O109: 12.15031765 | Q109: 107 | R109: =WORKDAY(R108,1,feriados!$A$2:$A$1000) -> 2024-04-12 | S109: 12.15 | T109: =IF(ISERROR(VLOOKUP(R109,'Cenários COPOM'!$A$1:$K$100,6,FALSE)),0,VLOOKUP(R109,'Cenários COPOM'!$A$1:$K$100,6,FALSE)/100) -> 0 | U109: 12.15 | V109: 10498.94 | W109: 12.15031765 | Y109: 107 | Z109: =WORKDAY(Z108,1,feriados!$A$2:$A$1000) -> 2024-04-12 | AA109: 12.15 | AB109: =IF(ISERROR(VLOOKUP(Z109,'Cenários COPOM'!$A$1:$K$100,8,FALSE)),0,VLOOKUP(Z109,'Cenários COPOM'!$A$1:$K$100,8,FALSE)/100) -> 0 | AC109: 12.15 | AD109: 10498.94 | AE109: 12.15031765 | AG109: 107 | AH109: =WORKDAY(AH108,1,feriados!$A$2:$A$1000) -> 2024-04-12 | AI109: 12.15 | AJ109: =IF(ISERROR(VLOOKUP(AH109,'Cenários COPOM'!$A$1:$K$100,10,FALSE)),0,VLOOKUP(AH109,'Cenários COPOM'!$A$1:$K$100,10,FALSE)/100) -> 0 | AK109: 12.15 | AL109: 10498.94 | AM109: 12.15031765
A110: 108 | B110: =WORKDAY(B109,1,feriados!$A$2:$A$1000) -> 2024-04-15 | C110: 12.15 | D110: =IF(ISERROR(VLOOKUP(B110,'Cenários COPOM'!$A$1:$K$100,2,FALSE)),0,VLOOKUP(B110,'Cenários COPOM'!$A$1:$K$100,2,FALSE)/100) -> 0 | E110: 12.15 | F110: 10503.72 | G110: 12.15035458 | I110: 108 | J110: =WORKDAY(J109,1,feriados!$A$2:$A$1000) -> 2024-04-15 | K110: 12.15 | L110: =IF(ISERROR(VLOOKUP(J110,'Cenários COPOM'!$A$1:$K$100,4,FALSE)),0,VLOOKUP(J110,'Cenários COPOM'!$A$1:$K$100,4,FALSE)/100) -> 0 | M110: 12.15 | N110: 10503.72 | O110: 12.15035458 | Q110: 108 | R110: =WORKDAY(R109,1,feriados!$A$2:$A$1000) -> 2024-04-15 | S110: 12.15 | T110: =IF(ISERROR(VLOOKUP(R110,'Cenários COPOM'!$A$1:$K$100,6,FALSE)),0,VLOOKUP(R110,'Cenários COPOM'!$A$1:$K$100,6,FALSE)/100) -> 0 | U110: 12.15 | V110: 10503.72 | W110: 12.15035458 | Y110: 108 | Z110: =WORKDAY(Z109,1,feriados!$A$2:$A$1000) -> 2024-04-15 | AA110: 12.15 | AB110: =IF(ISERROR(VLOOKUP(Z110,'Cenários COPOM'!$A$1:$K$100,8,FALSE)),0,VLOOKUP(Z110,'Cenários COPOM'!$A$1:$K$100,8,FALSE)/100) -> 0 | AC110: 12.15 | AD110: 10503.72 | AE110: 12.15035458 | AG110: 108 | AH110: =WORKDAY(AH109,1,feriados!$A$2:$A$1000) -> 2024-04-15 | AI110: 12.15 | AJ110: =IF(ISERROR(VLOOKUP(AH110,'Cenários COPOM'!$A$1:$K$100,10,FALSE)),0,VLOOKUP(AH110,'Cenários COPOM'!$A$1:$K$100,10,FALSE)/100) -> 0 | AK110: 12.15 | AL110: 10503.72 | AM110: 12.15035458
A111: 109 | B111: =WORKDAY(B110,1,feriados!$A$2:$A$1000) -> 2024-04-16 | C111: 12.15 | D111: =IF(ISERROR(VLOOKUP(B111,'Cenários COPOM'!$A$1:$K$100,2,FALSE)),0,VLOOKUP(B111,'Cenários COPOM'!$A$1:$K$100,2,FALSE)/100) -> 0 | E111: 12.15 | F111: 10508.5 | G111: 12.15033714 | I111: 109 | J111: =WORKDAY(J110,1,feriados!$A$2:$A$1000) -> 2024-04-16 | K111: 12.15 | L111: =IF(ISERROR(VLOOKUP(J111,'Cenários COPOM'!$A$1:$K$100,4,FALSE)),0,VLOOKUP(J111,'Cenários COPOM'!$A$1:$K$100,4,FALSE)/100) -> 0 | M111: 12.15 | N111: 10508.5 | O111: 12.15033714 | Q111: 109 | R111: =WORKDAY(R110,1,feriados!$A$2:$A$1000) -> 2024-04-16 | S111: 12.15 | T111: =IF(ISERROR(VLOOKUP(R111,'Cenários COPOM'!$A$1:$K$100,6,FALSE)),0,VLOOKUP(R111,'Cenários COPOM'!$A$1:$K$100,6,FALSE)/100) -> 0 | U111: 12.15 | V111: 10508.5 | W111: 12.15033714 | Y111: 109 | Z111: =WORKDAY(Z110,1,feriados!$A$2:$A$1000) -> 2024-04-16 | AA111: 12.15 | AB111: =IF(ISERROR(VLOOKUP(Z111,'Cenários COPOM'!$A$1:$K$100,8,FALSE)),0,VLOOKUP(Z111,'Cenários COPOM'!$A$1:$K$100,8,FALSE)/100) -> 0 | AC111: 12.15 | AD111: 10508.5 | AE111: 12.15033714 | AG111: 109 | AH111: =WORKDAY(AH110,1,feriados!$A$2:$A$1000) -> 2024-04-16 | AI111: 12.15 | AJ111: =IF(ISERROR(VLOOKUP(AH111,'Cenários COPOM'!$A$1:$K$100,10,FALSE)),0,VLOOKUP(AH111,'Cenários COPOM'!$A$1:$K$100,10,FALSE)/100) -> 0 | AK111: 12.15 | AL111: 10508.5 | AM111: 12.15033714
A112: 110 | B112: =WORKDAY(B111,1,feriados!$A$2:$A$1000) -> 2024-04-17 | C112: 12.15 | D112: =IF(ISERROR(VLOOKUP(B112,'Cenários COPOM'!$A$1:$K$100,2,FALSE)),0,VLOOKUP(B112,'Cenários COPOM'!$A$1:$K$100,2,FALSE)/100) -> 0 | E112: 12.15 | F112: 10513.28 | G112: 12.15026686 | I112: 110 | J112: =WORKDAY(J111,1,feriados!$A$2:$A$1000) -> 2024-04-17 | K112: 12.15 | L112: =IF(ISERROR(VLOOKUP(J112,'Cenários COPOM'!$A$1:$K$100,4,FALSE)),0,VLOOKUP(J112,'Cenários COPOM'!$A$1:$K$100,4,FALSE)/100) -> 0 | M112: 12.15 | N112: 10513.28 | O112: 12.15026686 | Q112: 110 | R112: =WORKDAY(R111,1,feriados!$A$2:$A$1000) -> 2024-04-17 | S112: 12.15 | T112: =IF(ISERROR(VLOOKUP(R112,'Cenários COPOM'!$A$1:$K$100,6,FALSE)),0,VLOOKUP(R112,'Cenários COPOM'!$A$1:$K$100,6,FALSE)/100) -> 0 | U112: 12.15 | V112: 10513.28 | W112: 12.15026686 | Y112: 110 | Z112: =WORKDAY(Z111,1,feriados!$A$2:$A$1000) -> 2024-04-17 | AA112: 12.15 | AB112: =IF(ISERROR(VLOOKUP(Z112,'Cenários COPOM'!$A$1:$K$100,8,FALSE)),0,VLOOKUP(Z112,'Cenários COPOM'!$A$1:$K$100,8,FALSE)/100) -> 0 | AC112: 12.15 | AD112: 10513.28 | AE112: 12.15026686 | AG112: 110 | AH112: =WORKDAY(AH111,1,feriados!$A$2:$A$1000) -> 2024-04-17 | AI112: 12.15 | AJ112: =IF(ISERROR(VLOOKUP(AH112,'Cenários COPOM'!$A$1:$K$100,10,FALSE)),0,VLOOKUP(AH112,'Cenários COPOM'!$A$1:$K$100,10,FALSE)/100) -> 0 | AK112: 12.15 | AL112: 10513.28 | AM112: 12.15026686
A113: 111 | B113: =WORKDAY(B112,1,feriados!$A$2:$A$1000) -> 2024-04-18 | C113: 12.15 | D113: =IF(ISERROR(VLOOKUP(B113,'Cenários COPOM'!$A$1:$K$100,2,FALSE)),0,VLOOKUP(B113,'Cenários COPOM'!$A$1:$K$100,2,FALSE)/100) -> 0 | E113: 12.15 | F113: 10518.06 | G113: 12.15014521 | I113: 111 | J113: =WORKDAY(J112,1,feriados!$A$2:$A$1000) -> 2024-04-18 | K113: 12.15 | L113: =IF(ISERROR(VLOOKUP(J113,'Cenários COPOM'!$A$1:$K$100,4,FALSE)),0,VLOOKUP(J113,'Cenários COPOM'!$A$1:$K$100,4,FALSE)/100) -> 0 | M113: 12.15 | N113: 10518.06 | O113: 12.15014521 | Q113: 111 | R113: =WORKDAY(R112,1,feriados!$A$2:$A$1000) -> 2024-04-18 | S113: 12.15 | T113: =IF(ISERROR(VLOOKUP(R113,'Cenários COPOM'!$A$1:$K$100,6,FALSE)),0,VLOOKUP(R113,'Cenários COPOM'!$A$1:$K$100,6,FALSE)/100) -> 0 | U113: 12.15 | V113: 10518.06 | W113: 12.15014521 | Y113: 111 | Z113: =WORKDAY(Z112,1,feriados!$A$2:$A$1000) -> 2024-04-18 | AA113: 12.15 | AB113: =IF(ISERROR(VLOOKUP(Z113,'Cenários COPOM'!$A$1:$K$100,8,FALSE)),0,VLOOKUP(Z113,'Cenários COPOM'!$A$1:$K$100,8,FALSE)/100) -> 0 | AC113: 12.15 | AD113: 10518.06 | AE113: 12.15014521 | AG113: 111 | AH113: =WORKDAY(AH112,1,feriados!$A$2:$A$1000) -> 2024-04-18 | AI113: 12.15 | AJ113: =IF(ISERROR(VLOOKUP(AH113,'Cenários COPOM'!$A$1:$K$100,10,FALSE)),0,VLOOKUP(AH113,'Cenários COPOM'!$A$1:$K$100,10,FALSE)/100) -> 0 | AK113: 12.15 | AL113: 10518.06 | AM113: 12.15014521
A114: 112 | B114: =WORKDAY(B113,1,feriados!$A$2:$A$1000) -> 2024-04-19 | C114: 12.15 | D114: =IF(ISERROR(VLOOKUP(B114,'Cenários COPOM'!$A$1:$K$100,2,FALSE)),0,VLOOKUP(B114,'Cenários COPOM'!$A$1:$K$100,2,FALSE)/100) -> 0 | E114: 12.15 | F114: 10522.85 | G114: 12.15021341 | I114: 112 | J114: =WORKDAY(J113,1,feriados!$A$2:$A$1000) -> 2024-04-19 | K114: 12.15 | L114: =IF(ISERROR(VLOOKUP(J114,'Cenários COPOM'!$A$1:$K$100,4,FALSE)),0,VLOOKUP(J114,'Cenários COPOM'!$A$1:$K$100,4,FALSE)/100) -> 0 | M114: 12.15 | N114: 10522.85 | O114: 12.15021341 | Q114: 112 | R114: =WORKDAY(R113,1,feriados!$A$2:$A$1000) -> 2024-04-19 | S114: 12.15 | T114: =IF(ISERROR(VLOOKUP(R114,'Cenários COPOM'!$A$1:$K$100,6,FALSE)),0,VLOOKUP(R114,'Cenários COPOM'!$A$1:$K$100,6,FALSE)/100) -> 0 | U114: 12.15 | V114: 10522.85 | W114: 12.15021341 | Y114: 112 | Z114: =WORKDAY(Z113,1,feriados!$A$2:$A$1000) -> 2024-04-19 | AA114: 12.15 | AB114: =IF(ISERROR(VLOOKUP(Z114,'Cenários COPOM'!$A$1:$K$100,8,FALSE)),0,VLOOKUP(Z114,'Cenários COPOM'!$A$1:$K$100,8,FALSE)/100) -> 0 | AC114: 12.15 | AD114: 10522.85 | AE114: 12.15021341 | AG114: 112 | AH114: =WORKDAY(AH113,1,feriados!$A$2:$A$1000) -> 2024-04-19 | AI114: 12.15 | AJ114: =IF(ISERROR(VLOOKUP(AH114,'Cenários COPOM'!$A$1:$K$100,10,FALSE)),0,VLOOKUP(AH114,'Cenários COPOM'!$A$1:$K$100,10,FALSE)/100) -> 0 | AK114: 12.15 | AL114: 10522.85 | AM114: 12.15021341
A115: 113 | B115: =WORKDAY(B114,1,feriados!$A$2:$A$1000) -> 2024-04-22 | C115: 12.15 | D115: =IF(ISERROR(VLOOKUP(B115,'Cenários COPOM'!$A$1:$K$100,2,FALSE)),0,VLOOKUP(B115,'Cenários COPOM'!$A$1:$K$100,2,FALSE)/100) -> 0 | E115: 12.15 | F115: 10527.64 | G115: 12.15022859 | I115: 113 | J115: =WORKDAY(J114,1,feriados!$A$2:$A$1000) -> 2024-04-22 | K115: 12.15 | L115: =IF(ISERROR(VLOOKUP(J115,'Cenários COPOM'!$A$1:$K$100,4,FALSE)),0,VLOOKUP(J115,'Cenários COPOM'!$A$1:$K$100,4,FALSE)/100) -> 0 | M115: 12.15 | N115: 10527.64 | O115: 12.15022859 | Q115: 113 | R115: =WORKDAY(R114,1,feriados!$A$2:$A$1000) -> 2024-04-22 | S115: 12.15 | T115: =IF(ISERROR(VLOOKUP(R115,'Cenários COPOM'!$A$1:$K$100,6,FALSE)),0,VLOOKUP(R115,'Cenários COPOM'!$A$1:$K$100,6,FALSE)/100) -> 0 | U115: 12.15 | V115: 10527.64 | W115: 12.15022859 | Y115: 113 | Z115: =WORKDAY(Z114,1,feriados!$A$2:$A$1000) -> 2024-04-22 | AA115: 12.15 | AB115: =IF(ISERROR(VLOOKUP(Z115,'Cenários COPOM'!$A$1:$K$100,8,FALSE)),0,VLOOKUP(Z115,'Cenários COPOM'!$A$1:$K$100,8,FALSE)/100) -> 0 | AC115: 12.15 | AD115: 10527.64 | AE115: 12.15022859 | AG115: 113 | AH115: =WORKDAY(AH114,1,feriados!$A$2:$A$1000) -> 2024-04-22 | AI115: 12.15 | AJ115: =IF(ISERROR(VLOOKUP(AH115,'Cenários COPOM'!$A$1:$K$100,10,FALSE)),0,VLOOKUP(AH115,'Cenários COPOM'!$A$1:$K$100,10,FALSE)/100) -> 0 | AK115: 12.15 | AL115: 10527.64 | AM115: 12.15022859
A116: 114 | B116: =WORKDAY(B115,1,feriados!$A$2:$A$1000) -> 2024-04-23 | C116: 12.15 | D116: =IF(ISERROR(VLOOKUP(B116,'Cenários COPOM'!$A$1:$K$100,2,FALSE)),0,VLOOKUP(B116,'Cenários COPOM'!$A$1:$K$100,2,FALSE)/100) -> 0 | E116: 12.15 | F116: 10532.43 | G116: 12.15019217 | I116: 114 | J116: =WORKDAY(J115,1,feriados!$A$2:$A$1000) -> 2024-04-23 | K116: 12.15 | L116: =IF(ISERROR(VLOOKUP(J116,'Cenários COPOM'!$A$1:$K$100,4,FALSE)),0,VLOOKUP(J116,'Cenários COPOM'!$A$1:$K$100,4,FALSE)/100) -> 0 | M116: 12.15 | N116: 10532.43 | O116: 12.15019217 | Q116: 114 | R116: =WORKDAY(R115,1,feriados!$A$2:$A$1000) -> 2024-04-23 | S116: 12.15 | T116: =IF(ISERROR(VLOOKUP(R116,'Cenários COPOM'!$A$1:$K$100,6,FALSE)),0,VLOOKUP(R116,'Cenários COPOM'!$A$1:$K$100,6,FALSE)/100) -> 0 | U116: 12.15 | V116: 10532.43 | W116: 12.15019217 | Y116: 114 | Z116: =WORKDAY(Z115,1,feriados!$A$2:$A$1000) -> 2024-04-23 | AA116: 12.15 | AB116: =IF(ISERROR(VLOOKUP(Z116,'Cenários COPOM'!$A$1:$K$100,8,FALSE)),0,VLOOKUP(Z116,'Cenários COPOM'!$A$1:$K$100,8,FALSE)/100) -> 0 | AC116: 12.15 | AD116: 10532.43 | AE116: 12.15019217 | AG116: 114 | AH116: =WORKDAY(AH115,1,feriados!$A$2:$A$1000) -> 2024-04-23 | AI116: 12.15 | AJ116: =IF(ISERROR(VLOOKUP(AH116,'Cenários COPOM'!$A$1:$K$100,10,FALSE)),0,VLOOKUP(AH116,'Cenários COPOM'!$A$1:$K$100,10,FALSE)/100) -> 0 | AK116: 12.15 | AL116: 10532.43 | AM116: 12.15019217
A117: 115 | B117: =WORKDAY(B116,1,feriados!$A$2:$A$1000) -> 2024-04-24 | C117: 12.15 | D117: =IF(ISERROR(VLOOKUP(B117,'Cenários COPOM'!$A$1:$K$100,2,FALSE)),0,VLOOKUP(B117,'Cenários COPOM'!$A$1:$K$100,2,FALSE)/100) -> 0 | E117: 12.15 | F117: 10537.22 | G117: 12.15010556 | I117: 115 | J117: =WORKDAY(J116,1,feriados!$A$2:$A$1000) -> 2024-04-24 | K117: 12.15 | L117: =IF(ISERROR(VLOOKUP(J117,'Cenários COPOM'!$A$1:$K$100,4,FALSE)),0,VLOOKUP(J117,'Cenários COPOM'!$A$1:$K$100,4,FALSE)/100) -> 0 | M117: 12.15 | N117: 10537.22 | O117: 12.15010556 | Q117: 115 | R117: =WORKDAY(R116,1,feriados!$A$2:$A$1000) -> 2024-04-24 | S117: 12.15 | T117: =IF(ISERROR(VLOOKUP(R117,'Cenários COPOM'!$A$1:$K$100,6,FALSE)),0,VLOOKUP(R117,'Cenários COPOM'!$A$1:$K$100,6,FALSE)/100) -> 0 | U117: 12.15 | V117: 10537.22 | W117: 12.15010556 | Y117: 115 | Z117: =WORKDAY(Z116,1,feriados!$A$2:$A$1000) -> 2024-04-24 | AA117: 12.15 | AB117: =IF(ISERROR(VLOOKUP(Z117,'Cenários COPOM'!$A$1:$K$100,8,FALSE)),0,VLOOKUP(Z117,'Cenários COPOM'!$A$1:$K$100,8,FALSE)/100) -> 0 | AC117: 12.15 | AD117: 10537.22 | AE117: 12.15010556 | AG117: 115 | AH117: =WORKDAY(AH116,1,feriados!$A$2:$A$1000) -> 2024-04-24 | AI117: 12.15 | AJ117: =IF(ISERROR(VLOOKUP(AH117,'Cenários COPOM'!$A$1:$K$100,10,FALSE)),0,VLOOKUP(AH117,'Cenários COPOM'!$A$1:$K$100,10,FALSE)/100) -> 0 | AK117: 12.15 | AL117: 10537.22 | AM117: 12.15010556
A118: 116 | B118: =WORKDAY(B117,1,feriados!$A$2:$A$1000) -> 2024-04-25 | C118: 12.15 | D118: =IF(ISERROR(VLOOKUP(B118,'Cenários COPOM'!$A$1:$K$100,2,FALSE)),0,VLOOKUP(B118,'Cenários COPOM'!$A$1:$K$100,2,FALSE)/100) -> 0 | E118: 12.15 | F118: 10542.02 | G118: 12.15020121 | I118: 116 | J118: =WORKDAY(J117,1,feriados!$A$2:$A$1000) -> 2024-04-25 | K118: 12.15 | L118: =IF(ISERROR(VLOOKUP(J118,'Cenários COPOM'!$A$1:$K$100,4,FALSE)),0,VLOOKUP(J118,'Cenários COPOM'!$A$1:$K$100,4,FALSE)/100) -> 0 | M118: 12.15 | N118: 10542.02 | O118: 12.15020121 | Q118: 116 | R118: =WORKDAY(R117,1,feriados!$A$2:$A$1000) -> 2024-04-25 | S118: 12.15 | T118: =IF(ISERROR(VLOOKUP(R118,'Cenários COPOM'!$A$1:$K$100,6,FALSE)),0,VLOOKUP(R118,'Cenários COPOM'!$A$1:$K$100,6,FALSE)/100) -> 0 | U118: 12.15 | V118: 10542.02 | W118: 12.15020121 | Y118: 116 | Z118: =WORKDAY(Z117,1,feriados!$A$2:$A$1000) -> 2024-04-25 | AA118: 12.15 | AB118: =IF(ISERROR(VLOOKUP(Z118,'Cenários COPOM'!$A$1:$K$100,8,FALSE)),0,VLOOKUP(Z118,'Cenários COPOM'!$A$1:$K$100,8,FALSE)/100) -> 0 | AC118: 12.15 | AD118: 10542.02 | AE118: 12.15020121 | AG118: 116 | AH118: =WORKDAY(AH117,1,feriados!$A$2:$A$1000) -> 2024-04-25 | AI118: 12.15 | AJ118: =IF(ISERROR(VLOOKUP(AH118,'Cenários COPOM'!$A$1:$K$100,10,FALSE)),0,VLOOKUP(AH118,'Cenários COPOM'!$A$1:$K$100,10,FALSE)/100) -> 0 | AK118: 12.15 | AL118: 10542.02 | AM118: 12.15020121
A119: 117 | B119: =WORKDAY(B118,1,feriados!$A$2:$A$1000) -> 2024-04-26 | C119: 12.15 | D119: =IF(ISERROR(VLOOKUP(B119,'Cenários COPOM'!$A$1:$K$100,2,FALSE)),0,VLOOKUP(B119,'Cenários COPOM'!$A$1:$K$100,2,FALSE)/100) -> 0 | E119: 12.15 | F119: 10546.82 | G119: 12.15024515 | I119: 117 | J119: =WORKDAY(J118,1,feriados!$A$2:$A$1000) -> 2024-04-26 | K119: 12.15 | L119: =IF(ISERROR(VLOOKUP(J119,'Cenários COPOM'!$A$1:$K$100,4,FALSE)),0,VLOOKUP(J119,'Cenários COPOM'!$A$1:$K$100,4,FALSE)/100) -> 0 | M119: 12.15 | N119: 10546.82 | O119: 12.15024515 | Q119: 117 | R119: =WORKDAY(R118,1,feriados!$A$2:$A$1000) -> 2024-04-26 | S119: 12.15 | T119: =IF(ISERROR(VLOOKUP(R119,'Cenários COPOM'!$A$1:$K$100,6,FALSE)),0,VLOOKUP(R119,'Cenários COPOM'!$A$1:$K$100,6,FALSE)/100) -> 0 | U119: 12.15 | V119: 10546.82 | W119: 12.15024515 | Y119: 117 | Z119: =WORKDAY(Z118,1,feriados!$A$2:$A$1000) -> 2024-04-26 | AA119: 12.15 | AB119: =IF(ISERROR(VLOOKUP(Z119,'Cenários COPOM'!$A$1:$K$100,8,FALSE)),0,VLOOKUP(Z119,'Cenários COPOM'!$A$1:$K$100,8,FALSE)/100) -> 0 | AC119: 12.15 | AD119: 10546.82 | AE119: 12.15024515 | AG119: 117 | AH119: =WORKDAY(AH118,1,feriados!$A$2:$A$1000) -> 2024-04-26 | AI119: 12.15 | AJ119: =IF(ISERROR(VLOOKUP(AH119,'Cenários COPOM'!$A$1:$K$100,10,FALSE)),0,VLOOKUP(AH119,'Cenários COPOM'!$A$1:$K$100,10,FALSE)/100) -> 0 | AK119: 12.15 | AL119: 10546.82 | AM119: 12.15024515
A120: 118 | B120: =WORKDAY(B119,1,feriados!$A$2:$A$1000) -> 2024-04-29 | C120: 12.15 | D120: =IF(ISERROR(VLOOKUP(B120,'Cenários COPOM'!$A$1:$K$100,2,FALSE)),0,VLOOKUP(B120,'Cenários COPOM'!$A$1:$K$100,2,FALSE)/100) -> 0 | E120: 12.15 | F120: 10551.62 | G120: 12.15023873 | I120: 118 | J120: =WORKDAY(J119,1,feriados!$A$2:$A$1000) -> 2024-04-29 | K120: 12.15 | L120: =IF(ISERROR(VLOOKUP(J120,'Cenários COPOM'!$A$1:$K$100,4,FALSE)),0,VLOOKUP(J120,'Cenários COPOM'!$A$1:$K$100,4,FALSE)/100) -> 0 | M120: 12.15 | N120: 10551.62 | O120: 12.15023873 | Q120: 118 | R120: =WORKDAY(R119,1,feriados!$A$2:$A$1000) -> 2024-04-29 | S120: 12.15 | T120: =IF(ISERROR(VLOOKUP(R120,'Cenários COPOM'!$A$1:$K$100,6,FALSE)),0,VLOOKUP(R120,'Cenários COPOM'!$A$1:$K$100,6,FALSE)/100) -> 0 | U120: 12.15 | V120: 10551.62 | W120: 12.15023873 | Y120: 118 | Z120: =WORKDAY(Z119,1,feriados!$A$2:$A$1000) -> 2024-04-29 | AA120: 12.15 | AB120: =IF(ISERROR(VLOOKUP(Z120,'Cenários COPOM'!$A$1:$K$100,8,FALSE)),0,VLOOKUP(Z120,'Cenários COPOM'!$A$1:$K$100,8,FALSE)/100) -> 0 | AC120: 12.15 | AD120: 10551.62 | AE120: 12.15023873 | AG120: 118 | AH120: =WORKDAY(AH119,1,feriados!$A$2:$A$1000) -> 2024-04-29 | AI120: 12.15 | AJ120: =IF(ISERROR(VLOOKUP(AH120,'Cenários COPOM'!$A$1:$K$100,10,FALSE)),0,VLOOKUP(AH120,'Cenários COPOM'!$A$1:$K$100,10,FALSE)/100) -> 0 | AK120: 12.15 | AL120: 10551.62 | AM120: 12.15023873
A121: 119 | B121: =WORKDAY(B120,1,feriados!$A$2:$A$1000) -> 2024-04-30 | C121: 12.15 | D121: =IF(ISERROR(VLOOKUP(B121,'Cenários COPOM'!$A$1:$K$100,2,FALSE)),0,VLOOKUP(B121,'Cenários COPOM'!$A$1:$K$100,2,FALSE)/100) -> 0 | E121: 12.15 | F121: 10556.42 | G121: 12.15018327 | I121: 119 | J121: =WORKDAY(J120,1,feriados!$A$2:$A$1000) -> 2024-04-30 | K121: 12.15 | L121: =IF(ISERROR(VLOOKUP(J121,'Cenários COPOM'!$A$1:$K$100,4,FALSE)),0,VLOOKUP(J121,'Cenários COPOM'!$A$1:$K$100,4,FALSE)/100) -> 0 | M121: 12.15 | N121: 10556.42 | O121: 12.15018327 | Q121: 119 | R121: =WORKDAY(R120,1,feriados!$A$2:$A$1000) -> 2024-04-30 | S121: 12.15 | T121: =IF(ISERROR(VLOOKUP(R121,'Cenários COPOM'!$A$1:$K$100,6,FALSE)),0,VLOOKUP(R121,'Cenários COPOM'!$A$1:$K$100,6,FALSE)/100) -> 0 | U121: 12.15 | V121: 10556.42 | W121: 12.15018327 | Y121: 119 | Z121: =WORKDAY(Z120,1,feriados!$A$2:$A$1000) -> 2024-04-30 | AA121: 12.15 | AB121: =IF(ISERROR(VLOOKUP(Z121,'Cenários COPOM'!$A$1:$K$100,8,FALSE)),0,VLOOKUP(Z121,'Cenários COPOM'!$A$1:$K$100,8,FALSE)/100) -> 0 | AC121: 12.15 | AD121: 10556.42 | AE121: 12.15018327 | AG121: 119 | AH121: =WORKDAY(AH120,1,feriados!$A$2:$A$1000) -> 2024-04-30 | AI121: 12.15 | AJ121: =IF(ISERROR(VLOOKUP(AH121,'Cenários COPOM'!$A$1:$K$100,10,FALSE)),0,VLOOKUP(AH121,'Cenários COPOM'!$A$1:$K$100,10,FALSE)/100) -> 0 | AK121: 12.15 | AL121: 10556.42 | AM121: 12.15018327
A122: 120 | B122: =WORKDAY(B121,1,feriados!$A$2:$A$1000) -> 2024-05-02 | C122: 12.15 | D122: =IF(ISERROR(VLOOKUP(B122,'Cenários COPOM'!$A$1:$K$100,2,FALSE)),0,VLOOKUP(B122,'Cenários COPOM'!$A$1:$K$100,2,FALSE)/100) -> 0 | E122: 12.15 | F122: 10561.22 | G122: 12.15008005 | I122: 120 | J122: =WORKDAY(J121,1,feriados!$A$2:$A$1000) -> 2024-05-02 | K122: 12.15 | L122: =IF(ISERROR(VLOOKUP(J122,'Cenários COPOM'!$A$1:$K$100,4,FALSE)),0,VLOOKUP(J122,'Cenários COPOM'!$A$1:$K$100,4,FALSE)/100) -> 0 | M122: 12.15 | N122: 10561.22 | O122: 12.15008005 | Q122: 120 | R122: =WORKDAY(R121,1,feriados!$A$2:$A$1000) -> 2024-05-02 | S122: 12.15 | T122: =IF(ISERROR(VLOOKUP(R122,'Cenários COPOM'!$A$1:$K$100,6,FALSE)),0,VLOOKUP(R122,'Cenários COPOM'!$A$1:$K$100,6,FALSE)/100) -> 0 | U122: 12.15 | V122: 10561.22 | W122: 12.15008005 | Y122: 120 | Z122: =WORKDAY(Z121,1,feriados!$A$2:$A$1000) -> 2024-05-02 | AA122: 12.15 | AB122: =IF(ISERROR(VLOOKUP(Z122,'Cenários COPOM'!$A$1:$K$100,8,FALSE)),0,VLOOKUP(Z122,'Cenários COPOM'!$A$1:$K$100,8,FALSE)/100) -> 0 | AC122: 12.15 | AD122: 10561.22 | AE122: 12.15008005 | AG122: 120 | AH122: =WORKDAY(AH121,1,feriados!$A$2:$A$1000) -> 2024-05-02 | AI122: 12.15 | AJ122: =IF(ISERROR(VLOOKUP(AH122,'Cenários COPOM'!$A$1:$K$100,10,FALSE)),0,VLOOKUP(AH122,'Cenários COPOM'!$A$1:$K$100,10,FALSE)/100) -> 0 | AK122: 12.15 | AL122: 10561.22 | AM122: 12.15008005
A123: 121 | B123: =WORKDAY(B122,1,feriados!$A$2:$A$1000) -> 2024-05-03 | C123: 12.15 | D123: =IF(ISERROR(VLOOKUP(B123,'Cenários COPOM'!$A$1:$K$100,2,FALSE)),0,VLOOKUP(B123,'Cenários COPOM'!$A$1:$K$100,2,FALSE)/100) -> 0 | E123: 12.15 | F123: 10566.03 | G123: 12.15015134 | I123: 121 | J123: =WORKDAY(J122,1,feriados!$A$2:$A$1000) -> 2024-05-03 | K123: 12.15 | L123: =IF(ISERROR(VLOOKUP(J123,'Cenários COPOM'!$A$1:$K$100,4,FALSE)),0,VLOOKUP(J123,'Cenários COPOM'!$A$1:$K$100,4,FALSE)/100) -> 0 | M123: 12.15 | N123: 10566.03 | O123: 12.15015134 | Q123: 121 | R123: =WORKDAY(R122,1,feriados!$A$2:$A$1000) -> 2024-05-03 | S123: 12.15 | T123: =IF(ISERROR(VLOOKUP(R123,'Cenários COPOM'!$A$1:$K$100,6,FALSE)),0,VLOOKUP(R123,'Cenários COPOM'!$A$1:$K$100,6,FALSE)/100) -> 0 | U123: 12.15 | V123: 10566.03 | W123: 12.15015134 | Y123: 121 | Z123: =WORKDAY(Z122,1,feriados!$A$2:$A$1000) -> 2024-05-03 | AA123: 12.15 | AB123: =IF(ISERROR(VLOOKUP(Z123,'Cenários COPOM'!$A$1:$K$100,8,FALSE)),0,VLOOKUP(Z123,'Cenários COPOM'!$A$1:$K$100,8,FALSE)/100) -> 0 | AC123: 12.15 | AD123: 10566.03 | AE123: 12.15015134 | AG123: 121 | AH123: =WORKDAY(AH122,1,feriados!$A$2:$A$1000) -> 2024-05-03 | AI123: 12.15 | AJ123: =IF(ISERROR(VLOOKUP(AH123,'Cenários COPOM'!$A$1:$K$100,10,FALSE)),0,VLOOKUP(AH123,'Cenários COPOM'!$A$1:$K$100,10,FALSE)/100) -> 0 | AK123: 12.15 | AL123: 10566.03 | AM123: 12.15015134
A124: 122 | B124: =WORKDAY(B123,1,feriados!$A$2:$A$1000) -> 2024-05-06 | C124: 12.15 | D124: =IF(ISERROR(VLOOKUP(B124,'Cenários COPOM'!$A$1:$K$100,2,FALSE)),0,VLOOKUP(B124,'Cenários COPOM'!$A$1:$K$100,2,FALSE)/100) -> 0 | E124: 12.15 | F124: 10570.84 | G124: 12.15017345 | I124: 122 | J124: =WORKDAY(J123,1,feriados!$A$2:$A$1000) -> 2024-05-06 | K124: 12.15 | L124: =IF(ISERROR(VLOOKUP(J124,'Cenários COPOM'!$A$1:$K$100,4,FALSE)),0,VLOOKUP(J124,'Cenários COPOM'!$A$1:$K$100,4,FALSE)/100) -> 0 | M124: 12.15 | N124: 10570.84 | O124: 12.15017345 | Q124: 122 | R124: =WORKDAY(R123,1,feriados!$A$2:$A$1000) -> 2024-05-06 | S124: 12.15 | T124: =IF(ISERROR(VLOOKUP(R124,'Cenários COPOM'!$A$1:$K$100,6,FALSE)),0,VLOOKUP(R124,'Cenários COPOM'!$A$1:$K$100,6,FALSE)/100) -> 0 | U124: 12.15 | V124: 10570.84 | W124: 12.15017345 | Y124: 122 | Z124: =WORKDAY(Z123,1,feriados!$A$2:$A$1000) -> 2024-05-06 | AA124: 12.15 | AB124: =IF(ISERROR(VLOOKUP(Z124,'Cenários COPOM'!$A$1:$K$100,8,FALSE)),0,VLOOKUP(Z124,'Cenários COPOM'!$A$1:$K$100,8,FALSE)/100) -> 0 | AC124: 12.15 | AD124: 10570.84 | AE124: 12.15017345 | AG124: 122 | AH124: =WORKDAY(AH123,1,feriados!$A$2:$A$1000) -> 2024-05-06 | AI124: 12.15 | AJ124: =IF(ISERROR(VLOOKUP(AH124,'Cenários COPOM'!$A$1:$K$100,10,FALSE)),0,VLOOKUP(AH124,'Cenários COPOM'!$A$1:$K$100,10,FALSE)/100) -> 0 | AK124: 12.15 | AL124: 10570.84 | AM124: 12.15017345
A125: 123 | B125: =WORKDAY(B124,1,feriados!$A$2:$A$1000) -> 2024-05-07 | C125: 12.15 | D125: =IF(ISERROR(VLOOKUP(B125,'Cenários COPOM'!$A$1:$K$100,2,FALSE)),0,VLOOKUP(B125,'Cenários COPOM'!$A$1:$K$100,2,FALSE)/100) -> 0 | E125: 12.15 | F125: 10575.65 | G125: 12.15014763 | I125: 123 | J125: =WORKDAY(J124,1,feriados!$A$2:$A$1000) -> 2024-05-07 | K125: 12.15 | L125: =IF(ISERROR(VLOOKUP(J125,'Cenários COPOM'!$A$1:$K$100,4,FALSE)),0,VLOOKUP(J125,'Cenários COPOM'!$A$1:$K$100,4,FALSE)/100) -> 0 | M125: 12.15 | N125: 10575.65 | O125: 12.15014763 | Q125: 123 | R125: =WORKDAY(R124,1,feriados!$A$2:$A$1000) -> 2024-05-07 | S125: 12.15 | T125: =IF(ISERROR(VLOOKUP(R125,'Cenários COPOM'!$A$1:$K$100,6,FALSE)),0,VLOOKUP(R125,'Cenários COPOM'!$A$1:$K$100,6,FALSE)/100) -> 0 | U125: 12.15 | V125: 10575.65 | W125: 12.15014763 | Y125: 123 | Z125: =WORKDAY(Z124,1,feriados!$A$2:$A$1000) -> 2024-05-07 | AA125: 12.15 | AB125: =IF(ISERROR(VLOOKUP(Z125,'Cenários COPOM'!$A$1:$K$100,8,FALSE)),0,VLOOKUP(Z125,'Cenários COPOM'!$A$1:$K$100,8,FALSE)/100) -> 0 | AC125: 12.15 | AD125: 10575.65 | AE125: 12.15014763 | AG125: 123 | AH125: =WORKDAY(AH124,1,feriados!$A$2:$A$1000) -> 2024-05-07 | AI125: 12.15 | AJ125: =IF(ISERROR(VLOOKUP(AH125,'Cenários COPOM'!$A$1:$K$100,10,FALSE)),0,VLOOKUP(AH125,'Cenários COPOM'!$A$1:$K$100,10,FALSE)/100) -> 0 | AK125: 12.15 | AL125: 10575.65 | AM125: 12.15014763
A126: 124 | B126: =WORKDAY(B125,1,feriados!$A$2:$A$1000) -> 2024-05-08 | C126: 12.15 | D126: =IF(ISERROR(VLOOKUP(B126,'Cenários COPOM'!$A$1:$K$100,2,FALSE)),0,VLOOKUP(B126,'Cenários COPOM'!$A$1:$K$100,2,FALSE)/100) -> 0 | E126: 12.15 | F126: 10580.46 | G126: 12.15007508 | I126: 124 | J126: =WORKDAY(J125,1,feriados!$A$2:$A$1000) -> 2024-05-08 | K126: 12.15 | L126: =IF(ISERROR(VLOOKUP(J126,'Cenários COPOM'!$A$1:$K$100,4,FALSE)),0,VLOOKUP(J126,'Cenários COPOM'!$A$1:$K$100,4,FALSE)/100) -> 0 | M126: 12.15 | N126: 10580.46 | O126: 12.15007508 | Q126: 124 | R126: =WORKDAY(R125,1,feriados!$A$2:$A$1000) -> 2024-05-08 | S126: 12.15 | T126: =IF(ISERROR(VLOOKUP(R126,'Cenários COPOM'!$A$1:$K$100,6,FALSE)),0,VLOOKUP(R126,'Cenários COPOM'!$A$1:$K$100,6,FALSE)/100) -> 0 | U126: 12.15 | V126: 10580.46 | W126: 12.15007508 | Y126: 124 | Z126: =WORKDAY(Z125,1,feriados!$A$2:$A$1000) -> 2024-05-08 | AA126: 12.15 | AB126: =IF(ISERROR(VLOOKUP(Z126,'Cenários COPOM'!$A$1:$K$100,8,FALSE)),0,VLOOKUP(Z126,'Cenários COPOM'!$A$1:$K$100,8,FALSE)/100) -> 0 | AC126: 12.15 | AD126: 10580.46 | AE126: 12.15007508 | AG126: 124 | AH126: =WORKDAY(AH125,1,feriados!$A$2:$A$1000) -> 2024-05-08 | AI126: 12.15 | AJ126: =IF(ISERROR(VLOOKUP(AH126,'Cenários COPOM'!$A$1:$K$100,10,FALSE)),0,VLOOKUP(AH126,'Cenários COPOM'!$A$1:$K$100,10,FALSE)/100) -> 0 | AK126: 12.15 | AL126: 10580.46 | AM126: 12.15007508
A127: 125 | B127: =WORKDAY(B126,1,feriados!$A$2:$A$1000) -> 2024-05-09 | C127: 12.15 | D127: =IF(ISERROR(VLOOKUP(B127,'Cenários COPOM'!$A$1:$K$100,2,FALSE)),0,VLOOKUP(B127,'Cenários COPOM'!$A$1:$K$100,2,FALSE)/100) -> 0 | E127: 12.15 | F127: 10585.28 | G127: 12.15017056 | I127: 125 | J127: =WORKDAY(J126,1,feriados!$A$2:$A$1000) -> 2024-05-09 | K127: 12.15 | L127: =IF(ISERROR(VLOOKUP(J127,'Cenários COPOM'!$A$1:$K$100,4,FALSE)),0,VLOOKUP(J127,'Cenários COPOM'!$A$1:$K$100,4,FALSE)/100) -> 0 | M127: 12.15 | N127: 10585.28 | O127: 12.15017056 | Q127: 125 | R127: =WORKDAY(R126,1,feriados!$A$2:$A$1000) -> 2024-05-09 | S127: 12.15 | T127: =IF(ISERROR(VLOOKUP(R127,'Cenários COPOM'!$A$1:$K$100,6,FALSE)),0,VLOOKUP(R127,'Cenários COPOM'!$A$1:$K$100,6,FALSE)/100) -> 0 | U127: 12.15 | V127: 10585.28 | W127: 12.15017056 | Y127: 125 | Z127: =WORKDAY(Z126,1,feriados!$A$2:$A$1000) -> 2024-05-09 | AA127: 12.15 | AB127: =IF(ISERROR(VLOOKUP(Z127,'Cenários COPOM'!$A$1:$K$100,8,FALSE)),0,VLOOKUP(Z127,'Cenários COPOM'!$A$1:$K$100,8,FALSE)/100) -> 0 | AC127: 12.15 | AD127: 10585.28 | AE127: 12.15017056 | AG127: 125 | AH127: =WORKDAY(AH126,1,feriados!$A$2:$A$1000) -> 2024-05-09 | AI127: 12.15 | AJ127: =IF(ISERROR(VLOOKUP(AH127,'Cenários COPOM'!$A$1:$K$100,10,FALSE)),0,VLOOKUP(AH127,'Cenários COPOM'!$A$1:$K$100,10,FALSE)/100) -> 0 | AK127: 12.15 | AL127: 10585.28 | AM127: 12.15017056
A128: 126 | B128: =WORKDAY(B127,1,feriados!$A$2:$A$1000) -> 2024-05-10 | C128: 12.15 | D128: =IF(ISERROR(VLOOKUP(B128,'Cenários COPOM'!$A$1:$K$100,2,FALSE)),0,VLOOKUP(B128,'Cenários COPOM'!$A$1:$K$100,2,FALSE)/100) -> 0 | E128: 12.15 | F128: 10590.1 | G128: 12.15021801 | I128: 126 | J128: =WORKDAY(J127,1,feriados!$A$2:$A$1000) -> 2024-05-10 | K128: 12.15 | L128: =IF(ISERROR(VLOOKUP(J128,'Cenários COPOM'!$A$1:$K$100,4,FALSE)),0,VLOOKUP(J128,'Cenários COPOM'!$A$1:$K$100,4,FALSE)/100) -> 0 | M128: 12.15 | N128: 10590.1 | O128: 12.15021801 | Q128: 126 | R128: =WORKDAY(R127,1,feriados!$A$2:$A$1000) -> 2024-05-10 | S128: 12.15 | T128: =IF(ISERROR(VLOOKUP(R128,'Cenários COPOM'!$A$1:$K$100,6,FALSE)),0,VLOOKUP(R128,'Cenários COPOM'!$A$1:$K$100,6,FALSE)/100) -> 0 | U128: 12.15 | V128: 10590.1 | W128: 12.15021801 | Y128: 126 | Z128: =WORKDAY(Z127,1,feriados!$A$2:$A$1000) -> 2024-05-10 | AA128: 12.15 | AB128: =IF(ISERROR(VLOOKUP(Z128,'Cenários COPOM'!$A$1:$K$100,8,FALSE)),0,VLOOKUP(Z128,'Cenários COPOM'!$A$1:$K$100,8,FALSE)/100) -> 0 | AC128: 12.15 | AD128: 10590.1 | AE128: 12.15021801 | AG128: 126 | AH128: =WORKDAY(AH127,1,feriados!$A$2:$A$1000) -> 2024-05-10 | AI128: 12.15 | AJ128: =IF(ISERROR(VLOOKUP(AH128,'Cenários COPOM'!$A$1:$K$100,10,FALSE)),0,VLOOKUP(AH128,'Cenários COPOM'!$A$1:$K$100,10,FALSE)/100) -> 0 | AK128: 12.15 | AL128: 10590.1 | AM128: 12.15021801
A129: 127 | B129: =WORKDAY(B128,1,feriados!$A$2:$A$1000) -> 2024-05-13 | C129: 12.15 | D129: =IF(ISERROR(VLOOKUP(B129,'Cenários COPOM'!$A$1:$K$100,2,FALSE)),0,VLOOKUP(B129,'Cenários COPOM'!$A$1:$K$100,2,FALSE)/100) -> 0 | E129: 12.15 | F129: 10594.92 | G129: 12.15021862 | I129: 127 | J129: =WORKDAY(J128,1,feriados!$A$2:$A$1000) -> 2024-05-13 | K129: 12.15 | L129: =IF(ISERROR(VLOOKUP(J129,'Cenários COPOM'!$A$1:$K$100,4,FALSE)),0,VLOOKUP(J129,'Cenários COPOM'!$A$1:$K$100,4,FALSE)/100) -> 0 | M129: 12.15 | N129: 10594.92 | O129: 12.15021862 | Q129: 127 | R129: =WORKDAY(R128,1,feriados!$A$2:$A$1000) -> 2024-05-13 | S129: 12.15 | T129: =IF(ISERROR(VLOOKUP(R129,'Cenários COPOM'!$A$1:$K$100,6,FALSE)),0,VLOOKUP(R129,'Cenários COPOM'!$A$1:$K$100,6,FALSE)/100) -> 0 | U129: 12.15 | V129: 10594.92 | W129: 12.15021862 | Y129: 127 | Z129: =WORKDAY(Z128,1,feriados!$A$2:$A$1000) -> 2024-05-13 | AA129: 12.15 | AB129: =IF(ISERROR(VLOOKUP(Z129,'Cenários COPOM'!$A$1:$K$100,8,FALSE)),0,VLOOKUP(Z129,'Cenários COPOM'!$A$1:$K$100,8,FALSE)/100) -> 0 | AC129: 12.15 | AD129: 10594.92 | AE129: 12.15021862 | AG129: 127 | AH129: =WORKDAY(AH128,1,feriados!$A$2:$A$1000) -> 2024-05-13 | AI129: 12.15 | AJ129: =IF(ISERROR(VLOOKUP(AH129,'Cenários COPOM'!$A$1:$K$100,10,FALSE)),0,VLOOKUP(AH129,'Cenários COPOM'!$A$1:$K$100,10,FALSE)/100) -> 0 | AK129: 12.15 | AL129: 10594.92 | AM129: 12.15021862
A130: 128 | B130: =WORKDAY(B129,1,feriados!$A$2:$A$1000) -> 2024-05-14 | C130: 12.15 | D130: =IF(ISERROR(VLOOKUP(B130,'Cenários COPOM'!$A$1:$K$100,2,FALSE)),0,VLOOKUP(B130,'Cenários COPOM'!$A$1:$K$100,2,FALSE)/100) -> 0 | E130: 12.15 | F130: 10599.74 | G130: 12.15017352 | I130: 128 | J130: =WORKDAY(J129,1,feriados!$A$2:$A$1000) -> 2024-05-14 | K130: 12.15 | L130: =IF(ISERROR(VLOOKUP(J130,'Cenários COPOM'!$A$1:$K$100,4,FALSE)),0,VLOOKUP(J130,'Cenários COPOM'!$A$1:$K$100,4,FALSE)/100) -> 0 | M130: 12.15 | N130: 10599.74 | O130: 12.15017352 | Q130: 128 | R130: =WORKDAY(R129,1,feriados!$A$2:$A$1000) -> 2024-05-14 | S130: 12.15 | T130: =IF(ISERROR(VLOOKUP(R130,'Cenários COPOM'!$A$1:$K$100,6,FALSE)),0,VLOOKUP(R130,'Cenários COPOM'!$A$1:$K$100,6,FALSE)/100) -> 0 | U130: 12.15 | V130: 10599.74 | W130: 12.15017352 | Y130: 128 | Z130: =WORKDAY(Z129,1,feriados!$A$2:$A$1000) -> 2024-05-14 | AA130: 12.15 | AB130: =IF(ISERROR(VLOOKUP(Z130,'Cenários COPOM'!$A$1:$K$100,8,FALSE)),0,VLOOKUP(Z130,'Cenários COPOM'!$A$1:$K$100,8,FALSE)/100) -> 0 | AC130: 12.15 | AD130: 10599.74 | AE130: 12.15017352 | AG130: 128 | AH130: =WORKDAY(AH129,1,feriados!$A$2:$A$1000) -> 2024-05-14 | AI130: 12.15 | AJ130: =IF(ISERROR(VLOOKUP(AH130,'Cenários COPOM'!$A$1:$K$100,10,FALSE)),0,VLOOKUP(AH130,'Cenários COPOM'!$A$1:$K$100,10,FALSE)/100) -> 0 | AK130: 12.15 | AL130: 10599.74 | AM130: 12.15017352
A131: 129 | B131: =WORKDAY(B130,1,feriados!$A$2:$A$1000) -> 2024-05-15 | C131: 12.15 | D131: =IF(ISERROR(VLOOKUP(B131,'Cenários COPOM'!$A$1:$K$100,2,FALSE)),0,VLOOKUP(B131,'Cenários COPOM'!$A$1:$K$100,2,FALSE)/100) -> 0 | E131: 12.15 | F131: 10604.56 | G131: 12.15008382 | I131: 129 | J131: =WORKDAY(J130,1,feriados!$A$2:$A$1000) -> 2024-05-15 | K131: 12.15 | L131: =IF(ISERROR(VLOOKUP(J131,'Cenários COPOM'!$A$1:$K$100,4,FALSE)),0,VLOOKUP(J131,'Cenários COPOM'!$A$1:$K$100,4,FALSE)/100) -> 0 | M131: 12.15 | N131: 10604.56 | O131: 12.15008382 | Q131: 129 | R131: =WORKDAY(R130,1,feriados!$A$2:$A$1000) -> 2024-05-15 | S131: 12.15 | T131: =IF(ISERROR(VLOOKUP(R131,'Cenários COPOM'!$A$1:$K$100,6,FALSE)),0,VLOOKUP(R131,'Cenários COPOM'!$A$1:$K$100,6,FALSE)/100) -> 0 | U131: 12.15 | V131: 10604.56 | W131: 12.15008382 | Y131: 129 | Z131: =WORKDAY(Z130,1,feriados!$A$2:$A$1000) -> 2024-05-15 | AA131: 12.15 | AB131: =IF(ISERROR(VLOOKUP(Z131,'Cenários COPOM'!$A$1:$K$100,8,FALSE)),0,VLOOKUP(Z131,'Cenários COPOM'!$A$1:$K$100,8,FALSE)/100) -> 0 | AC131: 12.15 | AD131: 10604.56 | AE131: 12.15008382 | AG131: 129 | AH131: =WORKDAY(AH130,1,feriados!$A$2:$A$1000) -> 2024-05-15 | AI131: 12.15 | AJ131: =IF(ISERROR(VLOOKUP(AH131,'Cenários COPOM'!$A$1:$K$100,10,FALSE)),0,VLOOKUP(AH131,'Cenários COPOM'!$A$1:$K$100,10,FALSE)/100) -> 0 | AK131: 12.15 | AL131: 10604.56 | AM131: 12.15008382
A132: =+A131+1 -> 130 | B132: =WORKDAY(B131,1,feriados!$A$2:$A$1000) -> 2024-05-16 | C132: =+C131 -> 12.15 | D132: =IF(ISERROR(VLOOKUP(B132,'Cenários COPOM'!$A$1:$K$100,2,FALSE)),0,VLOOKUP(B132,'Cenários COPOM'!$A$1:$K$100,2,FALSE)/100) -> 0 | E132: =+E131+D132 -> 12.15 | F132: =+ROUND(((1+E131/100)^(1/252))*F131,2) -> 10609.39 | G132: =+((F132/$F$2)^(252/A132)-1)*100 -> 12.1501555 | I132: =+I131+1 -> 130 | J132: =WORKDAY(J131,1,feriados!$A$2:$A$1000) -> 2024-05-16 | K132: =+K131 -> 12.15 | L132: =IF(ISERROR(VLOOKUP(J132,'Cenários COPOM'!$A$1:$K$100,4,FALSE)),0,VLOOKUP(J132,'Cenários COPOM'!$A$1:$K$100,4,FALSE)/100) -> 0 | M132: =+M131+L132 -> 12.15 | N132: =+ROUND(((1+M131/100)^(1/252))*N131,2) -> 10609.39 | O132: =+((N132/$N$2)^(252/I132)-1)*100 -> 12.1501555 | Q132: =+Q131+1 -> 130 | R132: =WORKDAY(R131,1,feriados!$A$2:$A$1000) -> 2024-05-16 | S132: =+S131 -> 12.15 | T132: =IF(ISERROR(VLOOKUP(R132,'Cenários COPOM'!$A$1:$K$100,6,FALSE)),0,VLOOKUP(R132,'Cenários COPOM'!$A$1:$K$100,6,FALSE)/100) -> 0 | U132: =+U131+T132 -> 12.15 | V132: =+ROUND(((1+U131/100)^(1/252))*V131,2) -> 10609.39 | W132: =+((V132/$V$2)^(252/Q132)-1)*100 -> 12.1501555 | Y132: =+Y131+1 -> 130 | Z132: =WORKDAY(Z131,1,feriados!$A$2:$A$1000) -> 2024-05-16 | AA132: =+AA131 -> 12.15 | AB132: =IF(ISERROR(VLOOKUP(Z132,'Cenários COPOM'!$A$1:$K$100,8,FALSE)),0,VLOOKUP(Z132,'Cenários COPOM'!$A$1:$K$100,8,FALSE)/100) -> 0 | AC132: =+AC131+AB132 -> 12.15 | AD132: =+ROUND(((1+AC131/100)^(1/252))*AD131,2) -> 10609.39 | AE132: =+((AD132/$AD$2)^(252/Y132)-1)*100 -> 12.1501555 | AG132: =+AG131+1 -> 130 | AH132: =WORKDAY(AH131,1,feriados!$A$2:$A$1000) -> 2024-05-16 | AI132: =+AI131 -> 12.15 | AJ132: =IF(ISERROR(VLOOKUP(AH132,'Cenários COPOM'!$A$1:$K$100,10,FALSE)),0,VLOOKUP(AH132,'Cenários COPOM'!$A$1:$K$100,10,FALSE)/100) -> 0 | AK132: =+AK131+AJ132 -> 12.15 | AL132: =+ROUND(((1+AK131/100)^(1/252))*AL131,2) -> 10609.39 | AM132: =+((AL132/$F$2)^(252/AG132)-1)*100 -> 12.1501555
A133: 131 | B133: =WORKDAY(B132,1,feriados!$A$2:$A$1000) -> 2024-05-17 | C133: 12.15 | D133: =IF(ISERROR(VLOOKUP(B133,'Cenários COPOM'!$A$1:$K$100,2,FALSE)),0,VLOOKUP(B133,'Cenários COPOM'!$A$1:$K$100,2,FALSE)/100) -> 0 | E133: 12.15 | F133: 10614.22 | G133: 12.15018137 | I133: 131 | J133: =WORKDAY(J132,1,feriados!$A$2:$A$1000) -> 2024-05-17 | K133: 12.15 | L133: =IF(ISERROR(VLOOKUP(J133,'Cenários COPOM'!$A$1:$K$100,4,FALSE)),0,VLOOKUP(J133,'Cenários COPOM'!$A$1:$K$100,4,FALSE)/100) -> 0 | M133: 12.15 | N133: 10614.22 | O133: 12.15018137 | Q133: 131 | R133: =WORKDAY(R132,1,feriados!$A$2:$A$1000) -> 2024-05-17 | S133: 12.15 | T133: =IF(ISERROR(VLOOKUP(R133,'Cenários COPOM'!$A$1:$K$100,6,FALSE)),0,VLOOKUP(R133,'Cenários COPOM'!$A$1:$K$100,6,FALSE)/100) -> 0 | U133: 12.15 | V133: 10614.22 | W133: 12.15018137 | Y133: 131 | Z133: =WORKDAY(Z132,1,feriados!$A$2:$A$1000) -> 2024-05-17 | AA133: 12.15 | AB133: =IF(ISERROR(VLOOKUP(Z133,'Cenários COPOM'!$A$1:$K$100,8,FALSE)),0,VLOOKUP(Z133,'Cenários COPOM'!$A$1:$K$100,8,FALSE)/100) -> 0 | AC133: 12.15 | AD133: 10614.22 | AE133: 12.15018137 | AG133: 131 | AH133: =WORKDAY(AH132,1,feriados!$A$2:$A$1000) -> 2024-05-17 | AI133: 12.15 | AJ133: =IF(ISERROR(VLOOKUP(AH133,'Cenários COPOM'!$A$1:$K$100,10,FALSE)),0,VLOOKUP(AH133,'Cenários COPOM'!$A$1:$K$100,10,FALSE)/100) -> 0 | AK133: 12.15 | AL133: 10614.22 | AM133: 12.15018137
A134: 132 | B134: =WORKDAY(B133,1,feriados!$A$2:$A$1000) -> 2024-05-20 | C134: 12.15 | D134: =IF(ISERROR(VLOOKUP(B134,'Cenários COPOM'!$A$1:$K$100,2,FALSE)),0,VLOOKUP(B134,'Cenários COPOM'!$A$1:$K$100,2,FALSE)/100) -> 0 | E134: 12.15 | F134: 10619.05 | G134: 12.15016251 | I134: 132 | J134: =WORKDAY(J133,1,feriados!$A$2:$A$1000) -> 2024-05-20 | K134: 12.15 | L134: =IF(ISERROR(VLOOKUP(J134,'Cenários COPOM'!$A$1:$K$100,4,FALSE)),0,VLOOKUP(J134,'Cenários COPOM'!$A$1:$K$100,4,FALSE)/100) -> 0 | M134: 12.15 | N134: 10619.05 | O134: 12.15016251 | Q134: 132 | R134: =WORKDAY(R133,1,feriados!$A$2:$A$1000) -> 2024-05-20 | S134: 12.15 | T134: =IF(ISERROR(VLOOKUP(R134,'Cenários COPOM'!$A$1:$K$100,6,FALSE)),0,VLOOKUP(R134,'Cenários COPOM'!$A$1:$K$100,6,FALSE)/100) -> 0 | U134: 12.15 | V134: 10619.05 | W134: 12.15016251 | Y134: 132 | Z134: =WORKDAY(Z133,1,feriados!$A$2:$A$1000) -> 2024-05-20 | AA134: 12.15 | AB134: =IF(ISERROR(VLOOKUP(Z134,'Cenários COPOM'!$A$1:$K$100,8,FALSE)),0,VLOOKUP(Z134,'Cenários COPOM'!$A$1:$K$100,8,FALSE)/100) -> 0 | AC134: 12.15 | AD134: 10619.05 | AE134: 12.15016251 | AG134: 132 | AH134: =WORKDAY(AH133,1,feriados!$A$2:$A$1000) -> 2024-05-20 | AI134: 12.15 | AJ134: =IF(ISERROR(VLOOKUP(AH134,'Cenários COPOM'!$A$1:$K$100,10,FALSE)),0,VLOOKUP(AH134,'Cenários COPOM'!$A$1:$K$100,10,FALSE)/100) -> 0 | AK134: 12.15 | AL134: 10619.05 | AM134: 12.15016251
A135: 133 | B135: =WORKDAY(B134,1,feriados!$A$2:$A$1000) -> 2024-05-21 | C135: 12.15 | D135: =IF(ISERROR(VLOOKUP(B135,'Cenários COPOM'!$A$1:$K$100,2,FALSE)),0,VLOOKUP(B135,'Cenários COPOM'!$A$1:$K$100,2,FALSE)/100) -> 0 | E135: 12.15 | F135: 10623.88 | G135: 12.15009997 | I135: 133 | J135: =WORKDAY(J134,1,feriados!$A$2:$A$1000) -> 2024-05-21 | K135: 12.15 | L135: =IF(ISERROR(VLOOKUP(J135,'Cenários COPOM'!$A$1:$K$100,4,FALSE)),0,VLOOKUP(J135,'Cenários COPOM'!$A$1:$K$100,4,FALSE)/100) -> 0 | M135: 12.15 | N135: 10623.88 | O135: 12.15009997 | Q135: 133 | R135: =WORKDAY(R134,1,feriados!$A$2:$A$1000) -> 2024-05-21 | S135: 12.15 | T135: =IF(ISERROR(VLOOKUP(R135,'Cenários COPOM'!$A$1:$K$100,6,FALSE)),0,VLOOKUP(R135,'Cenários COPOM'!$A$1:$K$100,6,FALSE)/100) -> 0 | U135: 12.15 | V135: 10623.88 | W135: 12.15009997 | Y135: 133 | Z135: =WORKDAY(Z134,1,feriados!$A$2:$A$1000) -> 2024-05-21 | AA135: 12.15 | AB135: =IF(ISERROR(VLOOKUP(Z135,'Cenários COPOM'!$A$1:$K$100,8,FALSE)),0,VLOOKUP(Z135,'Cenários COPOM'!$A$1:$K$100,8,FALSE)/100) -> 0 | AC135: 12.15 | AD135: 10623.88 | AE135: 12.15009997 | AG135: 133 | AH135: =WORKDAY(AH134,1,feriados!$A$2:$A$1000) -> 2024-05-21 | AI135: 12.15 | AJ135: =IF(ISERROR(VLOOKUP(AH135,'Cenários COPOM'!$A$1:$K$100,10,FALSE)),0,VLOOKUP(AH135,'Cenários COPOM'!$A$1:$K$100,10,FALSE)/100) -> 0 | AK135: 12.15 | AL135: 10623.88 | AM135: 12.15009997
A136: 134 | B136: =WORKDAY(B135,1,feriados!$A$2:$A$1000) -> 2024-05-22 | C136: 12.15 | D136: =IF(ISERROR(VLOOKUP(B136,'Cenários COPOM'!$A$1:$K$100,2,FALSE)),0,VLOOKUP(B136,'Cenários COPOM'!$A$1:$K$100,2,FALSE)/100) -> 0 | E136: 12.15 | F136: 10628.72 | G136: 12.15019321 | I136: 134 | J136: =WORKDAY(J135,1,feriados!$A$2:$A$1000) -> 2024-05-22 | K136: 12.15 | L136: =IF(ISERROR(VLOOKUP(J136,'Cenários COPOM'!$A$1:$K$100,4,FALSE)),0,VLOOKUP(J136,'Cenários COPOM'!$A$1:$K$100,4,FALSE)/100) -> 0 | M136: 12.15 | N136: 10628.72 | O136: 12.15019321 | Q136: 134 | R136: =WORKDAY(R135,1,feriados!$A$2:$A$1000) -> 2024-05-22 | S136: 12.15 | T136: =IF(ISERROR(VLOOKUP(R136,'Cenários COPOM'!$A$1:$K$100,6,FALSE)),0,VLOOKUP(R136,'Cenários COPOM'!$A$1:$K$100,6,FALSE)/100) -> 0 | U136: 12.15 | V136: 10628.72 | W136: 12.15019321 | Y136: 134 | Z136: =WORKDAY(Z135,1,feriados!$A$2:$A$1000) -> 2024-05-22 | AA136: 12.15 | AB136: =IF(ISERROR(VLOOKUP(Z136,'Cenários COPOM'!$A$1:$K$100,8,FALSE)),0,VLOOKUP(Z136,'Cenários COPOM'!$A$1:$K$100,8,FALSE)/100) -> 0 | AC136: 12.15 | AD136: 10628.72 | AE136: 12.15019321 | AG136: 134 | AH136: =WORKDAY(AH135,1,feriados!$A$2:$A$1000) -> 2024-05-22 | AI136: 12.15 | AJ136: =IF(ISERROR(VLOOKUP(AH136,'Cenários COPOM'!$A$1:$K$100,10,FALSE)),0,VLOOKUP(AH136,'Cenários COPOM'!$A$1:$K$100,10,FALSE)/100) -> 0 | AK136: 12.15 | AL136: 10628.72 | AM136: 12.15019321
A137: 135 | B137: =WORKDAY(B136,1,feriados!$A$2:$A$1000) -> 2024-05-23 | C137: 12.15 | D137: =IF(ISERROR(VLOOKUP(B137,'Cenários COPOM'!$A$1:$K$100,2,FALSE)),0,VLOOKUP(B137,'Cenários COPOM'!$A$1:$K$100,2,FALSE)/100) -> 0 | E137: 12.15 | F137: 10633.56 | G137: 12.15024166 | I137: 135 | J137: =WORKDAY(J136,1,feriados!$A$2:$A$1000) -> 2024-05-23 | K137: 12.15 | L137: =IF(ISERROR(VLOOKUP(J137,'Cenários COPOM'!$A$1:$K$100,4,FALSE)),0,VLOOKUP(J137,'Cenários COPOM'!$A$1:$K$100,4,FALSE)/100) -> 0 | M137: 12.15 | N137: 10633.56 | O137: 12.15024166 | Q137: 135 | R137: =WORKDAY(R136,1,feriados!$A$2:$A$1000) -> 2024-05-23 | S137: 12.15 | T137: =IF(ISERROR(VLOOKUP(R137,'Cenários COPOM'!$A$1:$K$100,6,FALSE)),0,VLOOKUP(R137,'Cenários COPOM'!$A$1:$K$100,6,FALSE)/100) -> 0 | U137: 12.15 | V137: 10633.56 | W137: 12.15024166 | Y137: 135 | Z137: =WORKDAY(Z136,1,feriados!$A$2:$A$1000) -> 2024-05-23 | AA137: 12.15 | AB137: =IF(ISERROR(VLOOKUP(Z137,'Cenários COPOM'!$A$1:$K$100,8,FALSE)),0,VLOOKUP(Z137,'Cenários COPOM'!$A$1:$K$100,8,FALSE)/100) -> 0 | AC137: 12.15 | AD137: 10633.56 | AE137: 12.15024166 | AG137: 135 | AH137: =WORKDAY(AH136,1,feriados!$A$2:$A$1000) -> 2024-05-23 | AI137: 12.15 | AJ137: =IF(ISERROR(VLOOKUP(AH137,'Cenários COPOM'!$A$1:$K$100,10,FALSE)),0,VLOOKUP(AH137,'Cenários COPOM'!$A$1:$K$100,10,FALSE)/100) -> 0 | AK137: 12.15 | AL137: 10633.56 | AM137: 12.15024166
A138: 136 | B138: =WORKDAY(B137,1,feriados!$A$2:$A$1000) -> 2024-05-24 | C138: 12.15 | D138: =IF(ISERROR(VLOOKUP(B138,'Cenários COPOM'!$A$1:$K$100,2,FALSE)),0,VLOOKUP(B138,'Cenários COPOM'!$A$1:$K$100,2,FALSE)/100) -> 0 | E138: 12.15 | F138: 10638.4 | G138: 12.15024634 | I138: 136 | J138: =WORKDAY(J137,1,feriados!$A$2:$A$1000) -> 2024-05-24 | K138: 12.15 | L138: =IF(ISERROR(VLOOKUP(J138,'Cenários COPOM'!$A$1:$K$100,4,FALSE)),0,VLOOKUP(J138,'Cenários COPOM'!$A$1:$K$100,4,FALSE)/100) -> 0 | M138: 12.15 | N138: 10638.4 | O138: 12.15024634 | Q138: 136 | R138: =WORKDAY(R137,1,feriados!$A$2:$A$1000) -> 2024-05-24 | S138: 12.15 | T138: =IF(ISERROR(VLOOKUP(R138,'Cenários COPOM'!$A$1:$K$100,6,FALSE)),0,VLOOKUP(R138,'Cenários COPOM'!$A$1:$K$100,6,FALSE)/100) -> 0 | U138: 12.15 | V138: 10638.4 | W138: 12.15024634 | Y138: 136 | Z138: =WORKDAY(Z137,1,feriados!$A$2:$A$1000) -> 2024-05-24 | AA138: 12.15 | AB138: =IF(ISERROR(VLOOKUP(Z138,'Cenários COPOM'!$A$1:$K$100,8,FALSE)),0,VLOOKUP(Z138,'Cenários COPOM'!$A$1:$K$100,8,FALSE)/100) -> 0 | AC138: 12.15 | AD138: 10638.4 | AE138: 12.15024634 | AG138: 136 | AH138: =WORKDAY(AH137,1,feriados!$A$2:$A$1000) -> 2024-05-24 | AI138: 12.15 | AJ138: =IF(ISERROR(VLOOKUP(AH138,'Cenários COPOM'!$A$1:$K$100,10,FALSE)),0,VLOOKUP(AH138,'Cenários COPOM'!$A$1:$K$100,10,FALSE)/100) -> 0 | AK138: 12.15 | AL138: 10638.4 | AM138: 12.15024634
A139: 137 | B139: =WORKDAY(B138,1,feriados!$A$2:$A$1000) -> 2024-05-27 | C139: 12.15 | D139: =IF(ISERROR(VLOOKUP(B139,'Cenários COPOM'!$A$1:$K$100,2,FALSE)),0,VLOOKUP(B139,'Cenários COPOM'!$A$1:$K$100,2,FALSE)/100) -> 0 | E139: 12.15 | F139: 10643.24 | G139: 12.15020826 | I139: 137 | J139: =WORKDAY(J138,1,feriados!$A$2:$A$1000) -> 2024-05-27 | K139: 12.15 | L139: =IF(ISERROR(VLOOKUP(J139,'Cenários COPOM'!$A$1:$K$100,4,FALSE)),0,VLOOKUP(J139,'Cenários COPOM'!$A$1:$K$100,4,FALSE)/100) -> 0 | M139: 12.15 | N139: 10643.24 | O139: 12.15020826 | Q139: 137 | R139: =WORKDAY(R138,1,feriados!$A$2:$A$1000) -> 2024-05-27 | S139: 12.15 | T139: =IF(ISERROR(VLOOKUP(R139,'Cenários COPOM'!$A$1:$K$100,6,FALSE)),0,VLOOKUP(R139,'Cenários COPOM'!$A$1:$K$100,6,FALSE)/100) -> 0 | U139: 12.15 | V139: 10643.24 | W139: 12.15020826 | Y139: 137 | Z139: =WORKDAY(Z138,1,feriados!$A$2:$A$1000) -> 2024-05-27 | AA139: 12.15 | AB139: =IF(ISERROR(VLOOKUP(Z139,'Cenários COPOM'!$A$1:$K$100,8,FALSE)),0,VLOOKUP(Z139,'Cenários COPOM'!$A$1:$K$100,8,FALSE)/100) -> 0 | AC139: 12.15 | AD139: 10643.24 | AE139: 12.15020826 | AG139: 137 | AH139: =WORKDAY(AH138,1,feriados!$A$2:$A$1000) -> 2024-05-27 | AI139: 12.15 | AJ139: =IF(ISERROR(VLOOKUP(AH139,'Cenários COPOM'!$A$1:$K$100,10,FALSE)),0,VLOOKUP(AH139,'Cenários COPOM'!$A$1:$K$100,10,FALSE)/100) -> 0 | AK139: 12.15 | AL139: 10643.24 | AM139: 12.15020826
A140: 138 | B140: =WORKDAY(B139,1,feriados!$A$2:$A$1000) -> 2024-05-28 | C140: 12.15 | D140: =IF(ISERROR(VLOOKUP(B140,'Cenários COPOM'!$A$1:$K$100,2,FALSE)),0,VLOOKUP(B140,'Cenários COPOM'!$A$1:$K$100,2,FALSE)/100) -> 0 | E140: 12.15 | F140: 10648.08 | G140: 12.15012837 | I140: 138 | J140: =WORKDAY(J139,1,feriados!$A$2:$A$1000) -> 2024-05-28 | K140: 12.15 | L140: =IF(ISERROR(VLOOKUP(J140,'Cenários COPOM'!$A$1:$K$100,4,FALSE)),0,VLOOKUP(J140,'Cenários COPOM'!$A$1:$K$100,4,FALSE)/100) -> 0 | M140: 12.15 | N140: 10648.08 | O140: 12.15012837 | Q140: 138 | R140: =WORKDAY(R139,1,feriados!$A$2:$A$1000) -> 2024-05-28 | S140: 12.15 | T140: =IF(ISERROR(VLOOKUP(R140,'Cenários COPOM'!$A$1:$K$100,6,FALSE)),0,VLOOKUP(R140,'Cenários COPOM'!$A$1:$K$100,6,FALSE)/100) -> 0 | U140: 12.15 | V140: 10648.08 | W140: 12.15012837 | Y140: 138 | Z140: =WORKDAY(Z139,1,feriados!$A$2:$A$1000) -> 2024-05-28 | AA140: 12.15 | AB140: =IF(ISERROR(VLOOKUP(Z140,'Cenários COPOM'!$A$1:$K$100,8,FALSE)),0,VLOOKUP(Z140,'Cenários COPOM'!$A$1:$K$100,8,FALSE)/100) -> 0 | AC140: 12.15 | AD140: 10648.08 | AE140: 12.15012837 | AG140: 138 | AH140: =WORKDAY(AH139,1,feriados!$A$2:$A$1000) -> 2024-05-28 | AI140: 12.15 | AJ140: =IF(ISERROR(VLOOKUP(AH140,'Cenários COPOM'!$A$1:$K$100,10,FALSE)),0,VLOOKUP(AH140,'Cenários COPOM'!$A$1:$K$100,10,FALSE)/100) -> 0 | AK140: 12.15 | AL140: 10648.08 | AM140: 12.15012837
A141: 139 | B141: =WORKDAY(B140,1,feriados!$A$2:$A$1000) -> 2024-05-29 | C141: 12.15 | D141: =IF(ISERROR(VLOOKUP(B141,'Cenários COPOM'!$A$1:$K$100,2,FALSE)),0,VLOOKUP(B141,'Cenários COPOM'!$A$1:$K$100,2,FALSE)/100) -> 0 | E141: 12.15 | F141: 10652.93 | G141: 12.15019849 | I141: 139 | J141: =WORKDAY(J140,1,feriados!$A$2:$A$1000) -> 2024-05-29 | K141: 12.15 | L141: =IF(ISERROR(VLOOKUP(J141,'Cenários COPOM'!$A$1:$K$100,4,FALSE)),0,VLOOKUP(J141,'Cenários COPOM'!$A$1:$K$100,4,FALSE)/100) -> 0 | M141: 12.15 | N141: 10652.93 | O141: 12.15019849 | Q141: 139 | R141: =WORKDAY(R140,1,feriados!$A$2:$A$1000) -> 2024-05-29 | S141: 12.15 | T141: =IF(ISERROR(VLOOKUP(R141,'Cenários COPOM'!$A$1:$K$100,6,FALSE)),0,VLOOKUP(R141,'Cenários COPOM'!$A$1:$K$100,6,FALSE)/100) -> 0 | U141: 12.15 | V141: 10652.93 | W141: 12.15019849 | Y141: 139 | Z141: =WORKDAY(Z140,1,feriados!$A$2:$A$1000) -> 2024-05-29 | AA141: 12.15 | AB141: =IF(ISERROR(VLOOKUP(Z141,'Cenários COPOM'!$A$1:$K$100,8,FALSE)),0,VLOOKUP(Z141,'Cenários COPOM'!$A$1:$K$100,8,FALSE)/100) -> 0 | AC141: 12.15 | AD141: 10652.93 | AE141: 12.15019849 | AG141: 139 | AH141: =WORKDAY(AH140,1,feriados!$A$2:$A$1000) -> 2024-05-29 | AI141: 12.15 | AJ141: =IF(ISERROR(VLOOKUP(AH141,'Cenários COPOM'!$A$1:$K$100,10,FALSE)),0,VLOOKUP(AH141,'Cenários COPOM'!$A$1:$K$100,10,FALSE)/100) -> 0 | AK141: 12.15 | AL141: 10652.93 | AM141: 12.15019849
A142: 140 | B142: =WORKDAY(B141,1,feriados!$A$2:$A$1000) -> 2024-05-31 | C142: 12.15 | D142: =IF(ISERROR(VLOOKUP(B142,'Cenários COPOM'!$A$1:$K$100,2,FALSE)),0,VLOOKUP(B142,'Cenários COPOM'!$A$1:$K$100,2,FALSE)/100) -> 0 | E142: 12.15 | F142: 10657.78 | G142: 12.15022576 | I142: 140 | J142: =WORKDAY(J141,1,feriados!$A$2:$A$1000) -> 2024-05-31 | K142: 12.15 | L142: =IF(ISERROR(VLOOKUP(J142,'Cenários COPOM'!$A$1:$K$100,4,FALSE)),0,VLOOKUP(J142,'Cenários COPOM'!$A$1:$K$100,4,FALSE)/100) -> 0 | M142: 12.15 | N142: 10657.78 | O142: 12.15022576 | Q142: 140 | R142: =WORKDAY(R141,1,feriados!$A$2:$A$1000) -> 2024-05-31 | S142: 12.15 | T142: =IF(ISERROR(VLOOKUP(R142,'Cenários COPOM'!$A$1:$K$100,6,FALSE)),0,VLOOKUP(R142,'Cenários COPOM'!$A$1:$K$100,6,FALSE)/100) -> 0 | U142: 12.15 | V142: 10657.78 | W142: 12.15022576 | Y142: 140 | Z142: =WORKDAY(Z141,1,feriados!$A$2:$A$1000) -> 2024-05-31 | AA142: 12.15 | AB142: =IF(ISERROR(VLOOKUP(Z142,'Cenários COPOM'!$A$1:$K$100,8,FALSE)),0,VLOOKUP(Z142,'Cenários COPOM'!$A$1:$K$100,8,FALSE)/100) -> 0 | AC142: 12.15 | AD142: 10657.78 | AE142: 12.15022576 | AG142: 140 | AH142: =WORKDAY(AH141,1,feriados!$A$2:$A$1000) -> 2024-05-31 | AI142: 12.15 | AJ142: =IF(ISERROR(VLOOKUP(AH142,'Cenários COPOM'!$A$1:$K$100,10,FALSE)),0,VLOOKUP(AH142,'Cenários COPOM'!$A$1:$K$100,10,FALSE)/100) -> 0 | AK142: 12.15 | AL142: 10657.78 | AM142: 12.15022576
A143: 141 | B143: =WORKDAY(B142,1,feriados!$A$2:$A$1000) -> 2024-06-03 | C143: 12.15 | D143: =IF(ISERROR(VLOOKUP(B143,'Cenários COPOM'!$A$1:$K$100,2,FALSE)),0,VLOOKUP(B143,'Cenários COPOM'!$A$1:$K$100,2,FALSE)/100) -> 0 | E143: 12.15 | F143: 10662.63 | G143: 12.15021114 | I143: 141 | J143: =WORKDAY(J142,1,feriados!$A$2:$A$1000) -> 2024-06-03 | K143: 12.15 | L143: =IF(ISERROR(VLOOKUP(J143,'Cenários COPOM'!$A$1:$K$100,4,FALSE)),0,VLOOKUP(J143,'Cenários COPOM'!$A$1:$K$100,4,FALSE)/100) -> 0 | M143: 12.15 | N143: 10662.63 | O143: 12.15021114 | Q143: 141 | R143: =WORKDAY(R142,1,feriados!$A$2:$A$1000) -> 2024-06-03 | S143: 12.15 | T143: =IF(ISERROR(VLOOKUP(R143,'Cenários COPOM'!$A$1:$K$100,6,FALSE)),0,VLOOKUP(R143,'Cenários COPOM'!$A$1:$K$100,6,FALSE)/100) -> 0 | U143: 12.15 | V143: 10662.63 | W143: 12.15021114 | Y143: 141 | Z143: =WORKDAY(Z142,1,feriados!$A$2:$A$1000) -> 2024-06-03 | AA143: 12.15 | AB143: =IF(ISERROR(VLOOKUP(Z143,'Cenários COPOM'!$A$1:$K$100,8,FALSE)),0,VLOOKUP(Z143,'Cenários COPOM'!$A$1:$K$100,8,FALSE)/100) -> 0 | AC143: 12.15 | AD143: 10662.63 | AE143: 12.15021114 | AG143: 141 | AH143: =WORKDAY(AH142,1,feriados!$A$2:$A$1000) -> 2024-06-03 | AI143: 12.15 | AJ143: =IF(ISERROR(VLOOKUP(AH143,'Cenários COPOM'!$A$1:$K$100,10,FALSE)),0,VLOOKUP(AH143,'Cenários COPOM'!$A$1:$K$100,10,FALSE)/100) -> 0 | AK143: 12.15 | AL143: 10662.63 | AM143: 12.15021114
A144: 142 | B144: =WORKDAY(B143,1,feriados!$A$2:$A$1000) -> 2024-06-04 | C144: 12.15 | D144: =IF(ISERROR(VLOOKUP(B144,'Cenários COPOM'!$A$1:$K$100,2,FALSE)),0,VLOOKUP(B144,'Cenários COPOM'!$A$1:$K$100,2,FALSE)/100) -> 0 | E144: 12.15 | F144: 10667.48 | G144: 12.15015555 | I144: 142 | J144: =WORKDAY(J143,1,feriados!$A$2:$A$1000) -> 2024-06-04 | K144: 12.15 | L144: =IF(ISERROR(VLOOKUP(J144,'Cenários COPOM'!$A$1:$K$100,4,FALSE)),0,VLOOKUP(J144,'Cenários COPOM'!$A$1:$K$100,4,FALSE)/100) -> 0 | M144: 12.15 | N144: 10667.48 | O144: 12.15015555 | Q144: 142 | R144: =WORKDAY(R143,1,feriados!$A$2:$A$1000) -> 2024-06-04 | S144: 12.15 | T144: =IF(ISERROR(VLOOKUP(R144,'Cenários COPOM'!$A$1:$K$100,6,FALSE)),0,VLOOKUP(R144,'Cenários COPOM'!$A$1:$K$100,6,FALSE)/100) -> 0 | U144: 12.15 | V144: 10667.48 | W144: 12.15015555 | Y144: 142 | Z144: =WORKDAY(Z143,1,feriados!$A$2:$A$1000) -> 2024-06-04 | AA144: 12.15 | AB144: =IF(ISERROR(VLOOKUP(Z144,'Cenários COPOM'!$A$1:$K$100,8,FALSE)),0,VLOOKUP(Z144,'Cenários COPOM'!$A$1:$K$100,8,FALSE)/100) -> 0 | AC144: 12.15 | AD144: 10667.48 | AE144: 12.15015555 | AG144: 142 | AH144: =WORKDAY(AH143,1,feriados!$A$2:$A$1000) -> 2024-06-04 | AI144: 12.15 | AJ144: =IF(ISERROR(VLOOKUP(AH144,'Cenários COPOM'!$A$1:$K$100,10,FALSE)),0,VLOOKUP(AH144,'Cenários COPOM'!$A$1:$K$100,10,FALSE)/100) -> 0 | AK144: 12.15 | AL144: 10667.48 | AM144: 12.15015555
A145: 143 | B145: =WORKDAY(B144,1,feriados!$A$2:$A$1000) -> 2024-06-05 | C145: 12.15 | D145: =IF(ISERROR(VLOOKUP(B145,'Cenários COPOM'!$A$1:$K$100,2,FALSE)),0,VLOOKUP(B145,'Cenários COPOM'!$A$1:$K$100,2,FALSE)/100) -> 0 | E145: 12.15 | F145: 10672.34 | G145: 12.15024506 | I145: 143 | J145: =WORKDAY(J144,1,feriados!$A$2:$A$1000) -> 2024-06-05 | K145: 12.15 | L145: =IF(ISERROR(VLOOKUP(J145,'Cenários COPOM'!$A$1:$K$100,4,FALSE)),0,VLOOKUP(J145,'Cenários COPOM'!$A$1:$K$100,4,FALSE)/100) -> 0 | M145: 12.15 | N145: 10672.34 | O145: 12.15024506 | Q145: 143 | R145: =WORKDAY(R144,1,feriados!$A$2:$A$1000) -> 2024-06-05 | S145: 12.15 | T145: =IF(ISERROR(VLOOKUP(R145,'Cenários COPOM'!$A$1:$K$100,6,FALSE)),0,VLOOKUP(R145,'Cenários COPOM'!$A$1:$K$100,6,FALSE)/100) -> 0 | U145: 12.15 | V145: 10672.34 | W145: 12.15024506 | Y145: 143 | Z145: =WORKDAY(Z144,1,feriados!$A$2:$A$1000) -> 2024-06-05 | AA145: 12.15 | AB145: =IF(ISERROR(VLOOKUP(Z145,'Cenários COPOM'!$A$1:$K$100,8,FALSE)),0,VLOOKUP(Z145,'Cenários COPOM'!$A$1:$K$100,8,FALSE)/100) -> 0 | AC145: 12.15 | AD145: 10672.34 | AE145: 12.15024506 | AG145: 143 | AH145: =WORKDAY(AH144,1,feriados!$A$2:$A$1000) -> 2024-06-05 | AI145: 12.15 | AJ145: =IF(ISERROR(VLOOKUP(AH145,'Cenários COPOM'!$A$1:$K$100,10,FALSE)),0,VLOOKUP(AH145,'Cenários COPOM'!$A$1:$K$100,10,FALSE)/100) -> 0 | AK145: 12.15 | AL145: 10672.34 | AM145: 12.15024506
A146: 144 | B146: =WORKDAY(B145,1,feriados!$A$2:$A$1000) -> 2024-06-06 | C146: 12.15 | D146: =IF(ISERROR(VLOOKUP(B146,'Cenários COPOM'!$A$1:$K$100,2,FALSE)),0,VLOOKUP(B146,'Cenários COPOM'!$A$1:$K$100,2,FALSE)/100) -> 0 | E146: 12.15 | F146: 10677.2 | G146: 12.15029263 | I146: 144 | J146: =WORKDAY(J145,1,feriados!$A$2:$A$1000) -> 2024-06-06 | K146: 12.15 | L146: =IF(ISERROR(VLOOKUP(J146,'Cenários COPOM'!$A$1:$K$100,4,FALSE)),0,VLOOKUP(J146,'Cenários COPOM'!$A$1:$K$100,4,FALSE)/100) -> 0 | M146: 12.15 | N146: 10677.2 | O146: 12.15029263 | Q146: 144 | R146: =WORKDAY(R145,1,feriados!$A$2:$A$1000) -> 2024-06-06 | S146: 12.15 | T146: =IF(ISERROR(VLOOKUP(R146,'Cenários COPOM'!$A$1:$K$100,6,FALSE)),0,VLOOKUP(R146,'Cenários COPOM'!$A$1:$K$100,6,FALSE)/100) -> 0 | U146: 12.15 | V146: 10677.2 | W146: 12.15029263 | Y146: 144 | Z146: =WORKDAY(Z145,1,feriados!$A$2:$A$1000) -> 2024-06-06 | AA146: 12.15 | AB146: =IF(ISERROR(VLOOKUP(Z146,'Cenários COPOM'!$A$1:$K$100,8,FALSE)),0,VLOOKUP(Z146,'Cenários COPOM'!$A$1:$K$100,8,FALSE)/100) -> 0 | AC146: 12.15 | AD146: 10677.2 | AE146: 12.15029263 | AG146: 144 | AH146: =WORKDAY(AH145,1,feriados!$A$2:$A$1000) -> 2024-06-06 | AI146: 12.15 | AJ146: =IF(ISERROR(VLOOKUP(AH146,'Cenários COPOM'!$A$1:$K$100,10,FALSE)),0,VLOOKUP(AH146,'Cenários COPOM'!$A$1:$K$100,10,FALSE)/100) -> 0 | AK146: 12.15 | AL146: 10677.2 | AM146: 12.15029263
A147: 145 | B147: =WORKDAY(B146,1,feriados!$A$2:$A$1000) -> 2024-06-07 | C147: 12.15 | D147: =IF(ISERROR(VLOOKUP(B147,'Cenários COPOM'!$A$1:$K$100,2,FALSE)),0,VLOOKUP(B147,'Cenários COPOM'!$A$1:$K$100,2,FALSE)/100) -> 0 | E147: 12.15 | F147: 10682.06 | G147: 12.15029917 | I147: 145 | J147: =WORKDAY(J146,1,feriados!$A$2:$A$1000) -> 2024-06-07 | K147: 12.15 | L147: =IF(ISERROR(VLOOKUP(J147,'Cenários COPOM'!$A$1:$K$100,4,FALSE)),0,VLOOKUP(J147,'Cenários COPOM'!$A$1:$K$100,4,FALSE)/100) -> 0 | M147: 12.15 | N147: 10682.06 | O147: 12.15029917 | Q147: 145 | R147: =WORKDAY(R146,1,feriados!$A$2:$A$1000) -> 2024-06-07 | S147: 12.15 | T147: =IF(ISERROR(VLOOKUP(R147,'Cenários COPOM'!$A$1:$K$100,6,FALSE)),0,VLOOKUP(R147,'Cenários COPOM'!$A$1:$K$100,6,FALSE)/100) -> 0 | U147: 12.15 | V147: 10682.06 | W147: 12.15029917 | Y147: 145 | Z147: =WORKDAY(Z146,1,feriados!$A$2:$A$1000) -> 2024-06-07 | AA147: 12.15 | AB147: =IF(ISERROR(VLOOKUP(Z147,'Cenários COPOM'!$A$1:$K$100,8,FALSE)),0,VLOOKUP(Z147,'Cenários COPOM'!$A$1:$K$100,8,FALSE)/100) -> 0 | AC147: 12.15 | AD147: 10682.06 | AE147: 12.15029917 | AG147: 145 | AH147: =WORKDAY(AH146,1,feriados!$A$2:$A$1000) -> 2024-06-07 | AI147: 12.15 | AJ147: =IF(ISERROR(VLOOKUP(AH147,'Cenários COPOM'!$A$1:$K$100,10,FALSE)),0,VLOOKUP(AH147,'Cenários COPOM'!$A$1:$K$100,10,FALSE)/100) -> 0 | AK147: 12.15 | AL147: 10682.06 | AM147: 12.15029917
A148: 146 | B148: =WORKDAY(B147,1,feriados!$A$2:$A$1000) -> 2024-06-10 | C148: 12.15 | D148: =IF(ISERROR(VLOOKUP(B148,'Cenários COPOM'!$A$1:$K$100,2,FALSE)),0,VLOOKUP(B148,'Cenários COPOM'!$A$1:$K$100,2,FALSE)/100) -> 0 | E148: 12.15 | F148: 10686.92 | G148: 12.15026554 | I148: 146 | J148: =WORKDAY(J147,1,feriados!$A$2:$A$1000) -> 2024-06-10 | K148: 12.15 | L148: =IF(ISERROR(VLOOKUP(J148,'Cenários COPOM'!$A$1:$K$100,4,FALSE)),0,VLOOKUP(J148,'Cenários COPOM'!$A$1:$K$100,4,FALSE)/100) -> 0 | M148: 12.15 | N148: 10686.92 | O148: 12.15026554 | Q148: 146 | R148: =WORKDAY(R147,1,feriados!$A$2:$A$1000) -> 2024-06-10 | S148: 12.15 | T148: =IF(ISERROR(VLOOKUP(R148,'Cenários COPOM'!$A$1:$K$100,6,FALSE)),0,VLOOKUP(R148,'Cenários COPOM'!$A$1:$K$100,6,FALSE)/100) -> 0 | U148: 12.15 | V148: 10686.92 | W148: 12.15026554 | Y148: 146 | Z148: =WORKDAY(Z147,1,feriados!$A$2:$A$1000) -> 2024-06-10 | AA148: 12.15 | AB148: =IF(ISERROR(VLOOKUP(Z148,'Cenários COPOM'!$A$1:$K$100,8,FALSE)),0,VLOOKUP(Z148,'Cenários COPOM'!$A$1:$K$100,8,FALSE)/100) -> 0 | AC148: 12.15 | AD148: 10686.92 | AE148: 12.15026554 | AG148: 146 | AH148: =WORKDAY(AH147,1,feriados!$A$2:$A$1000) -> 2024-06-10 | AI148: 12.15 | AJ148: =IF(ISERROR(VLOOKUP(AH148,'Cenários COPOM'!$A$1:$K$100,10,FALSE)),0,VLOOKUP(AH148,'Cenários COPOM'!$A$1:$K$100,10,FALSE)/100) -> 0 | AK148: 12.15 | AL148: 10686.92 | AM148: 12.15026554
A149: 147 | B149: =WORKDAY(B148,1,feriados!$A$2:$A$1000) -> 2024-06-11 | C149: 12.15 | D149: =IF(ISERROR(VLOOKUP(B149,'Cenários COPOM'!$A$1:$K$100,2,FALSE)),0,VLOOKUP(B149,'Cenários COPOM'!$A$1:$K$100,2,FALSE)/100) -> 0 | E149: 12.15 | F149: 10691.78 | G149: 12.15019262 | I149: 147 | J149: =WORKDAY(J148,1,feriados!$A$2:$A$1000) -> 2024-06-11 | K149: 12.15 | L149: =IF(ISERROR(VLOOKUP(J149,'Cenários COPOM'!$A$1:$K$100,4,FALSE)),0,VLOOKUP(J149,'Cenários COPOM'!$A$1:$K$100,4,FALSE)/100) -> 0 | M149: 12.15 | N149: 10691.78 | O149: 12.15019262 | Q149: 147 | R149: =WORKDAY(R148,1,feriados!$A$2:$A$1000) -> 2024-06-11 | S149: 12.15 | T149: =IF(ISERROR(VLOOKUP(R149,'Cenários COPOM'!$A$1:$K$100,6,FALSE)),0,VLOOKUP(R149,'Cenários COPOM'!$A$1:$K$100,6,FALSE)/100) -> 0 | U149: 12.15 | V149: 10691.78 | W149: 12.15019262 | Y149: 147 | Z149: =WORKDAY(Z148,1,feriados!$A$2:$A$1000) -> 2024-06-11 | AA149: 12.15 | AB149: =IF(ISERROR(VLOOKUP(Z149,'Cenários COPOM'!$A$1:$K$100,8,FALSE)),0,VLOOKUP(Z149,'Cenários COPOM'!$A$1:$K$100,8,FALSE)/100) -> 0 | AC149: 12.15 | AD149: 10691.78 | AE149: 12.15019262 | AG149: 147 | AH149: =WORKDAY(AH148,1,feriados!$A$2:$A$1000) -> 2024-06-11 | AI149: 12.15 | AJ149: =IF(ISERROR(VLOOKUP(AH149,'Cenários COPOM'!$A$1:$K$100,10,FALSE)),0,VLOOKUP(AH149,'Cenários COPOM'!$A$1:$K$100,10,FALSE)/100) -> 0 | AK149: 12.15 | AL149: 10691.78 | AM149: 12.15019262
A150: 148 | B150: =WORKDAY(B149,1,feriados!$A$2:$A$1000) -> 2024-06-12 | C150: 12.15 | D150: =IF(ISERROR(VLOOKUP(B150,'Cenários COPOM'!$A$1:$K$100,2,FALSE)),0,VLOOKUP(B150,'Cenários COPOM'!$A$1:$K$100,2,FALSE)/100) -> 0 | E150: 12.15 | F150: 10696.65 | G150: 12.15025974 | I150: 148 | J150: =WORKDAY(J149,1,feriados!$A$2:$A$1000) -> 2024-06-12 | K150: 12.15 | L150: =IF(ISERROR(VLOOKUP(J150,'Cenários COPOM'!$A$1:$K$100,4,FALSE)),0,VLOOKUP(J150,'Cenários COPOM'!$A$1:$K$100,4,FALSE)/100) -> 0 | M150: 12.15 | N150: 10696.65 | O150: 12.15025974 | Q150: 148 | R150: =WORKDAY(R149,1,feriados!$A$2:$A$1000) -> 2024-06-12 | S150: 12.15 | T150: =IF(ISERROR(VLOOKUP(R150,'Cenários COPOM'!$A$1:$K$100,6,FALSE)),0,VLOOKUP(R150,'Cenários COPOM'!$A$1:$K$100,6,FALSE)/100) -> 0 | U150: 12.15 | V150: 10696.65 | W150: 12.15025974 | Y150: 148 | Z150: =WORKDAY(Z149,1,feriados!$A$2:$A$1000) -> 2024-06-12 | AA150: 12.15 | AB150: =IF(ISERROR(VLOOKUP(Z150,'Cenários COPOM'!$A$1:$K$100,8,FALSE)),0,VLOOKUP(Z150,'Cenários COPOM'!$A$1:$K$100,8,FALSE)/100) -> 0 | AC150: 12.15 | AD150: 10696.65 | AE150: 12.15025974 | AG150: 148 | AH150: =WORKDAY(AH149,1,feriados!$A$2:$A$1000) -> 2024-06-12 | AI150: 12.15 | AJ150: =IF(ISERROR(VLOOKUP(AH150,'Cenários COPOM'!$A$1:$K$100,10,FALSE)),0,VLOOKUP(AH150,'Cenários COPOM'!$A$1:$K$100,10,FALSE)/100) -> 0 | AK150: 12.15 | AL150: 10696.65 | AM150: 12.15025974
A151: 149 | B151: =WORKDAY(B150,1,feriados!$A$2:$A$1000) -> 2024-06-13 | C151: 12.15 | D151: =IF(ISERROR(VLOOKUP(B151,'Cenários COPOM'!$A$1:$K$100,2,FALSE)),0,VLOOKUP(B151,'Cenários COPOM'!$A$1:$K$100,2,FALSE)/100) -> 0 | E151: 12.15 | F151: 10701.52 | G151: 12.15028665 | I151: 149 | J151: =WORKDAY(J150,1,feriados!$A$2:$A$1000) -> 2024-06-13 | K151: 12.15 | L151: =IF(ISERROR(VLOOKUP(J151,'Cenários COPOM'!$A$1:$K$100,4,FALSE)),0,VLOOKUP(J151,'Cenários COPOM'!$A$1:$K$100,4,FALSE)/100) -> 0 | M151: 12.15 | N151: 10701.52 | O151: 12.15028665 | Q151: 149 | R151: =WORKDAY(R150,1,feriados!$A$2:$A$1000) -> 2024-06-13 | S151: 12.15 | T151: =IF(ISERROR(VLOOKUP(R151,'Cenários COPOM'!$A$1:$K$100,6,FALSE)),0,VLOOKUP(R151,'Cenários COPOM'!$A$1:$K$100,6,FALSE)/100) -> 0 | U151: 12.15 | V151: 10701.52 | W151: 12.15028665 | Y151: 149 | Z151: =WORKDAY(Z150,1,feriados!$A$2:$A$1000) -> 2024-06-13 | AA151: 12.15 | AB151: =IF(ISERROR(VLOOKUP(Z151,'Cenários COPOM'!$A$1:$K$100,8,FALSE)),0,VLOOKUP(Z151,'Cenários COPOM'!$A$1:$K$100,8,FALSE)/100) -> 0 | AC151: 12.15 | AD151: 10701.52 | AE151: 12.15028665 | AG151: 149 | AH151: =WORKDAY(AH150,1,feriados!$A$2:$A$1000) -> 2024-06-13 | AI151: 12.15 | AJ151: =IF(ISERROR(VLOOKUP(AH151,'Cenários COPOM'!$A$1:$K$100,10,FALSE)),0,VLOOKUP(AH151,'Cenários COPOM'!$A$1:$K$100,10,FALSE)/100) -> 0 | AK151: 12.15 | AL151: 10701.52 | AM151: 12.15028665
A152: 150 | B152: =WORKDAY(B151,1,feriados!$A$2:$A$1000) -> 2024-06-14 | C152: 12.15 | D152: =IF(ISERROR(VLOOKUP(B152,'Cenários COPOM'!$A$1:$K$100,2,FALSE)),0,VLOOKUP(B152,'Cenários COPOM'!$A$1:$K$100,2,FALSE)/100) -> 0 | E152: 12.15 | F152: 10706.39 | G152: 12.15027418 | I152: 150 | J152: =WORKDAY(J151,1,feriados!$A$2:$A$1000) -> 2024-06-14 | K152: 12.15 | L152: =IF(ISERROR(VLOOKUP(J152,'Cenários COPOM'!$A$1:$K$100,4,FALSE)),0,VLOOKUP(J152,'Cenários COPOM'!$A$1:$K$100,4,FALSE)/100) -> 0 | M152: 12.15 | N152: 10706.39 | O152: 12.15027418 | Q152: 150 | R152: =WORKDAY(R151,1,feriados!$A$2:$A$1000) -> 2024-06-14 | S152: 12.15 | T152: =IF(ISERROR(VLOOKUP(R152,'Cenários COPOM'!$A$1:$K$100,6,FALSE)),0,VLOOKUP(R152,'Cenários COPOM'!$A$1:$K$100,6,FALSE)/100) -> 0 | U152: 12.15 | V152: 10706.39 | W152: 12.15027418 | Y152: 150 | Z152: =WORKDAY(Z151,1,feriados!$A$2:$A$1000) -> 2024-06-14 | AA152: 12.15 | AB152: =IF(ISERROR(VLOOKUP(Z152,'Cenários COPOM'!$A$1:$K$100,8,FALSE)),0,VLOOKUP(Z152,'Cenários COPOM'!$A$1:$K$100,8,FALSE)/100) -> 0 | AC152: 12.15 | AD152: 10706.39 | AE152: 12.15027418 | AG152: 150 | AH152: =WORKDAY(AH151,1,feriados!$A$2:$A$1000) -> 2024-06-14 | AI152: 12.15 | AJ152: =IF(ISERROR(VLOOKUP(AH152,'Cenários COPOM'!$A$1:$K$100,10,FALSE)),0,VLOOKUP(AH152,'Cenários COPOM'!$A$1:$K$100,10,FALSE)/100) -> 0 | AK152: 12.15 | AL152: 10706.39 | AM152: 12.15027418
A153: 151 | B153: =WORKDAY(B152,1,feriados!$A$2:$A$1000) -> 2024-06-17 | C153: 12.15 | D153: =IF(ISERROR(VLOOKUP(B153,'Cenários COPOM'!$A$1:$K$100,2,FALSE)),0,VLOOKUP(B153,'Cenários COPOM'!$A$1:$K$100,2,FALSE)/100) -> 0 | E153: 12.15 | F153: 10711.26 | G153: 12.15022314 | I153: 151 | J153: =WORKDAY(J152,1,feriados!$A$2:$A$1000) -> 2024-06-17 | K153: 12.15 | L153: =IF(ISERROR(VLOOKUP(J153,'Cenários COPOM'!$A$1:$K$100,4,FALSE)),0,VLOOKUP(J153,'Cenários COPOM'!$A$1:$K$100,4,FALSE)/100) -> 0 | M153: 12.15 | N153: 10711.26 | O153: 12.15022314 | Q153: 151 | R153: =WORKDAY(R152,1,feriados!$A$2:$A$1000) -> 2024-06-17 | S153: 12.15 | T153: =IF(ISERROR(VLOOKUP(R153,'Cenários COPOM'!$A$1:$K$100,6,FALSE)),0,VLOOKUP(R153,'Cenários COPOM'!$A$1:$K$100,6,FALSE)/100) -> 0 | U153: 12.15 | V153: 10711.26 | W153: 12.15022314 | Y153: 151 | Z153: =WORKDAY(Z152,1,feriados!$A$2:$A$1000) -> 2024-06-17 | AA153: 12.15 | AB153: =IF(ISERROR(VLOOKUP(Z153,'Cenários COPOM'!$A$1:$K$100,8,FALSE)),0,VLOOKUP(Z153,'Cenários COPOM'!$A$1:$K$100,8,FALSE)/100) -> 0 | AC153: 12.15 | AD153: 10711.26 | AE153: 12.15022314 | AG153: 151 | AH153: =WORKDAY(AH152,1,feriados!$A$2:$A$1000) -> 2024-06-17 | AI153: 12.15 | AJ153: =IF(ISERROR(VLOOKUP(AH153,'Cenários COPOM'!$A$1:$K$100,10,FALSE)),0,VLOOKUP(AH153,'Cenários COPOM'!$A$1:$K$100,10,FALSE)/100) -> 0 | AK153: 12.15 | AL153: 10711.26 | AM153: 12.15022314
A154: 152 | B154: =WORKDAY(B153,1,feriados!$A$2:$A$1000) -> 2024-06-18 | C154: 12.15 | D154: =IF(ISERROR(VLOOKUP(B154,'Cenários COPOM'!$A$1:$K$100,2,FALSE)),0,VLOOKUP(B154,'Cenários COPOM'!$A$1:$K$100,2,FALSE)/100) -> 0 | E154: 12.15 | F154: 10716.14 | G154: 12.15030786 | I154: 152 | J154: =WORKDAY(J153,1,feriados!$A$2:$A$1000) -> 2024-06-18 | K154: 12.15 | L154: =IF(ISERROR(VLOOKUP(J154,'Cenários COPOM'!$A$1:$K$100,4,FALSE)),0,VLOOKUP(J154,'Cenários COPOM'!$A$1:$K$100,4,FALSE)/100) -> 0 | M154: 12.15 | N154: 10716.14 | O154: 12.15030786 | Q154: 152 | R154: =WORKDAY(R153,1,feriados!$A$2:$A$1000) -> 2024-06-18 | S154: 12.15 | T154: =IF(ISERROR(VLOOKUP(R154,'Cenários COPOM'!$A$1:$K$100,6,FALSE)),0,VLOOKUP(R154,'Cenários COPOM'!$A$1:$K$100,6,FALSE)/100) -> 0 | U154: 12.15 | V154: 10716.14 | W154: 12.15030786 | Y154: 152 | Z154: =WORKDAY(Z153,1,feriados!$A$2:$A$1000) -> 2024-06-18 | AA154: 12.15 | AB154: =IF(ISERROR(VLOOKUP(Z154,'Cenários COPOM'!$A$1:$K$100,8,FALSE)),0,VLOOKUP(Z154,'Cenários COPOM'!$A$1:$K$100,8,FALSE)/100) -> 0 | AC154: 12.15 | AD154: 10716.14 | AE154: 12.15030786 | AG154: 152 | AH154: =WORKDAY(AH153,1,feriados!$A$2:$A$1000) -> 2024-06-18 | AI154: 12.15 | AJ154: =IF(ISERROR(VLOOKUP(AH154,'Cenários COPOM'!$A$1:$K$100,10,FALSE)),0,VLOOKUP(AH154,'Cenários COPOM'!$A$1:$K$100,10,FALSE)/100) -> 0 | AK154: 12.15 | AL154: 10716.14 | AM154: 12.15030786
A155: 153 | B155: =WORKDAY(B154,1,feriados!$A$2:$A$1000) -> 2024-06-19 | C155: 12.15 | D155: =IF(ISERROR(VLOOKUP(B155,'Cenários COPOM'!$A$1:$K$100,2,FALSE)),0,VLOOKUP(B155,'Cenários COPOM'!$A$1:$K$100,2,FALSE)/100) -> 0 | E155: 12.15 | F155: 10721.02 | G155: 12.15035315 | I155: 153 | J155: =WORKDAY(J154,1,feriados!$A$2:$A$1000) -> 2024-06-19 | K155: 12.15 | L155: =IF(ISERROR(VLOOKUP(J155,'Cenários COPOM'!$A$1:$K$100,4,FALSE)),0,VLOOKUP(J155,'Cenários COPOM'!$A$1:$K$100,4,FALSE)/100) -> 0 | M155: 12.15 | N155: 10721.02 | O155: 12.15035315 | Q155: 153 | R155: =WORKDAY(R154,1,feriados!$A$2:$A$1000) -> 2024-06-19 | S155: 12.15 | T155: =IF(ISERROR(VLOOKUP(R155,'Cenários COPOM'!$A$1:$K$100,6,FALSE)),0,VLOOKUP(R155,'Cenários COPOM'!$A$1:$K$100,6,FALSE)/100) -> 0 | U155: 12.15 | V155: 10721.02 | W155: 12.15035315 | Y155: 153 | Z155: =WORKDAY(Z154,1,feriados!$A$2:$A$1000) -> 2024-06-19 | AA155: 12.15 | AB155: =IF(ISERROR(VLOOKUP(Z155,'Cenários COPOM'!$A$1:$K$100,8,FALSE)),0,VLOOKUP(Z155,'Cenários COPOM'!$A$1:$K$100,8,FALSE)/100) -> 0 | AC155: 12.15 | AD155: 10721.02 | AE155: 12.15035315 | AG155: 153 | AH155: =WORKDAY(AH154,1,feriados!$A$2:$A$1000) -> 2024-06-19 | AI155: 12.15 | AJ155: =IF(ISERROR(VLOOKUP(AH155,'Cenários COPOM'!$A$1:$K$100,10,FALSE)),0,VLOOKUP(AH155,'Cenários COPOM'!$A$1:$K$100,10,FALSE)/100) -> 0 | AK155: 12.15 | AL155: 10721.02 | AM155: 12.15035315
A156: 154 | B156: =WORKDAY(B155,1,feriados!$A$2:$A$1000) -> 2024-06-20 | C156: 12.15 | D156: =IF(ISERROR(VLOOKUP(B156,'Cenários COPOM'!$A$1:$K$100,2,FALSE)),0,VLOOKUP(B156,'Cenários COPOM'!$A$1:$K$100,2,FALSE)/100) -> 0 | E156: 12.15 | F156: 10725.9 | G156: 12.15035984 | I156: 154 | J156: =WORKDAY(J155,1,feriados!$A$2:$A$1000) -> 2024-06-20 | K156: 12.15 | L156: =IF(ISERROR(VLOOKUP(J156,'Cenários COPOM'!$A$1:$K$100,4,FALSE)),0,VLOOKUP(J156,'Cenários COPOM'!$A$1:$K$100,4,FALSE)/100) -> 0 | M156: 12.15 | N156: 10725.9 | O156: 12.15035984 | Q156: 154 | R156: =WORKDAY(R155,1,feriados!$A$2:$A$1000) -> 2024-06-20 | S156: 12.15 | T156: =IF(ISERROR(VLOOKUP(R156,'Cenários COPOM'!$A$1:$K$100,6,FALSE)),0,VLOOKUP(R156,'Cenários COPOM'!$A$1:$K$100,6,FALSE)/100) -> 0 | U156: 12.15 | V156: 10725.9 | W156: 12.15035984 | Y156: 154 | Z156: =WORKDAY(Z155,1,feriados!$A$2:$A$1000) -> 2024-06-20 | AA156: 12.15 | AB156: =IF(ISERROR(VLOOKUP(Z156,'Cenários COPOM'!$A$1:$K$100,8,FALSE)),0,VLOOKUP(Z156,'Cenários COPOM'!$A$1:$K$100,8,FALSE)/100) -> 0 | AC156: 12.15 | AD156: 10725.9 | AE156: 12.15035984 | AG156: 154 | AH156: =WORKDAY(AH155,1,feriados!$A$2:$A$1000) -> 2024-06-20 | AI156: 12.15 | AJ156: =IF(ISERROR(VLOOKUP(AH156,'Cenários COPOM'!$A$1:$K$100,10,FALSE)),0,VLOOKUP(AH156,'Cenários COPOM'!$A$1:$K$100,10,FALSE)/100) -> 0 | AK156: 12.15 | AL156: 10725.9 | AM156: 12.15035984
A157: 155 | B157: =WORKDAY(B156,1,feriados!$A$2:$A$1000) -> 2024-06-21 | C157: 12.15 | D157: =IF(ISERROR(VLOOKUP(B157,'Cenários COPOM'!$A$1:$K$100,2,FALSE)),0,VLOOKUP(B157,'Cenários COPOM'!$A$1:$K$100,2,FALSE)/100) -> 0 | E157: 12.15 | F157: 10730.78 | G157: 12.1503287 | I157: 155 | J157: =WORKDAY(J156,1,feriados!$A$2:$A$1000) -> 2024-06-21 | K157: 12.15 | L157: =IF(ISERROR(VLOOKUP(J157,'Cenários COPOM'!$A$1:$K$100,4,FALSE)),0,VLOOKUP(J157,'Cenários COPOM'!$A$1:$K$100,4,FALSE)/100) -> 0 | M157: 12.15 | N157: 10730.78 | O157: 12.1503287 | Q157: 155 | R157: =WORKDAY(R156,1,feriados!$A$2:$A$1000) -> 2024-06-21 | S157: 12.15 | T157: =IF(ISERROR(VLOOKUP(R157,'Cenários COPOM'!$A$1:$K$100,6,FALSE)),0,VLOOKUP(R157,'Cenários COPOM'!$A$1:$K$100,6,FALSE)/100) -> 0 | U157: 12.15 | V157: 10730.78 | W157: 12.1503287 | Y157: 155 | Z157: =WORKDAY(Z156,1,feriados!$A$2:$A$1000) -> 2024-06-21 | AA157: 12.15 | AB157: =IF(ISERROR(VLOOKUP(Z157,'Cenários COPOM'!$A$1:$K$100,8,FALSE)),0,VLOOKUP(Z157,'Cenários COPOM'!$A$1:$K$100,8,FALSE)/100) -> 0 | AC157: 12.15 | AD157: 10730.78 | AE157: 12.1503287 | AG157: 155 | AH157: =WORKDAY(AH156,1,feriados!$A$2:$A$1000) -> 2024-06-21 | AI157: 12.15 | AJ157: =IF(ISERROR(VLOOKUP(AH157,'Cenários COPOM'!$A$1:$K$100,10,FALSE)),0,VLOOKUP(AH157,'Cenários COPOM'!$A$1:$K$100,10,FALSE)/100) -> 0 | AK157: 12.15 | AL157: 10730.78 | AM157: 12.1503287
A158: 156 | B158: =WORKDAY(B157,1,feriados!$A$2:$A$1000) -> 2024-06-24 | C158: 12.15 | D158: =IF(ISERROR(VLOOKUP(B158,'Cenários COPOM'!$A$1:$K$100,2,FALSE)),0,VLOOKUP(B158,'Cenários COPOM'!$A$1:$K$100,2,FALSE)/100) -> 0 | E158: 12.15 | F158: 10735.66 | G158: 12.15026049 | I158: 156 | J158: =WORKDAY(J157,1,feriados!$A$2:$A$1000) -> 2024-06-24 | K158: 12.15 | L158: =IF(ISERROR(VLOOKUP(J158,'Cenários COPOM'!$A$1:$K$100,4,FALSE)),0,VLOOKUP(J158,'Cenários COPOM'!$A$1:$K$100,4,FALSE)/100) -> 0 | M158: 12.15 | N158: 10735.66 | O158: 12.15026049 | Q158: 156 | R158: =WORKDAY(R157,1,feriados!$A$2:$A$1000) -> 2024-06-24 | S158: 12.15 | T158: =IF(ISERROR(VLOOKUP(R158,'Cenários COPOM'!$A$1:$K$100,6,FALSE)),0,VLOOKUP(R158,'Cenários COPOM'!$A$1:$K$100,6,FALSE)/100) -> 0 | U158: 12.15 | V158: 10735.66 | W158: 12.15026049 | Y158: 156 | Z158: =WORKDAY(Z157,1,feriados!$A$2:$A$1000) -> 2024-06-24 | AA158: 12.15 | AB158: =IF(ISERROR(VLOOKUP(Z158,'Cenários COPOM'!$A$1:$K$100,8,FALSE)),0,VLOOKUP(Z158,'Cenários COPOM'!$A$1:$K$100,8,FALSE)/100) -> 0 | AC158: 12.15 | AD158: 10735.66 | AE158: 12.15026049 | AG158: 156 | AH158: =WORKDAY(AH157,1,feriados!$A$2:$A$1000) -> 2024-06-24 | AI158: 12.15 | AJ158: =IF(ISERROR(VLOOKUP(AH158,'Cenários COPOM'!$A$1:$K$100,10,FALSE)),0,VLOOKUP(AH158,'Cenários COPOM'!$A$1:$K$100,10,FALSE)/100) -> 0 | AK158: 12.15 | AL158: 10735.66 | AM158: 12.15026049
A159: 157 | B159: =WORKDAY(B158,1,feriados!$A$2:$A$1000) -> 2024-06-25 | C159: 12.15 | D159: =IF(ISERROR(VLOOKUP(B159,'Cenários COPOM'!$A$1:$K$100,2,FALSE)),0,VLOOKUP(B159,'Cenários COPOM'!$A$1:$K$100,2,FALSE)/100) -> 0 | E159: 12.15 | F159: 10740.55 | G159: 12.15032355 | I159: 157 | J159: =WORKDAY(J158,1,feriados!$A$2:$A$1000) -> 2024-06-25 | K159: 12.15 | L159: =IF(ISERROR(VLOOKUP(J159,'Cenários COPOM'!$A$1:$K$100,4,FALSE)),0,VLOOKUP(J159,'Cenários COPOM'!$A$1:$K$100,4,FALSE)/100) -> 0 | M159: 12.15 | N159: 10740.55 | O159: 12.15032355 | Q159: 157 | R159: =WORKDAY(R158,1,feriados!$A$2:$A$1000) -> 2024-06-25 | S159: 12.15 | T159: =IF(ISERROR(VLOOKUP(R159,'Cenários COPOM'!$A$1:$K$100,6,FALSE)),0,VLOOKUP(R159,'Cenários COPOM'!$A$1:$K$100,6,FALSE)/100) -> 0 | U159: 12.15 | V159: 10740.55 | W159: 12.15032355 | Y159: 157 | Z159: =WORKDAY(Z158,1,feriados!$A$2:$A$1000) -> 2024-06-25 | AA159: 12.15 | AB159: =IF(ISERROR(VLOOKUP(Z159,'Cenários COPOM'!$A$1:$K$100,8,FALSE)),0,VLOOKUP(Z159,'Cenários COPOM'!$A$1:$K$100,8,FALSE)/100) -> 0 | AC159: 12.15 | AD159: 10740.55 | AE159: 12.15032355 | AG159: 157 | AH159: =WORKDAY(AH158,1,feriados!$A$2:$A$1000) -> 2024-06-25 | AI159: 12.15 | AJ159: =IF(ISERROR(VLOOKUP(AH159,'Cenários COPOM'!$A$1:$K$100,10,FALSE)),0,VLOOKUP(AH159,'Cenários COPOM'!$A$1:$K$100,10,FALSE)/100) -> 0 | AK159: 12.15 | AL159: 10740.55 | AM159: 12.15032355
A160: 158 | B160: =WORKDAY(B159,1,feriados!$A$2:$A$1000) -> 2024-06-26 | C160: 12.15 | D160: =IF(ISERROR(VLOOKUP(B160,'Cenários COPOM'!$A$1:$K$100,2,FALSE)),0,VLOOKUP(B160,'Cenários COPOM'!$A$1:$K$100,2,FALSE)/100) -> 0 | E160: 12.15 | F160: 10745.44 | G160: 12.15034874 | I160: 158 | J160: =WORKDAY(J159,1,feriados!$A$2:$A$1000) -> 2024-06-26 | K160: 12.15 | L160: =IF(ISERROR(VLOOKUP(J160,'Cenários COPOM'!$A$1:$K$100,4,FALSE)),0,VLOOKUP(J160,'Cenários COPOM'!$A$1:$K$100,4,FALSE)/100) -> 0 | M160: 12.15 | N160: 10745.44 | O160: 12.15034874 | Q160: 158 | R160: =WORKDAY(R159,1,feriados!$A$2:$A$1000) -> 2024-06-26 | S160: 12.15 | T160: =IF(ISERROR(VLOOKUP(R160,'Cenários COPOM'!$A$1:$K$100,6,FALSE)),0,VLOOKUP(R160,'Cenários COPOM'!$A$1:$K$100,6,FALSE)/100) -> 0 | U160: 12.15 | V160: 10745.44 | W160: 12.15034874 | Y160: 158 | Z160: =WORKDAY(Z159,1,feriados!$A$2:$A$1000) -> 2024-06-26 | AA160: 12.15 | AB160: =IF(ISERROR(VLOOKUP(Z160,'Cenários COPOM'!$A$1:$K$100,8,FALSE)),0,VLOOKUP(Z160,'Cenários COPOM'!$A$1:$K$100,8,FALSE)/100) -> 0 | AC160: 12.15 | AD160: 10745.44 | AE160: 12.15034874 | AG160: 158 | AH160: =WORKDAY(AH159,1,feriados!$A$2:$A$1000) -> 2024-06-26 | AI160: 12.15 | AJ160: =IF(ISERROR(VLOOKUP(AH160,'Cenários COPOM'!$A$1:$K$100,10,FALSE)),0,VLOOKUP(AH160,'Cenários COPOM'!$A$1:$K$100,10,FALSE)/100) -> 0 | AK160: 12.15 | AL160: 10745.44 | AM160: 12.15034874
A161: 159 | B161: =WORKDAY(B160,1,feriados!$A$2:$A$1000) -> 2024-06-27 | C161: 12.15 | D161: =IF(ISERROR(VLOOKUP(B161,'Cenários COPOM'!$A$1:$K$100,2,FALSE)),0,VLOOKUP(B161,'Cenários COPOM'!$A$1:$K$100,2,FALSE)/100) -> 0 | E161: 12.15 | F161: 10750.33 | G161: 12.1503368 | I161: 159 | J161: =WORKDAY(J160,1,feriados!$A$2:$A$1000) -> 2024-06-27 | K161: 12.15 | L161: =IF(ISERROR(VLOOKUP(J161,'Cenários COPOM'!$A$1:$K$100,4,FALSE)),0,VLOOKUP(J161,'Cenários COPOM'!$A$1:$K$100,4,FALSE)/100) -> 0 | M161: 12.15 | N161: 10750.33 | O161: 12.1503368 | Q161: 159 | R161: =WORKDAY(R160,1,feriados!$A$2:$A$1000) -> 2024-06-27 | S161: 12.15 | T161: =IF(ISERROR(VLOOKUP(R161,'Cenários COPOM'!$A$1:$K$100,6,FALSE)),0,VLOOKUP(R161,'Cenários COPOM'!$A$1:$K$100,6,FALSE)/100) -> 0 | U161: 12.15 | V161: 10750.33 | W161: 12.1503368 | Y161: 159 | Z161: =WORKDAY(Z160,1,feriados!$A$2:$A$1000) -> 2024-06-27 | AA161: 12.15 | AB161: =IF(ISERROR(VLOOKUP(Z161,'Cenários COPOM'!$A$1:$K$100,8,FALSE)),0,VLOOKUP(Z161,'Cenários COPOM'!$A$1:$K$100,8,FALSE)/100) -> 0 | AC161: 12.15 | AD161: 10750.33 | AE161: 12.1503368 | AG161: 159 | AH161: =WORKDAY(AH160,1,feriados!$A$2:$A$1000) -> 2024-06-27 | AI161: 12.15 | AJ161: =IF(ISERROR(VLOOKUP(AH161,'Cenários COPOM'!$A$1:$K$100,10,FALSE)),0,VLOOKUP(AH161,'Cenários COPOM'!$A$1:$K$100,10,FALSE)/100) -> 0 | AK161: 12.15 | AL161: 10750.33 | AM161: 12.1503368
A162: 160 | B162: =WORKDAY(B161,1,feriados!$A$2:$A$1000) -> 2024-06-28 | C162: 12.15 | D162: =IF(ISERROR(VLOOKUP(B162,'Cenários COPOM'!$A$1:$K$100,2,FALSE)),0,VLOOKUP(B162,'Cenários COPOM'!$A$1:$K$100,2,FALSE)/100) -> 0 | E162: 12.15 | F162: 10755.22 | G162: 12.15028846 | I162: 160 | J162: =WORKDAY(J161,1,feriados!$A$2:$A$1000) -> 2024-06-28 | K162: 12.15 | L162: =IF(ISERROR(VLOOKUP(J162,'Cenários COPOM'!$A$1:$K$100,4,FALSE)),0,VLOOKUP(J162,'Cenários COPOM'!$A$1:$K$100,4,FALSE)/100) -> 0 | M162: 12.15 | N162: 10755.22 | O162: 12.15028846 | Q162: 160 | R162: =WORKDAY(R161,1,feriados!$A$2:$A$1000) -> 2024-06-28 | S162: 12.15 | T162: =IF(ISERROR(VLOOKUP(R162,'Cenários COPOM'!$A$1:$K$100,6,FALSE)),0,VLOOKUP(R162,'Cenários COPOM'!$A$1:$K$100,6,FALSE)/100) -> 0 | U162: 12.15 | V162: 10755.22 | W162: 12.15028846 | Y162: 160 | Z162: =WORKDAY(Z161,1,feriados!$A$2:$A$1000) -> 2024-06-28 | AA162: 12.15 | AB162: =IF(ISERROR(VLOOKUP(Z162,'Cenários COPOM'!$A$1:$K$100,8,FALSE)),0,VLOOKUP(Z162,'Cenários COPOM'!$A$1:$K$100,8,FALSE)/100) -> 0 | AC162: 12.15 | AD162: 10755.22 | AE162: 12.15028846 | AG162: 160 | AH162: =WORKDAY(AH161,1,feriados!$A$2:$A$1000) -> 2024-06-28 | AI162: 12.15 | AJ162: =IF(ISERROR(VLOOKUP(AH162,'Cenários COPOM'!$A$1:$K$100,10,FALSE)),0,VLOOKUP(AH162,'Cenários COPOM'!$A$1:$K$100,10,FALSE)/100) -> 0 | AK162: 12.15 | AL162: 10755.22 | AM162: 12.15028846
A163: 161 | B163: =WORKDAY(B162,1,feriados!$A$2:$A$1000) -> 2024-07-01 | C163: 12.15 | D163: =IF(ISERROR(VLOOKUP(B163,'Cenários COPOM'!$A$1:$K$100,2,FALSE)),0,VLOOKUP(B163,'Cenários COPOM'!$A$1:$K$100,2,FALSE)/100) -> 0 | E163: 12.15 | F163: 10760.12 | G163: 12.15036757 | I163: 161 | J163: =WORKDAY(J162,1,feriados!$A$2:$A$1000) -> 2024-07-01 | K163: 12.15 | L163: =IF(ISERROR(VLOOKUP(J163,'Cenários COPOM'!$A$1:$K$100,4,FALSE)),0,VLOOKUP(J163,'Cenários COPOM'!$A$1:$K$100,4,FALSE)/100) -> 0 | M163: 12.15 | N163: 10760.12 | O163: 12.15036757 | Q163: 161 | R163: =WORKDAY(R162,1,feriados!$A$2:$A$1000) -> 2024-07-01 | S163: 12.15 | T163: =IF(ISERROR(VLOOKUP(R163,'Cenários COPOM'!$A$1:$K$100,6,FALSE)),0,VLOOKUP(R163,'Cenários COPOM'!$A$1:$K$100,6,FALSE)/100) -> 0 | U163: 12.15 | V163: 10760.12 | W163: 12.15036757 | Y163: 161 | Z163: =WORKDAY(Z162,1,feriados!$A$2:$A$1000) -> 2024-07-01 | AA163: 12.15 | AB163: =IF(ISERROR(VLOOKUP(Z163,'Cenários COPOM'!$A$1:$K$100,8,FALSE)),0,VLOOKUP(Z163,'Cenários COPOM'!$A$1:$K$100,8,FALSE)/100) -> 0 | AC163: 12.15 | AD163: 10760.12 | AE163: 12.15036757 | AG163: 161 | AH163: =WORKDAY(AH162,1,feriados!$A$2:$A$1000) -> 2024-07-01 | AI163: 12.15 | AJ163: =IF(ISERROR(VLOOKUP(AH163,'Cenários COPOM'!$A$1:$K$100,10,FALSE)),0,VLOOKUP(AH163,'Cenários COPOM'!$A$1:$K$100,10,FALSE)/100) -> 0 | AK163: 12.15 | AL163: 10760.12 | AM163: 12.15036757
A164: 162 | B164: =WORKDAY(B163,1,feriados!$A$2:$A$1000) -> 2024-07-02 | C164: 12.15 | D164: =IF(ISERROR(VLOOKUP(B164,'Cenários COPOM'!$A$1:$K$100,2,FALSE)),0,VLOOKUP(B164,'Cenários COPOM'!$A$1:$K$100,2,FALSE)/100) -> 0 | E164: 12.15 | F164: 10765.02 | G164: 12.15040953 | I164: 162 | J164: =WORKDAY(J163,1,feriados!$A$2:$A$1000) -> 2024-07-02 | K164: 12.15 | L164: =IF(ISERROR(VLOOKUP(J164,'Cenários COPOM'!$A$1:$K$100,4,FALSE)),0,VLOOKUP(J164,'Cenários COPOM'!$A$1:$K$100,4,FALSE)/100) -> 0 | M164: 12.15 | N164: 10765.02 | O164: 12.15040953 | Q164: 162 | R164: =WORKDAY(R163,1,feriados!$A$2:$A$1000) -> 2024-07-02 | S164: 12.15 | T164: =IF(ISERROR(VLOOKUP(R164,'Cenários COPOM'!$A$1:$K$100,6,FALSE)),0,VLOOKUP(R164,'Cenários COPOM'!$A$1:$K$100,6,FALSE)/100) -> 0 | U164: 12.15 | V164: 10765.02 | W164: 12.15040953 | Y164: 162 | Z164: =WORKDAY(Z163,1,feriados!$A$2:$A$1000) -> 2024-07-02 | AA164: 12.15 | AB164: =IF(ISERROR(VLOOKUP(Z164,'Cenários COPOM'!$A$1:$K$100,8,FALSE)),0,VLOOKUP(Z164,'Cenários COPOM'!$A$1:$K$100,8,FALSE)/100) -> 0 | AC164: 12.15 | AD164: 10765.02 | AE164: 12.15040953 | AG164: 162 | AH164: =WORKDAY(AH163,1,feriados!$A$2:$A$1000) -> 2024-07-02 | AI164: 12.15 | AJ164: =IF(ISERROR(VLOOKUP(AH164,'Cenários COPOM'!$A$1:$K$100,10,FALSE)),0,VLOOKUP(AH164,'Cenários COPOM'!$A$1:$K$100,10,FALSE)/100) -> 0 | AK164: 12.15 | AL164: 10765.02 | AM164: 12.15040953
A165: 163 | B165: =WORKDAY(B164,1,feriados!$A$2:$A$1000) -> 2024-07-03 | C165: 12.15 | D165: =IF(ISERROR(VLOOKUP(B165,'Cenários COPOM'!$A$1:$K$100,2,FALSE)),0,VLOOKUP(B165,'Cenários COPOM'!$A$1:$K$100,2,FALSE)/100) -> 0 | E165: 12.15 | F165: 10769.92 | G165: 12.15041506 | I165: 163 | J165: =WORKDAY(J164,1,feriados!$A$2:$A$1000) -> 2024-07-03 | K165: 12.15 | L165: =IF(ISERROR(VLOOKUP(J165,'Cenários COPOM'!$A$1:$K$100,4,FALSE)),0,VLOOKUP(J165,'Cenários COPOM'!$A$1:$K$100,4,FALSE)/100) -> 0 | M165: 12.15 | N165: 10769.92 | O165: 12.15041506 | Q165: 163 | R165: =WORKDAY(R164,1,feriados!$A$2:$A$1000) -> 2024-07-03 | S165: 12.15 | T165: =IF(ISERROR(VLOOKUP(R165,'Cenários COPOM'!$A$1:$K$100,6,FALSE)),0,VLOOKUP(R165,'Cenários COPOM'!$A$1:$K$100,6,FALSE)/100) -> 0 | U165: 12.15 | V165: 10769.92 | W165: 12.15041506 | Y165: 163 | Z165: =WORKDAY(Z164,1,feriados!$A$2:$A$1000) -> 2024-07-03 | AA165: 12.15 | AB165: =IF(ISERROR(VLOOKUP(Z165,'Cenários COPOM'!$A$1:$K$100,8,FALSE)),0,VLOOKUP(Z165,'Cenários COPOM'!$A$1:$K$100,8,FALSE)/100) -> 0 | AC165: 12.15 | AD165: 10769.92 | AE165: 12.15041506 | AG165: 163 | AH165: =WORKDAY(AH164,1,feriados!$A$2:$A$1000) -> 2024-07-03 | AI165: 12.15 | AJ165: =IF(ISERROR(VLOOKUP(AH165,'Cenários COPOM'!$A$1:$K$100,10,FALSE)),0,VLOOKUP(AH165,'Cenários COPOM'!$A$1:$K$100,10,FALSE)/100) -> 0 | AK165: 12.15 | AL165: 10769.92 | AM165: 12.15041506
A166: 164 | B166: =WORKDAY(B165,1,feriados!$A$2:$A$1000) -> 2024-07-04 | C166: 12.15 | D166: =IF(ISERROR(VLOOKUP(B166,'Cenários COPOM'!$A$1:$K$100,2,FALSE)),0,VLOOKUP(B166,'Cenários COPOM'!$A$1:$K$100,2,FALSE)/100) -> 0 | E166: 12.15 | F166: 10774.82 | G166: 12.15038484 | I166: 164 | J166: =WORKDAY(J165,1,feriados!$A$2:$A$1000) -> 2024-07-04 | K166: 12.15 | L166: =IF(ISERROR(VLOOKUP(J166,'Cenários COPOM'!$A$1:$K$100,4,FALSE)),0,VLOOKUP(J166,'Cenários COPOM'!$A$1:$K$100,4,FALSE)/100) -> 0 | M166: 12.15 | N166: 10774.82 | O166: 12.15038484 | Q166: 164 | R166: =WORKDAY(R165,1,feriados!$A$2:$A$1000) -> 2024-07-04 | S166: 12.15 | T166: =IF(ISERROR(VLOOKUP(R166,'Cenários COPOM'!$A$1:$K$100,6,FALSE)),0,VLOOKUP(R166,'Cenários COPOM'!$A$1:$K$100,6,FALSE)/100) -> 0 | U166: 12.15 | V166: 10774.82 | W166: 12.15038484 | Y166: 164 | Z166: =WORKDAY(Z165,1,feriados!$A$2:$A$1000) -> 2024-07-04 | AA166: 12.15 | AB166: =IF(ISERROR(VLOOKUP(Z166,'Cenários COPOM'!$A$1:$K$100,8,FALSE)),0,VLOOKUP(Z166,'Cenários COPOM'!$A$1:$K$100,8,FALSE)/100) -> 0 | AC166: 12.15 | AD166: 10774.82 | AE166: 12.15038484 | AG166: 164 | AH166: =WORKDAY(AH165,1,feriados!$A$2:$A$1000) -> 2024-07-04 | AI166: 12.15 | AJ166: =IF(ISERROR(VLOOKUP(AH166,'Cenários COPOM'!$A$1:$K$100,10,FALSE)),0,VLOOKUP(AH166,'Cenários COPOM'!$A$1:$K$100,10,FALSE)/100) -> 0 | AK166: 12.15 | AL166: 10774.82 | AM166: 12.15038484
A167: 165 | B167: =WORKDAY(B166,1,feriados!$A$2:$A$1000) -> 2024-07-05 | C167: 12.15 | D167: =IF(ISERROR(VLOOKUP(B167,'Cenários COPOM'!$A$1:$K$100,2,FALSE)),0,VLOOKUP(B167,'Cenários COPOM'!$A$1:$K$100,2,FALSE)/100) -> 0 | E167: 12.15 | F167: 10779.72 | G167: 12.15031956 | I167: 165 | J167: =WORKDAY(J166,1,feriados!$A$2:$A$1000) -> 2024-07-05 | K167: 12.15 | L167: =IF(ISERROR(VLOOKUP(J167,'Cenários COPOM'!$A$1:$K$100,4,FALSE)),0,VLOOKUP(J167,'Cenários COPOM'!$A$1:$K$100,4,FALSE)/100) -> 0 | M167: 12.15 | N167: 10779.72 | O167: 12.15031956 | Q167: 165 | R167: =WORKDAY(R166,1,feriados!$A$2:$A$1000) -> 2024-07-05 | S167: 12.15 | T167: =IF(ISERROR(VLOOKUP(R167,'Cenários COPOM'!$A$1:$K$100,6,FALSE)),0,VLOOKUP(R167,'Cenários COPOM'!$A$1:$K$100,6,FALSE)/100) -> 0 | U167: 12.15 | V167: 10779.72 | W167: 12.15031956 | Y167: 165 | Z167: =WORKDAY(Z166,1,feriados!$A$2:$A$1000) -> 2024-07-05 | AA167: 12.15 | AB167: =IF(ISERROR(VLOOKUP(Z167,'Cenários COPOM'!$A$1:$K$100,8,FALSE)),0,VLOOKUP(Z167,'Cenários COPOM'!$A$1:$K$100,8,FALSE)/100) -> 0 | AC167: 12.15 | AD167: 10779.72 | AE167: 12.15031956 | AG167: 165 | AH167: =WORKDAY(AH166,1,feriados!$A$2:$A$1000) -> 2024-07-05 | AI167: 12.15 | AJ167: =IF(ISERROR(VLOOKUP(AH167,'Cenários COPOM'!$A$1:$K$100,10,FALSE)),0,VLOOKUP(AH167,'Cenários COPOM'!$A$1:$K$100,10,FALSE)/100) -> 0 | AK167: 12.15 | AL167: 10779.72 | AM167: 12.15031956
A168: 166 | B168: =WORKDAY(B167,1,feriados!$A$2:$A$1000) -> 2024-07-08 | C168: 12.15 | D168: =IF(ISERROR(VLOOKUP(B168,'Cenários COPOM'!$A$1:$K$100,2,FALSE)),0,VLOOKUP(B168,'Cenários COPOM'!$A$1:$K$100,2,FALSE)/100) -> 0 | E168: 12.15 | F168: 10784.63 | G168: 12.15037776 | I168: 166 | J168: =WORKDAY(J167,1,feriados!$A$2:$A$1000) -> 2024-07-08 | K168: 12.15 | L168: =IF(ISERROR(VLOOKUP(J168,'Cenários COPOM'!$A$1:$K$100,4,FALSE)),0,VLOOKUP(J168,'Cenários COPOM'!$A$1:$K$100,4,FALSE)/100) -> 0 | M168: 12.15 | N168: 10784.63 | O168: 12.15037776 | Q168: 166 | R168: =WORKDAY(R167,1,feriados!$A$2:$A$1000) -> 2024-07-08 | S168: 12.15 | T168: =IF(ISERROR(VLOOKUP(R168,'Cenários COPOM'!$A$1:$K$100,6,FALSE)),0,VLOOKUP(R168,'Cenários COPOM'!$A$1:$K$100,6,FALSE)/100) -> 0 | U168: 12.15 | V168: 10784.63 | W168: 12.15037776 | Y168: 166 | Z168: =WORKDAY(Z167,1,feriados!$A$2:$A$1000) -> 2024-07-08 | AA168: 12.15 | AB168: =IF(ISERROR(VLOOKUP(Z168,'Cenários COPOM'!$A$1:$K$100,8,FALSE)),0,VLOOKUP(Z168,'Cenários COPOM'!$A$1:$K$100,8,FALSE)/100) -> 0 | AC168: 12.15 | AD168: 10784.63 | AE168: 12.15037776 | AG168: 166 | AH168: =WORKDAY(AH167,1,feriados!$A$2:$A$1000) -> 2024-07-08 | AI168: 12.15 | AJ168: =IF(ISERROR(VLOOKUP(AH168,'Cenários COPOM'!$A$1:$K$100,10,FALSE)),0,VLOOKUP(AH168,'Cenários COPOM'!$A$1:$K$100,10,FALSE)/100) -> 0 | AK168: 12.15 | AL168: 10784.63 | AM168: 12.15037776
A169: 167 | B169: =WORKDAY(B168,1,feriados!$A$2:$A$1000) -> 2024-07-09 | C169: 12.15 | D169: =IF(ISERROR(VLOOKUP(B169,'Cenários COPOM'!$A$1:$K$100,2,FALSE)),0,VLOOKUP(B169,'Cenários COPOM'!$A$1:$K$100,2,FALSE)/100) -> 0 | E169: 12.15 | F169: 10789.54 | G169: 12.15040019 | I169: 167 | J169: =WORKDAY(J168,1,feriados!$A$2:$A$1000) -> 2024-07-09 | K169: 12.15 | L169: =IF(ISERROR(VLOOKUP(J169,'Cenários COPOM'!$A$1:$K$100,4,FALSE)),0,VLOOKUP(J169,'Cenários COPOM'!$A$1:$K$100,4,FALSE)/100) -> 0 | M169: 12.15 | N169: 10789.54 | O169: 12.15040019 | Q169: 167 | R169: =WORKDAY(R168,1,feriados!$A$2:$A$1000) -> 2024-07-09 | S169: 12.15 | T169: =IF(ISERROR(VLOOKUP(R169,'Cenários COPOM'!$A$1:$K$100,6,FALSE)),0,VLOOKUP(R169,'Cenários COPOM'!$A$1:$K$100,6,FALSE)/100) -> 0 | U169: 12.15 | V169: 10789.54 | W169: 12.15040019 | Y169: 167 | Z169: =WORKDAY(Z168,1,feriados!$A$2:$A$1000) -> 2024-07-09 | AA169: 12.15 | AB169: =IF(ISERROR(VLOOKUP(Z169,'Cenários COPOM'!$A$1:$K$100,8,FALSE)),0,VLOOKUP(Z169,'Cenários COPOM'!$A$1:$K$100,8,FALSE)/100) -> 0 | AC169: 12.15 | AD169: 10789.54 | AE169: 12.15040019 | AG169: 167 | AH169: =WORKDAY(AH168,1,feriados!$A$2:$A$1000) -> 2024-07-09 | AI169: 12.15 | AJ169: =IF(ISERROR(VLOOKUP(AH169,'Cenários COPOM'!$A$1:$K$100,10,FALSE)),0,VLOOKUP(AH169,'Cenários COPOM'!$A$1:$K$100,10,FALSE)/100) -> 0 | AK169: 12.15 | AL169: 10789.54 | AM169: 12.15040019
A170: 168 | B170: =WORKDAY(B169,1,feriados!$A$2:$A$1000) -> 2024-07-10 | C170: 12.15 | D170: =IF(ISERROR(VLOOKUP(B170,'Cenários COPOM'!$A$1:$K$100,2,FALSE)),0,VLOOKUP(B170,'Cenários COPOM'!$A$1:$K$100,2,FALSE)/100) -> 0 | E170: 12.15 | F170: 10794.45 | G170: 12.15038751 | I170: 168 | J170: =WORKDAY(J169,1,feriados!$A$2:$A$1000) -> 2024-07-10 | K170: 12.15 | L170: =IF(ISERROR(VLOOKUP(J170,'Cenários COPOM'!$A$1:$K$100,4,FALSE)),0,VLOOKUP(J170,'Cenários COPOM'!$A$1:$K$100,4,FALSE)/100) -> 0 | M170: 12.15 | N170: 10794.45 | O170: 12.15038751 | Q170: 168 | R170: =WORKDAY(R169,1,feriados!$A$2:$A$1000) -> 2024-07-10 | S170: 12.15 | T170: =IF(ISERROR(VLOOKUP(R170,'Cenários COPOM'!$A$1:$K$100,6,FALSE)),0,VLOOKUP(R170,'Cenários COPOM'!$A$1:$K$100,6,FALSE)/100) -> 0 | U170: 12.15 | V170: 10794.45 | W170: 12.15038751 | Y170: 168 | Z170: =WORKDAY(Z169,1,feriados!$A$2:$A$1000) -> 2024-07-10 | AA170: 12.15 | AB170: =IF(ISERROR(VLOOKUP(Z170,'Cenários COPOM'!$A$1:$K$100,8,FALSE)),0,VLOOKUP(Z170,'Cenários COPOM'!$A$1:$K$100,8,FALSE)/100) -> 0 | AC170: 12.15 | AD170: 10794.45 | AE170: 12.15038751 | AG170: 168 | AH170: =WORKDAY(AH169,1,feriados!$A$2:$A$1000) -> 2024-07-10 | AI170: 12.15 | AJ170: =IF(ISERROR(VLOOKUP(AH170,'Cenários COPOM'!$A$1:$K$100,10,FALSE)),0,VLOOKUP(AH170,'Cenários COPOM'!$A$1:$K$100,10,FALSE)/100) -> 0 | AK170: 12.15 | AL170: 10794.45 | AM170: 12.15038751
A171: 169 | B171: =WORKDAY(B170,1,feriados!$A$2:$A$1000) -> 2024-07-11 | C171: 12.15 | D171: =IF(ISERROR(VLOOKUP(B171,'Cenários COPOM'!$A$1:$K$100,2,FALSE)),0,VLOOKUP(B171,'Cenários COPOM'!$A$1:$K$100,2,FALSE)/100) -> 0 | E171: 12.15 | F171: 10799.36 | G171: 12.15034038 | I171: 169 | J171: =WORKDAY(J170,1,feriados!$A$2:$A$1000) -> 2024-07-11 | K171: 12.15 | L171: =IF(ISERROR(VLOOKUP(J171,'Cenários COPOM'!$A$1:$K$100,4,FALSE)),0,VLOOKUP(J171,'Cenários COPOM'!$A$1:$K$100,4,FALSE)/100) -> 0 | M171: 12.15 | N171: 10799.36 | O171: 12.15034038 | Q171: 169 | R171: =WORKDAY(R170,1,feriados!$A$2:$A$1000) -> 2024-07-11 | S171: 12.15 | T171: =IF(ISERROR(VLOOKUP(R171,'Cenários COPOM'!$A$1:$K$100,6,FALSE)),0,VLOOKUP(R171,'Cenários COPOM'!$A$1:$K$100,6,FALSE)/100) -> 0 | U171: 12.15 | V171: 10799.36 | W171: 12.15034038 | Y171: 169 | Z171: =WORKDAY(Z170,1,feriados!$A$2:$A$1000) -> 2024-07-11 | AA171: 12.15 | AB171: =IF(ISERROR(VLOOKUP(Z171,'Cenários COPOM'!$A$1:$K$100,8,FALSE)),0,VLOOKUP(Z171,'Cenários COPOM'!$A$1:$K$100,8,FALSE)/100) -> 0 | AC171: 12.15 | AD171: 10799.36 | AE171: 12.15034038 | AG171: 169 | AH171: =WORKDAY(AH170,1,feriados!$A$2:$A$1000) -> 2024-07-11 | AI171: 12.15 | AJ171: =IF(ISERROR(VLOOKUP(AH171,'Cenários COPOM'!$A$1:$K$100,10,FALSE)),0,VLOOKUP(AH171,'Cenários COPOM'!$A$1:$K$100,10,FALSE)/100) -> 0 | AK171: 12.15 | AL171: 10799.36 | AM171: 12.15034038
A172: 170 | B172: =WORKDAY(B171,1,feriados!$A$2:$A$1000) -> 2024-07-12 | C172: 12.15 | D172: =IF(ISERROR(VLOOKUP(B172,'Cenários COPOM'!$A$1:$K$100,2,FALSE)),0,VLOOKUP(B172,'Cenários COPOM'!$A$1:$K$100,2,FALSE)/100) -> 0 | E172: 12.15 | F172: 10804.28 | G172: 12.15041331 | I172: 170 | J172: =WORKDAY(J171,1,feriados!$A$2:$A$1000) -> 2024-07-12 | K172: 12.15 | L172: =IF(ISERROR(VLOOKUP(J172,'Cenários COPOM'!$A$1:$K$100,4,FALSE)),0,VLOOKUP(J172,'Cenários COPOM'!$A$1:$K$100,4,FALSE)/100) -> 0 | M172: 12.15 | N172: 10804.28 | O172: 12.15041331 | Q172: 170 | R172: =WORKDAY(R171,1,feriados!$A$2:$A$1000) -> 2024-07-12 | S172: 12.15 | T172: =IF(ISERROR(VLOOKUP(R172,'Cenários COPOM'!$A$1:$K$100,6,FALSE)),0,VLOOKUP(R172,'Cenários COPOM'!$A$1:$K$100,6,FALSE)/100) -> 0 | U172: 12.15 | V172: 10804.28 | W172: 12.15041331 | Y172: 170 | Z172: =WORKDAY(Z171,1,feriados!$A$2:$A$1000) -> 2024-07-12 | AA172: 12.15 | AB172: =IF(ISERROR(VLOOKUP(Z172,'Cenários COPOM'!$A$1:$K$100,8,FALSE)),0,VLOOKUP(Z172,'Cenários COPOM'!$A$1:$K$100,8,FALSE)/100) -> 0 | AC172: 12.15 | AD172: 10804.28 | AE172: 12.15041331 | AG172: 170 | AH172: =WORKDAY(AH171,1,feriados!$A$2:$A$1000) -> 2024-07-12 | AI172: 12.15 | AJ172: =IF(ISERROR(VLOOKUP(AH172,'Cenários COPOM'!$A$1:$K$100,10,FALSE)),0,VLOOKUP(AH172,'Cenários COPOM'!$A$1:$K$100,10,FALSE)/100) -> 0 | AK172: 12.15 | AL172: 10804.28 | AM172: 12.15041331
A173: 171 | B173: =WORKDAY(B172,1,feriados!$A$2:$A$1000) -> 2024-07-15 | C173: 12.15 | D173: =IF(ISERROR(VLOOKUP(B173,'Cenários COPOM'!$A$1:$K$100,2,FALSE)),0,VLOOKUP(B173,'Cenários COPOM'!$A$1:$K$100,2,FALSE)/100) -> 0 | E173: 12.15 | F173: 10809.2 | G173: 12.15045111 | I173: 171 | J173: =WORKDAY(J172,1,feriados!$A$2:$A$1000) -> 2024-07-15 | K173: 12.15 | L173: =IF(ISERROR(VLOOKUP(J173,'Cenários COPOM'!$A$1:$K$100,4,FALSE)),0,VLOOKUP(J173,'Cenários COPOM'!$A$1:$K$100,4,FALSE)/100) -> 0 | M173: 12.15 | N173: 10809.2 | O173: 12.15045111 | Q173: 171 | R173: =WORKDAY(R172,1,feriados!$A$2:$A$1000) -> 2024-07-15 | S173: 12.15 | T173: =IF(ISERROR(VLOOKUP(R173,'Cenários COPOM'!$A$1:$K$100,6,FALSE)),0,VLOOKUP(R173,'Cenários COPOM'!$A$1:$K$100,6,FALSE)/100) -> 0 | U173: 12.15 | V173: 10809.2 | W173: 12.15045111 | Y173: 171 | Z173: =WORKDAY(Z172,1,feriados!$A$2:$A$1000) -> 2024-07-15 | AA173: 12.15 | AB173: =IF(ISERROR(VLOOKUP(Z173,'Cenários COPOM'!$A$1:$K$100,8,FALSE)),0,VLOOKUP(Z173,'Cenários COPOM'!$A$1:$K$100,8,FALSE)/100) -> 0 | AC173: 12.15 | AD173: 10809.2 | AE173: 12.15045111 | AG173: 171 | AH173: =WORKDAY(AH172,1,feriados!$A$2:$A$1000) -> 2024-07-15 | AI173: 12.15 | AJ173: =IF(ISERROR(VLOOKUP(AH173,'Cenários COPOM'!$A$1:$K$100,10,FALSE)),0,VLOOKUP(AH173,'Cenários COPOM'!$A$1:$K$100,10,FALSE)/100) -> 0 | AK173: 12.15 | AL173: 10809.2 | AM173: 12.15045111
A174: 172 | B174: =WORKDAY(B173,1,feriados!$A$2:$A$1000) -> 2024-07-16 | C174: 12.15 | D174: =IF(ISERROR(VLOOKUP(B174,'Cenários COPOM'!$A$1:$K$100,2,FALSE)),0,VLOOKUP(B174,'Cenários COPOM'!$A$1:$K$100,2,FALSE)/100) -> 0 | E174: 12.15 | F174: 10814.12 | G174: 12.15045444 | I174: 172 | J174: =WORKDAY(J173,1,feriados!$A$2:$A$1000) -> 2024-07-16 | K174: 12.15 | L174: =IF(ISERROR(VLOOKUP(J174,'Cenários COPOM'!$A$1:$K$100,4,FALSE)),0,VLOOKUP(J174,'Cenários COPOM'!$A$1:$K$100,4,FALSE)/100) -> 0 | M174: 12.15 | N174: 10814.12 | O174: 12.15045444 | Q174: 172 | R174: =WORKDAY(R173,1,feriados!$A$2:$A$1000) -> 2024-07-16 | S174: 12.15 | T174: =IF(ISERROR(VLOOKUP(R174,'Cenários COPOM'!$A$1:$K$100,6,FALSE)),0,VLOOKUP(R174,'Cenários COPOM'!$A$1:$K$100,6,FALSE)/100) -> 0 | U174: 12.15 | V174: 10814.12 | W174: 12.15045444 | Y174: 172 | Z174: =WORKDAY(Z173,1,feriados!$A$2:$A$1000) -> 2024-07-16 | AA174: 12.15 | AB174: =IF(ISERROR(VLOOKUP(Z174,'Cenários COPOM'!$A$1:$K$100,8,FALSE)),0,VLOOKUP(Z174,'Cenários COPOM'!$A$1:$K$100,8,FALSE)/100) -> 0 | AC174: 12.15 | AD174: 10814.12 | AE174: 12.15045444 | AG174: 172 | AH174: =WORKDAY(AH173,1,feriados!$A$2:$A$1000) -> 2024-07-16 | AI174: 12.15 | AJ174: =IF(ISERROR(VLOOKUP(AH174,'Cenários COPOM'!$A$1:$K$100,10,FALSE)),0,VLOOKUP(AH174,'Cenários COPOM'!$A$1:$K$100,10,FALSE)/100) -> 0 | AK174: 12.15 | AL174: 10814.12 | AM174: 12.15045444
A175: 173 | B175: =WORKDAY(B174,1,feriados!$A$2:$A$1000) -> 2024-07-17 | C175: 12.15 | D175: =IF(ISERROR(VLOOKUP(B175,'Cenários COPOM'!$A$1:$K$100,2,FALSE)),0,VLOOKUP(B175,'Cenários COPOM'!$A$1:$K$100,2,FALSE)/100) -> 0 | E175: 12.15 | F175: 10819.04 | G175: 12.15042391 | I175: 173 | J175: =WORKDAY(J174,1,feriados!$A$2:$A$1000) -> 2024-07-17 | K175: 12.15 | L175: =IF(ISERROR(VLOOKUP(J175,'Cenários COPOM'!$A$1:$K$100,4,FALSE)),0,VLOOKUP(J175,'Cenários COPOM'!$A$1:$K$100,4,FALSE)/100) -> 0 | M175: 12.15 | N175: 10819.04 | O175: 12.15042391 | Q175: 173 | R175: =WORKDAY(R174,1,feriados!$A$2:$A$1000) -> 2024-07-17 | S175: 12.15 | T175: =IF(ISERROR(VLOOKUP(R175,'Cenários COPOM'!$A$1:$K$100,6,FALSE)),0,VLOOKUP(R175,'Cenários COPOM'!$A$1:$K$100,6,FALSE)/100) -> 0 | U175: 12.15 | V175: 10819.04 | W175: 12.15042391 | Y175: 173 | Z175: =WORKDAY(Z174,1,feriados!$A$2:$A$1000) -> 2024-07-17 | AA175: 12.15 | AB175: =IF(ISERROR(VLOOKUP(Z175,'Cenários COPOM'!$A$1:$K$100,8,FALSE)),0,VLOOKUP(Z175,'Cenários COPOM'!$A$1:$K$100,8,FALSE)/100) -> 0 | AC175: 12.15 | AD175: 10819.04 | AE175: 12.15042391 | AG175: 173 | AH175: =WORKDAY(AH174,1,feriados!$A$2:$A$1000) -> 2024-07-17 | AI175: 12.15 | AJ175: =IF(ISERROR(VLOOKUP(AH175,'Cenários COPOM'!$A$1:$K$100,10,FALSE)),0,VLOOKUP(AH175,'Cenários COPOM'!$A$1:$K$100,10,FALSE)/100) -> 0 | AK175: 12.15 | AL175: 10819.04 | AM175: 12.15042391
A176: 174 | B176: =WORKDAY(B175,1,feriados!$A$2:$A$1000) -> 2024-07-18 | C176: 12.15 | D176: =IF(ISERROR(VLOOKUP(B176,'Cenários COPOM'!$A$1:$K$100,2,FALSE)),0,VLOOKUP(B176,'Cenários COPOM'!$A$1:$K$100,2,FALSE)/100) -> 0 | E176: 12.15 | F176: 10823.96 | G176: 12.15036014 | I176: 174 | J176: =WORKDAY(J175,1,feriados!$A$2:$A$1000) -> 2024-07-18 | K176: 12.15 | L176: =IF(ISERROR(VLOOKUP(J176,'Cenários COPOM'!$A$1:$K$100,4,FALSE)),0,VLOOKUP(J176,'Cenários COPOM'!$A$1:$K$100,4,FALSE)/100) -> 0 | M176: 12.15 | N176: 10823.96 | O176: 12.15036014 | Q176: 174 | R176: =WORKDAY(R175,1,feriados!$A$2:$A$1000) -> 2024-07-18 | S176: 12.15 | T176: =IF(ISERROR(VLOOKUP(R176,'Cenários COPOM'!$A$1:$K$100,6,FALSE)),0,VLOOKUP(R176,'Cenários COPOM'!$A$1:$K$100,6,FALSE)/100) -> 0 | U176: 12.15 | V176: 10823.96 | W176: 12.15036014 | Y176: 174 | Z176: =WORKDAY(Z175,1,feriados!$A$2:$A$1000) -> 2024-07-18 | AA176: 12.15 | AB176: =IF(ISERROR(VLOOKUP(Z176,'Cenários COPOM'!$A$1:$K$100,8,FALSE)),0,VLOOKUP(Z176,'Cenários COPOM'!$A$1:$K$100,8,FALSE)/100) -> 0 | AC176: 12.15 | AD176: 10823.96 | AE176: 12.15036014 | AG176: 174 | AH176: =WORKDAY(AH175,1,feriados!$A$2:$A$1000) -> 2024-07-18 | AI176: 12.15 | AJ176: =IF(ISERROR(VLOOKUP(AH176,'Cenários COPOM'!$A$1:$K$100,10,FALSE)),0,VLOOKUP(AH176,'Cenários COPOM'!$A$1:$K$100,10,FALSE)/100) -> 0 | AK176: 12.15 | AL176: 10823.96 | AM176: 12.15036014
A177: 175 | B177: =WORKDAY(B176,1,feriados!$A$2:$A$1000) -> 2024-07-19 | C177: 12.15 | D177: =IF(ISERROR(VLOOKUP(B177,'Cenários COPOM'!$A$1:$K$100,2,FALSE)),0,VLOOKUP(B177,'Cenários COPOM'!$A$1:$K$100,2,FALSE)/100) -> 0 | E177: 12.15 | F177: 10828.89 | G177: 12.15041287 | I177: 175 | J177: =WORKDAY(J176,1,feriados!$A$2:$A$1000) -> 2024-07-19 | K177: 12.15 | L177: =IF(ISERROR(VLOOKUP(J177,'Cenários COPOM'!$A$1:$K$100,4,FALSE)),0,VLOOKUP(J177,'Cenários COPOM'!$A$1:$K$100,4,FALSE)/100) -> 0 | M177: 12.15 | N177: 10828.89 | O177: 12.15041287 | Q177: 175 | R177: =WORKDAY(R176,1,feriados!$A$2:$A$1000) -> 2024-07-19 | S177: 12.15 | T177: =IF(ISERROR(VLOOKUP(R177,'Cenários COPOM'!$A$1:$K$100,6,FALSE)),0,VLOOKUP(R177,'Cenários COPOM'!$A$1:$K$100,6,FALSE)/100) -> 0 | U177: 12.15 | V177: 10828.89 | W177: 12.15041287 | Y177: 175 | Z177: =WORKDAY(Z176,1,feriados!$A$2:$A$1000) -> 2024-07-19 | AA177: 12.15 | AB177: =IF(ISERROR(VLOOKUP(Z177,'Cenários COPOM'!$A$1:$K$100,8,FALSE)),0,VLOOKUP(Z177,'Cenários COPOM'!$A$1:$K$100,8,FALSE)/100) -> 0 | AC177: 12.15 | AD177: 10828.89 | AE177: 12.15041287 | AG177: 175 | AH177: =WORKDAY(AH176,1,feriados!$A$2:$A$1000) -> 2024-07-19 | AI177: 12.15 | AJ177: =IF(ISERROR(VLOOKUP(AH177,'Cenários COPOM'!$A$1:$K$100,10,FALSE)),0,VLOOKUP(AH177,'Cenários COPOM'!$A$1:$K$100,10,FALSE)/100) -> 0 | AK177: 12.15 | AL177: 10828.89 | AM177: 12.15041287
A178: 176 | B178: =WORKDAY(B177,1,feriados!$A$2:$A$1000) -> 2024-07-22 | C178: 12.15 | D178: =IF(ISERROR(VLOOKUP(B178,'Cenários COPOM'!$A$1:$K$100,2,FALSE)),0,VLOOKUP(B178,'Cenários COPOM'!$A$1:$K$100,2,FALSE)/100) -> 0 | E178: 12.15 | F178: 10833.82 | G178: 12.15043171 | I178: 176 | J178: =WORKDAY(J177,1,feriados!$A$2:$A$1000) -> 2024-07-22 | K178: 12.15 | L178: =IF(ISERROR(VLOOKUP(J178,'Cenários COPOM'!$A$1:$K$100,4,FALSE)),0,VLOOKUP(J178,'Cenários COPOM'!$A$1:$K$100,4,FALSE)/100) -> 0 | M178: 12.15 | N178: 10833.82 | O178: 12.15043171 | Q178: 176 | R178: =WORKDAY(R177,1,feriados!$A$2:$A$1000) -> 2024-07-22 | S178: 12.15 | T178: =IF(ISERROR(VLOOKUP(R178,'Cenários COPOM'!$A$1:$K$100,6,FALSE)),0,VLOOKUP(R178,'Cenários COPOM'!$A$1:$K$100,6,FALSE)/100) -> 0 | U178: 12.15 | V178: 10833.82 | W178: 12.15043171 | Y178: 176 | Z178: =WORKDAY(Z177,1,feriados!$A$2:$A$1000) -> 2024-07-22 | AA178: 12.15 | AB178: =IF(ISERROR(VLOOKUP(Z178,'Cenários COPOM'!$A$1:$K$100,8,FALSE)),0,VLOOKUP(Z178,'Cenários COPOM'!$A$1:$K$100,8,FALSE)/100) -> 0 | AC178: 12.15 | AD178: 10833.82 | AE178: 12.15043171 | AG178: 176 | AH178: =WORKDAY(AH177,1,feriados!$A$2:$A$1000) -> 2024-07-22 | AI178: 12.15 | AJ178: =IF(ISERROR(VLOOKUP(AH178,'Cenários COPOM'!$A$1:$K$100,10,FALSE)),0,VLOOKUP(AH178,'Cenários COPOM'!$A$1:$K$100,10,FALSE)/100) -> 0 | AK178: 12.15 | AL178: 10833.82 | AM178: 12.15043171
A179: 177 | B179: =WORKDAY(B178,1,feriados!$A$2:$A$1000) -> 2024-07-23 | C179: 12.15 | D179: =IF(ISERROR(VLOOKUP(B179,'Cenários COPOM'!$A$1:$K$100,2,FALSE)),0,VLOOKUP(B179,'Cenários COPOM'!$A$1:$K$100,2,FALSE)/100) -> 0 | E179: 12.15 | F179: 10838.75 | G179: 12.15041728 | I179: 177 | J179: =WORKDAY(J178,1,feriados!$A$2:$A$1000) -> 2024-07-23 | K179: 12.15 | L179: =IF(ISERROR(VLOOKUP(J179,'Cenários COPOM'!$A$1:$K$100,4,FALSE)),0,VLOOKUP(J179,'Cenários COPOM'!$A$1:$K$100,4,FALSE)/100) -> 0 | M179: 12.15 | N179: 10838.75 | O179: 12.15041728 | Q179: 177 | R179: =WORKDAY(R178,1,feriados!$A$2:$A$1000) -> 2024-07-23 | S179: 12.15 | T179: =IF(ISERROR(VLOOKUP(R179,'Cenários COPOM'!$A$1:$K$100,6,FALSE)),0,VLOOKUP(R179,'Cenários COPOM'!$A$1:$K$100,6,FALSE)/100) -> 0 | U179: 12.15 | V179: 10838.75 | W179: 12.15041728 | Y179: 177 | Z179: =WORKDAY(Z178,1,feriados!$A$2:$A$1000) -> 2024-07-23 | AA179: 12.15 | AB179: =IF(ISERROR(VLOOKUP(Z179,'Cenários COPOM'!$A$1:$K$100,8,FALSE)),0,VLOOKUP(Z179,'Cenários COPOM'!$A$1:$K$100,8,FALSE)/100) -> 0 | AC179: 12.15 | AD179: 10838.75 | AE179: 12.15041728 | AG179: 177 | AH179: =WORKDAY(AH178,1,feriados!$A$2:$A$1000) -> 2024-07-23 | AI179: 12.15 | AJ179: =IF(ISERROR(VLOOKUP(AH179,'Cenários COPOM'!$A$1:$K$100,10,FALSE)),0,VLOOKUP(AH179,'Cenários COPOM'!$A$1:$K$100,10,FALSE)/100) -> 0 | AK179: 12.15 | AL179: 10838.75 | AM179: 12.15041728
A180: 178 | B180: =WORKDAY(B179,1,feriados!$A$2:$A$1000) -> 2024-07-24 | C180: 12.15 | D180: =IF(ISERROR(VLOOKUP(B180,'Cenários COPOM'!$A$1:$K$100,2,FALSE)),0,VLOOKUP(B180,'Cenários COPOM'!$A$1:$K$100,2,FALSE)/100) -> 0 | E180: 12.15 | F180: 10843.68 | G180: 12.15037017 | I180: 178 | J180: =WORKDAY(J179,1,feriados!$A$2:$A$1000) -> 2024-07-24 | K180: 12.15 | L180: =IF(ISERROR(VLOOKUP(J180,'Cenários COPOM'!$A$1:$K$100,4,FALSE)),0,VLOOKUP(J180,'Cenários COPOM'!$A$1:$K$100,4,FALSE)/100) -> 0 | M180: 12.15 | N180: 10843.68 | O180: 12.15037017 | Q180: 178 | R180: =WORKDAY(R179,1,feriados!$A$2:$A$1000) -> 2024-07-24 | S180: 12.15 | T180: =IF(ISERROR(VLOOKUP(R180,'Cenários COPOM'!$A$1:$K$100,6,FALSE)),0,VLOOKUP(R180,'Cenários COPOM'!$A$1:$K$100,6,FALSE)/100) -> 0 | U180: 12.15 | V180: 10843.68 | W180: 12.15037017 | Y180: 178 | Z180: =WORKDAY(Z179,1,feriados!$A$2:$A$1000) -> 2024-07-24 | AA180: 12.15 | AB180: =IF(ISERROR(VLOOKUP(Z180,'Cenários COPOM'!$A$1:$K$100,8,FALSE)),0,VLOOKUP(Z180,'Cenários COPOM'!$A$1:$K$100,8,FALSE)/100) -> 0 | AC180: 12.15 | AD180: 10843.68 | AE180: 12.15037017 | AG180: 178 | AH180: =WORKDAY(AH179,1,feriados!$A$2:$A$1000) -> 2024-07-24 | AI180: 12.15 | AJ180: =IF(ISERROR(VLOOKUP(AH180,'Cenários COPOM'!$A$1:$K$100,10,FALSE)),0,VLOOKUP(AH180,'Cenários COPOM'!$A$1:$K$100,10,FALSE)/100) -> 0 | AK180: 12.15 | AL180: 10843.68 | AM180: 12.15037017
A181: 179 | B181: =WORKDAY(B180,1,feriados!$A$2:$A$1000) -> 2024-07-25 | C181: 12.15 | D181: =IF(ISERROR(VLOOKUP(B181,'Cenários COPOM'!$A$1:$K$100,2,FALSE)),0,VLOOKUP(B181,'Cenários COPOM'!$A$1:$K$100,2,FALSE)/100) -> 0 | E181: 12.15 | F181: 10848.62 | G181: 12.15043648 | I181: 179 | J181: =WORKDAY(J180,1,feriados!$A$2:$A$1000) -> 2024-07-25 | K181: 12.15 | L181: =IF(ISERROR(VLOOKUP(J181,'Cenários COPOM'!$A$1:$K$100,4,FALSE)),0,VLOOKUP(J181,'Cenários COPOM'!$A$1:$K$100,4,FALSE)/100) -> 0 | M181: 12.15 | N181: 10848.62 | O181: 12.15043648 | Q181: 179 | R181: =WORKDAY(R180,1,feriados!$A$2:$A$1000) -> 2024-07-25 | S181: 12.15 | T181: =IF(ISERROR(VLOOKUP(R181,'Cenários COPOM'!$A$1:$K$100,6,FALSE)),0,VLOOKUP(R181,'Cenários COPOM'!$A$1:$K$100,6,FALSE)/100) -> 0 | U181: 12.15 | V181: 10848.62 | W181: 12.15043648 | Y181: 179 | Z181: =WORKDAY(Z180,1,feriados!$A$2:$A$1000) -> 2024-07-25 | AA181: 12.15 | AB181: =IF(ISERROR(VLOOKUP(Z181,'Cenários COPOM'!$A$1:$K$100,8,FALSE)),0,VLOOKUP(Z181,'Cenários COPOM'!$A$1:$K$100,8,FALSE)/100) -> 0 | AC181: 12.15 | AD181: 10848.62 | AE181: 12.15043648 | AG181: 179 | AH181: =WORKDAY(AH180,1,feriados!$A$2:$A$1000) -> 2024-07-25 | AI181: 12.15 | AJ181: =IF(ISERROR(VLOOKUP(AH181,'Cenários COPOM'!$A$1:$K$100,10,FALSE)),0,VLOOKUP(AH181,'Cenários COPOM'!$A$1:$K$100,10,FALSE)/100) -> 0 | AK181: 12.15 | AL181: 10848.62 | AM181: 12.15043648
A182: 180 | B182: =WORKDAY(B181,1,feriados!$A$2:$A$1000) -> 2024-07-26 | C182: 12.15 | D182: =IF(ISERROR(VLOOKUP(B182,'Cenários COPOM'!$A$1:$K$100,2,FALSE)),0,VLOOKUP(B182,'Cenários COPOM'!$A$1:$K$100,2,FALSE)/100) -> 0 | E182: 12.15 | F182: 10853.56 | G182: 12.1504695 | I182: 180 | J182: =WORKDAY(J181,1,feriados!$A$2:$A$1000) -> 2024-07-26 | K182: 12.15 | L182: =IF(ISERROR(VLOOKUP(J182,'Cenários COPOM'!$A$1:$K$100,4,FALSE)),0,VLOOKUP(J182,'Cenários COPOM'!$A$1:$K$100,4,FALSE)/100) -> 0 | M182: 12.15 | N182: 10853.56 | O182: 12.1504695 | Q182: 180 | R182: =WORKDAY(R181,1,feriados!$A$2:$A$1000) -> 2024-07-26 | S182: 12.15 | T182: =IF(ISERROR(VLOOKUP(R182,'Cenários COPOM'!$A$1:$K$100,6,FALSE)),0,VLOOKUP(R182,'Cenários COPOM'!$A$1:$K$100,6,FALSE)/100) -> 0 | U182: 12.15 | V182: 10853.56 | W182: 12.1504695 | Y182: 180 | Z182: =WORKDAY(Z181,1,feriados!$A$2:$A$1000) -> 2024-07-26 | AA182: 12.15 | AB182: =IF(ISERROR(VLOOKUP(Z182,'Cenários COPOM'!$A$1:$K$100,8,FALSE)),0,VLOOKUP(Z182,'Cenários COPOM'!$A$1:$K$100,8,FALSE)/100) -> 0 | AC182: 12.15 | AD182: 10853.56 | AE182: 12.1504695 | AG182: 180 | AH182: =WORKDAY(AH181,1,feriados!$A$2:$A$1000) -> 2024-07-26 | AI182: 12.15 | AJ182: =IF(ISERROR(VLOOKUP(AH182,'Cenários COPOM'!$A$1:$K$100,10,FALSE)),0,VLOOKUP(AH182,'Cenários COPOM'!$A$1:$K$100,10,FALSE)/100) -> 0 | AK182: 12.15 | AL182: 10853.56 | AM182: 12.1504695
A183: 181 | B183: =WORKDAY(B182,1,feriados!$A$2:$A$1000) -> 2024-07-29 | C183: 12.15 | D183: =IF(ISERROR(VLOOKUP(B183,'Cenários COPOM'!$A$1:$K$100,2,FALSE)),0,VLOOKUP(B183,'Cenários COPOM'!$A$1:$K$100,2,FALSE)/100) -> 0 | E183: 12.15 | F183: 10858.5 | G183: 12.1504698 | I183: 181 | J183: =WORKDAY(J182,1,feriados!$A$2:$A$1000) -> 2024-07-29 | K183: 12.15 | L183: =IF(ISERROR(VLOOKUP(J183,'Cenários COPOM'!$A$1:$K$100,4,FALSE)),0,VLOOKUP(J183,'Cenários COPOM'!$A$1:$K$100,4,FALSE)/100) -> 0 | M183: 12.15 | N183: 10858.5 | O183: 12.1504698 | Q183: 181 | R183: =WORKDAY(R182,1,feriados!$A$2:$A$1000) -> 2024-07-29 | S183: 12.15 | T183: =IF(ISERROR(VLOOKUP(R183,'Cenários COPOM'!$A$1:$K$100,6,FALSE)),0,VLOOKUP(R183,'Cenários COPOM'!$A$1:$K$100,6,FALSE)/100) -> 0 | U183: 12.15 | V183: 10858.5 | W183: 12.1504698 | Y183: 181 | Z183: =WORKDAY(Z182,1,feriados!$A$2:$A$1000) -> 2024-07-29 | AA183: 12.15 | AB183: =IF(ISERROR(VLOOKUP(Z183,'Cenários COPOM'!$A$1:$K$100,8,FALSE)),0,VLOOKUP(Z183,'Cenários COPOM'!$A$1:$K$100,8,FALSE)/100) -> 0 | AC183: 12.15 | AD183: 10858.5 | AE183: 12.1504698 | AG183: 181 | AH183: =WORKDAY(AH182,1,feriados!$A$2:$A$1000) -> 2024-07-29 | AI183: 12.15 | AJ183: =IF(ISERROR(VLOOKUP(AH183,'Cenários COPOM'!$A$1:$K$100,10,FALSE)),0,VLOOKUP(AH183,'Cenários COPOM'!$A$1:$K$100,10,FALSE)/100) -> 0 | AK183: 12.15 | AL183: 10858.5 | AM183: 12.1504698
A184: 182 | B184: =WORKDAY(B183,1,feriados!$A$2:$A$1000) -> 2024-07-30 | C184: 12.15 | D184: =IF(ISERROR(VLOOKUP(B184,'Cenários COPOM'!$A$1:$K$100,2,FALSE)),0,VLOOKUP(B184,'Cenários COPOM'!$A$1:$K$100,2,FALSE)/100) -> 0 | E184: 12.15 | F184: 10863.44 | G184: 12.15043796 | I184: 182 | J184: =WORKDAY(J183,1,feriados!$A$2:$A$1000) -> 2024-07-30 | K184: 12.15 | L184: =IF(ISERROR(VLOOKUP(J184,'Cenários COPOM'!$A$1:$K$100,4,FALSE)),0,VLOOKUP(J184,'Cenários COPOM'!$A$1:$K$100,4,FALSE)/100) -> 0 | M184: 12.15 | N184: 10863.44 | O184: 12.15043796 | Q184: 182 | R184: =WORKDAY(R183,1,feriados!$A$2:$A$1000) -> 2024-07-30 | S184: 12.15 | T184: =IF(ISERROR(VLOOKUP(R184,'Cenários COPOM'!$A$1:$K$100,6,FALSE)),0,VLOOKUP(R184,'Cenários COPOM'!$A$1:$K$100,6,FALSE)/100) -> 0 | U184: 12.15 | V184: 10863.44 | W184: 12.15043796 | Y184: 182 | Z184: =WORKDAY(Z183,1,feriados!$A$2:$A$1000) -> 2024-07-30 | AA184: 12.15 | AB184: =IF(ISERROR(VLOOKUP(Z184,'Cenários COPOM'!$A$1:$K$100,8,FALSE)),0,VLOOKUP(Z184,'Cenários COPOM'!$A$1:$K$100,8,FALSE)/100) -> 0 | AC184: 12.15 | AD184: 10863.44 | AE184: 12.15043796 | AG184: 182 | AH184: =WORKDAY(AH183,1,feriados!$A$2:$A$1000) -> 2024-07-30 | AI184: 12.15 | AJ184: =IF(ISERROR(VLOOKUP(AH184,'Cenários COPOM'!$A$1:$K$100,10,FALSE)),0,VLOOKUP(AH184,'Cenários COPOM'!$A$1:$K$100,10,FALSE)/100) -> 0 | AK184: 12.15 | AL184: 10863.44 | AM184: 12.15043796
A185: 183 | B185: =WORKDAY(B184,1,feriados!$A$2:$A$1000) -> 2024-07-31 | C185: 12.15 | D185: =IF(ISERROR(VLOOKUP(B185,'Cenários COPOM'!$A$1:$K$100,2,FALSE)),0,VLOOKUP(B185,'Cenários COPOM'!$A$1:$K$100,2,FALSE)/100) -> 0 | E185: 12.15 | F185: 10868.38 | G185: 12.15037454 | I185: 183 | J185: =WORKDAY(J184,1,feriados!$A$2:$A$1000) -> 2024-07-31 | K185: 12.15 | L185: =IF(ISERROR(VLOOKUP(J185,'Cenários COPOM'!$A$1:$K$100,4,FALSE)),0,VLOOKUP(J185,'Cenários COPOM'!$A$1:$K$100,4,FALSE)/100) -> 0 | M185: 12.15 | N185: 10868.38 | O185: 12.15037454 | Q185: 183 | R185: =WORKDAY(R184,1,feriados!$A$2:$A$1000) -> 2024-07-31 | S185: 12.15 | T185: =IF(ISERROR(VLOOKUP(R185,'Cenários COPOM'!$A$1:$K$100,6,FALSE)),0,VLOOKUP(R185,'Cenários COPOM'!$A$1:$K$100,6,FALSE)/100) -> 0 | U185: 12.15 | V185: 10868.38 | W185: 12.15037454 | Y185: 183 | Z185: =WORKDAY(Z184,1,feriados!$A$2:$A$1000) -> 2024-07-31 | AA185: 12.15 | AB185: =IF(ISERROR(VLOOKUP(Z185,'Cenários COPOM'!$A$1:$K$100,8,FALSE)),0,VLOOKUP(Z185,'Cenários COPOM'!$A$1:$K$100,8,FALSE)/100) -> 0 | AC185: 12.15 | AD185: 10868.38 | AE185: 12.15037454 | AG185: 183 | AH185: =WORKDAY(AH184,1,feriados!$A$2:$A$1000) -> 2024-07-31 | AI185: 12.15 | AJ185: =IF(ISERROR(VLOOKUP(AH185,'Cenários COPOM'!$A$1:$K$100,10,FALSE)),0,VLOOKUP(AH185,'Cenários COPOM'!$A$1:$K$100,10,FALSE)/100) -> 0 | AK185: 12.15 | AL185: 10868.38 | AM185: 12.15037454
A186: 184 | B186: =WORKDAY(B185,1,feriados!$A$2:$A$1000) -> 2024-08-01 | C186: 12.15 | D186: =IF(ISERROR(VLOOKUP(B186,'Cenários COPOM'!$A$1:$K$100,2,FALSE)),0,VLOOKUP(B186,'Cenários COPOM'!$A$1:$K$100,2,FALSE)/100) -> 0 | E186: 12.15 | F186: 10873.33 | G186: 12.15042133 | I186: 184 | J186: =WORKDAY(J185,1,feriados!$A$2:$A$1000) -> 2024-08-01 | K186: 12.15 | L186: =IF(ISERROR(VLOOKUP(J186,'Cenários COPOM'!$A$1:$K$100,4,FALSE)),0,VLOOKUP(J186,'Cenários COPOM'!$A$1:$K$100,4,FALSE)/100) -> 0 | M186: 12.15 | N186: 10873.33 | O186: 12.15042133 | Q186: 184 | R186: =WORKDAY(R185,1,feriados!$A$2:$A$1000) -> 2024-08-01 | S186: 12.15 | T186: =IF(ISERROR(VLOOKUP(R186,'Cenários COPOM'!$A$1:$K$100,6,FALSE)),0,VLOOKUP(R186,'Cenários COPOM'!$A$1:$K$100,6,FALSE)/100) -> 0 | U186: 12.15 | V186: 10873.33 | W186: 12.15042133 | Y186: 184 | Z186: =WORKDAY(Z185,1,feriados!$A$2:$A$1000) -> 2024-08-01 | AA186: 12.15 | AB186: =IF(ISERROR(VLOOKUP(Z186,'Cenários COPOM'!$A$1:$K$100,8,FALSE)),0,VLOOKUP(Z186,'Cenários COPOM'!$A$1:$K$100,8,FALSE)/100) -> 0 | AC186: 12.15 | AD186: 10873.33 | AE186: 12.15042133 | AG186: 184 | AH186: =WORKDAY(AH185,1,feriados!$A$2:$A$1000) -> 2024-08-01 | AI186: 12.15 | AJ186: =IF(ISERROR(VLOOKUP(AH186,'Cenários COPOM'!$A$1:$K$100,10,FALSE)),0,VLOOKUP(AH186,'Cenários COPOM'!$A$1:$K$100,10,FALSE)/100) -> 0 | AK186: 12.15 | AL186: 10873.33 | AM186: 12.15042133
A187: 185 | B187: =WORKDAY(B186,1,feriados!$A$2:$A$1000) -> 2024-08-02 | C187: 12.15 | D187: =IF(ISERROR(VLOOKUP(B187,'Cenários COPOM'!$A$1:$K$100,2,FALSE)),0,VLOOKUP(B187,'Cenários COPOM'!$A$1:$K$100,2,FALSE)/100) -> 0 | E187: 12.15 | F187: 10878.28 | G187: 12.15043596 | I187: 185 | J187: =WORKDAY(J186,1,feriados!$A$2:$A$1000) -> 2024-08-02 | K187: 12.15 | L187: =IF(ISERROR(VLOOKUP(J187,'Cenários COPOM'!$A$1:$K$100,4,FALSE)),0,VLOOKUP(J187,'Cenários COPOM'!$A$1:$K$100,4,FALSE)/100) -> 0 | M187: 12.15 | N187: 10878.28 | O187: 12.15043596 | Q187: 185 | R187: =WORKDAY(R186,1,feriados!$A$2:$A$1000) -> 2024-08-02 | S187: 12.15 | T187: =IF(ISERROR(VLOOKUP(R187,'Cenários COPOM'!$A$1:$K$100,6,FALSE)),0,VLOOKUP(R187,'Cenários COPOM'!$A$1:$K$100,6,FALSE)/100) -> 0 | U187: 12.15 | V187: 10878.28 | W187: 12.15043596 | Y187: 185 | Z187: =WORKDAY(Z186,1,feriados!$A$2:$A$1000) -> 2024-08-02 | AA187: 12.15 | AB187: =IF(ISERROR(VLOOKUP(Z187,'Cenários COPOM'!$A$1:$K$100,8,FALSE)),0,VLOOKUP(Z187,'Cenários COPOM'!$A$1:$K$100,8,FALSE)/100) -> 0 | AC187: 12.15 | AD187: 10878.28 | AE187: 12.15043596 | AG187: 185 | AH187: =WORKDAY(AH186,1,feriados!$A$2:$A$1000) -> 2024-08-02 | AI187: 12.15 | AJ187: =IF(ISERROR(VLOOKUP(AH187,'Cenários COPOM'!$A$1:$K$100,10,FALSE)),0,VLOOKUP(AH187,'Cenários COPOM'!$A$1:$K$100,10,FALSE)/100) -> 0 | AK187: 12.15 | AL187: 10878.28 | AM187: 12.15043596
A188: 186 | B188: =WORKDAY(B187,1,feriados!$A$2:$A$1000) -> 2024-08-05 | C188: 12.15 | D188: =IF(ISERROR(VLOOKUP(B188,'Cenários COPOM'!$A$1:$K$100,2,FALSE)),0,VLOOKUP(B188,'Cenários COPOM'!$A$1:$K$100,2,FALSE)/100) -> 0 | E188: 12.15 | F188: 10883.23 | G188: 12.15041897 | I188: 186 | J188: =WORKDAY(J187,1,feriados!$A$2:$A$1000) -> 2024-08-05 | K188: 12.15 | L188: =IF(ISERROR(VLOOKUP(J188,'Cenários COPOM'!$A$1:$K$100,4,FALSE)),0,VLOOKUP(J188,'Cenários COPOM'!$A$1:$K$100,4,FALSE)/100) -> 0 | M188: 12.15 | N188: 10883.23 | O188: 12.15041897 | Q188: 186 | R188: =WORKDAY(R187,1,feriados!$A$2:$A$1000) -> 2024-08-05 | S188: 12.15 | T188: =IF(ISERROR(VLOOKUP(R188,'Cenários COPOM'!$A$1:$K$100,6,FALSE)),0,VLOOKUP(R188,'Cenários COPOM'!$A$1:$K$100,6,FALSE)/100) -> 0 | U188: 12.15 | V188: 10883.23 | W188: 12.15041897 | Y188: 186 | Z188: =WORKDAY(Z187,1,feriados!$A$2:$A$1000) -> 2024-08-05 | AA188: 12.15 | AB188: =IF(ISERROR(VLOOKUP(Z188,'Cenários COPOM'!$A$1:$K$100,8,FALSE)),0,VLOOKUP(Z188,'Cenários COPOM'!$A$1:$K$100,8,FALSE)/100) -> 0 | AC188: 12.15 | AD188: 10883.23 | AE188: 12.15041897 | AG188: 186 | AH188: =WORKDAY(AH187,1,feriados!$A$2:$A$1000) -> 2024-08-05 | AI188: 12.15 | AJ188: =IF(ISERROR(VLOOKUP(AH188,'Cenários COPOM'!$A$1:$K$100,10,FALSE)),0,VLOOKUP(AH188,'Cenários COPOM'!$A$1:$K$100,10,FALSE)/100) -> 0 | AK188: 12.15 | AL188: 10883.23 | AM188: 12.15041897
A189: 187 | B189: =WORKDAY(B188,1,feriados!$A$2:$A$1000) -> 2024-08-06 | C189: 12.15 | D189: =IF(ISERROR(VLOOKUP(B189,'Cenários COPOM'!$A$1:$K$100,2,FALSE)),0,VLOOKUP(B189,'Cenários COPOM'!$A$1:$K$100,2,FALSE)/100) -> 0 | E189: 12.15 | F189: 10888.18 | G189: 12.15037089 | I189: 187 | J189: =WORKDAY(J188,1,feriados!$A$2:$A$1000) -> 2024-08-06 | K189: 12.15 | L189: =IF(ISERROR(VLOOKUP(J189,'Cenários COPOM'!$A$1:$K$100,4,FALSE)),0,VLOOKUP(J189,'Cenários COPOM'!$A$1:$K$100,4,FALSE)/100) -> 0 | M189: 12.15 | N189: 10888.18 | O189: 12.15037089 | Q189: 187 | R189: =WORKDAY(R188,1,feriados!$A$2:$A$1000) -> 2024-08-06 | S189: 12.15 | T189: =IF(ISERROR(VLOOKUP(R189,'Cenários COPOM'!$A$1:$K$100,6,FALSE)),0,VLOOKUP(R189,'Cenários COPOM'!$A$1:$K$100,6,FALSE)/100) -> 0 | U189: 12.15 | V189: 10888.18 | W189: 12.15037089 | Y189: 187 | Z189: =WORKDAY(Z188,1,feriados!$A$2:$A$1000) -> 2024-08-06 | AA189: 12.15 | AB189: =IF(ISERROR(VLOOKUP(Z189,'Cenários COPOM'!$A$1:$K$100,8,FALSE)),0,VLOOKUP(Z189,'Cenários COPOM'!$A$1:$K$100,8,FALSE)/100) -> 0 | AC189: 12.15 | AD189: 10888.18 | AE189: 12.15037089 | AG189: 187 | AH189: =WORKDAY(AH188,1,feriados!$A$2:$A$1000) -> 2024-08-06 | AI189: 12.15 | AJ189: =IF(ISERROR(VLOOKUP(AH189,'Cenários COPOM'!$A$1:$K$100,10,FALSE)),0,VLOOKUP(AH189,'Cenários COPOM'!$A$1:$K$100,10,FALSE)/100) -> 0 | AK189: 12.15 | AL189: 10888.18 | AM189: 12.15037089
A190: 188 | B190: =WORKDAY(B189,1,feriados!$A$2:$A$1000) -> 2024-08-07 | C190: 12.15 | D190: =IF(ISERROR(VLOOKUP(B190,'Cenários COPOM'!$A$1:$K$100,2,FALSE)),0,VLOOKUP(B190,'Cenários COPOM'!$A$1:$K$100,2,FALSE)/100) -> 0 | E190: 12.15 | F190: 10893.14 | G190: 12.15043027 | I190: 188 | J190: =WORKDAY(J189,1,feriados!$A$2:$A$1000) -> 2024-08-07 | K190: 12.15 | L190: =IF(ISERROR(VLOOKUP(J190,'Cenários COPOM'!$A$1:$K$100,4,FALSE)),0,VLOOKUP(J190,'Cenários COPOM'!$A$1:$K$100,4,FALSE)/100) -> 0 | M190: 12.15 | N190: 10893.14 | O190: 12.15043027 | Q190: 188 | R190: =WORKDAY(R189,1,feriados!$A$2:$A$1000) -> 2024-08-07 | S190: 12.15 | T190: =IF(ISERROR(VLOOKUP(R190,'Cenários COPOM'!$A$1:$K$100,6,FALSE)),0,VLOOKUP(R190,'Cenários COPOM'!$A$1:$K$100,6,FALSE)/100) -> 0 | U190: 12.15 | V190: 10893.14 | W190: 12.15043027 | Y190: 188 | Z190: =WORKDAY(Z189,1,feriados!$A$2:$A$1000) -> 2024-08-07 | AA190: 12.15 | AB190: =IF(ISERROR(VLOOKUP(Z190,'Cenários COPOM'!$A$1:$K$100,8,FALSE)),0,VLOOKUP(Z190,'Cenários COPOM'!$A$1:$K$100,8,FALSE)/100) -> 0 | AC190: 12.15 | AD190: 10893.14 | AE190: 12.15043027 | AG190: 188 | AH190: =WORKDAY(AH189,1,feriados!$A$2:$A$1000) -> 2024-08-07 | AI190: 12.15 | AJ190: =IF(ISERROR(VLOOKUP(AH190,'Cenários COPOM'!$A$1:$K$100,10,FALSE)),0,VLOOKUP(AH190,'Cenários COPOM'!$A$1:$K$100,10,FALSE)/100) -> 0 | AK190: 12.15 | AL190: 10893.14 | AM190: 12.15043027
A191: 189 | B191: =WORKDAY(B190,1,feriados!$A$2:$A$1000) -> 2024-08-08 | C191: 12.15 | D191: =IF(ISERROR(VLOOKUP(B191,'Cenários COPOM'!$A$1:$K$100,2,FALSE)),0,VLOOKUP(B191,'Cenários COPOM'!$A$1:$K$100,2,FALSE)/100) -> 0 | E191: 12.15 | F191: 10898.1 | G191: 12.150458 | I191: 189 | J191: =WORKDAY(J190,1,feriados!$A$2:$A$1000) -> 2024-08-08 | K191: 12.15 | L191: =IF(ISERROR(VLOOKUP(J191,'Cenários COPOM'!$A$1:$K$100,4,FALSE)),0,VLOOKUP(J191,'Cenários COPOM'!$A$1:$K$100,4,FALSE)/100) -> 0 | M191: 12.15 | N191: 10898.1 | O191: 12.150458 | Q191: 189 | R191: =WORKDAY(R190,1,feriados!$A$2:$A$1000) -> 2024-08-08 | S191: 12.15 | T191: =IF(ISERROR(VLOOKUP(R191,'Cenários COPOM'!$A$1:$K$100,6,FALSE)),0,VLOOKUP(R191,'Cenários COPOM'!$A$1:$K$100,6,FALSE)/100) -> 0 | U191: 12.15 | V191: 10898.1 | W191: 12.150458 | Y191: 189 | Z191: =WORKDAY(Z190,1,feriados!$A$2:$A$1000) -> 2024-08-08 | AA191: 12.15 | AB191: =IF(ISERROR(VLOOKUP(Z191,'Cenários COPOM'!$A$1:$K$100,8,FALSE)),0,VLOOKUP(Z191,'Cenários COPOM'!$A$1:$K$100,8,FALSE)/100) -> 0 | AC191: 12.15 | AD191: 10898.1 | AE191: 12.150458 | AG191: 189 | AH191: =WORKDAY(AH190,1,feriados!$A$2:$A$1000) -> 2024-08-08 | AI191: 12.15 | AJ191: =IF(ISERROR(VLOOKUP(AH191,'Cenários COPOM'!$A$1:$K$100,10,FALSE)),0,VLOOKUP(AH191,'Cenários COPOM'!$A$1:$K$100,10,FALSE)/100) -> 0 | AK191: 12.15 | AL191: 10898.1 | AM191: 12.150458
A192: 190 | B192: =WORKDAY(B191,1,feriados!$A$2:$A$1000) -> 2024-08-09 | C192: 12.15 | D192: =IF(ISERROR(VLOOKUP(B192,'Cenários COPOM'!$A$1:$K$100,2,FALSE)),0,VLOOKUP(B192,'Cenários COPOM'!$A$1:$K$100,2,FALSE)/100) -> 0 | E192: 12.15 | F192: 10903.06 | G192: 12.15045464 | I192: 190 | J192: =WORKDAY(J191,1,feriados!$A$2:$A$1000) -> 2024-08-09 | K192: 12.15 | L192: =IF(ISERROR(VLOOKUP(J192,'Cenários COPOM'!$A$1:$K$100,4,FALSE)),0,VLOOKUP(J192,'Cenários COPOM'!$A$1:$K$100,4,FALSE)/100) -> 0 | M192: 12.15 | N192: 10903.06 | O192: 12.15045464 | Q192: 190 | R192: =WORKDAY(R191,1,feriados!$A$2:$A$1000) -> 2024-08-09 | S192: 12.15 | T192: =IF(ISERROR(VLOOKUP(R192,'Cenários COPOM'!$A$1:$K$100,6,FALSE)),0,VLOOKUP(R192,'Cenários COPOM'!$A$1:$K$100,6,FALSE)/100) -> 0 | U192: 12.15 | V192: 10903.06 | W192: 12.15045464 | Y192: 190 | Z192: =WORKDAY(Z191,1,feriados!$A$2:$A$1000) -> 2024-08-09 | AA192: 12.15 | AB192: =IF(ISERROR(VLOOKUP(Z192,'Cenários COPOM'!$A$1:$K$100,8,FALSE)),0,VLOOKUP(Z192,'Cenários COPOM'!$A$1:$K$100,8,FALSE)/100) -> 0 | AC192: 12.15 | AD192: 10903.06 | AE192: 12.15045464 | AG192: 190 | AH192: =WORKDAY(AH191,1,feriados!$A$2:$A$1000) -> 2024-08-09 | AI192: 12.15 | AJ192: =IF(ISERROR(VLOOKUP(AH192,'Cenários COPOM'!$A$1:$K$100,10,FALSE)),0,VLOOKUP(AH192,'Cenários COPOM'!$A$1:$K$100,10,FALSE)/100) -> 0 | AK192: 12.15 | AL192: 10903.06 | AM192: 12.15045464
A193: 191 | B193: =WORKDAY(B192,1,feriados!$A$2:$A$1000) -> 2024-08-12 | C193: 12.15 | D193: =IF(ISERROR(VLOOKUP(B193,'Cenários COPOM'!$A$1:$K$100,2,FALSE)),0,VLOOKUP(B193,'Cenários COPOM'!$A$1:$K$100,2,FALSE)/100) -> 0 | E193: 12.15 | F193: 10908.02 | G193: 12.15042069 | I193: 191 | J193: =WORKDAY(J192,1,feriados!$A$2:$A$1000) -> 2024-08-12 | K193: 12.15 | L193: =IF(ISERROR(VLOOKUP(J193,'Cenários COPOM'!$A$1:$K$100,4,FALSE)),0,VLOOKUP(J193,'Cenários COPOM'!$A$1:$K$100,4,FALSE)/100) -> 0 | M193: 12.15 | N193: 10908.02 | O193: 12.15042069 | Q193: 191 | R193: =WORKDAY(R192,1,feriados!$A$2:$A$1000) -> 2024-08-12 | S193: 12.15 | T193: =IF(ISERROR(VLOOKUP(R193,'Cenários COPOM'!$A$1:$K$100,6,FALSE)),0,VLOOKUP(R193,'Cenários COPOM'!$A$1:$K$100,6,FALSE)/100) -> 0 | U193: 12.15 | V193: 10908.02 | W193: 12.15042069 | Y193: 191 | Z193: =WORKDAY(Z192,1,feriados!$A$2:$A$1000) -> 2024-08-12 | AA193: 12.15 | AB193: =IF(ISERROR(VLOOKUP(Z193,'Cenários COPOM'!$A$1:$K$100,8,FALSE)),0,VLOOKUP(Z193,'Cenários COPOM'!$A$1:$K$100,8,FALSE)/100) -> 0 | AC193: 12.15 | AD193: 10908.02 | AE193: 12.15042069 | AG193: 191 | AH193: =WORKDAY(AH192,1,feriados!$A$2:$A$1000) -> 2024-08-12 | AI193: 12.15 | AJ193: =IF(ISERROR(VLOOKUP(AH193,'Cenários COPOM'!$A$1:$K$100,10,FALSE)),0,VLOOKUP(AH193,'Cenários COPOM'!$A$1:$K$100,10,FALSE)/100) -> 0 | AK193: 12.15 | AL193: 10908.02 | AM193: 12.15042069
A194: 192 | B194: =WORKDAY(B193,1,feriados!$A$2:$A$1000) -> 2024-08-13 | C194: 12.15 | D194: =IF(ISERROR(VLOOKUP(B194,'Cenários COPOM'!$A$1:$K$100,2,FALSE)),0,VLOOKUP(B194,'Cenários COPOM'!$A$1:$K$100,2,FALSE)/100) -> 0 | E194: 12.15 | F194: 10912.98 | G194: 12.15035666 | I194: 192 | J194: =WORKDAY(J193,1,feriados!$A$2:$A$1000) -> 2024-08-13 | K194: 12.15 | L194: =IF(ISERROR(VLOOKUP(J194,'Cenários COPOM'!$A$1:$K$100,4,FALSE)),0,VLOOKUP(J194,'Cenários COPOM'!$A$1:$K$100,4,FALSE)/100) -> 0 | M194: 12.15 | N194: 10912.98 | O194: 12.15035666 | Q194: 192 | R194: =WORKDAY(R193,1,feriados!$A$2:$A$1000) -> 2024-08-13 | S194: 12.15 | T194: =IF(ISERROR(VLOOKUP(R194,'Cenários COPOM'!$A$1:$K$100,6,FALSE)),0,VLOOKUP(R194,'Cenários COPOM'!$A$1:$K$100,6,FALSE)/100) -> 0 | U194: 12.15 | V194: 10912.98 | W194: 12.15035666 | Y194: 192 | Z194: =WORKDAY(Z193,1,feriados!$A$2:$A$1000) -> 2024-08-13 | AA194: 12.15 | AB194: =IF(ISERROR(VLOOKUP(Z194,'Cenários COPOM'!$A$1:$K$100,8,FALSE)),0,VLOOKUP(Z194,'Cenários COPOM'!$A$1:$K$100,8,FALSE)/100) -> 0 | AC194: 12.15 | AD194: 10912.98 | AE194: 12.15035666 | AG194: 192 | AH194: =WORKDAY(AH193,1,feriados!$A$2:$A$1000) -> 2024-08-13 | AI194: 12.15 | AJ194: =IF(ISERROR(VLOOKUP(AH194,'Cenários COPOM'!$A$1:$K$100,10,FALSE)),0,VLOOKUP(AH194,'Cenários COPOM'!$A$1:$K$100,10,FALSE)/100) -> 0 | AK194: 12.15 | AL194: 10912.98 | AM194: 12.15035666
A195: 193 | B195: =WORKDAY(B194,1,feriados!$A$2:$A$1000) -> 2024-08-14 | C195: 12.15 | D195: =IF(ISERROR(VLOOKUP(B195,'Cenários COPOM'!$A$1:$K$100,2,FALSE)),0,VLOOKUP(B195,'Cenários COPOM'!$A$1:$K$100,2,FALSE)/100) -> 0 | E195: 12.15 | F195: 10917.95 | G195: 12.15039716 | I195: 193 | J195: =WORKDAY(J194,1,feriados!$A$2:$A$1000) -> 2024-08-14 | K195: 12.15 | L195: =IF(ISERROR(VLOOKUP(J195,'Cenários COPOM'!$A$1:$K$100,4,FALSE)),0,VLOOKUP(J195,'Cenários COPOM'!$A$1:$K$100,4,FALSE)/100) -> 0 | M195: 12.15 | N195: 10917.95 | O195: 12.15039716 | Q195: 193 | R195: =WORKDAY(R194,1,feriados!$A$2:$A$1000) -> 2024-08-14 | S195: 12.15 | T195: =IF(ISERROR(VLOOKUP(R195,'Cenários COPOM'!$A$1:$K$100,6,FALSE)),0,VLOOKUP(R195,'Cenários COPOM'!$A$1:$K$100,6,FALSE)/100) -> 0 | U195: 12.15 | V195: 10917.95 | W195: 12.15039716 | Y195: 193 | Z195: =WORKDAY(Z194,1,feriados!$A$2:$A$1000) -> 2024-08-14 | AA195: 12.15 | AB195: =IF(ISERROR(VLOOKUP(Z195,'Cenários COPOM'!$A$1:$K$100,8,FALSE)),0,VLOOKUP(Z195,'Cenários COPOM'!$A$1:$K$100,8,FALSE)/100) -> 0 | AC195: 12.15 | AD195: 10917.95 | AE195: 12.15039716 | AG195: 193 | AH195: =WORKDAY(AH194,1,feriados!$A$2:$A$1000) -> 2024-08-14 | AI195: 12.15 | AJ195: =IF(ISERROR(VLOOKUP(AH195,'Cenários COPOM'!$A$1:$K$100,10,FALSE)),0,VLOOKUP(AH195,'Cenários COPOM'!$A$1:$K$100,10,FALSE)/100) -> 0 | AK195: 12.15 | AL195: 10917.95 | AM195: 12.15039716
A196: =+A195+1 -> 194 | B196: =WORKDAY(B195,1,feriados!$A$2:$A$1000) -> 2024-08-15 | C196: =+C195 -> 12.15 | D196: =IF(ISERROR(VLOOKUP(B196,'Cenários COPOM'!$A$1:$K$100,2,FALSE)),0,VLOOKUP(B196,'Cenários COPOM'!$A$1:$K$100,2,FALSE)/100) -> 0 | E196: =+E195+D196 -> 12.15 | F196: =+ROUND(((1+E195/100)^(1/252))*F195,2) -> 10922.92 | G196: =+((F196/$F$2)^(252/A196)-1)*100 -> 12.15040706 | I196: =+I195+1 -> 194 | J196: =WORKDAY(J195,1,feriados!$A$2:$A$1000) -> 2024-08-15 | K196: =+K195 -> 12.15 | L196: =IF(ISERROR(VLOOKUP(J196,'Cenários COPOM'!$A$1:$K$100,4,FALSE)),0,VLOOKUP(J196,'Cenários COPOM'!$A$1:$K$100,4,FALSE)/100) -> 0 | M196: =+M195+L196 -> 12.15 | N196: =+ROUND(((1+M195/100)^(1/252))*N195,2) -> 10922.92 | O196: =+((N196/$N$2)^(252/I196)-1)*100 -> 12.15040706 | Q196: =+Q195+1 -> 194 | R196: =WORKDAY(R195,1,feriados!$A$2:$A$1000) -> 2024-08-15 | S196: =+S195 -> 12.15 | T196: =IF(ISERROR(VLOOKUP(R196,'Cenários COPOM'!$A$1:$K$100,6,FALSE)),0,VLOOKUP(R196,'Cenários COPOM'!$A$1:$K$100,6,FALSE)/100) -> 0 | U196: =+U195+T196 -> 12.15 | V196: =+ROUND(((1+U195/100)^(1/252))*V195,2) -> 10922.92 | W196: =+((V196/$V$2)^(252/Q196)-1)*100 -> 12.15040706 | Y196: =+Y195+1 -> 194 | Z196: =WORKDAY(Z195,1,feriados!$A$2:$A$1000) -> 2024-08-15 | AA196: =+AA195 -> 12.15 | AB196: =IF(ISERROR(VLOOKUP(Z196,'Cenários COPOM'!$A$1:$K$100,8,FALSE)),0,VLOOKUP(Z196,'Cenários COPOM'!$A$1:$K$100,8,FALSE)/100) -> 0 | AC196: =+AC195+AB196 -> 12.15 | AD196: =+ROUND(((1+AC195/100)^(1/252))*AD195,2) -> 10922.92 | AE196: =+((AD196/$AD$2)^(252/Y196)-1)*100 -> 12.15040706 | AG196: =+AG195+1 -> 194 | AH196: =WORKDAY(AH195,1,feriados!$A$2:$A$1000) -> 2024-08-15 | AI196: =+AI195 -> 12.15 | AJ196: =IF(ISERROR(VLOOKUP(AH196,'Cenários COPOM'!$A$1:$K$100,10,FALSE)),0,VLOOKUP(AH196,'Cenários COPOM'!$A$1:$K$100,10,FALSE)/100) -> 0 | AK196: =+AK195+AJ196 -> 12.15 | AL196: =+ROUND(((1+AK195/100)^(1/252))*AL195,2) -> 10922.92 | AM196: =+((AL196/$F$2)^(252/AG196)-1)*100 -> 12.15040706
A197: 195 | B197: =WORKDAY(B196,1,feriados!$A$2:$A$1000) -> 2024-08-16 | C197: 12.15 | D197: =IF(ISERROR(VLOOKUP(B197,'Cenários COPOM'!$A$1:$K$100,2,FALSE)),0,VLOOKUP(B197,'Cenários COPOM'!$A$1:$K$100,2,FALSE)/100) -> 0 | E197: 12.15 | F197: 10927.89 | G197: 12.15038686 | I197: 195 | J197: =WORKDAY(J196,1,feriados!$A$2:$A$1000) -> 2024-08-16 | K197: 12.15 | L197: =IF(ISERROR(VLOOKUP(J197,'Cenários COPOM'!$A$1:$K$100,4,FALSE)),0,VLOOKUP(J197,'Cenários COPOM'!$A$1:$K$100,4,FALSE)/100) -> 0 | M197: 12.15 | N197: 10927.89 | O197: 12.15038686 | Q197: 195 | R197: =WORKDAY(R196,1,feriados!$A$2:$A$1000) -> 2024-08-16 | S197: 12.15 | T197: =IF(ISERROR(VLOOKUP(R197,'Cenários COPOM'!$A$1:$K$100,6,FALSE)),0,VLOOKUP(R197,'Cenários COPOM'!$A$1:$K$100,6,FALSE)/100) -> 0 | U197: 12.15 | V197: 10927.89 | W197: 12.15038686 | Y197: 195 | Z197: =WORKDAY(Z196,1,feriados!$A$2:$A$1000) -> 2024-08-16 | AA197: 12.15 | AB197: =IF(ISERROR(VLOOKUP(Z197,'Cenários COPOM'!$A$1:$K$100,8,FALSE)),0,VLOOKUP(Z197,'Cenários COPOM'!$A$1:$K$100,8,FALSE)/100) -> 0 | AC197: 12.15 | AD197: 10927.89 | AE197: 12.15038686 | AG197: 195 | AH197: =WORKDAY(AH196,1,feriados!$A$2:$A$1000) -> 2024-08-16 | AI197: 12.15 | AJ197: =IF(ISERROR(VLOOKUP(AH197,'Cenários COPOM'!$A$1:$K$100,10,FALSE)),0,VLOOKUP(AH197,'Cenários COPOM'!$A$1:$K$100,10,FALSE)/100) -> 0 | AK197: 12.15 | AL197: 10927.89 | AM197: 12.15038686
A198: 196 | B198: =WORKDAY(B197,1,feriados!$A$2:$A$1000) -> 2024-08-19 | C198: 12.15 | D198: =IF(ISERROR(VLOOKUP(B198,'Cenários COPOM'!$A$1:$K$100,2,FALSE)),0,VLOOKUP(B198,'Cenários COPOM'!$A$1:$K$100,2,FALSE)/100) -> 0 | E198: 12.15 | F198: 10932.86 | G198: 12.15033703 | I198: 196 | J198: =WORKDAY(J197,1,feriados!$A$2:$A$1000) -> 2024-08-19 | K198: 12.15 | L198: =IF(ISERROR(VLOOKUP(J198,'Cenários COPOM'!$A$1:$K$100,4,FALSE)),0,VLOOKUP(J198,'Cenários COPOM'!$A$1:$K$100,4,FALSE)/100) -> 0 | M198: 12.15 | N198: 10932.86 | O198: 12.15033703 | Q198: 196 | R198: =WORKDAY(R197,1,feriados!$A$2:$A$1000) -> 2024-08-19 | S198: 12.15 | T198: =IF(ISERROR(VLOOKUP(R198,'Cenários COPOM'!$A$1:$K$100,6,FALSE)),0,VLOOKUP(R198,'Cenários COPOM'!$A$1:$K$100,6,FALSE)/100) -> 0 | U198: 12.15 | V198: 10932.86 | W198: 12.15033703 | Y198: 196 | Z198: =WORKDAY(Z197,1,feriados!$A$2:$A$1000) -> 2024-08-19 | AA198: 12.15 | AB198: =IF(ISERROR(VLOOKUP(Z198,'Cenários COPOM'!$A$1:$K$100,8,FALSE)),0,VLOOKUP(Z198,'Cenários COPOM'!$A$1:$K$100,8,FALSE)/100) -> 0 | AC198: 12.15 | AD198: 10932.86 | AE198: 12.15033703 | AG198: 196 | AH198: =WORKDAY(AH197,1,feriados!$A$2:$A$1000) -> 2024-08-19 | AI198: 12.15 | AJ198: =IF(ISERROR(VLOOKUP(AH198,'Cenários COPOM'!$A$1:$K$100,10,FALSE)),0,VLOOKUP(AH198,'Cenários COPOM'!$A$1:$K$100,10,FALSE)/100) -> 0 | AK198: 12.15 | AL198: 10932.86 | AM198: 12.15033703
A199: 197 | B199: =WORKDAY(B198,1,feriados!$A$2:$A$1000) -> 2024-08-20 | C199: 12.15 | D199: =IF(ISERROR(VLOOKUP(B199,'Cenários COPOM'!$A$1:$K$100,2,FALSE)),0,VLOOKUP(B199,'Cenários COPOM'!$A$1:$K$100,2,FALSE)/100) -> 0 | E199: 12.15 | F199: 10937.84 | G199: 12.15038922 | I199: 197 | J199: =WORKDAY(J198,1,feriados!$A$2:$A$1000) -> 2024-08-20 | K199: 12.15 | L199: =IF(ISERROR(VLOOKUP(J199,'Cenários COPOM'!$A$1:$K$100,4,FALSE)),0,VLOOKUP(J199,'Cenários COPOM'!$A$1:$K$100,4,FALSE)/100) -> 0 | M199: 12.15 | N199: 10937.84 | O199: 12.15038922 | Q199: 197 | R199: =WORKDAY(R198,1,feriados!$A$2:$A$1000) -> 2024-08-20 | S199: 12.15 | T199: =IF(ISERROR(VLOOKUP(R199,'Cenários COPOM'!$A$1:$K$100,6,FALSE)),0,VLOOKUP(R199,'Cenários COPOM'!$A$1:$K$100,6,FALSE)/100) -> 0 | U199: 12.15 | V199: 10937.84 | W199: 12.15038922 | Y199: 197 | Z199: =WORKDAY(Z198,1,feriados!$A$2:$A$1000) -> 2024-08-20 | AA199: 12.15 | AB199: =IF(ISERROR(VLOOKUP(Z199,'Cenários COPOM'!$A$1:$K$100,8,FALSE)),0,VLOOKUP(Z199,'Cenários COPOM'!$A$1:$K$100,8,FALSE)/100) -> 0 | AC199: 12.15 | AD199: 10937.84 | AE199: 12.15038922 | AG199: 197 | AH199: =WORKDAY(AH198,1,feriados!$A$2:$A$1000) -> 2024-08-20 | AI199: 12.15 | AJ199: =IF(ISERROR(VLOOKUP(AH199,'Cenários COPOM'!$A$1:$K$100,10,FALSE)),0,VLOOKUP(AH199,'Cenários COPOM'!$A$1:$K$100,10,FALSE)/100) -> 0 | AK199: 12.15 | AL199: 10937.84 | AM199: 12.15038922
A200: 198 | B200: =WORKDAY(B199,1,feriados!$A$2:$A$1000) -> 2024-08-21 | C200: 12.15 | D200: =IF(ISERROR(VLOOKUP(B200,'Cenários COPOM'!$A$1:$K$100,2,FALSE)),0,VLOOKUP(B200,'Cenários COPOM'!$A$1:$K$100,2,FALSE)/100) -> 0 | E200: 12.15 | F200: 10942.82 | G200: 12.1504113 | I200: 198 | J200: =WORKDAY(J199,1,feriados!$A$2:$A$1000) -> 2024-08-21 | K200: 12.15 | L200: =IF(ISERROR(VLOOKUP(J200,'Cenários COPOM'!$A$1:$K$100,4,FALSE)),0,VLOOKUP(J200,'Cenários COPOM'!$A$1:$K$100,4,FALSE)/100) -> 0 | M200: 12.15 | N200: 10942.82 | O200: 12.1504113 | Q200: 198 | R200: =WORKDAY(R199,1,feriados!$A$2:$A$1000) -> 2024-08-21 | S200: 12.15 | T200: =IF(ISERROR(VLOOKUP(R200,'Cenários COPOM'!$A$1:$K$100,6,FALSE)),0,VLOOKUP(R200,'Cenários COPOM'!$A$1:$K$100,6,FALSE)/100) -> 0 | U200: 12.15 | V200: 10942.82 | W200: 12.1504113 | Y200: 198 | Z200: =WORKDAY(Z199,1,feriados!$A$2:$A$1000) -> 2024-08-21 | AA200: 12.15 | AB200: =IF(ISERROR(VLOOKUP(Z200,'Cenários COPOM'!$A$1:$K$100,8,FALSE)),0,VLOOKUP(Z200,'Cenários COPOM'!$A$1:$K$100,8,FALSE)/100) -> 0 | AC200: 12.15 | AD200: 10942.82 | AE200: 12.1504113 | AG200: 198 | AH200: =WORKDAY(AH199,1,feriados!$A$2:$A$1000) -> 2024-08-21 | AI200: 12.15 | AJ200: =IF(ISERROR(VLOOKUP(AH200,'Cenários COPOM'!$A$1:$K$100,10,FALSE)),0,VLOOKUP(AH200,'Cenários COPOM'!$A$1:$K$100,10,FALSE)/100) -> 0 | AK200: 12.15 | AL200: 10942.82 | AM200: 12.1504113
... 2050 more rows

Sheet Resultados Cenários
E1: Mercado (aba Projeções) | I1: =+'Cenários COPOM'!B1 -> Cenário 1 | N1: =+'Cenários COPOM'!D1 -> Cenário 2 | S1: =+'Cenários COPOM'!F1 -> Cenário 3 | X1: =+'Cenários COPOM'!H1 -> Cenário 4 | AC1: =+'Cenários COPOM'!J1 -> Cenário 5
A2: Reuniões | B2: d.u. reunião | C2: d.u. DI | D2: Expectativa COPOM | E2: Trajetória | F2: Mercado DI Fut | G2: Expectativa COPOM | H2: Trajetória | I2: Projeção DI Fut | J2: Dif ptb | K2: % | L2: Expectativa COPOM | M2: Trajetória | N2: Projeção DI Fut | O2: Dif ptb | P2: % | Q2: Expectativa COPOM | R2: Trajetória | S2: Projeção DI Fut | T2: Dif ptb | U2: % | V2: Expectativa COPOM | W2: Trajetória | X2: Projeção DI Fut | Y2: Dif ptb | Z2: % | AA2: Expectativa COPOM | AB2: Trajetória | AC2: Projeção DI Fut | AD2: Dif ptb | AE2: %
A3: Base | B3: =+'Resumo estatístico Futuro DI'!B1 -> 2023-11-07 | E3: =+'Resumo estatístico Futuro DI'!B3 -> 0.1215 | F3: =+'Resumo estatístico Futuro DI'!B3 -> 0.1215 | H3: =+E3 -> 0.1215 | I3: =+F3 -> 0.1215 | M3: =+H3 -> 0.1215 | N3: =+I3 -> 0.1215 | R3: =+M3 -> 0.1215 | S3: =+N3 -> 0.1215 | W3: =+R3 -> 0.1215 | X3: =+S3 -> 0.1215 | AB3: =+W3 -> 0.1215 | AC3: =+X3 -> 0.1215
A4: Reunião* | B4: 2021-01-21 | C4: =NETWORKDAYS($B$3,B4-1,feriados!$A$2:$A$2000) -> -703 | D4: =IF(OR(A4="Reunião",A4="Reunião*"),VLOOKUP(C4,Projeções!D:G,4,FALSE),0) ->  | E4: =+E3+(D4/10000) ->  | F4: =VLOOKUP(B4,Projeções!C:J,7,FALSE) ->  | G4: =IF(OR(A4="Reunião",A4="Reunião*"),VLOOKUP(WORKDAY(B4,-1,feriados!$A$2:$A$2000),'Projeção DI Futuro'!B:G,3,FALSE)*100,0) ->  | H4: =+H3+(G4/10000) ->  | I4: =VLOOKUP(B4,'Projeção DI Futuro'!B:G,6,FALSE)/100 ->  | J4: =+F4-I4 ->  | K4: =+F4/I4 ->  | L4: =IF(OR(A4="Reunião",A4="Reunião*"),VLOOKUP(WORKDAY(B4,-1,feriados!$A$2:$A$2000),'Projeção DI Futuro'!J:O,3,FALSE)*100,0) ->  | M4: =+M3+(L4/10000) ->  | N4: =VLOOKUP(B4,'Projeção DI Futuro'!J:O,6,FALSE)/100 ->  | O4: =+$F4-N4 ->  | P4: =+$F4/N4 ->  | Q4: =IF(OR(A4="Reunião",A4="Reunião*"),VLOOKUP(WORKDAY(B4,-1,feriados!$A$2:$A$2000),'Projeção DI Futuro'!R:W,3,FALSE)*100,0) ->  | R4: =+R3+(Q4/10000) ->  | S4: =VLOOKUP(B4,'Projeção DI Futuro'!R:W,6,FALSE)/100 ->  | T4: =+$F4-S4 ->  | U4: =+$F4/S4 ->  | V4: =IF(OR(A4="Reunião",A4="Reunião*"),VLOOKUP(WORKDAY(B4,-1,feriados!$A$2:$A$2000),'Projeção DI Futuro'!Z:AE,3,FALSE)*100,0) ->  | W4: =+W3+(V4/10000) ->  | X4: =VLOOKUP(B4,'Projeção DI Futuro'!Z:AE,6,FALSE)/100 ->  | Y4: =+$F4-X4 ->  | Z4: =+$F4/X4 ->  | AA4: =IF(OR(A4="Reunião",A4="Reunião*"),VLOOKUP(WORKDAY(B4,-1,feriados!$A$2:$A$2000),'Projeção DI Futuro'!AH:AM,3,FALSE)*100,0) ->  | AB4: =+AB3+(AA4/10000) ->  | AC4: =VLOOKUP(B4,'Projeção DI Futuro'!AH:AM,6,FALSE)/100 ->  | AD4: =+$F4-AC4 ->  | AE4: =+$F4/AC4 -> 
A5: DI | B5: 2021-02-01 | C5: =NETWORKDAYS($B$3,B5-1,feriados!$A$2:$A$2000) -> -695 | D5: =IF(OR(A5="Reunião",A5="Reunião*"),VLOOKUP(C5,Projeções!D:G,4,FALSE),0) -> 0 | E5: =+E4+(D5/10000) ->  | F5: =VLOOKUP(B5,Projeções!C:J,7,FALSE) ->  | G5: =IF(OR(A5="Reunião",A5="Reunião*"),VLOOKUP(WORKDAY(B5,-1,feriados!$A$2:$A$2000),'Projeção DI Futuro'!B:G,3,FALSE)*100,0) -> 0 | H5: =+H4+(G5/10000) ->  | I5: =VLOOKUP(B5,'Projeção DI Futuro'!B:G,6,FALSE)/100 ->  | J5: =+F5-I5 ->  | K5: =+F5/I5 ->  | L5: =IF(OR(A5="Reunião",A5="Reunião*"),VLOOKUP(WORKDAY(B5,-1,feriados!$A$2:$A$2000),'Projeção DI Futuro'!J:O,3,FALSE)*100,0) -> 0 | M5: =+M4+(L5/10000) ->  | N5: =VLOOKUP(B5,'Projeção DI Futuro'!J:O,6,FALSE)/100 ->  | O5: =+$F5-N5 ->  | P5: =+$F5/N5 ->  | Q5: =IF(OR(A5="Reunião",A5="Reunião*"),VLOOKUP(WORKDAY(B5,-1,feriados!$A$2:$A$2000),'Projeção DI Futuro'!R:W,3,FALSE)*100,0) -> 0 | R5: =+R4+(Q5/10000) ->  | S5: =VLOOKUP(B5,'Projeção DI Futuro'!R:W,6,FALSE)/100 ->  | T5: =+$F5-S5 ->  | U5: =+$F5/S5 ->  | V5: =IF(OR(A5="Reunião",A5="Reunião*"),VLOOKUP(WORKDAY(B5,-1,feriados!$A$2:$A$2000),'Projeção DI Futuro'!Z:AE,3,FALSE)*100,0) -> 0 | W5: =+W4+(V5/10000) ->  | X5: =VLOOKUP(B5,'Projeção DI Futuro'!Z:AE,6,FALSE)/100 ->  | Y5: =+$F5-X5 ->  | Z5: =+$F5/X5 ->  | AA5: =IF(OR(A5="Reunião",A5="Reunião*"),VLOOKUP(WORKDAY(B5,-1,feriados!$A$2:$A$2000),'Projeção DI Futuro'!AH:AM,3,FALSE)*100,0) -> 0 | AB5: =+AB4+(AA5/10000) ->  | AC5: =VLOOKUP(B5,'Projeção DI Futuro'!AH:AM,6,FALSE)/100 ->  | AD5: =+$F5-AC5 ->  | AE5: =+$F5/AC5 -> 
A6: DI | B6: 2021-03-01 | C6: =NETWORKDAYS($B$3,B6-1,feriados!$A$2:$A$2000) -> -677 | D6: =IF(OR(A6="Reunião",A6="Reunião*"),VLOOKUP(C6,Projeções!D:G,4,FALSE),0) -> 0 | F6: =VLOOKUP(B6,Projeções!C:J,7,FALSE) ->  | G6: =IF(OR(A6="Reunião",A6="Reunião*"),VLOOKUP(WORKDAY(B6,-1,feriados!$A$2:$A$2000),'Projeção DI Futuro'!B:G,3,FALSE)*100,0) -> 0 | I6: =VLOOKUP(B6,'Projeção DI Futuro'!B:G,6,FALSE)/100 ->  | L6: =IF(OR(A6="Reunião",A6="Reunião*"),VLOOKUP(WORKDAY(B6,-1,feriados!$A$2:$A$2000),'Projeção DI Futuro'!J:O,3,FALSE)*100,0) -> 0 | N6: =VLOOKUP(B6,'Projeção DI Futuro'!J:O,6,FALSE)/100 ->  | Q6: =IF(OR(A6="Reunião",A6="Reunião*"),VLOOKUP(WORKDAY(B6,-1,feriados!$A$2:$A$2000),'Projeção DI Futuro'!R:W,3,FALSE)*100,0) -> 0 | S6: =VLOOKUP(B6,'Projeção DI Futuro'!R:W,6,FALSE)/100 ->  | V6: =IF(OR(A6="Reunião",A6="Reunião*"),VLOOKUP(WORKDAY(B6,-1,feriados!$A$2:$A$2000),'Projeção DI Futuro'!Z:AE,3,FALSE)*100,0) -> 0 | X6: =VLOOKUP(B6,'Projeção DI Futuro'!Z:AE,6,FALSE)/100 ->  | AA6: =IF(OR(A6="Reunião",A6="Reunião*"),VLOOKUP(WORKDAY(B6,-1,feriados!$A$2:$A$2000),'Projeção DI Futuro'!AH:AM,3,FALSE)*100,0) -> 0 | AC6: =VLOOKUP(B6,'Projeção DI Futuro'!AH:AM,6,FALSE)/100 -> 
A7: Reunião* | B7: 2021-03-18 | C7: =NETWORKDAYS($B$3,B7-1,feriados!$A$2:$A$2000) -> -665 | D7: =IF(OR(A7="Reunião",A7="Reunião*"),VLOOKUP(C7,Projeções!D:G,4,FALSE),0) ->  | F7: =VLOOKUP(B7,Projeções!C:J,7,FALSE) ->  | G7: =IF(OR(A7="Reunião",A7="Reunião*"),VLOOKUP(WORKDAY(B7,-1,feriados!$A$2:$A$2000),'Projeção DI Futuro'!B:G,3,FALSE)*100,0) ->  | I7: =VLOOKUP(B7,'Projeção DI Futuro'!B:G,6,FALSE)/100 ->  | L7: =IF(OR(A7="Reunião",A7="Reunião*"),VLOOKUP(WORKDAY(B7,-1,feriados!$A$2:$A$2000),'Projeção DI Futuro'!J:O,3,FALSE)*100,0) ->  | N7: =VLOOKUP(B7,'Projeção DI Futuro'!J:O,6,FALSE)/100 ->  | Q7: =IF(OR(A7="Reunião",A7="Reunião*"),VLOOKUP(WORKDAY(B7,-1,feriados!$A$2:$A$2000),'Projeção DI Futuro'!R:W,3,FALSE)*100,0) ->  | S7: =VLOOKUP(B7,'Projeção DI Futuro'!R:W,6,FALSE)/100 ->  | V7: =IF(OR(A7="Reunião",A7="Reunião*"),VLOOKUP(WORKDAY(B7,-1,feriados!$A$2:$A$2000),'Projeção DI Futuro'!Z:AE,3,FALSE)*100,0) ->  | X7: =VLOOKUP(B7,'Projeção DI Futuro'!Z:AE,6,FALSE)/100 ->  | AA7: =IF(OR(A7="Reunião",A7="Reunião*"),VLOOKUP(WORKDAY(B7,-1,feriados!$A$2:$A$2000),'Projeção DI Futuro'!AH:AM,3,FALSE)*100,0) ->  | AC7: =VLOOKUP(B7,'Projeção DI Futuro'!AH:AM,6,FALSE)/100 -> 
A8: DI | B8: 2021-04-01 | C8: =NETWORKDAYS($B$3,B8-1,feriados!$A$2:$A$2000) -> -655 | D8: =IF(OR(A8="Reunião",A8="Reunião*"),VLOOKUP(C8,Projeções!D:G,4,FALSE),0) -> 0 | F8: =VLOOKUP(B8,Projeções!C:J,7,FALSE) ->  | G8: =IF(OR(A8="Reunião",A8="Reunião*"),VLOOKUP(WORKDAY(B8,-1,feriados!$A$2:$A$2000),'Projeção DI Futuro'!B:G,3,FALSE)*100,0) -> 0 | I8: =VLOOKUP(B8,'Projeção DI Futuro'!B:G,6,FALSE)/100 ->  | L8: =IF(OR(A8="Reunião",A8="Reunião*"),VLOOKUP(WORKDAY(B8,-1,feriados!$A$2:$A$2000),'Projeção DI Futuro'!J:O,3,FALSE)*100,0) -> 0 | N8: =VLOOKUP(B8,'Projeção DI Futuro'!J:O,6,FALSE)/100 ->  | Q8: =IF(OR(A8="Reunião",A8="Reunião*"),VLOOKUP(WORKDAY(B8,-1,feriados!$A$2:$A$2000),'Projeção DI Futuro'!R:W,3,FALSE)*100,0) -> 0 | S8: =VLOOKUP(B8,'Projeção DI Futuro'!R:W,6,FALSE)/100 ->  | V8: =IF(OR(A8="Reunião",A8="Reunião*"),VLOOKUP(WORKDAY(B8,-1,feriados!$A$2:$A$2000),'Projeção DI Futuro'!Z:AE,3,FALSE)*100,0) -> 0 | X8: =VLOOKUP(B8,'Projeção DI Futuro'!Z:AE,6,FALSE)/100 ->  | AA8: =IF(OR(A8="Reunião",A8="Reunião*"),VLOOKUP(WORKDAY(B8,-1,feriados!$A$2:$A$2000),'Projeção DI Futuro'!AH:AM,3,FALSE)*100,0) -> 0 | AC8: =VLOOKUP(B8,'Projeção DI Futuro'!AH:AM,6,FALSE)/100 -> 
A9: DI | B9: 2021-05-03 | C9: =NETWORKDAYS($B$3,B9-1,feriados!$A$2:$A$2000) -> -634 | D9: =IF(OR(A9="Reunião",A9="Reunião*"),VLOOKUP(C9,Projeções!D:G,4,FALSE),0) -> 0 | F9: =VLOOKUP(B9,Projeções!C:J,7,FALSE) ->  | G9: =IF(OR(A9="Reunião",A9="Reunião*"),VLOOKUP(WORKDAY(B9,-1,feriados!$A$2:$A$2000),'Projeção DI Futuro'!B:G,3,FALSE)*100,0) -> 0 | I9: =VLOOKUP(B9,'Projeção DI Futuro'!B:G,6,FALSE)/100 ->  | L9: =IF(OR(A9="Reunião",A9="Reunião*"),VLOOKUP(WORKDAY(B9,-1,feriados!$A$2:$A$2000),'Projeção DI Futuro'!J:O,3,FALSE)*100,0) -> 0 | N9: =VLOOKUP(B9,'Projeção DI Futuro'!J:O,6,FALSE)/100 ->  | Q9: =IF(OR(A9="Reunião",A9="Reunião*"),VLOOKUP(WORKDAY(B9,-1,feriados!$A$2:$A$2000),'Projeção DI Futuro'!R:W,3,FALSE)*100,0) -> 0 | S9: =VLOOKUP(B9,'Projeção DI Futuro'!R:W,6,FALSE)/100 ->  | V9: =IF(OR(A9="Reunião",A9="Reunião*"),VLOOKUP(WORKDAY(B9,-1,feriados!$A$2:$A$2000),'Projeção DI Futuro'!Z:AE,3,FALSE)*100,0) -> 0 | X9: =VLOOKUP(B9,'Projeção DI Futuro'!Z:AE,6,FALSE)/100 ->  | AA9: =IF(OR(A9="Reunião",A9="Reunião*"),VLOOKUP(WORKDAY(B9,-1,feriados!$A$2:$A$2000),'Projeção DI Futuro'!AH:AM,3,FALSE)*100,0) -> 0 | AC9: =VLOOKUP(B9,'Projeção DI Futuro'!AH:AM,6,FALSE)/100 -> 
A10: Reunião* | B10: 2021-05-06 | C10: =NETWORKDAYS($B$3,B10-1,feriados!$A$2:$A$2000) -> -632 | D10: =IF(OR(A10="Reunião",A10="Reunião*"),VLOOKUP(C10,Projeções!D:G,4,FALSE),0) ->  | F10: =VLOOKUP(B10,Projeções!C:J,7,FALSE) ->  | G10: =IF(OR(A10="Reunião",A10="Reunião*"),VLOOKUP(WORKDAY(B10,-1,feriados!$A$2:$A$2000),'Projeção DI Futuro'!B:G,3,FALSE)*100,0) ->  | I10: =VLOOKUP(B10,'Projeção DI Futuro'!B:G,6,FALSE)/100 ->  | L10: =IF(OR(A10="Reunião",A10="Reunião*"),VLOOKUP(WORKDAY(B10,-1,feriados!$A$2:$A$2000),'Projeção DI Futuro'!J:O,3,FALSE)*100,0) ->  | N10: =VLOOKUP(B10,'Projeção DI Futuro'!J:O,6,FALSE)/100 ->  | Q10: =IF(OR(A10="Reunião",A10="Reunião*"),VLOOKUP(WORKDAY(B10,-1,feriados!$A$2:$A$2000),'Projeção DI Futuro'!R:W,3,FALSE)*100,0) ->  | S10: =VLOOKUP(B10,'Projeção DI Futuro'!R:W,6,FALSE)/100 ->  | V10: =IF(OR(A10="Reunião",A10="Reunião*"),VLOOKUP(WORKDAY(B10,-1,feriados!$A$2:$A$2000),'Projeção DI Futuro'!Z:AE,3,FALSE)*100,0) ->  | X10: =VLOOKUP(B10,'Projeção DI Futuro'!Z:AE,6,FALSE)/100 ->  | AA10: =IF(OR(A10="Reunião",A10="Reunião*"),VLOOKUP(WORKDAY(B10,-1,feriados!$A$2:$A$2000),'Projeção DI Futuro'!AH:AM,3,FALSE)*100,0) ->  | AC10: =VLOOKUP(B10,'Projeção DI Futuro'!AH:AM,6,FALSE)/100 -> 
A11: DI | B11: 2021-06-01 | C11: =NETWORKDAYS($B$3,B11-1,feriados!$A$2:$A$2000) -> -614 | D11: =IF(OR(A11="Reunião",A11="Reunião*"),VLOOKUP(C11,Projeções!D:G,4,FALSE),0) -> 0 | F11: =VLOOKUP(B11,Projeções!C:J,7,FALSE) ->  | G11: =IF(OR(A11="Reunião",A11="Reunião*"),VLOOKUP(WORKDAY(B11,-1,feriados!$A$2:$A$2000),'Projeção DI Futuro'!B:G,3,FALSE)*100,0) -> 0 | I11: =VLOOKUP(B11,'Projeção DI Futuro'!B:G,6,FALSE)/100 ->  | L11: =IF(OR(A11="Reunião",A11="Reunião*"),VLOOKUP(WORKDAY(B11,-1,feriados!$A$2:$A$2000),'Projeção DI Futuro'!J:O,3,FALSE)*100,0) -> 0 | N11: =VLOOKUP(B11,'Projeção DI Futuro'!J:O,6,FALSE)/100 ->  | Q11: =IF(OR(A11="Reunião",A11="Reunião*"),VLOOKUP(WORKDAY(B11,-1,feriados!$A$2:$A$2000),'Projeção DI Futuro'!R:W,3,FALSE)*100,0) -> 0 | S11: =VLOOKUP(B11,'Projeção DI Futuro'!R:W,6,FALSE)/100 ->  | V11: =IF(OR(A11="Reunião",A11="Reunião*"),VLOOKUP(WORKDAY(B11,-1,feriados!$A$2:$A$2000),'Projeção DI Futuro'!Z:AE,3,FALSE)*100,0) -> 0 | X11: =VLOOKUP(B11,'Projeção DI Futuro'!Z:AE,6,FALSE)/100 ->  | AA11: =IF(OR(A11="Reunião",A11="Reunião*"),VLOOKUP(WORKDAY(B11,-1,feriados!$A$2:$A$2000),'Projeção DI Futuro'!AH:AM,3,FALSE)*100,0) -> 0 | AC11: =VLOOKUP(B11,'Projeção DI Futuro'!AH:AM,6,FALSE)/100 -> 
A12: Reunião* | B12: 2021-06-17 | C12: =NETWORKDAYS($B$3,B12-1,feriados!$A$2:$A$2000) -> -603 | D12: =IF(OR(A12="Reunião",A12="Reunião*"),VLOOKUP(C12,Projeções!D:G,4,FALSE),0) ->  | F12: =VLOOKUP(B12,Projeções!C:J,7,FALSE) ->  | G12: =IF(OR(A12="Reunião",A12="Reunião*"),VLOOKUP(WORKDAY(B12,-1,feriados!$A$2:$A$2000),'Projeção DI Futuro'!B:G,3,FALSE)*100,0) ->  | I12: =VLOOKUP(B12,'Projeção DI Futuro'!B:G,6,FALSE)/100 ->  | L12: =IF(OR(A12="Reunião",A12="Reunião*"),VLOOKUP(WORKDAY(B12,-1,feriados!$A$2:$A$2000),'Projeção DI Futuro'!J:O,3,FALSE)*100,0) ->  | N12: =VLOOKUP(B12,'Projeção DI Futuro'!J:O,6,FALSE)/100 ->  | Q12: =IF(OR(A12="Reunião",A12="Reunião*"),VLOOKUP(WORKDAY(B12,-1,feriados!$A$2:$A$2000),'Projeção DI Futuro'!R:W,3,FALSE)*100,0) ->  | S12: =VLOOKUP(B12,'Projeção DI Futuro'!R:W,6,FALSE)/100 ->  | V12: =IF(OR(A12="Reunião",A12="Reunião*"),VLOOKUP(WORKDAY(B12,-1,feriados!$A$2:$A$2000),'Projeção DI Futuro'!Z:AE,3,FALSE)*100,0) ->  | X12: =VLOOKUP(B12,'Projeção DI Futuro'!Z:AE,6,FALSE)/100 ->  | AA12: =IF(OR(A12="Reunião",A12="Reunião*"),VLOOKUP(WORKDAY(B12,-1,feriados!$A$2:$A$2000),'Projeção DI Futuro'!AH:AM,3,FALSE)*100,0) ->  | AC12: =VLOOKUP(B12,'Projeção DI Futuro'!AH:AM,6,FALSE)/100 -> 
A13: DI | B13: 2021-07-01 | C13: =NETWORKDAYS($B$3,B13-1,feriados!$A$2:$A$2000) -> -593 | D13: =IF(OR(A13="Reunião",A13="Reunião*"),VLOOKUP(C13,Projeções!D:G,4,FALSE),0) -> 0 | F13: =VLOOKUP(B13,Projeções!C:J,7,FALSE) ->  | G13: =IF(OR(A13="Reunião",A13="Reunião*"),VLOOKUP(WORKDAY(B13,-1,feriados!$A$2:$A$2000),'Projeção DI Futuro'!B:G,3,FALSE)*100,0) -> 0 | I13: =VLOOKUP(B13,'Projeção DI Futuro'!B:G,6,FALSE)/100 ->  | L13: =IF(OR(A13="Reunião",A13="Reunião*"),VLOOKUP(WORKDAY(B13,-1,feriados!$A$2:$A$2000),'Projeção DI Futuro'!J:O,3,FALSE)*100,0) -> 0 | N13: =VLOOKUP(B13,'Projeção DI Futuro'!J:O,6,FALSE)/100 ->  | Q13: =IF(OR(A13="Reunião",A13="Reunião*"),VLOOKUP(WORKDAY(B13,-1,feriados!$A$2:$A$2000),'Projeção DI Futuro'!R:W,3,FALSE)*100,0) -> 0 | S13: =VLOOKUP(B13,'Projeção DI Futuro'!R:W,6,FALSE)/100 ->  | V13: =IF(OR(A13="Reunião",A13="Reunião*"),VLOOKUP(WORKDAY(B13,-1,feriados!$A$2:$A$2000),'Projeção DI Futuro'!Z:AE,3,FALSE)*100,0) -> 0 | X13: =VLOOKUP(B13,'Projeção DI Futuro'!Z:AE,6,FALSE)/100 ->  | AA13: =IF(OR(A13="Reunião",A13="Reunião*"),VLOOKUP(WORKDAY(B13,-1,feriados!$A$2:$A$2000),'Projeção DI Futuro'!AH:AM,3,FALSE)*100,0) -> 0 | AC13: =VLOOKUP(B13,'Projeção DI Futuro'!AH:AM,6,FALSE)/100 -> 
A14: DI | B14: 2021-08-02 | C14: =NETWORKDAYS($B$3,B14-1,feriados!$A$2:$A$2000) -> -570 | D14: =IF(OR(A14="Reunião",A14="Reunião*"),VLOOKUP(C14,Projeções!D:G,4,FALSE),0) -> 0 | F14: =VLOOKUP(B14,Projeções!C:J,7,FALSE) ->  | G14: =IF(OR(A14="Reunião",A14="Reunião*"),VLOOKUP(WORKDAY(B14,-1,feriados!$A$2:$A$2000),'Projeção DI Futuro'!B:G,3,FALSE)*100,0) -> 0 | I14: =VLOOKUP(B14,'Projeção DI Futuro'!B:G,6,FALSE)/100 ->  | L14: =IF(OR(A14="Reunião",A14="Reunião*"),VLOOKUP(WORKDAY(B14,-1,feriados!$A$2:$A$2000),'Projeção DI Futuro'!J:O,3,FALSE)*100,0) -> 0 | N14: =VLOOKUP(B14,'Projeção DI Futuro'!J:O,6,FALSE)/100 ->  | Q14: =IF(OR(A14="Reunião",A14="Reunião*"),VLOOKUP(WORKDAY(B14,-1,feriados!$A$2:$A$2000),'Projeção DI Futuro'!R:W,3,FALSE)*100,0) -> 0 | S14: =VLOOKUP(B14,'Projeção DI Futuro'!R:W,6,FALSE)/100 ->  | V14: =IF(OR(A14="Reunião",A14="Reunião*"),VLOOKUP(WORKDAY(B14,-1,feriados!$A$2:$A$2000),'Projeção DI Futuro'!Z:AE,3,FALSE)*100,0) -> 0 | X14: =VLOOKUP(B14,'Projeção DI Futuro'!Z:AE,6,FALSE)/100 ->  | AA14: =IF(OR(A14="Reunião",A14="Reunião*"),VLOOKUP(WORKDAY(B14,-1,feriados!$A$2:$A$2000),'Projeção DI Futuro'!AH:AM,3,FALSE)*100,0) -> 0 | AC14: =VLOOKUP(B14,'Projeção DI Futuro'!AH:AM,6,FALSE)/100 -> 
A15: Reunião* | B15: 2021-08-05 | C15: =NETWORKDAYS($B$3,B15-1,feriados!$A$2:$A$2000) -> -568 | D15: =IF(OR(A15="Reunião",A15="Reunião*"),VLOOKUP(C15,Projeções!D:G,4,FALSE),0) ->  | F15: =VLOOKUP(B15,Projeções!C:J,7,FALSE) ->  | G15: =IF(OR(A15="Reunião",A15="Reunião*"),VLOOKUP(WORKDAY(B15,-1,feriados!$A$2:$A$2000),'Projeção DI Futuro'!B:G,3,FALSE)*100,0) ->  | I15: =VLOOKUP(B15,'Projeção DI Futuro'!B:G,6,FALSE)/100 ->  | L15: =IF(OR(A15="Reunião",A15="Reunião*"),VLOOKUP(WORKDAY(B15,-1,feriados!$A$2:$A$2000),'Projeção DI Futuro'!J:O,3,FALSE)*100,0) ->  | N15: =VLOOKUP(B15,'Projeção DI Futuro'!J:O,6,FALSE)/100 ->  | Q15: =IF(OR(A15="Reunião",A15="Reunião*"),VLOOKUP(WORKDAY(B15,-1,feriados!$A$2:$A$2000),'Projeção DI Futuro'!R:W,3,FALSE)*100,0) ->  | S15: =VLOOKUP(B15,'Projeção DI Futuro'!R:W,6,FALSE)/100 ->  | V15: =IF(OR(A15="Reunião",A15="Reunião*"),VLOOKUP(WORKDAY(B15,-1,feriados!$A$2:$A$2000),'Projeção DI Futuro'!Z:AE,3,FALSE)*100,0) ->  | X15: =VLOOKUP(B15,'Projeção DI Futuro'!Z:AE,6,FALSE)/100 ->  | AA15: =IF(OR(A15="Reunião",A15="Reunião*"),VLOOKUP(WORKDAY(B15,-1,feriados!$A$2:$A$2000),'Projeção DI Futuro'!AH:AM,3,FALSE)*100,0) ->  | AC15: =VLOOKUP(B15,'Projeção DI Futuro'!AH:AM,6,FALSE)/100 -> 
A16: DI | B16: 2021-09-01 | C16: =NETWORKDAYS($B$3,B16-1,feriados!$A$2:$A$2000) -> -549 | D16: =IF(OR(A16="Reunião",A16="Reunião*"),VLOOKUP(C16,Projeções!D:G,4,FALSE),0) -> 0 | F16: =VLOOKUP(B16,Projeções!C:J,7,FALSE) ->  | G16: =IF(OR(A16="Reunião",A16="Reunião*"),VLOOKUP(WORKDAY(B16,-1,feriados!$A$2:$A$2000),'Projeção DI Futuro'!B:G,3,FALSE)*100,0) -> 0 | I16: =VLOOKUP(B16,'Projeção DI Futuro'!B:G,6,FALSE)/100 ->  | L16: =IF(OR(A16="Reunião",A16="Reunião*"),VLOOKUP(WORKDAY(B16,-1,feriados!$A$2:$A$2000),'Projeção DI Futuro'!J:O,3,FALSE)*100,0) -> 0 | N16: =VLOOKUP(B16,'Projeção DI Futuro'!J:O,6,FALSE)/100 ->  | Q16: =IF(OR(A16="Reunião",A16="Reunião*"),VLOOKUP(WORKDAY(B16,-1,feriados!$A$2:$A$2000),'Projeção DI Futuro'!R:W,3,FALSE)*100,0) -> 0 | S16: =VLOOKUP(B16,'Projeção DI Futuro'!R:W,6,FALSE)/100 ->  | V16: =IF(OR(A16="Reunião",A16="Reunião*"),VLOOKUP(WORKDAY(B16,-1,feriados!$A$2:$A$2000),'Projeção DI Futuro'!Z:AE,3,FALSE)*100,0) -> 0 | X16: =VLOOKUP(B16,'Projeção DI Futuro'!Z:AE,6,FALSE)/100 ->  | AA16: =IF(OR(A16="Reunião",A16="Reunião*"),VLOOKUP(WORKDAY(B16,-1,feriados!$A$2:$A$2000),'Projeção DI Futuro'!AH:AM,3,FALSE)*100,0) -> 0 | AC16: =VLOOKUP(B16,'Projeção DI Futuro'!AH:AM,6,FALSE)/100 -> 
A17: Reunião* | B17: 2021-09-23 | C17: =NETWORKDAYS($B$3,B17-1,feriados!$A$2:$A$2000) -> -534 | D17: =IF(OR(A17="Reunião",A17="Reunião*"),VLOOKUP(C17,Projeções!D:G,4,FALSE),0) ->  | F17: =VLOOKUP(B17,Projeções!C:J,7,FALSE) ->  | G17: =IF(OR(A17="Reunião",A17="Reunião*"),VLOOKUP(WORKDAY(B17,-1,feriados!$A$2:$A$2000),'Projeção DI Futuro'!B:G,3,FALSE)*100,0) ->  | I17: =VLOOKUP(B17,'Projeção DI Futuro'!B:G,6,FALSE)/100 ->  | L17: =IF(OR(A17="Reunião",A17="Reunião*"),VLOOKUP(WORKDAY(B17,-1,feriados!$A$2:$A$2000),'Projeção DI Futuro'!J:O,3,FALSE)*100,0) ->  | N17: =VLOOKUP(B17,'Projeção DI Futuro'!J:O,6,FALSE)/100 ->  | Q17: =IF(OR(A17="Reunião",A17="Reunião*"),VLOOKUP(WORKDAY(B17,-1,feriados!$A$2:$A$2000),'Projeção DI Futuro'!R:W,3,FALSE)*100,0) ->  | S17: =VLOOKUP(B17,'Projeção DI Futuro'!R:W,6,FALSE)/100 ->  | V17: =IF(OR(A17="Reunião",A17="Reunião*"),VLOOKUP(WORKDAY(B17,-1,feriados!$A$2:$A$2000),'Projeção DI Futuro'!Z:AE,3,FALSE)*100,0) ->  | X17: =VLOOKUP(B17,'Projeção DI Futuro'!Z:AE,6,FALSE)/100 ->  | AA17: =IF(OR(A17="Reunião",A17="Reunião*"),VLOOKUP(WORKDAY(B17,-1,feriados!$A$2:$A$2000),'Projeção DI Futuro'!AH:AM,3,FALSE)*100,0) ->  | AC17: =VLOOKUP(B17,'Projeção DI Futuro'!AH:AM,6,FALSE)/100 -> 
A18: DI | B18: 2021-10-01 | C18: =NETWORKDAYS($B$3,B18-1,feriados!$A$2:$A$2000) -> -528 | D18: =IF(OR(A18="Reunião",A18="Reunião*"),VLOOKUP(C18,Projeções!D:G,4,FALSE),0) -> 0 | F18: =VLOOKUP(B18,Projeções!C:J,7,FALSE) ->  | G18: =IF(OR(A18="Reunião",A18="Reunião*"),VLOOKUP(WORKDAY(B18,-1,feriados!$A$2:$A$2000),'Projeção DI Futuro'!B:G,3,FALSE)*100,0) -> 0 | I18: =VLOOKUP(B18,'Projeção DI Futuro'!B:G,6,FALSE)/100 ->  | L18: =IF(OR(A18="Reunião",A18="Reunião*"),VLOOKUP(WORKDAY(B18,-1,feriados!$A$2:$A$2000),'Projeção DI Futuro'!J:O,3,FALSE)*100,0) -> 0 | N18: =VLOOKUP(B18,'Projeção DI Futuro'!J:O,6,FALSE)/100 ->  | Q18: =IF(OR(A18="Reunião",A18="Reunião*"),VLOOKUP(WORKDAY(B18,-1,feriados!$A$2:$A$2000),'Projeção DI Futuro'!R:W,3,FALSE)*100,0) -> 0 | S18: =VLOOKUP(B18,'Projeção DI Futuro'!R:W,6,FALSE)/100 ->  | V18: =IF(OR(A18="Reunião",A18="Reunião*"),VLOOKUP(WORKDAY(B18,-1,feriados!$A$2:$A$2000),'Projeção DI Futuro'!Z:AE,3,FALSE)*100,0) -> 0 | X18: =VLOOKUP(B18,'Projeção DI Futuro'!Z:AE,6,FALSE)/100 ->  | AA18: =IF(OR(A18="Reunião",A18="Reunião*"),VLOOKUP(WORKDAY(B18,-1,feriados!$A$2:$A$2000),'Projeção DI Futuro'!AH:AM,3,FALSE)*100,0) -> 0 | AC18: =VLOOKUP(B18,'Projeção DI Futuro'!AH:AM,6,FALSE)/100 -> 
A19: Reunião* | B19: 2021-10-28 | C19: =NETWORKDAYS($B$3,B19-1,feriados!$A$2:$A$2000) -> -510 | D19: =IF(OR(A19="Reunião",A19="Reunião*"),VLOOKUP(C19,Projeções!D:G,4,FALSE),0) ->  | F19: =VLOOKUP(B19,Projeções!C:J,7,FALSE) ->  | G19: =IF(OR(A19="Reunião",A19="Reunião*"),VLOOKUP(WORKDAY(B19,-1,feriados!$A$2:$A$2000),'Projeção DI Futuro'!B:G,3,FALSE)*100,0) ->  | I19: =VLOOKUP(B19,'Projeção DI Futuro'!B:G,6,FALSE)/100 ->  | L19: =IF(OR(A19="Reunião",A19="Reunião*"),VLOOKUP(WORKDAY(B19,-1,feriados!$A$2:$A$2000),'Projeção DI Futuro'!J:O,3,FALSE)*100,0) ->  | N19: =VLOOKUP(B19,'Projeção DI Futuro'!J:O,6,FALSE)/100 ->  | Q19: =IF(OR(A19="Reunião",A19="Reunião*"),VLOOKUP(WORKDAY(B19,-1,feriados!$A$2:$A$2000),'Projeção DI Futuro'!R:W,3,FALSE)*100,0) ->  | S19: =VLOOKUP(B19,'Projeção DI Futuro'!R:W,6,FALSE)/100 ->  | V19: =IF(OR(A19="Reunião",A19="Reunião*"),VLOOKUP(WORKDAY(B19,-1,feriados!$A$2:$A$2000),'Projeção DI Futuro'!Z:AE,3,FALSE)*100,0) ->  | X19: =VLOOKUP(B19,'Projeção DI Futuro'!Z:AE,6,FALSE)/100 ->  | AA19: =IF(OR(A19="Reunião",A19="Reunião*"),VLOOKUP(WORKDAY(B19,-1,feriados!$A$2:$A$2000),'Projeção DI Futuro'!AH:AM,3,FALSE)*100,0) ->  | AC19: =VLOOKUP(B19,'Projeção DI Futuro'!AH:AM,6,FALSE)/100 -> 
A20: DI | B20: 2021-11-01 | C20: =NETWORKDAYS($B$3,B20-1,feriados!$A$2:$A$2000) -> -507 | D20: =IF(OR(A20="Reunião",A20="Reunião*"),VLOOKUP(C20,Projeções!D:G,4,FALSE),0) -> 0 | F20: =VLOOKUP(B20,Projeções!C:J,7,FALSE) ->  | G20: =IF(OR(A20="Reunião",A20="Reunião*"),VLOOKUP(WORKDAY(B20,-1,feriados!$A$2:$A$2000),'Projeção DI Futuro'!B:G,3,FALSE)*100,0) -> 0 | I20: =VLOOKUP(B20,'Projeção DI Futuro'!B:G,6,FALSE)/100 ->  | L20: =IF(OR(A20="Reunião",A20="Reunião*"),VLOOKUP(WORKDAY(B20,-1,feriados!$A$2:$A$2000),'Projeção DI Futuro'!J:O,3,FALSE)*100,0) -> 0 | N20: =VLOOKUP(B20,'Projeção DI Futuro'!J:O,6,FALSE)/100 ->  | Q20: =IF(OR(A20="Reunião",A20="Reunião*"),VLOOKUP(WORKDAY(B20,-1,feriados!$A$2:$A$2000),'Projeção DI Futuro'!R:W,3,FALSE)*100,0) -> 0 | S20: =VLOOKUP(B20,'Projeção DI Futuro'!R:W,6,FALSE)/100 ->  | V20: =IF(OR(A20="Reunião",A20="Reunião*"),VLOOKUP(WORKDAY(B20,-1,feriados!$A$2:$A$2000),'Projeção DI Futuro'!Z:AE,3,FALSE)*100,0) -> 0 | X20: =VLOOKUP(B20,'Projeção DI Futuro'!Z:AE,6,FALSE)/100 ->  | AA20: =IF(OR(A20="Reunião",A20="Reunião*"),VLOOKUP(WORKDAY(B20,-1,feriados!$A$2:$A$2000),'Projeção DI Futuro'!AH:AM,3,FALSE)*100,0) -> 0 | AC20: =VLOOKUP(B20,'Projeção DI Futuro'!AH:AM,6,FALSE)/100 -> 
A21: DI | B21: 2021-12-01 | C21: =NETWORKDAYS($B$3,B21-1,feriados!$A$2:$A$2000) -> -488 | D21: =IF(OR(A21="Reunião",A21="Reunião*"),VLOOKUP(C21,Projeções!D:G,4,FALSE),0) -> 0 | F21: =VLOOKUP(B21,Projeções!C:J,7,FALSE) ->  | G21: =IF(OR(A21="Reunião",A21="Reunião*"),VLOOKUP(WORKDAY(B21,-1,feriados!$A$2:$A$2000),'Projeção DI Futuro'!B:G,3,FALSE)*100,0) -> 0 | I21: =VLOOKUP(B21,'Projeção DI Futuro'!B:G,6,FALSE)/100 ->  | L21: =IF(OR(A21="Reunião",A21="Reunião*"),VLOOKUP(WORKDAY(B21,-1,feriados!$A$2:$A$2000),'Projeção DI Futuro'!J:O,3,FALSE)*100,0) -> 0 | N21: =VLOOKUP(B21,'Projeção DI Futuro'!J:O,6,FALSE)/100 ->  | Q21: =IF(OR(A21="Reunião",A21="Reunião*"),VLOOKUP(WORKDAY(B21,-1,feriados!$A$2:$A$2000),'Projeção DI Futuro'!R:W,3,FALSE)*100,0) -> 0 | S21: =VLOOKUP(B21,'Projeção DI Futuro'!R:W,6,FALSE)/100 ->  | V21: =IF(OR(A21="Reunião",A21="Reunião*"),VLOOKUP(WORKDAY(B21,-1,feriados!$A$2:$A$2000),'Projeção DI Futuro'!Z:AE,3,FALSE)*100,0) -> 0 | X21: =VLOOKUP(B21,'Projeção DI Futuro'!Z:AE,6,FALSE)/100 ->  | AA21: =IF(OR(A21="Reunião",A21="Reunião*"),VLOOKUP(WORKDAY(B21,-1,feriados!$A$2:$A$2000),'Projeção DI Futuro'!AH:AM,3,FALSE)*100,0) -> 0 | AC21: =VLOOKUP(B21,'Projeção DI Futuro'!AH:AM,6,FALSE)/100 -> 
